Workbook

Sheet 1. INFORMACION ACUMULADA
A2: VEEDURIA DISTRITAL - INFORMACIÓN GESTION CONTRACTUAL
A3: DEL 1 DE ENERO AL 31 DE DICIEMBRE DE 2021
A5: 1. Entidad | E5: Fondo de Desarrollo Local Barrios Unidos | H5: 2. Sector
A6: 3. Presupuesto Disponible Inversión Directa PREDIS (BOGDATA) | E6: 22394138000 | H6: 5. Presupuesto Disponible Funcionamiento PREDIS (BOGDATA) | I6: 2141000000 | AH6: 9. Nombre de quien diligencia el formato | AJ6: Yessica Paola Beltran
A7: 4. Presupuesto Comprometido de Inversión Directa según PREDIS (BOGDATA) | E7: 20847240668 | H7: 6. Presupuesto Comprometido Funcionamiento según PREDIS (BOGDATA) | I7: 1629775589 | AH7: Cargo | AJ7: Contratista
AH8: Dependencia | AJ8: Contratación
A9: 7. Presupuesto Disponible Operación (Régimen Privado) | AH9: Teléfono | AJ9: 3005272569
A10: 8. Presupuesto Comprometido Operación mediante contratos | AH10: Correo Electrónico | AJ10: Yessica.beltran@gobiernobogota.gov.co
A11: 1- INFORMACION GENERAL | V11: 2- INFORMACION FINANCIERA | AB11: 3 - PLAZOS | AH11: 4. CESION | AL11: 5. ESTADO | AP11: 6. % Avance y/o cumplimiento
A12: 1 | B12: 2 | C12: 3 | E12: 4 | F12: 5 | G12: 6 | H12: 7 | I12: 8 | N12: 9 | O12: 10 | P12: 11 | V12: 12 | W12: 13 | X12: 14 | Y12: 15 | Z12: 16 | AA12: 17 | AB12: 18 | AC12: 19 | AD12: 20 | AE12: 21 | AF12: 22 | AG12: 23 | AH12: 24 | AI12: 25 | AJ12: 26 | AK12: 27 | AL12: 28 | AP12: 29
A13: Número Contrato | B13: Año | C13: Número de proceso contractual SECOP | D13: Link proceso SECOP | E13: Tipo de contrato | F13: Modalidad de Selección | G13: Procedimiento o causal | H13: Objeto | I13: Afectación | J13: Plan de Desarrollo Distrital | K13: Número Programa | L13: Equivalencia número de programa | M13: Propósito | N13: Número Proyecto | O13: Número de proponentes | P13: Número de Identificación del contratista (Cédula o NIT sin puntos, comas ni caracteres especiales y sin digito de verificación) | Q13: Nombre del contratista (según el caso: nombres y apellidos o Razón social y Tipo societario) | R13: Naturaleza Jurídica | S13: Número de Identificación del integrante del Consorcio o U.T. (Cédula o NIT sin puntos, comas ni caracteres especiales y sin digito de verificación) | T13: Nombre del Integrante del Consorcio o U.T. y Tipo societario (Según el caso: nombres y apellidos o razón social y tipo societario) | U13: % Participación (indicar solo el numero del porcentaje, sin caracteres especiales) | V13: Valor Inicial del contrato | W13: Valor total reducciones (En valor negativo) | X13: Número de adiciones | Y13: Valor total de adiciones | Z13: Valor Final | AA13: Giros (Valor en pesos) | AB13: Fecha de suscripción (DD/MM/AAAA) | AC13: Fecha de inicio (DD/MM/AAAA) | AD13: Fecha de terminación (DD/MM/AAAA) | AE13: Plazo en días | AF13: Número de prórrogas | AG13: Prorroga en días | AH13: Número de Identificación del cesionario (NIT sin digito de verificación) | AI13: Nombre cesionario | AJ13: Fecha cesión (DD/MM/AAAA) | AK13: Valor cesión | AL13: Celebrado o por iniciar | AM13: En Ejecución | AN13: Terminado | AO13: Liquidado | AP13: % Avance y/o Cumplimiento
A14: 1 | B14: 2021 | C14: FDLBU-CD-001-2021 | D14: https://community.secop.gov.co/Public/Tendering/ContractNoticePhases/View?PPI=CO1.PPI.11953361&isFromPublicArea=True&isModal=False | E14: Contratos de prestación de servicios profesionales y de apoyo a la gestión | F14: Contratación directa | G14: Prestación de servicios profesionales y de apoyo a la gestión, o para la ejecución de trabajos artísticos que sólo puedan encomendarse a determinadas personas naturales; | H14: PRESTAR LOS SERVICIOS PROFESIONALES ÁREA DE GESTIÓN PARA EL DESARROLLO LOCAL PARA EL APOYO A LA CONTRATACIÓN EN LAS DIFERENTES PLATAFORMAS Y REPORTES A DIFERENTES ORGANISMOS, SEGUIMIENTO A PROCESOS ADELANTADOS POR EL ÁREA. | I14: Inversión | J14: Un Nuevo Contrato Social y Ambiental para la Bogotá del Siglo XXI | K14: 57 | L14: =IF(ISERROR(VLOOKUP(K14,Proposito_programa!$C$2:$E$59,2,FALSE))," ",VLOOKUP(K14,Proposito_programa!$C$2:$E$59,2,FALSE)) -> Gestión pública local | M14: =IF(ISERROR(VLOOKUP(K14,Proposito_programa!$C$2:$E$59,3,FALSE))," ",VLOOKUP(K14,Proposito_programa!$C$2:$E$59,3,FALSE)) -> Propósito 5: Construir Bogotá - Región con gobierno abierto, transparente y ciudadanía consciente | N14: 133011605570000002143 | P14: 52705855 | Q14: XIMENA LOMBANA RIAÑO | R14: Persona Natural | V14: 47500000 | X14: 1 | Y14: 6333333 | Z14: =+V14+W14+Y14 -> 53833333 | AA14: 45916667 | AB14: 2021-02-10 | AC14: 2021-02-11 | AD14: 2021-12-10 | AE14: 300 | AF14: 1 | AG14: 40 | AN14: X | AP14: 0
A15: 2 | B15: 2021 | C15: FDLBU-CD-001-2022 | D15: https://community.secop.gov.co/Public/Tendering/ContractNoticePhases/View?PPI=CO1.PPI.11967321&isFromPublicArea=True&isModal=False | E15: Contratos de prestación de servicios profesionales y de apoyo a la gestión | F15: Contratación directa | G15: Prestación de servicios profesionales y de apoyo a la gestión, o para la ejecución de trabajos artísticos que sólo puedan encomendarse a determinadas personas naturales; | H15: PRESTAR LOS SERVICIOS PROFESIONALES PARA APOYAR AL AREA GESTION DEL DESARROLLO ADMINISTRATIVO Y FINANCIERO EN LOS ASUNTOS RELACIONADOS CON EL DESARROLLO DE LA GESTION CONTRACTUAL PARA LA ADQUISICION DE RECURSOS Y SERVICIOS | I15: Inversión | J15: Un Nuevo Contrato Social y Ambiental para la Bogotá del Siglo XXI | K15: 57 | L15: =IF(ISERROR(VLOOKUP(K15,Proposito_programa!$C$2:$E$59,2,FALSE))," ",VLOOKUP(K15,Proposito_programa!$C$2:$E$59,2,FALSE)) -> Gestión pública local | M15: =IF(ISERROR(VLOOKUP(K15,Proposito_programa!$C$2:$E$59,3,FALSE))," ",VLOOKUP(K15,Proposito_programa!$C$2:$E$59,3,FALSE)) -> Propósito 5: Construir Bogotá - Región con gobierno abierto, transparente y ciudadanía consciente | N15: 133011605570000002143 | P15: 46381344 | Q15: DIANA CAROLINA LIZARAZO MACIAS | R15: Persona Natural | V15: 51780000 | X15: 1 | Y15: 6041000 | Z15: 57821000 | AA15: 51262200 | AB15: 2021-02-12 | AC15: 2021-02-16 | AD15: 2021-12-15 | AE15: 300 | AF15: 1 | AG15: 35 | AI15: ANA MILENA CRUZ BELTRAN | AJ15: 2021-11-02 | AN15: X | AP15: =IF(ISERROR(AA15/Z15),"-",(AA15/Z15)) -> 0.8865671642
A16: 3 | B16: 2021 | C16: FDLBU-CD-001-2023 | D16: https://community.secop.gov.co/Public/Tendering/ContractNoticePhases/View?PPI=CO1.PPI.12065350&isFromPublicArea=True&isModal=False | E16: Contratos de prestación de servicios profesionales y de apoyo a la gestión | F16: Contratación directa | G16: Prestación de servicios profesionales y de apoyo a la gestión, o para la ejecución de trabajos artísticos que sólo puedan encomendarse a determinadas personas naturales; | H16: PRESTAR SERVICIOS PROFESIONALES ESPECIALIZADOS DE ASESORÍA EN PLANEACIÓN EN EL ÁREA DE GESTIÓN DEL DESARROLLO PARA LIDERAR LA FORMULACIÓN, SEGUIMIENTO Y EVALUACIÓN DE POLÍTICAS, PLANES, PROGRAMAS Y PROYECTOS DE DESARROLLO LOCAL, PARA EL CUMPLIMIENTO DE LAS METAS DEL PLAN DE DESARROLLO LOCAL DE BARRIOS UNIDOS | I16: Inversión | J16: Un Nuevo Contrato Social y Ambiental para la Bogotá del Siglo XXI | K16: 57 | L16: =IF(ISERROR(VLOOKUP(K16,Proposito_programa!$C$2:$E$59,2,FALSE))," ",VLOOKUP(K16,Proposito_programa!$C$2:$E$59,2,FALSE)) -> Gestión pública local | M16: =IF(ISERROR(VLOOKUP(K16,Proposito_programa!$C$2:$E$59,3,FALSE))," ",VLOOKUP(K16,Proposito_programa!$C$2:$E$59,3,FALSE)) -> Propósito 5: Construir Bogotá - Región con gobierno abierto, transparente y ciudadanía consciente | N16: 133011605570000002143 | P16: 1130611078 | Q16: PABLO ERNESTO ROMERO VEGA | R16: Persona Natural | V16: 78050000 | X16: 1 | Y16: 5983833 | Z16: 84033833 | AA16: 73627167 | AB16: 2021-02-18 | AC16: 2021-02-18 | AD16: 2021-12-17 | AE16: 300 | AF16: 1 | AG16: 23 | AN16: X | AP16: 0.8761609982
A17: 4 | B17: 2021 | C17: FDLBU-CD-001-2024 | D17: https://community.secop.gov.co/Public/Tendering/ContractNoticePhases/View?PPI=CO1.PPI.12075161&isFromPublicArea=True&isModal=False | E17: Contratos de prestación de servicios profesionales y de apoyo a la gestión | F17: Contratación directa | G17: Prestación de servicios profesionales y de apoyo a la gestión, o para la ejecución de trabajos artísticos que sólo puedan encomendarse a determinadas personas naturales; | H17: PRESTAR SUS SERVICIOS DE APOYO PARA APOYAR LA GESTIÓN DOCUMENTAL DE LA ALCALDÍA LOCAL EN LA IMPLEMENTACIÓN DE LOS PROCESOS DE CLASIFICACIÓN, ORDENACIÓN, SELECCIÓN NATURAL, FOLIACIÓN, IDENTIFICACIÓN, LEVANTAMIENTO DE INVENTARIOS, ALMACENAMIENTO Y APLICACIÓN DE PROTOCOLOS DE ELIMINACIÓN Y TRANSFERENCIAS. | I17: Inversión | J17: Un Nuevo Contrato Social y Ambiental para la Bogotá del Siglo XXI | K17: 57 | L17: =IF(ISERROR(VLOOKUP(K17,Proposito_programa!$C$2:$E$59,2,FALSE))," ",VLOOKUP(K17,Proposito_programa!$C$2:$E$59,2,FALSE)) -> Gestión pública local | M17: =IF(ISERROR(VLOOKUP(K17,Proposito_programa!$C$2:$E$59,3,FALSE))," ",VLOOKUP(K17,Proposito_programa!$C$2:$E$59,3,FALSE)) -> Propósito 5: Construir Bogotá - Región con gobierno abierto, transparente y ciudadanía consciente | N17: 133011605570000002143 | P17: 80041124 | Q17: JOHN ALEJANDRO HERMOSO FORERO | R17: Persona Natural | V17: 22710000 | Z17: 22710000 | AA17: 21347400 | AB17: 2021-02-18 | AC17: 2021-02-19 | AD17: 2021-12-18 | AE17: 300 | AN17: X | AP17: 0.94
A18: 5 | B18: 2021 | C18: FDLBU-CD-001-2025 | D18: https://community.secop.gov.co/Public/Tendering/ContractNoticePhases/View?PPI=CO1.PPI.12092557&isFromPublicArea=True&isModal=False | E18: Contratos de prestación de servicios profesionales y de apoyo a la gestión | F18: Contratación directa | G18: Prestación de servicios profesionales y de apoyo a la gestión, o para la ejecución de trabajos artísticos que sólo puedan encomendarse a determinadas personas naturales; | H18: PRESTAR SUS SERVICIOS PROFESIONALES PARA APOYAR JURÍDICAMENTE LA EJECUCIÓN DE LAS ACCIONES REQUERIDAS PARA EL TRÁMITE E IMPULSO PROCESAL DE LAS ACTUACIONES CONTRAVENCIONALES Y/O QUERELLAS QUE CURSEN EN LAS INSPECCIONES DE LA POLICÍA DE LA LOCALIDAD | I18: Inversión | J18: Un Nuevo Contrato Social y Ambiental para la Bogotá del Siglo XXI | K18: 57 | L18: =IF(ISERROR(VLOOKUP(K18,Proposito_programa!$C$2:$E$59,2,FALSE))," ",VLOOKUP(K18,Proposito_programa!$C$2:$E$59,2,FALSE)) -> Gestión pública local | M18: =IF(ISERROR(VLOOKUP(K18,Proposito_programa!$C$2:$E$59,3,FALSE))," ",VLOOKUP(K18,Proposito_programa!$C$2:$E$59,3,FALSE)) -> Propósito 5: Construir Bogotá - Región con gobierno abierto, transparente y ciudadanía consciente | N18: 133011605570000002143 | P18: 1019034361 | Q18: INGRI JOHANA GALINDO CASTILLO | R18: Persona Natural | V18: 33257000 | X18: 1 | Y18: 14253000 | Z18: 47510000 | AA18: 44659400 | AB18: 2021-02-19 | AC18: 2021-02-19 | AD18: 2021-09-18 | AE18: 210 | AF18: 1 | AG18: 90 | AN18: X | AP18: 0.94
A19: 6 | B19: 2021 | C19: FDLBU-CD-001-2026 | D19: https://community.secop.gov.co/Public/Tendering/ContractNoticePhases/View?PPI=CO1.PPI.12123685&isFromPublicArea=True&isModal=False | E19: Contratos de prestación de servicios profesionales y de apoyo a la gestión | F19: Contratación directa | G19: Prestación de servicios profesionales y de apoyo a la gestión, o para la ejecución de trabajos artísticos que sólo puedan encomendarse a determinadas personas naturales; | H19: PRESTAR SUS SERVICIOS DE APOYO PARA APOYAR LA GESTIÓN DOCUMENTAL DE LA ALCALDÍA LOCAL EN LA IMPLEMENTACIÓN DE LOS PROCESOS DE CLASIFICACIÓN, ORDENACIÓN, SELECCIÓN NATURAL, FOLIACIÓN, IDENTIFICACIÓN, LEVANTAMIENTO DE INVENTARIOS, ALMACENAMIENTO Y APLICACIÓN DE PROTOCOLOS DE ELIMINACIÓN Y TRANSFERENCIAS. | I19: Inversión | J19: Un Nuevo Contrato Social y Ambiental para la Bogotá del Siglo XXI | K19: 57 | L19: =IF(ISERROR(VLOOKUP(K19,Proposito_programa!$C$2:$E$59,2,FALSE))," ",VLOOKUP(K19,Proposito_programa!$C$2:$E$59,2,FALSE)) -> Gestión pública local | M19: =IF(ISERROR(VLOOKUP(K19,Proposito_programa!$C$2:$E$59,3,FALSE))," ",VLOOKUP(K19,Proposito_programa!$C$2:$E$59,3,FALSE)) -> Propósito 5: Construir Bogotá - Región con gobierno abierto, transparente y ciudadanía consciente | N19: 133011605570000002143 | P19: 41778154 | Q19: LUZ MYRIAM PEÑA SANCHEZ | R19: Persona Natural | V19: 22710000 | X19: 1 | Y19: 2195300 | Z19: 24905300 | AA19: 21120300 | AB19: 2021-02-22 | AC19: 2021-02-22 | AD19: 2021-12-21 | AE19: 300 | AF19: 1 | AG19: 29 | AN19: X | AP19: 0.8480243161
A20: 7 | B20: 2021 | C20: FDLBU-CD-001-2027 | D20: https://community.secop.gov.co/Public/Tendering/ContractNoticePhases/View?PPI=CO1.PPI.12107287&isFromPublicArea=True&isModal=False | E20: Contratos de prestación de servicios profesionales y de apoyo a la gestión | F20: Contratación directa | G20: Prestación de servicios profesionales y de apoyo a la gestión, o para la ejecución de trabajos artísticos que sólo puedan encomendarse a determinadas personas naturales; | H20: PRESTAR LOS SERVICIOS PROFESIONALES PARA APOYAR AL AREA GESTION DEL DESARROLLO ADMINISTRATIVO Y FINANCIERO EN LOS ASUNTOS RELACIONADOS CON EL DESARROLLO DE LA GESTION CONTRACTUAL PARA LA ADQUISICION DE RECURSOS Y SERVICIOS | I20: Inversión | J20: Un Nuevo Contrato Social y Ambiental para la Bogotá del Siglo XXI | K20: 57 | L20: =IF(ISERROR(VLOOKUP(K20,Proposito_programa!$C$2:$E$59,2,FALSE))," ",VLOOKUP(K20,Proposito_programa!$C$2:$E$59,2,FALSE)) -> Gestión pública local | M20: =IF(ISERROR(VLOOKUP(K20,Proposito_programa!$C$2:$E$59,3,FALSE))," ",VLOOKUP(K20,Proposito_programa!$C$2:$E$59,3,FALSE)) -> Propósito 5: Construir Bogotá - Región con gobierno abierto, transparente y ciudadanía consciente | N20: 133011605570000002143 | P20: 1140849472 | Q20: BEATRIZ ALICIA CASTRILLON SUMOZA | R20: Persona Natural | V20: 51780000 | X20: 1 | Y20: 4832800 | Z20: 56612800 | AA20: 47982800 | AB20: 2021-02-22 | AC20: 2021-02-23 | AD20: 2021-12-22 | AE20: 300 | AF20: 1 | AG20: 28 | AN20: X | AP20: 0.8475609756
A21: 8 | B21: 2021 | C21: FDLBU-CD-001-2028 | D21: https://community.secop.gov.co/Public/Tendering/ContractNoticePhases/View?PPI=CO1.PPI.12088032&isFromPublicArea=True&isModal=False | E21: Contratos de prestación de servicios profesionales y de apoyo a la gestión | F21: Contratación directa | G21: Prestación de servicios profesionales y de apoyo a la gestión, o para la ejecución de trabajos artísticos que sólo puedan encomendarse a determinadas personas naturales; | H21: PRESTAR SUS SERVICIOS PROFESIONALES PARA APOYAR JURÍDICAMENTE LA EJECUCIÓN DE LAS ACCIONES REQUERIDAS PARA EL TRÁMITE E IMPULSO PROCESAL DE LAS ACTUACIONES CONTRAVENCIONALES Y/O QUERELLAS QUE CURSEN EN LAS INSPECCIONES DE LA POLICÍA DE LA LOCALIDAD | I21: Inversión | J21: Un Nuevo Contrato Social y Ambiental para la Bogotá del Siglo XXI | K21: 57 | L21: =IF(ISERROR(VLOOKUP(K21,Proposito_programa!$C$2:$E$59,2,FALSE))," ",VLOOKUP(K21,Proposito_programa!$C$2:$E$59,2,FALSE)) -> Gestión pública local | M21: =IF(ISERROR(VLOOKUP(K21,Proposito_programa!$C$2:$E$59,3,FALSE))," ",VLOOKUP(K21,Proposito_programa!$C$2:$E$59,3,FALSE)) -> Propósito 5: Construir Bogotá - Región con gobierno abierto, transparente y ciudadanía consciente | N21: 133011605570000002143 | P21: 37747954 | Q21: ENERIET DAZA ARIZA | R21: Persona Natural | V21: 33257000 | X21: 1 | Y21: 14253000 | Z21: 47510000 | AA21: 43867567 | AB21: 2021-02-23 | AC21: 2021-02-24 | AD21: 2021-09-23 | AE21: 210 | AF21: 1 | AG21: 90 | AN21: X | AP21: 0.9233333403
A22: 9 | B22: 2021 | C22: FDLBU-CD-001-2029 | D22: https://community.secop.gov.co/Public/Tendering/ContractNoticePhases/View?PPI=CO1.PPI.12098712&isFromPublicArea=True&isModal=False | E22: Contratos de prestación de servicios profesionales y de apoyo a la gestión | F22: Contratación directa | G22: Prestación de servicios profesionales y de apoyo a la gestión, o para la ejecución de trabajos artísticos que sólo puedan encomendarse a determinadas personas naturales; | H22: PRESTAR SUS SERVICIOS PROFESIONALES PARA APOYAR JURÍDICAMENTE LA EJECUCIÓN DE LAS ACCIONES REQUERIDAS PARA EL TRÁMITE E IMPULSO PROCESAL DE LAS ACTUACIONES CONTRAVENCIONALES Y/O QUERELLAS QUE CURSEN EN LAS INSPECCIONES DE LA POLICÍA DE LA LOCALIDAD | I22: Inversión | J22: Un Nuevo Contrato Social y Ambiental para la Bogotá del Siglo XXI | K22: 57 | L22: =IF(ISERROR(VLOOKUP(K22,Proposito_programa!$C$2:$E$59,2,FALSE))," ",VLOOKUP(K22,Proposito_programa!$C$2:$E$59,2,FALSE)) -> Gestión pública local | M22: =IF(ISERROR(VLOOKUP(K22,Proposito_programa!$C$2:$E$59,3,FALSE))," ",VLOOKUP(K22,Proposito_programa!$C$2:$E$59,3,FALSE)) -> Propósito 5: Construir Bogotá - Región con gobierno abierto, transparente y ciudadanía consciente | N22: 133011605570000002143 | P22: 79276485 | Q22: ALEJANDRO CARRILLO RINCON | R22: Persona Natural | V22: 33257000 | X22: 1 | Y22: 13461167 | Z22: 46718167 | AA22: 43867567 | AB22: 2021-02-23 | AC22: 2021-02-24 | AD22: 2021-09-23 | AE22: 210 | AF22: 1 | AG22: 85 | AN22: X | AP22: 0.9389830513
A23: 10 | B23: 2021 | C23: FDLBU-CD-001-2030 | D23: https://community.secop.gov.co/Public/Tendering/ContractNoticePhases/View?PPI=CO1.PPI.12156478&isFromPublicArea=True&isModal=False | E23: Contratos de prestación de servicios profesionales y de apoyo a la gestión | F23: Contratación directa | G23: Prestación de servicios profesionales y de apoyo a la gestión, o para la ejecución de trabajos artísticos que sólo puedan encomendarse a determinadas personas naturales; | H23: PRESTAR SUS SERVICIOS PROFESIONALES PARA APOYAR JURÍDICAMENTE LA EJECUCIÓN DE LAS ACCIONES REQUERIDAS PARA EL TRÁMITE E IMPULSO PROCESAL DE LAS ACTUACIONES CONTRAVENCIONALES Y/O QUERELLAS QUE CURSEN EN LAS INSPECCIONES DE LA POLICÍA DE LA LOCALIDAD | I23: Inversión | J23: Un Nuevo Contrato Social y Ambiental para la Bogotá del Siglo XXI | K23: 57 | L23: =IF(ISERROR(VLOOKUP(K23,Proposito_programa!$C$2:$E$59,2,FALSE))," ",VLOOKUP(K23,Proposito_programa!$C$2:$E$59,2,FALSE)) -> Gestión pública local | M23: =IF(ISERROR(VLOOKUP(K23,Proposito_programa!$C$2:$E$59,3,FALSE))," ",VLOOKUP(K23,Proposito_programa!$C$2:$E$59,3,FALSE)) -> Propósito 5: Construir Bogotá - Región con gobierno abierto, transparente y ciudadanía consciente | N23: 133011605570000002143 | P23: 1015420645 | Q23: JUAN CARLOS PANTANO SEGURA | R23: Persona Natural | V23: 33257000 | Z23: 33257000 | AA23: 33257000 | AB23: 2021-02-25 | AC23: 2021-03-01 | AD23: 2021-09-30 | AE23: 210 | AN23: X | AP23: 1
A24: 11 | B24: 2021 | C24: FDLBU-CD-001-2031 | D24: https://community.secop.gov.co/Public/Tendering/ContractNoticePhases/View?PPI=CO1.PPI.12107103&isFromPublicArea=True&isModal=False | E24: Contratos de prestación de servicios profesionales y de apoyo a la gestión | F24: Contratación directa | G24: Prestación de servicios profesionales y de apoyo a la gestión, o para la ejecución de trabajos artísticos que sólo puedan encomendarse a determinadas personas naturales; | H24: PRESTAR LOS SERVICIOS PROFESIONALES ESPECIALIZADOS PARA APOYAR EL ÁREA DE GESTIÓN DEL DESARROLLO ADMINISTRATIVO Y FINANCIERO, EN LOS ASUNTOS RELACIONADOS CON EL DESARROLLO DE LA GESTIÓN CONTRACTUAL PARA LA ADQUISICIÓN DE RECURSOS Y SERVICIOS, ASÍ COMO DE LOS OTROS ASUNTOS JURÍDICOS REQUERIDOS EN EL DESARROLLO DE LA GESTIÓN DEL FONDO DE DESARROLLO LOCAL, DESCRITOS POR LA SECRETARÍA DISTRITAL Y DE GOBIERNO Y LAS NORMAS APLICABLES SOBRE LA MATERIA | I24: Inversión | J24: Un Nuevo Contrato Social y Ambiental para la Bogotá del Siglo XXI | K24: 57 | L24: =IF(ISERROR(VLOOKUP(K24,Proposito_programa!$C$2:$E$59,2,FALSE))," ",VLOOKUP(K24,Proposito_programa!$C$2:$E$59,2,FALSE)) -> Gestión pública local | M24: =IF(ISERROR(VLOOKUP(K24,Proposito_programa!$C$2:$E$59,3,FALSE))," ",VLOOKUP(K24,Proposito_programa!$C$2:$E$59,3,FALSE)) -> Propósito 5: Construir Bogotá - Región con gobierno abierto, transparente y ciudadanía consciente | N24: 133011605570000002143 | P24: 1030582824 | Q24: JUAN FELIPE GALINDO NIÑO | R24: Persona Natural | V24: 74000000 | X24: 1 | Y24: 4933333 | Z24: 78933333 | AA24: 66106667 | AB24: 2021-03-01 | AC24: 2021-03-01 | AD24: 2021-12-31 | AE24: 300 | AF24: 1 | AG24: 20 | AI24: ADRIANA LUCIA ROA VANEGAS | AJ24: 2021-09-03 | AN24: X | AP24: 0.8375000078
A25: 12 | B25: 2021 | C25: FDLBU-CD-001-2032 | D25: https://community.secop.gov.co/Public/Tendering/ContractNoticePhases/View?PPI=CO1.PPI.12066200&isFromPublicArea=True&isModal=False | E25: Contratos de prestación de servicios profesionales y de apoyo a la gestión | F25: Contratación directa | G25: Prestación de servicios profesionales y de apoyo a la gestión, o para la ejecución de trabajos artísticos que sólo puedan encomendarse a determinadas personas naturales; | H25: PRESTAR SUS SERVICIOS PROFESIONALES PARA APOYAR TÉCNICAMENTE LAS DISTINTAS ETAPAS DE LOS PROCESOS DE COMPETENCIA DE LAS INSPECCIONES DE POLICÍA DE LA LOCALIDAD, SEGÚN REPARTO | I25: Inversión | J25: Un Nuevo Contrato Social y Ambiental para la Bogotá del Siglo XXI | K25: 57 | L25: =IF(ISERROR(VLOOKUP(K25,Proposito_programa!$C$2:$E$59,2,FALSE))," ",VLOOKUP(K25,Proposito_programa!$C$2:$E$59,2,FALSE)) -> Gestión pública local | M25: =IF(ISERROR(VLOOKUP(K25,Proposito_programa!$C$2:$E$59,3,FALSE))," ",VLOOKUP(K25,Proposito_programa!$C$2:$E$59,3,FALSE)) -> Propósito 5: Construir Bogotá - Región con gobierno abierto, transparente y ciudadanía consciente | N25: 133011605570000002143 | P25: 1013598280 | Q25: TATIANA GOMEZ NISPERUZA | R25: Persona Natural | V25: 34972000 | Z25: 34972000 | AA25: 34972000 | AB25: 2021-02-26 | AC25: 2021-03-02 | AD25: 2021-10-01 | AE25: 210 | AN25: X | AP25: 1
A26: 13 | B26: 2021 | C26: FDLBU-CD-001-2033 | D26: https://community.secop.gov.co/Public/Tendering/ContractNoticePhases/View?PPI=CO1.PPI.12186771&isFromPublicArea=True&isModal=False | E26: Contratos de prestación de servicios profesionales y de apoyo a la gestión | F26: Contratación directa | G26: Prestación de servicios profesionales y de apoyo a la gestión, o para la ejecución de trabajos artísticos que sólo puedan encomendarse a determinadas personas naturales; | H26: PRESTAR SERVICIOS DE APOYO ADMINISTRATIVA Y ASISTENCIALMENTE A LAS INSPECCIONES DE POLICÍA DE LA LOCALIDAD | I26: Inversión | J26: Un Nuevo Contrato Social y Ambiental para la Bogotá del Siglo XXI | K26: 57 | L26: =IF(ISERROR(VLOOKUP(K26,Proposito_programa!$C$2:$E$59,2,FALSE))," ",VLOOKUP(K26,Proposito_programa!$C$2:$E$59,2,FALSE)) -> Gestión pública local | M26: =IF(ISERROR(VLOOKUP(K26,Proposito_programa!$C$2:$E$59,3,FALSE))," ",VLOOKUP(K26,Proposito_programa!$C$2:$E$59,3,FALSE)) -> Propósito 5: Construir Bogotá - Región con gobierno abierto, transparente y ciudadanía consciente | N26: 133011605570000002143 | P26: 52350012 | Q26: LUISA ALEJANDRA PEREZ PALACIO | R26: Persona Natural | V26: 15897000 | Z26: 15897000 | AA26: 15897000 | AB26: 2021-03-05 | AC26: 2021-03-05 | AD26: 2021-10-04 | AE26: 210 | AN26: X | AP26: 1
A27: 14 | B27: 2021 | C27: FDLBU-CD-001-2034 | D27: https://community.secop.gov.co/Public/Tendering/ContractNoticePhases/View?PPI=CO1.PPI.12199555&isFromPublicArea=True&isModal=False | E27: Contratos de prestación de servicios profesionales y de apoyo a la gestión | F27: Contratación directa | G27: Prestación de servicios profesionales y de apoyo a la gestión, o para la ejecución de trabajos artísticos que sólo puedan encomendarse a determinadas personas naturales; | H27: PRESTAR LOS SERVICIOS PROFESIONALES AL FONDO DE DESARROLLO LOCAL/ALCALDIA LOCAL DE BARRIOS UNIDOS PARA LA ASESORÍA, REVISIÓN, SEGUIMIENTO Y CUMPLIMIENTO DE LAS NORMAS QUE REGULAN LOS CONTRATOS SUSCRITOS POR ESTE, EN EL DESARROLLO DE LAS DIFERENTES ETAPAS PRECONTRACTUAL, CONTRACTUAL Y POSCONTRACTUAL | I27: Inversión | J27: Un Nuevo Contrato Social y Ambiental para la Bogotá del Siglo XXI | K27: 57 | L27: =IF(ISERROR(VLOOKUP(K27,Proposito_programa!$C$2:$E$59,2,FALSE))," ",VLOOKUP(K27,Proposito_programa!$C$2:$E$59,2,FALSE)) -> Gestión pública local | M27: =IF(ISERROR(VLOOKUP(K27,Proposito_programa!$C$2:$E$59,3,FALSE))," ",VLOOKUP(K27,Proposito_programa!$C$2:$E$59,3,FALSE)) -> Propósito 5: Construir Bogotá - Región con gobierno abierto, transparente y ciudadanía consciente | N27: 133011605570000002143 | P27: 52517812 | Q27: ADRIANA MONTEALEGRE RIAÑO | R27: Persona Natural | V27: 81670000 | W27: -51724333 | Z27: 29945667 | AA27: 29945667 | AB27: 2021-03-01 | AC27: 2021-03-01 | AD27: 2021-12-31 | AE27: 300 | AN27: X | AP27: 1
A28: 15 | B28: 2021 | C28: FDLBU-CD-001-2035 | D28: https://community.secop.gov.co/Public/Tendering/ContractNoticePhases/View?PPI=CO1.PPI.12220908&isFromPublicArea=True&isModal=False | E28: Contratos de prestación de servicios profesionales y de apoyo a la gestión | F28: Contratación directa | G28: Prestación de servicios profesionales y de apoyo a la gestión, o para la ejecución de trabajos artísticos que sólo puedan encomendarse a determinadas personas naturales; | H28: PRESTAR LOS SERVICIOS PROFESIONALES PARA APOYAR AL AREA GESTION DEL DESARROLLO ADMINISTRATIVO Y FINANCIERO EN LOS ASUNTOS RELACIONADOS CON EL DESARROLLO DE LA GESTION CONTRACTUAL PARA LA ADQUISICION DE RECURSOS Y SERVICIOS | I28: Inversión | J28: Un Nuevo Contrato Social y Ambiental para la Bogotá del Siglo XXI | K28: 57 | L28: =IF(ISERROR(VLOOKUP(K28,Proposito_programa!$C$2:$E$59,2,FALSE))," ",VLOOKUP(K28,Proposito_programa!$C$2:$E$59,2,FALSE)) -> Gestión pública local | M28: =IF(ISERROR(VLOOKUP(K28,Proposito_programa!$C$2:$E$59,3,FALSE))," ",VLOOKUP(K28,Proposito_programa!$C$2:$E$59,3,FALSE)) -> Propósito 5: Construir Bogotá - Región con gobierno abierto, transparente y ciudadanía consciente | N28: 133011605570000002143 | P28: 48600807 | Q28: JANETTE ALEXANDRA LUNA VELA | R28: Persona Natural | V28: 51780000 | X28: 1 | Y28: 3452000 | Z28: 55232000 | AA28: 46602000 | AB28: 2021-03-01 | AC28: 2021-03-01 | AD28: 2021-12-31 | AE28: 300 | AF28: 1 | AG28: 20 | AN28: X | AP28: 0.84375
A29: 16 | B29: 2021 | C29: FDLBU-CD-001-2036 | D29: https://community.secop.gov.co/Public/Tendering/ContractNoticePhases/View?PPI=CO1.PPI.12156494&isFromPublicArea=True&isModal=False | E29: Contratos de prestación de servicios profesionales y de apoyo a la gestión | F29: Contratación directa | G29: Prestación de servicios profesionales y de apoyo a la gestión, o para la ejecución de trabajos artísticos que sólo puedan encomendarse a determinadas personas naturales; | H29: PRESTAR SUS SERVICIOS PROFESIONALES PARA APOYAR JURÍDICAMENTE LA EJECUCIÓN DE LAS ACCIONES REQUERIDAS PARA EL TRÁMITE E IMPULSO PROCESAL DE LAS ACTUACIONES CONTRAVENCIONALES Y/O QUERELLAS QUE CURSEN EN LAS INSPECCIONES DE LA POLICÍA DE LA LOCALIDAD | I29: Inversión | J29: Un Nuevo Contrato Social y Ambiental para la Bogotá del Siglo XXI | K29: 57 | L29: =IF(ISERROR(VLOOKUP(K29,Proposito_programa!$C$2:$E$59,2,FALSE))," ",VLOOKUP(K29,Proposito_programa!$C$2:$E$59,2,FALSE)) -> Gestión pública local | M29: =IF(ISERROR(VLOOKUP(K29,Proposito_programa!$C$2:$E$59,3,FALSE))," ",VLOOKUP(K29,Proposito_programa!$C$2:$E$59,3,FALSE)) -> Propósito 5: Construir Bogotá - Región con gobierno abierto, transparente y ciudadanía consciente | N29: 133011605570000002143 | P29: 80900825 | Q29: EDGAR ANDRES GIRALDO BRICEÑO | R29: Persona Natural | V29: 33257000 | Z29: 33257000 | AA29: 33257000 | AB29: 2021-03-08 | AC29: 2021-03-08 | AD29: 2021-10-07 | AE29: 210 | AN29: X | AP29: 1
A30: 17 | B30: 2021 | C30: FDLBU-CD-001-2037 | D30: https://community.secop.gov.co/Public/Tendering/ContractNoticePhases/View?PPI=CO1.PPI.12091808&isFromPublicArea=True&isModal=False | E30: Contratos de prestación de servicios profesionales y de apoyo a la gestión | F30: Contratación directa | G30: Prestación de servicios profesionales y de apoyo a la gestión, o para la ejecución de trabajos artísticos que sólo puedan encomendarse a determinadas personas naturales; | H30: PRESTAR SUS SERVICIOS PROFESIONALES PARA LA IMPLENTACIÓN DE LAS ACCIONES Y LINEAMIENTOS TÉCNICOS SURTIDOS DEL PROGRAMA DE GESTIÓN DOCUEMNTAL Y DEMÁS INSTRUMENTOS TÉCNICOS ARCHIVÍSTICOS. | I30: Inversión | J30: Un Nuevo Contrato Social y Ambiental para la Bogotá del Siglo XXI | K30: 57 | L30: =IF(ISERROR(VLOOKUP(K30,Proposito_programa!$C$2:$E$59,2,FALSE))," ",VLOOKUP(K30,Proposito_programa!$C$2:$E$59,2,FALSE)) -> Gestión pública local | M30: =IF(ISERROR(VLOOKUP(K30,Proposito_programa!$C$2:$E$59,3,FALSE))," ",VLOOKUP(K30,Proposito_programa!$C$2:$E$59,3,FALSE)) -> Propósito 5: Construir Bogotá - Región con gobierno abierto, transparente y ciudadanía consciente | N30: 133011605570000002143 | P30: 52897368 | Q30: MONICA MAIÍA NAVARRETE CRUZ | R30: Persona Natural | V30: 54050000 | Z30: 54050000 | AA30: 48284667 | AB30: 2021-03-02 | AC30: 2021-03-03 | AD30: 2021-12-31 | AE30: 300 | AF30: 1 | AG30: 2 | AN30: X | AP30: 0.8933333395
A31: 18 | B31: 2021 | C31: FDLBU-CD-001-2038 | D31: https://community.secop.gov.co/Public/Tendering/ContractNoticePhases/View?PPI=CO1.PPI.12092946&isFromPublicArea=True&isModal=False | E31: Contratos de prestación de servicios profesionales y de apoyo a la gestión | F31: Contratación directa | G31: Prestación de servicios profesionales y de apoyo a la gestión, o para la ejecución de trabajos artísticos que sólo puedan encomendarse a determinadas personas naturales; | H31: PRESTAR SERVICIOS PROFESIONALES ESPECIALIZADOS DE ASESORÍA EN PLANEACIÓN EN EL ÁREA DE GESTIÓN DEL DESARROLLO PARA LIDERAR LA FORMULACIÓN, SEGUIMIENTO Y EVALUACIÓN DE POLÍTICAS, PLANES, PROGRAMAS Y PROYECTOS DE DESARROLLO LOCAL, PARA EL CUMPLIMIENTO DE LAS METAS DEL PLAN DE DESARROLLO LOCAL DE BARRIOS UNIDOS | I31: Inversión | J31: Un Nuevo Contrato Social y Ambiental para la Bogotá del Siglo XXI | K31: 57 | L31: =IF(ISERROR(VLOOKUP(K31,Proposito_programa!$C$2:$E$59,2,FALSE))," ",VLOOKUP(K31,Proposito_programa!$C$2:$E$59,2,FALSE)) -> Gestión pública local | M31: =IF(ISERROR(VLOOKUP(K31,Proposito_programa!$C$2:$E$59,3,FALSE))," ",VLOOKUP(K31,Proposito_programa!$C$2:$E$59,3,FALSE)) -> Propósito 5: Construir Bogotá - Región con gobierno abierto, transparente y ciudadanía consciente | N31: 133011605570000002143 | P31: 1032474926 | Q31: MATEO ANDRES SANCHEZ ORTEGA | R31: Persona Natural | V31: 78050000 | X31: 1 | Y31: 1821167 | Z31: 79871167 | AA31: 69464500 | AB31: 2021-03-02 | AC31: 2021-03-04 | AD31: 2021-12-31 | AE31: 300 | AF31: 1 | AG31: 10 | AN31: X | AP31: 0.8697068368
A32: 19 | B32: 2021 | C32: FDLBU-CD-001-2039 | D32: https://community.secop.gov.co/Public/Tendering/ContractNoticePhases/View?PPI=CO1.PPI.12187083&isFromPublicArea=True&isModal=False | E32: Contratos de prestación de servicios profesionales y de apoyo a la gestión | F32: Contratación directa | G32: Prestación de servicios profesionales y de apoyo a la gestión, o para la ejecución de trabajos artísticos que sólo puedan encomendarse a determinadas personas naturales; | H32: PRESTAR LOS SERVICIOS PROFESIONALES MEDIANTE LOS CUALES SE CONSTRIBUYA A LA REVISIÓN, SEGUIMIENTO Y PROYECCIÓN DE RESPUESTA DE LOS INFORMES SOLICITADOS POR LOS ENTES DE CONTROL, ENTIDADES Y CIUDADANÍA EN GENERAL RELATIVOS A LA GESTIÓN DE LA ALCALDIA LOCAL DE BARRIOS UNIDOS DE ACUERDO A SUS COMPETENCIAS MISIONALES | I32: Inversión | J32: Un Nuevo Contrato Social y Ambiental para la Bogotá del Siglo XXI | K32: 57 | L32: =IF(ISERROR(VLOOKUP(K32,Proposito_programa!$C$2:$E$59,2,FALSE))," ",VLOOKUP(K32,Proposito_programa!$C$2:$E$59,2,FALSE)) -> Gestión pública local | M32: =IF(ISERROR(VLOOKUP(K32,Proposito_programa!$C$2:$E$59,3,FALSE))," ",VLOOKUP(K32,Proposito_programa!$C$2:$E$59,3,FALSE)) -> Propósito 5: Construir Bogotá - Región con gobierno abierto, transparente y ciudadanía consciente | N32: 133011605570000002143 | P32: 1022379389 | Q32: LINA MARIA ROJAS GOMEZ | R32: Persona Natural | V32: 45420000 | Z32: 45420000 | AA32: 40423800 | AB32: 2021-03-02 | AC32: 2021-03-04 | AD32: 2021-12-31 | AE32: 300 | AF32: 1 | AG32: 3 | AN32: X | AP32: 0.89
A33: 20 | B33: 2021 | C33: FDLBU-CD-001-2040 | D33: https://community.secop.gov.co/Public/Tendering/ContractNoticePhases/View?PPI=CO1.PPI.12204795&isFromPublicArea=True&isModal=False | E33: Contratos de prestación de servicios profesionales y de apoyo a la gestión | F33: Contratación directa | G33: Prestación de servicios profesionales y de apoyo a la gestión, o para la ejecución de trabajos artísticos que sólo puedan encomendarse a determinadas personas naturales; | H33: PRESTAR SERVICIOS PROFESIONALES EN EL APOYO TÉCNICO A LOS RESPONSABLES E INTEGRANTES DE LOS PROCESOS EN LA IMPLEMENTACIÓN DE HERRAMIENTAS DE GESTIÓN, SIGUIENDO LOS LINEAMIENTOS METODOLÓGICOS ESTABLEDICOS POR LA OFICINA ASESORA DE PLANEACIÓN DE LA SECRETARIA DISTRITAL DE GOBIERNO | I33: Inversión | J33: Un Nuevo Contrato Social y Ambiental para la Bogotá del Siglo XXI | K33: 57 | L33: =IF(ISERROR(VLOOKUP(K33,Proposito_programa!$C$2:$E$59,2,FALSE))," ",VLOOKUP(K33,Proposito_programa!$C$2:$E$59,2,FALSE)) -> Gestión pública local | M33: =IF(ISERROR(VLOOKUP(K33,Proposito_programa!$C$2:$E$59,3,FALSE))," ",VLOOKUP(K33,Proposito_programa!$C$2:$E$59,3,FALSE)) -> Propósito 5: Construir Bogotá - Región con gobierno abierto, transparente y ciudadanía consciente | N33: 133011605570000002143 | P33: 52422505 | Q33: NAYIBE RODRIGUEZ MARTINEZ | R33: Persona Natural | V33: 61770000 | Z33: 61770000 | AA33: 55181200 | AB33: 2021-03-01 | AC33: 2021-03-03 | AD33: 2021-12-31 | AE33: 300 | AF33: 1 | AG33: 2 | AN33: X | AP33: 0.8933333333
A34: 21 | B34: 2021 | C34: FDLBU-CD-001-2041 | D34: https://community.secop.gov.co/Public/Tendering/ContractNoticePhases/View?PPI=CO1.PPI.12206224&isFromPublicArea=True&isModal=False | E34: Contratos de prestación de servicios profesionales y de apoyo a la gestión | F34: Contratación directa | G34: Prestación de servicios profesionales y de apoyo a la gestión, o para la ejecución de trabajos artísticos que sólo puedan encomendarse a determinadas personas naturales; | H34: PRESTAR SERVICIOS DE APOYO PROFESIONAL, CON CONOCIMIENTO EN NORMAS INTERNACIONALES DE INFORMACIÓN FINANCIERA, PARA ADELANTAR LAS ACTIVIDADES QUE DEN CUMPLIMIENTO A PROCEDIMIENTOS, ADMINISTRATIVOS Y CONTABLES APLICABLES EN EL MARCO NORMATIVO CONTABLE | I34: Inversión | J34: Un Nuevo Contrato Social y Ambiental para la Bogotá del Siglo XXI | K34: 57 | L34: =IF(ISERROR(VLOOKUP(K34,Proposito_programa!$C$2:$E$59,2,FALSE))," ",VLOOKUP(K34,Proposito_programa!$C$2:$E$59,2,FALSE)) -> Gestión pública local | M34: =IF(ISERROR(VLOOKUP(K34,Proposito_programa!$C$2:$E$59,3,FALSE))," ",VLOOKUP(K34,Proposito_programa!$C$2:$E$59,3,FALSE)) -> Propósito 5: Construir Bogotá - Región con gobierno abierto, transparente y ciudadanía consciente | N34: 133011605570000002143 | P34: 1010190370 | Q34: MAROLYM YISELH BERNAL TORO | R34: Persona Natural | V34: 47500000 | Z34: 47500000 | AA34: 42275000 | AB34: 2021-03-01 | AC34: 2021-03-04 | AD34: 2021-12-31 | AE34: 300 | AF34: 1 | AG34: 3 | AN34: X | AP34: 0.89
A35: 22 | B35: 2021 | C35: FDLBU-CD-001-2042 | D35: https://community.secop.gov.co/Public/Tendering/ContractNoticePhases/View?PPI=CO1.PPI.12097715&isFromPublicArea=True&isModal=False | E35: Contratos de prestación de servicios profesionales y de apoyo a la gestión | F35: Contratación directa | G35: Prestación de servicios profesionales y de apoyo a la gestión, o para la ejecución de trabajos artísticos que sólo puedan encomendarse a determinadas personas naturales; | H35: PRESTAR LOS SERVICIOS PROFESIONALES PARA APOYAR AL ÁREA DE GESTIÓN DEL DESARROLLO ADMINISTRATIVO Y FINANCIERO, EN LOS ASUNTOS RELACIONADOS CON EL DESARROLLO DE LA GESTIÓN CONTRACTUAL PARA LA ADQUISICIÓN DE RECURSOS Y SERVICIOS | I35: Inversión | J35: Un Nuevo Contrato Social y Ambiental para la Bogotá del Siglo XXI | K35: 57 | L35: =IF(ISERROR(VLOOKUP(K35,Proposito_programa!$C$2:$E$59,2,FALSE))," ",VLOOKUP(K35,Proposito_programa!$C$2:$E$59,2,FALSE)) -> Gestión pública local | M35: =IF(ISERROR(VLOOKUP(K35,Proposito_programa!$C$2:$E$59,3,FALSE))," ",VLOOKUP(K35,Proposito_programa!$C$2:$E$59,3,FALSE)) -> Propósito 5: Construir Bogotá - Región con gobierno abierto, transparente y ciudadanía consciente | N35: 133011605570000002143 | P35: 49729512 | Q35: MERY MARIA ROMERO MESTRE | R35: Persona Natural | V35: 81670000 | X35: 1 | Y35: 1905633 | Z35: 83575633 | AA35: 72958533 | AB35: 2021-03-01 | AC35: 2021-03-03 | AD35: 2021-12-31 | AE35: 300 | AF35: 1 | AG35: 9 | AN35: X | AP35: 0.8729641689
A36: 23 | B36: 2021 | C36: FDLBU-CD-001-2043 | D36: https://community.secop.gov.co/Public/Tendering/ContractNoticePhases/View?PPI=CO1.PPI.12255216&isFromPublicArea=True&isModal=False | E36: Contratos de prestación de servicios profesionales y de apoyo a la gestión | F36: Contratación directa | G36: Prestación de servicios profesionales y de apoyo a la gestión, o para la ejecución de trabajos artísticos que sólo puedan encomendarse a determinadas personas naturales; | H36: PRESTAR SUS SERVICIOS PROFESIONALES PARA APOYAR JURÍDICAMENTE LA EJECUCIÓN DE LAS ACCIONES REQUERIDAS PARA LA DEPURACIÓN DE LAS ACTUACIONES ADMINISTRATIVAS QUE CURSAN EN LA ALCALDÍA LOCAL | I36: Inversión | J36: Un Nuevo Contrato Social y Ambiental para la Bogotá del Siglo XXI | K36: 57 | L36: =IF(ISERROR(VLOOKUP(K36,Proposito_programa!$C$2:$E$59,2,FALSE))," ",VLOOKUP(K36,Proposito_programa!$C$2:$E$59,2,FALSE)) -> Gestión pública local | M36: =IF(ISERROR(VLOOKUP(K36,Proposito_programa!$C$2:$E$59,3,FALSE))," ",VLOOKUP(K36,Proposito_programa!$C$2:$E$59,3,FALSE)) -> Propósito 5: Construir Bogotá - Región con gobierno abierto, transparente y ciudadanía consciente | N36: 133011605570000002143 | P36: 53159645 | Q36: DIANA PAOLA GONZALEZ MURILLO | R36: Persona Natural | V36: 38008000 | Z36: 38008000 | AA36: 37691267 | AB36: 2021-03-01 | AC36: 2021-03-03 | AD36: 2021-11-02 | AE36: 240 | AN36: X | AP36: 0.9916666754
A37: 24 | B37: 2021 | C37: FDLBU-CD-001-2044 | D37: https://community.secop.gov.co/Public/Tendering/ContractNoticePhases/View?PPI=CO1.PPI.12251510&isFromPublicArea=True&isModal=False | E37: Contratos de prestación de servicios profesionales y de apoyo a la gestión | F37: Contratación directa | G37: Prestación de servicios profesionales y de apoyo a la gestión, o para la ejecución de trabajos artísticos que sólo puedan encomendarse a determinadas personas naturales; | H37: PRESTAR SERVICIOS DE APOYO AL ÁREA DE GESTIÓN DEL DESARROLLO ADMINISTRATIVA Y FINANCIERA EN LAS LABORES QUE REQUIERA LA JUNTA ADMINISTRADORA LOCAL DE BARRIOS UNIDOS COMO GRABACIONES DE SESIONES, TRANSCRIPCIÓN DE ACTAS Y ATENCIÓN A LA CIUDADANÍA | I37: Inversión | J37: Un Nuevo Contrato Social y Ambiental para la Bogotá del Siglo XXI | K37: 57 | L37: =IF(ISERROR(VLOOKUP(K37,Proposito_programa!$C$2:$E$59,2,FALSE))," ",VLOOKUP(K37,Proposito_programa!$C$2:$E$59,2,FALSE)) -> Gestión pública local | M37: =IF(ISERROR(VLOOKUP(K37,Proposito_programa!$C$2:$E$59,3,FALSE))," ",VLOOKUP(K37,Proposito_programa!$C$2:$E$59,3,FALSE)) -> Propósito 5: Construir Bogotá - Región con gobierno abierto, transparente y ciudadanía consciente | N37: 133011605570000002143 | P37: 1026250874 | Q37: LINA MARIA PAEZ BOGOYA | R37: Persona Natural | V37: 22710000 | X37: 1 | Y37: 1135500 | Z37: 23845500 | AA37: 20439000 | AB37: 2021-03-01 | AC37: 2021-03-01 | AD37: 2021-12-31 | AE37: 300 | AF37: 1 | AG37: 15 | AN37: X | AP37: 0.8571428571
A38: 25 | B38: 2021 | C38: FDLBU-CD-001-2045 | D38: https://community.secop.gov.co/Public/Tendering/ContractNoticePhases/View?PPI=CO1.PPI.12187041&isFromPublicArea=True&isModal=False | E38: Contratos de prestación de servicios profesionales y de apoyo a la gestión | F38: Contratación directa | G38: Prestación de servicios profesionales y de apoyo a la gestión, o para la ejecución de trabajos artísticos que sólo puedan encomendarse a determinadas personas naturales; | H38: PRESTAR LOS SERVICIOS PROFESIONALES PARA APOYAR AL ÁREA GESTIÓN DEL DESARROLLO ADMINISTRATIVO Y FINANCIERO EN LOS ASUNTOS RELATIVOS A LA PLANEACIÓN LOCAL, ASÍ COMO EL APOYO A LA SUPERVISIÓN DE CONTRATOS SUSCRITOS POR LA ALCALDÍA LOCAL DE BARRIOS UNIDOS | I38: Inversión | J38: Un Nuevo Contrato Social y Ambiental para la Bogotá del Siglo XXI | K38: 57 | L38: =IF(ISERROR(VLOOKUP(K38,Proposito_programa!$C$2:$E$59,2,FALSE))," ",VLOOKUP(K38,Proposito_programa!$C$2:$E$59,2,FALSE)) -> Gestión pública local | M38: =IF(ISERROR(VLOOKUP(K38,Proposito_programa!$C$2:$E$59,3,FALSE))," ",VLOOKUP(K38,Proposito_programa!$C$2:$E$59,3,FALSE)) -> Propósito 5: Construir Bogotá - Región con gobierno abierto, transparente y ciudadanía consciente | N38: 133011605570000002143 | P38: 1030548937 | Q38: SINDY YINETH ZAPATA MURILLO | R38: Persona Natural | V38: 58140000 | X38: 1 | Y38: 1356600 | Z38: 59496600 | AA38: 51744600 | AB38: 2021-03-02 | AC38: 2021-03-04 | AD38: 2021-12-31 | AE38: 300 | AF38: 1 | AG38: 10 | AN38: X | AP38: 0.8697068404
A39: 26 | B39: 2021 | C39: FDLBU-CD-001-2046 | D39: https://community.secop.gov.co/Public/Tendering/ContractNoticePhases/View?PPI=CO1.PPI.12262941&isFromPublicArea=True&isModal=False | E39: Contratos de prestación de servicios profesionales y de apoyo a la gestión | F39: Contratación directa | G39: Prestación de servicios profesionales y de apoyo a la gestión, o para la ejecución de trabajos artísticos que sólo puedan encomendarse a determinadas personas naturales; | H39: PRESTAR LOS SERVICIOS PROFESIONALES A LA ALCALDÍA LOCAL DE BARRIOS UNIDOS EN LA ADMINISTRACIÓN DE LA RED DE VOZ Y DATOS, EN LA ACTUALIZACIÓN Y SOPORTE CON LAS TECNOLOGÍAS Y SISTEMAS DE INFORMACIÓN, ASÍ COMO EL APOYO A LA SUPERVISIÓN DE LOS CONTRATOS QUE TIENEN RELACIÓN CON SOPORTES TECNOLÓGICOS Y TEMAS RELACIONADOS | I39: Inversión | J39: Un Nuevo Contrato Social y Ambiental para la Bogotá del Siglo XXI | K39: 57 | L39: =IF(ISERROR(VLOOKUP(K39,Proposito_programa!$C$2:$E$59,2,FALSE))," ",VLOOKUP(K39,Proposito_programa!$C$2:$E$59,2,FALSE)) -> Gestión pública local | M39: =IF(ISERROR(VLOOKUP(K39,Proposito_programa!$C$2:$E$59,3,FALSE))," ",VLOOKUP(K39,Proposito_programa!$C$2:$E$59,3,FALSE)) -> Propósito 5: Construir Bogotá - Región con gobierno abierto, transparente y ciudadanía consciente | N39: 133011605570000002143 | P39: 79953222 | Q39: ANDRES ORLANDO BRICEÑO | R39: Persona Natural | V39: 61770000 | X39: 1 | Y39: 1853100 | Z39: 63623100 | AA39: 55387100 | AB39: 2021-03-02 | AC39: 2021-03-02 | AD39: 2021-12-31 | AE39: 300 | AF39: 1 | AG39: 10 | AN39: X | AP39: 0.8705501618
A40: 27 | B40: 2021 | C40: FDLBU-CD-001-2047 | D40: https://community.secop.gov.co/Public/Tendering/ContractNoticePhases/View?PPI=CO1.PPI.12096669&isFromPublicArea=True&isModal=False | E40: Contratos de prestación de servicios profesionales y de apoyo a la gestión | F40: Contratación directa | G40: Prestación de servicios profesionales y de apoyo a la gestión, o para la ejecución de trabajos artísticos que sólo puedan encomendarse a determinadas personas naturales; | H40: PRESTAR LOS SERVICIOS DE APOYO A LA GESTIÓN EN LA CONDUCCIÓN DE LOS VEHÍCULOS A CARGO DE EL FONDO DE DESARROLLO LOCAL DE BARRIOS UNIDOS, ASÍ COMO APOYAR LA GESTIÓN ADMINISTRATIVA QUE DESIGNE EL SUPERVISOR. | I40: Inversión | J40: Un Nuevo Contrato Social y Ambiental para la Bogotá del Siglo XXI | K40: 57 | L40: =IF(ISERROR(VLOOKUP(K40,Proposito_programa!$C$2:$E$59,2,FALSE))," ",VLOOKUP(K40,Proposito_programa!$C$2:$E$59,2,FALSE)) -> Gestión pública local | M40: =IF(ISERROR(VLOOKUP(K40,Proposito_programa!$C$2:$E$59,3,FALSE))," ",VLOOKUP(K40,Proposito_programa!$C$2:$E$59,3,FALSE)) -> Propósito 5: Construir Bogotá - Región con gobierno abierto, transparente y ciudadanía consciente | N40: 133011605570000002143 | P40: 79879901 | Q40: JHONATAN ANDRÉS RUEDA TORRES | R40: Persona Natural | V40: 24070000 | Z40: 24070000 | AA40: 21422300 | AB40: 2021-03-02 | AC40: 2021-03-04 | AD40: 2021-12-31 | AE40: 300 | AF40: 1 | AG40: 3 | AN40: X | AP40: 0.89
A41: 28 | B41: 2021 | C41: FDLBU-CD-001-2048 | D41: https://community.secop.gov.co/Public/Tendering/ContractNoticePhases/View?PPI=CO1.PPI.12268215&isFromPublicArea=True&isModal=False | E41: Contratos de prestación de servicios profesionales y de apoyo a la gestión | F41: Contratación directa | G41: Prestación de servicios profesionales y de apoyo a la gestión, o para la ejecución de trabajos artísticos que sólo puedan encomendarse a determinadas personas naturales; | H41: PRESTAR LOS SERVICIOS PROFESIONALES PARA APOYAR AL ÁREA GESTIÓN DEL DESARROLLO ADMINISTRATIVO Y FINANCIERO EN LOS ASUNTOS RELACIONADOS CON EL DESARROLLO DE LA GESTIÓN CONTRACTUAL PARA LA ADQUISICIÓN DE RECURSOS Y SERVICIOS | I41: Inversión | J41: Un Nuevo Contrato Social y Ambiental para la Bogotá del Siglo XXI | K41: 57 | L41: =IF(ISERROR(VLOOKUP(K41,Proposito_programa!$C$2:$E$59,2,FALSE))," ",VLOOKUP(K41,Proposito_programa!$C$2:$E$59,2,FALSE)) -> Gestión pública local | M41: =IF(ISERROR(VLOOKUP(K41,Proposito_programa!$C$2:$E$59,3,FALSE))," ",VLOOKUP(K41,Proposito_programa!$C$2:$E$59,3,FALSE)) -> Propósito 5: Construir Bogotá - Región con gobierno abierto, transparente y ciudadanía consciente | N41: 133011605570000002143 | P41: 1026270891 | Q41: CHRISTIAN CAMILO SUAREZ RAMIREZ | R41: Persona Natural | V41: 15534000 | Z41: 15534000 | AA41: 15361400 | AB41: 2021-03-02 | AC41: 2021-03-02 | AD41: 2021-06-01 | AE41: 90 | AN41: X | AP41: 0.9888888889
A42: 29 | B42: 2021 | C42: FDLBU-CD-001-2049 | D42: https://community.secop.gov.co/Public/Tendering/ContractNoticePhases/View?PPI=CO1.PPI.12250822&isFromPublicArea=True&isModal=False | E42: Contratos de prestación de servicios profesionales y de apoyo a la gestión | F42: Contratación directa | G42: Prestación de servicios profesionales y de apoyo a la gestión, o para la ejecución de trabajos artísticos que sólo puedan encomendarse a determinadas personas naturales; | H42: PRESTAR SERVICIOS DE APOYO AL ÁREA DE GESTIÓN DEL DESARROLLO ADMINISTRATIVA Y FINANCIERA EN LAS LABORES QUE REQUIERA LA JUNTA ADMINISTRADORA LOCAL DE BARRIOS UNIDOS COMO GRABACIONES DE SESIONES, TRANSCRIPCIÓN DE ACTAS Y ATENCIÓN A LA CIUDADANÍA | I42: Inversión | J42: Un Nuevo Contrato Social y Ambiental para la Bogotá del Siglo XXI | K42: 57 | L42: =IF(ISERROR(VLOOKUP(K42,Proposito_programa!$C$2:$E$59,2,FALSE))," ",VLOOKUP(K42,Proposito_programa!$C$2:$E$59,2,FALSE)) -> Gestión pública local | M42: =IF(ISERROR(VLOOKUP(K42,Proposito_programa!$C$2:$E$59,3,FALSE))," ",VLOOKUP(K42,Proposito_programa!$C$2:$E$59,3,FALSE)) -> Propósito 5: Construir Bogotá - Región con gobierno abierto, transparente y ciudadanía consciente | N42: 133011605570000002143 | P42: 1235538229 | Q42: SAHY MAYGLETH TORRES CORAL | R42: Persona Natural | V42: 22710000 | X42: 1 | Y42: 757000 | Z42: 23467000 | AA42: 20211900 | AB42: 2021-03-04 | AC42: 2021-03-04 | AD42: 2021-12-31 | AE42: 300 | AF42: 1 | AG42: 13 | AN42: X | AP42: 0.8612903226
A43: 30 | B43: 2021 | C43: FDLBU-CD-001-2050 | D43: https://community.secop.gov.co/Public/Tendering/ContractNoticePhases/View?PPI=CO1.PPI.12194865&isFromPublicArea=True&isModal=False | E43: Contratos de prestación de servicios profesionales y de apoyo a la gestión | F43: Contratación directa | G43: Prestación de servicios profesionales y de apoyo a la gestión, o para la ejecución de trabajos artísticos que sólo puedan encomendarse a determinadas personas naturales; | H43: PRESTAR SERVICIOS PROFESIONALES PARA APOYAR LA GESTIÓN DEL RIESGO QUE PROMUEVA LAS ACCIONES REQUERIDAS PARA LA PREVENCIÓN Y ATENCIÓN DE EMERGENCIAS O EVENTOS GENERADOS POR LA MATERIALIZACIÓN DE LOS RIESGOS Y RESPONDA DE MANERA OPERATIVA E INMEDIATA ANTE LA OCURRENCIA DE SITUACIONES ADVERSAS EN TEMAS DE EMERGENCIAS EN LA LOCALIDAD PARA EL LOGRO DE LAS METAS DE PLAN DE DESARROLLO LOCAL VIGENTE | I43: Inversión | J43: Un Nuevo Contrato Social y Ambiental para la Bogotá del Siglo XXI | K43: 30 | L43: =IF(ISERROR(VLOOKUP(K43,Proposito_programa!$C$2:$E$59,2,FALSE))," ",VLOOKUP(K43,Proposito_programa!$C$2:$E$59,2,FALSE)) -> Eficiencia en la atención de emergencias | M43: =IF(ISERROR(VLOOKUP(K43,Proposito_programa!$C$2:$E$59,3,FALSE))," ",VLOOKUP(K43,Proposito_programa!$C$2:$E$59,3,FALSE)) -> Propósito 2 : Cambiar Nuestros Hábitos de Vida para Reverdecer a Bogotá y Adaptarnos y Mitigar la Crisis Climática | N43: 133011602300000002103 | P43: 79881960 | Q43: FROILAN OSWALDO MARTINEZ CORREA | R43: Persona Natural | V43: 47380000 | Z43: 47380000 | AA43: 42010267 | AB43: 2021-03-04 | AC43: 2021-03-05 | AD43: 2021-12-31 | AE43: 300 | AF43: 1 | AG43: 4 | AN43: X | AP43: 0.8866666737
A44: 31 | B44: 2021 | C44: FDLBU-CD-001-2051 | D44: https://community.secop.gov.co/Public/Tendering/ContractNoticePhases/View?PPI=CO1.PPI.12091842&isFromPublicArea=True&isModal=False | E44: Contratos de prestación de servicios profesionales y de apoyo a la gestión | F44: Contratación directa | G44: Prestación de servicios profesionales y de apoyo a la gestión, o para la ejecución de trabajos artísticos que sólo puedan encomendarse a determinadas personas naturales; | H44: PRESTAR SERVICIOS PROFESIONALES PARA APOYAR AL EQUIPO DE PRENSA Y COMUNICACIONES DE LA ALCALDÍA LOCAL MEDIANTE EL REGISTRO, LA EDICIÓN Y LA PRESENTACIÓN DE FOTOGRAFÍAS DE LOS ACONTECIMIENTOS, HECHOS Y EVENTOS DE LA ALCALDÍA LOCAL EN LOS MEDIOS DE COMUNICACIÓN, ESCRITOS, DIGITALES Y AUDIOVISUALES | I44: Inversión | J44: Un Nuevo Contrato Social y Ambiental para la Bogotá del Siglo XXI | K44: 57 | L44: =IF(ISERROR(VLOOKUP(K44,Proposito_programa!$C$2:$E$59,2,FALSE))," ",VLOOKUP(K44,Proposito_programa!$C$2:$E$59,2,FALSE)) -> Gestión pública local | M44: =IF(ISERROR(VLOOKUP(K44,Proposito_programa!$C$2:$E$59,3,FALSE))," ",VLOOKUP(K44,Proposito_programa!$C$2:$E$59,3,FALSE)) -> Propósito 5: Construir Bogotá - Región con gobierno abierto, transparente y ciudadanía consciente | N44: 133011605570000002143 | P44: 80063016 | Q44: NELSON EMIR CICUAMIA SUAREZ | R44: Persona Natural | V44: 51780000 | Z44: 51780000 | AA44: 43840400 | AB44: 2021-03-03 | AC44: 2021-03-17 | AD44: 2021-12-31 | AE44: 300 | AF44: 1 | AG44: 16 | AN44: X | AP44: 0.8466666667
A45: 32 | B45: 2021 | C45: FDLBU-CD-001-2052 | D45: https://community.secop.gov.co/Public/Tendering/ContractNoticePhases/View?PPI=CO1.PPI.12255298&isFromPublicArea=True&isModal=False | E45: Contratos de prestación de servicios profesionales y de apoyo a la gestión | F45: Contratación directa | G45: Prestación de servicios profesionales y de apoyo a la gestión, o para la ejecución de trabajos artísticos que sólo puedan encomendarse a determinadas personas naturales; | H45: PRESTAR SUS SERVICIOS PROFESIONALES PARA APOYAR JURÍDICAMENTE LA EJECUCIÓN DE LAS ACCIONES REQUERIDAS PARA LA DEPURACIÓN DE LAS ACTUACIONES ADMINISTRATIVAS QUE CURSAN EN LA ALCALDÍA LOCAL | I45: Inversión | J45: Un Nuevo Contrato Social y Ambiental para la Bogotá del Siglo XXI | K45: 57 | L45: =IF(ISERROR(VLOOKUP(K45,Proposito_programa!$C$2:$E$59,2,FALSE))," ",VLOOKUP(K45,Proposito_programa!$C$2:$E$59,2,FALSE)) -> Gestión pública local | M45: =IF(ISERROR(VLOOKUP(K45,Proposito_programa!$C$2:$E$59,3,FALSE))," ",VLOOKUP(K45,Proposito_programa!$C$2:$E$59,3,FALSE)) -> Propósito 5: Construir Bogotá - Región con gobierno abierto, transparente y ciudadanía consciente | N45: 133011605570000002143 | P45: 80740127 | Q45: EDWIN JAVIER CIFUENTES VILLAMIZAR | R45: Persona Natural | V45: 38008000 | X45: 1 | Y45: 8393433 | Z45: 46401433 | AA45: 41650433 | AB45: 2021-03-04 | AC45: 2021-03-08 | AD45: 2021-11-07 | AE45: 240 | AF45: 1 | AG45: 53 | AN45: X | AP45: 0.8976109208
A46: 33 | B46: 2021 | C46: FDLBU-CD-001-2053 | D46: https://community.secop.gov.co/Public/Tendering/ContractNoticePhases/View?PPI=CO1.PPI.12159478&isFromPublicArea=True&isModal=False | E46: Contratos de prestación de servicios profesionales y de apoyo a la gestión | F46: Contratación directa | G46: Prestación de servicios profesionales y de apoyo a la gestión, o para la ejecución de trabajos artísticos que sólo puedan encomendarse a determinadas personas naturales; | H46: PRESTAR LOS SERVICIOS ESPECIALIZADOS PARA APOYAR AL ALCALDE LOCAL EN LA FORMULACIÓN, SEGUIMIENTO E IMPLEMENTACIÓN DE LA ESTRATEGIA LOCAL PARA LA TERMINACIÓN JURÍDICA DE LAS ACTUACIONES ADMINISTRATIVAS QUE CURSAN EN LA ALCALDÍA LOCAL DE BARRIOS UNIDOS. | I46: Inversión | J46: Un Nuevo Contrato Social y Ambiental para la Bogotá del Siglo XXI | K46: 57 | L46: =IF(ISERROR(VLOOKUP(K46,Proposito_programa!$C$2:$E$59,2,FALSE))," ",VLOOKUP(K46,Proposito_programa!$C$2:$E$59,2,FALSE)) -> Gestión pública local | M46: =IF(ISERROR(VLOOKUP(K46,Proposito_programa!$C$2:$E$59,3,FALSE))," ",VLOOKUP(K46,Proposito_programa!$C$2:$E$59,3,FALSE)) -> Propósito 5: Construir Bogotá - Región con gobierno abierto, transparente y ciudadanía consciente | N46: 133011605570000002143 | P46: 1032379593 | Q46: LEONARDO MOYA GUAJE | R46: Persona Natural | V46: 78000000 | Z46: 78000000 | AA46: 69420000 | AB46: 2021-03-04 | AC46: 2021-03-04 | AD46: 2021-12-31 | AE46: 300 | AF46: 1 | AG46: 3 | AN46: X | AP46: 0.89
A47: 34 | B47: 2021 | C47: FDLBU-CD-001-2054 | D47: https://community.secop.gov.co/Public/Tendering/ContractNoticePhases/View?PPI=CO1.PPI.12230662&isFromPublicArea=True&isModal=False | E47: Contratos de prestación de servicios profesionales y de apoyo a la gestión | F47: Contratación directa | G47: Prestación de servicios profesionales y de apoyo a la gestión, o para la ejecución de trabajos artísticos que sólo puedan encomendarse a determinadas personas naturales; | H47: PRESTAR SUS SERVICIOS PROFESIONALES PARA APOYAR TÉCNICAMENTE LAS DISTINTAS ETAPAS DE LOS PROCESOS DE COMPETENCIA DE LA ALCALDÍA LOCAL PARA LA DEPURACIÓN DE ACTUACIONES ADMINISTRATIVAS | I47: Inversión | J47: Un Nuevo Contrato Social y Ambiental para la Bogotá del Siglo XXI | K47: 57 | L47: =IF(ISERROR(VLOOKUP(K47,Proposito_programa!$C$2:$E$59,2,FALSE))," ",VLOOKUP(K47,Proposito_programa!$C$2:$E$59,2,FALSE)) -> Gestión pública local | M47: =IF(ISERROR(VLOOKUP(K47,Proposito_programa!$C$2:$E$59,3,FALSE))," ",VLOOKUP(K47,Proposito_programa!$C$2:$E$59,3,FALSE)) -> Propósito 5: Construir Bogotá - Región con gobierno abierto, transparente y ciudadanía consciente | N47: 133011605570000002143 | P47: 52421810 | Q47: YHAMILA SALINAS RUANO | R47: Persona Natural | V47: 39976000 | X47: 1 | Y47: 8161767 | Z47: 48137767 | AA47: 43140767 | AB47: 2021-03-12 | AC47: 2021-03-12 | AD47: 2021-11-11 | AE47: 240 | AF47: 1 | AG47: 49 | AN47: X | AP47: 0.8961937723
A48: 35 | B48: 2021 | C48: FDLBU-CD-001-2055 | D48: https://community.secop.gov.co/Public/Tendering/ContractNoticePhases/View?PPI=CO1.PPI.12097054&isFromPublicArea=True&isModal=False | E48: Contratos de prestación de servicios profesionales y de apoyo a la gestión | F48: Contratación directa | G48: Prestación de servicios profesionales y de apoyo a la gestión, o para la ejecución de trabajos artísticos que sólo puedan encomendarse a determinadas personas naturales; | H48: PRESTAR LOS SERVICIOS DE APOYO A LA GESTIÓN EN LA CONDUCCIÓN DE LOS VEHÍCULOS A CARGO DE EL FONDO DE DESARROLLO LOCAL DE BARRIOS UNIDOS, ASÍ COMO APOYAR LA GESTIÓN ADMINISTRATIVA QUE DESIGNE EL SUPERVISOR. | I48: Inversión | J48: Un Nuevo Contrato Social y Ambiental para la Bogotá del Siglo XXI | K48: 57 | L48: =IF(ISERROR(VLOOKUP(K48,Proposito_programa!$C$2:$E$59,2,FALSE))," ",VLOOKUP(K48,Proposito_programa!$C$2:$E$59,2,FALSE)) -> Gestión pública local | M48: =IF(ISERROR(VLOOKUP(K48,Proposito_programa!$C$2:$E$59,3,FALSE))," ",VLOOKUP(K48,Proposito_programa!$C$2:$E$59,3,FALSE)) -> Propósito 5: Construir Bogotá - Región con gobierno abierto, transparente y ciudadanía consciente | N48: 133011605570000002143 | P48: 1015432913 | Q48: WILMER ORLANDO VIRVIESCAS ALARCON | R48: Persona Natural | V48: 24070000 | Z48: 24070000 | AA48: 21422300 | AB48: 2021-03-04 | AC48: 2021-03-04 | AD48: 2021-12-31 | AE48: 300 | AF48: 1 | AG48: 3 | AN48: X | AP48: 0.89
A49: 36 | B49: 2021 | C49: FDLBU-CD-001-2056 | D49: https://community.secop.gov.co/Public/Tendering/ContractNoticePhases/View?PPI=CO1.PPI.12078189&isFromPublicArea=True&isModal=False | E49: Contratos de prestación de servicios profesionales y de apoyo a la gestión | F49: Contratación directa | G49: Prestación de servicios profesionales y de apoyo a la gestión, o para la ejecución de trabajos artísticos que sólo puedan encomendarse a determinadas personas naturales; | H49: APOYAR LA GESTIÓN DOCUMENTAL DE LA ALCADÍA LOCAL PARA LA IMPLEMENTACIÓN DEL PROCESO DE VERIFICACIÓN, SOPORTE Y ACOMPAÑAMIENTO, EN EL DESARROLLO DE LAS ACTIVIDADES PROPIAS DE LOS PROCESOS Y ACTUACIONES ADMINISTRATIVAS EXISTENTES | I49: Inversión | J49: Un Nuevo Contrato Social y Ambiental para la Bogotá del Siglo XXI | K49: 57 | L49: =IF(ISERROR(VLOOKUP(K49,Proposito_programa!$C$2:$E$59,2,FALSE))," ",VLOOKUP(K49,Proposito_programa!$C$2:$E$59,2,FALSE)) -> Gestión pública local | M49: =IF(ISERROR(VLOOKUP(K49,Proposito_programa!$C$2:$E$59,3,FALSE))," ",VLOOKUP(K49,Proposito_programa!$C$2:$E$59,3,FALSE)) -> Propósito 5: Construir Bogotá - Región con gobierno abierto, transparente y ciudadanía consciente | N49: 133011605570000002143 | P49: 80872094 | Q49: DIEGO ARMANDO CORONEL AVENDAÑO | R49: Persona Natural | V49: 33610000 | Z49: 33610000 | AA49: 29464767 | AB49: 2021-03-04 | AC49: 2021-03-08 | AD49: 2021-12-31 | AE49: 300 | AF49: 1 | AG49: 7 | AN49: X | AP49: 0.8766666766
A50: 37 | B50: 2021 | C50: FDLBU-CD-001-2057 | D50: https://community.secop.gov.co/Public/Tendering/ContractNoticePhases/View?PPI=CO1.PPI.12212618&isFromPublicArea=True&isModal=False | E50: Contratos de prestación de servicios profesionales y de apoyo a la gestión | F50: Contratación directa | G50: Prestación de servicios profesionales y de apoyo a la gestión, o para la ejecución de trabajos artísticos que sólo puedan encomendarse a determinadas personas naturales; | H50: PRESTAR SERVICIOS PROFESIONALES PARA APOYAR AL EQUIPO DE PRENSA Y COMUNICACIONES DE LA ALCALDÍA LOCAL MEDIANTE EL REGISTRO, LA EDICIÓN Y LA PRESENTACIÓN DE VIDEOS DE LOS ACONTECIMIENTOS, HECHOS Y EVENTOS DE LA ALCALDÍA LOCAL EN LOS MEDIOS DE COMUNICACIÓN, ESCRITOS, DIGITALES Y AUDIOVISUALES | I50: Inversión | J50: Un Nuevo Contrato Social y Ambiental para la Bogotá del Siglo XXI | K50: 57 | L50: =IF(ISERROR(VLOOKUP(K50,Proposito_programa!$C$2:$E$59,2,FALSE))," ",VLOOKUP(K50,Proposito_programa!$C$2:$E$59,2,FALSE)) -> Gestión pública local | M50: =IF(ISERROR(VLOOKUP(K50,Proposito_programa!$C$2:$E$59,3,FALSE))," ",VLOOKUP(K50,Proposito_programa!$C$2:$E$59,3,FALSE)) -> Propósito 5: Construir Bogotá - Región con gobierno abierto, transparente y ciudadanía consciente | N50: 133011605570000002143 | P50: 1018489170 | Q50: LAURA ALEJANDRA MORENO ALVAREZ | R50: Persona Natural | V50: 43700000 | Z50: 43700000 | AA50: 37727667 | AB50: 2021-03-11 | AC50: 2021-03-12 | AD50: 2021-12-31 | AE50: 300 | AF50: 1 | AG50: 11 | AN50: X | AP50: 0.863333341
A51: 38 | B51: 2021 | C51: FDLBU-CD-001-2058 | D51: https://community.secop.gov.co/Public/Tendering/ContractNoticePhases/View?PPI=CO1.PPI.12096803&isFromPublicArea=True&isModal=False | E51: Contratos de prestación de servicios profesionales y de apoyo a la gestión | F51: Contratación directa | G51: Prestación de servicios profesionales y de apoyo a la gestión, o para la ejecución de trabajos artísticos que sólo puedan encomendarse a determinadas personas naturales; | H51: PRESTAR SUS SERVICIOS DE APOYO PARA APOYAR LA GESTIÓN DOCUMENTAL DE LA ALCALDÍA LOCAL EN LA IMPLEMENTACIÓN DE LOS PROCESOS DE CLASIFICACIÓN, ORDENACIÓN, SELECCIÓN NATURAL, FOLIACIÓN, IDENTIFICACIÓN, LEVANTAMIENTO DE INVENTARIOS, ALMACENAMIENTO Y APLICACIÓN DE PROTOCOLOS DE ELIMINACIÓN Y TRANSFERENCIAS. | I51: Inversión | J51: Un Nuevo Contrato Social y Ambiental para la Bogotá del Siglo XXI | K51: 57 | L51: =IF(ISERROR(VLOOKUP(K51,Proposito_programa!$C$2:$E$59,2,FALSE))," ",VLOOKUP(K51,Proposito_programa!$C$2:$E$59,2,FALSE)) -> Gestión pública local | M51: =IF(ISERROR(VLOOKUP(K51,Proposito_programa!$C$2:$E$59,3,FALSE))," ",VLOOKUP(K51,Proposito_programa!$C$2:$E$59,3,FALSE)) -> Propósito 5: Construir Bogotá - Región con gobierno abierto, transparente y ciudadanía consciente | N51: 133011605570000002143 | P51: 19346335 | Q51: PEDRO JESUS SANCHEZ MOLINA | R51: Persona Natural | V51: 22710000 | Z51: 22710000 | AA51: 20211900 | AB51: 2021-03-04 | AC51: 2021-03-04 | AD51: 2021-12-31 | AE51: 300 | AF51: 1 | AG51: 3 | AN51: X | AP51: 0.89
A52: 39 | B52: 2021 | C52: FDLBU-CD-001-2059 | D52: https://community.secop.gov.co/Public/Tendering/ContractNoticePhases/View?PPI=CO1.PPI.12097729&isFromPublicArea=True&isModal=False | E52: Contratos de prestación de servicios profesionales y de apoyo a la gestión | F52: Contratación directa | G52: Prestación de servicios profesionales y de apoyo a la gestión, o para la ejecución de trabajos artísticos que sólo puedan encomendarse a determinadas personas naturales; | H52: PRESTAR APOYO ADMINISTRATIVO Y OPERATIVO AL ÁREA DEL ALMACÉN DE LA ALCALDÍA LOCAL DE BARRIOS UNIDOS, EN LOS PROCESOS DE CUIDADO, PROTECCIÓN, ALMACENAMIENTO, TRASLADO Y ENTREGA DE BIENES DEL FONDO DE DESARROLLO LOCAL DE ACUERDO A LOS PROCESOS Y PROCEDIMIENTOS ESTABLECIDOS | I52: Inversión | J52: Un Nuevo Contrato Social y Ambiental para la Bogotá del Siglo XXI | K52: 57 | L52: =IF(ISERROR(VLOOKUP(K52,Proposito_programa!$C$2:$E$59,2,FALSE))," ",VLOOKUP(K52,Proposito_programa!$C$2:$E$59,2,FALSE)) -> Gestión pública local | M52: =IF(ISERROR(VLOOKUP(K52,Proposito_programa!$C$2:$E$59,3,FALSE))," ",VLOOKUP(K52,Proposito_programa!$C$2:$E$59,3,FALSE)) -> Propósito 5: Construir Bogotá - Región con gobierno abierto, transparente y ciudadanía consciente | N52: 133011605570000002143 | P52: 1024549811 | Q52: RUBEN ALBEIRO PALENCIA RIVEROS | R52: Persona Natural | V52: 20890000 | Z52: 20890000 | AA52: 18243933 | AB52: 2021-03-05 | AC52: 2021-03-09 | AD52: 2021-12-31 | AE52: 300 | AF52: 1 | AG52: 8 | AN52: X | AP52: 0.8733333174
A53: 40 | B53: 2021 | C53: FDLBU-CD-001-2060 | D53: https://community.secop.gov.co/Public/Tendering/ContractNoticePhases/View?PPI=CO1.PPI.12294624&isFromPublicArea=True&isModal=False | E53: Contratos de prestación de servicios profesionales y de apoyo a la gestión | F53: Contratación directa | G53: Prestación de servicios profesionales y de apoyo a la gestión, o para la ejecución de trabajos artísticos que sólo puedan encomendarse a determinadas personas naturales; | H53: “PRESTAR SERVICIOS DE APOYO EN LAS LABORES CONTABLES DEL FONDO DE DESARROLLO LOCAL DE BARRIOS UNIDOS, EN LOS TRAMITES, MANEJO CONTABLE Y DE ARCHIVO EN FORMA PERMANENTE EN EL DESARROLLO DEL PROCESO DE CONSOLIDACIÓN DE INFORMACIÓN DEL SISTEMA CONTABLE Y FINANCIERO | I53: Inversión | J53: Un Nuevo Contrato Social y Ambiental para la Bogotá del Siglo XXI | K53: 57 | L53: =IF(ISERROR(VLOOKUP(K53,Proposito_programa!$C$2:$E$59,2,FALSE))," ",VLOOKUP(K53,Proposito_programa!$C$2:$E$59,2,FALSE)) -> Gestión pública local | M53: =IF(ISERROR(VLOOKUP(K53,Proposito_programa!$C$2:$E$59,3,FALSE))," ",VLOOKUP(K53,Proposito_programa!$C$2:$E$59,3,FALSE)) -> Propósito 5: Construir Bogotá - Región con gobierno abierto, transparente y ciudadanía consciente | N53: 133011605570000002143 | P53: 1100959714 | Q53: CINTYA ALEXANDRA GOMEZ PARRA | R53: Persona Natural | V53: 33610000 | X53: 1 | Y53: 784233 | Z53: 34394233 | AA53: 29912900 | AB53: 2021-03-04 | AC53: 2021-03-04 | AD53: 2021-12-31 | AE53: 300 | AF53: 1 | AG53: 10 | AN53: X | AP53: 0.8697068488
A54: 41 | B54: 2021 | C54: FDLBU-CD-001-2061 | D54: https://community.secop.gov.co/Public/Tendering/ContractNoticePhases/View?PPI=CO1.PPI.12165310&isFromPublicArea=True&isModal=False | E54: Contratos de prestación de servicios profesionales y de apoyo a la gestión | F54: Contratación directa | G54: Prestación de servicios profesionales y de apoyo a la gestión, o para la ejecución de trabajos artísticos que sólo puedan encomendarse a determinadas personas naturales; | H54: PRESTAR SERVICIOS PROFESIONALES PARA APOYAR AL EQUIPO DE PRENSA Y COMUNICACIONES DE LA ALCALDÍA LOCAL EN LA REALIZACIÓN DE PRODUCTOS Y PIEZAS DIGITALES, IMPRESAS Y PUBLICITARIAS DE GRAN FORMATO Y DE ANIMACIÓN GRÁFICA | I54: Inversión | J54: Un Nuevo Contrato Social y Ambiental para la Bogotá del Siglo XXI | K54: 57 | L54: =IF(ISERROR(VLOOKUP(K54,Proposito_programa!$C$2:$E$59,2,FALSE))," ",VLOOKUP(K54,Proposito_programa!$C$2:$E$59,2,FALSE)) -> Gestión pública local | M54: =IF(ISERROR(VLOOKUP(K54,Proposito_programa!$C$2:$E$59,3,FALSE))," ",VLOOKUP(K54,Proposito_programa!$C$2:$E$59,3,FALSE)) -> Propósito 5: Construir Bogotá - Región con gobierno abierto, transparente y ciudadanía consciente | N54: 133011605570000002143 | P54: 80040627 | Q54: ALEX DIDIER CARMAGO | R54: Persona Natural | V54: 47500000 | Z54: 47500000 | AA54: 42116667 | AB54: 2021-03-04 | AC54: 2021-03-05 | AD54: 2021-12-31 | AE54: 300 | AF54: 1 | AG54: 4 | AI54: MARIA ALEJANDRA BURBANO VENABIDEZ | AJ54: 2021-04-16 | AN54: X | AP54: 0.8866666737
A55: 42 | B55: 2021 | C55: FDLBU-CD-001-2062 | D55: https://community.secop.gov.co/Public/Tendering/ContractNoticePhases/View?PPI=CO1.PPI.12223962&isFromPublicArea=True&isModal=False | E55: Contratos de prestación de servicios profesionales y de apoyo a la gestión | F55: Contratación directa | G55: Prestación de servicios profesionales y de apoyo a la gestión, o para la ejecución de trabajos artísticos que sólo puedan encomendarse a determinadas personas naturales; | H55: PRESTAR LOS SERVICIOS PROFESIONALES PARA APOYAR AL ÁREA GESTIÓN DEL DESARROLLO ADMINISTRATIVO Y FINANCIERO EN LOS ASUNTOS RELATIVOS A LA PLANEACIÓN LOCAL, ASÍ COMO EL APOYO A LA SUPERVISIÓN DE CONTRATOS SUSCRITOS POR LA ALCALDÍA LOCAL DE BARRIOS UNIDOS | I55: Inversión | J55: Un Nuevo Contrato Social y Ambiental para la Bogotá del Siglo XXI | K55: 57 | L55: =IF(ISERROR(VLOOKUP(K55,Proposito_programa!$C$2:$E$59,2,FALSE))," ",VLOOKUP(K55,Proposito_programa!$C$2:$E$59,2,FALSE)) -> Gestión pública local | M55: =IF(ISERROR(VLOOKUP(K55,Proposito_programa!$C$2:$E$59,3,FALSE))," ",VLOOKUP(K55,Proposito_programa!$C$2:$E$59,3,FALSE)) -> Propósito 5: Construir Bogotá - Región con gobierno abierto, transparente y ciudadanía consciente | N55: 133011605570000002143 | P55: 1032452329 | Q55: DANIEL FELIPE LOPEZ VELASQUEZ | R55: Persona Natural | V55: 51780000 | W55: -23473600 | Z55: 28306400 | AA55: 28306400 | AB55: 2021-03-15 | AC55: 2021-03-17 | AD55: 2021-12-31 | AE55: 300 | AN55: X | AP55: 1
A56: 43 | B56: 2021 | C56: FDLBU-CD-001-2063 | D56: https://community.secop.gov.co/Public/Tendering/ContractNoticePhases/View?PPI=CO1.PPI.12299045&isFromPublicArea=True&isModal=False | E56: Contratos de prestación de servicios profesionales y de apoyo a la gestión | F56: Contratación directa | G56: Prestación de servicios profesionales y de apoyo a la gestión, o para la ejecución de trabajos artísticos que sólo puedan encomendarse a determinadas personas naturales; | H56: PRESTAR SERVICIOS DE APOYO EN EL ÁREA DE GESTIÓN DEL DESARROLLO EN LA FORMULACIÓN, SEGUIMIENTO Y EVALUACIÓN DE POLÍTICAS, PLANES, PROGRAMAS Y PROYECTOS DE DESARROLLO LOCAL, PARA EL CUMPLIMIENTO DE LAS METAS DEL PLAN DE DESARROLLO LOCAL DE BARRIOS UNIDOS. | I56: Inversión | J56: Un Nuevo Contrato Social y Ambiental para la Bogotá del Siglo XXI | K56: 57 | L56: =IF(ISERROR(VLOOKUP(K56,Proposito_programa!$C$2:$E$59,2,FALSE))," ",VLOOKUP(K56,Proposito_programa!$C$2:$E$59,2,FALSE)) -> Gestión pública local | M56: =IF(ISERROR(VLOOKUP(K56,Proposito_programa!$C$2:$E$59,3,FALSE))," ",VLOOKUP(K56,Proposito_programa!$C$2:$E$59,3,FALSE)) -> Propósito 5: Construir Bogotá - Región con gobierno abierto, transparente y ciudadanía consciente | N56: 133011605570000002143 | P56: 1088007967 | Q56: LAURA VANESSA REINA BEDOYA | R56: Persona Natural | V56: 39880000 | X56: 1 | Y56: 797600 | Z56: 40677600 | AA56: 35360267 | AB56: 2021-03-04 | AC56: 2021-03-05 | AD56: 2021-12-31 | AE56: 300 | AF56: 1 | AG56: 10 | AN56: X | AP56: 0.8692810539
A57: 44 | B57: 2021 | C57: FDLBU-CD-001-2064 | D57: https://community.secop.gov.co/Public/Tendering/ContractNoticePhases/View?PPI=CO1.PPI.12280673&isFromPublicArea=True&isModal=False | E57: Contratos de prestación de servicios profesionales y de apoyo a la gestión | F57: Contratación directa | G57: Prestación de servicios profesionales y de apoyo a la gestión, o para la ejecución de trabajos artísticos que sólo puedan encomendarse a determinadas personas naturales; | H57: PRESTAR LOS SERVICIOS PROFESIONALES PARA APOYAR AL ÁREA DE GESTIÓN DEL DESARROLLO ADMINISTRATIVO Y FINANCIERO, EN LOS ASUNTOS RELACIONADOS CON EL DESARROLLO DE LA GESTIÓN CONTRACTUAL PARA LA ADQUISICIÓN DE RECURSOS Y SERVICIOS | I57: Inversión | J57: Un Nuevo Contrato Social y Ambiental para la Bogotá del Siglo XXI | K57: 57 | L57: =IF(ISERROR(VLOOKUP(K57,Proposito_programa!$C$2:$E$59,2,FALSE))," ",VLOOKUP(K57,Proposito_programa!$C$2:$E$59,2,FALSE)) -> Gestión pública local | M57: =IF(ISERROR(VLOOKUP(K57,Proposito_programa!$C$2:$E$59,3,FALSE))," ",VLOOKUP(K57,Proposito_programa!$C$2:$E$59,3,FALSE)) -> Propósito 5: Construir Bogotá - Región con gobierno abierto, transparente y ciudadanía consciente | N57: 133011605570000002143 | P57: 79235519 | Q57: GUSTAVO HERNAN JIMENEZ SANDOVAL | R57: Persona Natural | V57: 43700000 | X57: 1 | Y57: 2330666 | Z57: 46030666 | AA57: 38747333 | AB57: 2021-03-04 | AC57: 2021-03-05 | AD57: 2021-12-31 | AE57: 300 | AF57: 1 | AG57: 20 | AI57: LUISA FERNANDA VELASCO LIZARAZO | AJ57: 2021-12-01 | AN57: X | AP57: 0.8417721568
A58: 45 | B58: 2021 | C58: FDLBU-CD-001-2065 | D58: https://community.secop.gov.co/Public/Tendering/ContractNoticePhases/View?PPI=CO1.PPI.12312251&isFromPublicArea=True&isModal=False | E58: Contratos de prestación de servicios profesionales y de apoyo a la gestión | F58: Contratación directa | G58: Prestación de servicios profesionales y de apoyo a la gestión, o para la ejecución de trabajos artísticos que sólo puedan encomendarse a determinadas personas naturales; | H58: PRESTAR SERVICIOS PROFESIONALES PARA COORDINAR, LIDERAR Y ASESORAR LOS PLANES Y ESTRATEGIAS DE COMUNICACIÓN INTERNA Y EXTERNA PARA LA DIVULGACIÓN DE LOS PROGRAMAS, PROYECTOS Y ACTIVIDADES DE LA ALCALDÍA LOCAL | I58: Inversión | J58: Un Nuevo Contrato Social y Ambiental para la Bogotá del Siglo XXI | K58: 57 | L58: =IF(ISERROR(VLOOKUP(K58,Proposito_programa!$C$2:$E$59,2,FALSE))," ",VLOOKUP(K58,Proposito_programa!$C$2:$E$59,2,FALSE)) -> Gestión pública local | M58: =IF(ISERROR(VLOOKUP(K58,Proposito_programa!$C$2:$E$59,3,FALSE))," ",VLOOKUP(K58,Proposito_programa!$C$2:$E$59,3,FALSE)) -> Propósito 5: Construir Bogotá - Región con gobierno abierto, transparente y ciudadanía consciente | N58: 133011605570000002143 | P58: 52860493 | Q58: YULIETH PAOLA GOMEZ LEMA | R58: Persona Natural | V58: 61770000 | Z58: 61770000 | AA58: 54563500 | AB58: 2021-03-04 | AC58: 2021-03-06 | AD58: 2021-12-31 | AE58: 300 | AF58: 1 | AG58: 5 | AN58: X | AP58: 0.8833333333
A59: 46 | B59: 2021 | C59: FDLBU-CD-001-2066 | D59: https://community.secop.gov.co/Public/Tendering/ContractNoticePhases/View?PPI=CO1.PPI.12224833&isFromPublicArea=True&isModal=False | E59: Contratos de prestación de servicios profesionales y de apoyo a la gestión | F59: Contratación directa | G59: Prestación de servicios profesionales y de apoyo a la gestión, o para la ejecución de trabajos artísticos que sólo puedan encomendarse a determinadas personas naturales; | H59: PRESTAR LOS SERVICIOS DE APOYO A LA GESTIÓN EN LA CONDUCCIÓN DE LOS VEHÍCULOS A CARGO DE EL FONDO DE DESARROLLO LOCAL DE BARRIOS UNIDOS, ASÍ COMO APOYAR LA GESTIÓN ADMINISTRATIVA QUE DESIGNE EL SUPERVISOR. | I59: Inversión | J59: Un Nuevo Contrato Social y Ambiental para la Bogotá del Siglo XXI | K59: 57 | L59: =IF(ISERROR(VLOOKUP(K59,Proposito_programa!$C$2:$E$59,2,FALSE))," ",VLOOKUP(K59,Proposito_programa!$C$2:$E$59,2,FALSE)) -> Gestión pública local | M59: =IF(ISERROR(VLOOKUP(K59,Proposito_programa!$C$2:$E$59,3,FALSE))," ",VLOOKUP(K59,Proposito_programa!$C$2:$E$59,3,FALSE)) -> Propósito 5: Construir Bogotá - Región con gobierno abierto, transparente y ciudadanía consciente | N59: 133011605570000002143 | P59: 7321025 | Q59: WILLINGTON ORTIZ ALARCON | R59: Persona Natural | V59: 39880000 | X59: 1 | Y59: 797600 | Z59: 40677600 | AA59: 35360267 | AB59: 2021-03-04 | AC59: 2021-03-05 | AD59: 2021-12-31 | AE59: 300 | AF59: 1 | AG59: 10 | AN59: X | AP59: 0.8692810539
A60: 47 | B60: 2021 | C60: FDLBU-CD-001-2067 | D60: https://community.secop.gov.co/Public/Tendering/ContractNoticePhases/View?PPI=CO1.PPI.12205571&isFromPublicArea=True&isModal=False | E60: Contratos de prestación de servicios profesionales y de apoyo a la gestión | F60: Contratación directa | G60: Prestación de servicios profesionales y de apoyo a la gestión, o para la ejecución de trabajos artísticos que sólo puedan encomendarse a determinadas personas naturales; | H60: PRESTAR SERVICIOS PROFESIONALES PARA APOYAR AL EQUIPO DE PRENSA Y COMUNICACIONES DE LA ALCALDÍA LOCAL EN LA REALIZACIÓN Y PUBLICACIÓN DE CONTENIDOS DE REDES SOCIALES Y CANALES DE DIVULGACIÓN DIGITAL (SITIO WEB) DE LA ALCALDÍA LOCAL. | I60: Inversión | J60: Un Nuevo Contrato Social y Ambiental para la Bogotá del Siglo XXI | K60: 57 | L60: =IF(ISERROR(VLOOKUP(K60,Proposito_programa!$C$2:$E$59,2,FALSE))," ",VLOOKUP(K60,Proposito_programa!$C$2:$E$59,2,FALSE)) -> Gestión pública local | M60: =IF(ISERROR(VLOOKUP(K60,Proposito_programa!$C$2:$E$59,3,FALSE))," ",VLOOKUP(K60,Proposito_programa!$C$2:$E$59,3,FALSE)) -> Propósito 5: Construir Bogotá - Región con gobierno abierto, transparente y ciudadanía consciente | N60: 133011605570000002143 | P60: 1015423465 | Q60: DIANA CAROLINA DIAZ MUNEVAR | R60: Persona Natural | V60: 51780000 | Z60: 51780000 | AA60: 45221200 | AB60: 2021-03-08 | AC60: 2021-03-09 | AD60: 2021-12-31 | AE60: 300 | AF60: 1 | AG60: 8 | AN60: X | AP60: 0.8733333333
A61: 48 | B61: 2021 | C61: FDLBU-CD-001-2068 | D61: https://community.secop.gov.co/Public/Tendering/ContractNoticePhases/View?PPI=CO1.PPI.12206271&isFromPublicArea=True&isModal=False | E61: Contratos de prestación de servicios profesionales y de apoyo a la gestión | F61: Contratación directa | G61: Prestación de servicios profesionales y de apoyo a la gestión, o para la ejecución de trabajos artísticos que sólo puedan encomendarse a determinadas personas naturales; | H61: PRESTAR SERVICIOS PROFESIONALES PARA APOYAR AL ÁREA GESTIÓN DEL DESARROLLO ADMINISTRATIVO Y FINANCIERO EN LOS ASUNTOS RELATIVOS A LA PLANEACIÓN LOCAL: LIDERAR Y GARANTIZAR LA IMPLEMENTACIÓN Y SEGUIMIENTO DE LOS PROCESOS, PROYECTOS Y PROCEDIMIENTOS DE CONTRATOS SUSCRITOS POR LA ALCALDÍA LOCAL DE BARRIOS UNIDOS DIRIGIDOS AL CUMPLIMIENTO DE LAS META DE ACUERDOS EN COMUNIDAD PARA LA VIGENCIA 2021 | I61: Inversión | J61: Un Nuevo Contrato Social y Ambiental para la Bogotá del Siglo XXI | K61: 45 | L61: =IF(ISERROR(VLOOKUP(K61,Proposito_programa!$C$2:$E$59,2,FALSE))," ",VLOOKUP(K61,Proposito_programa!$C$2:$E$59,2,FALSE)) -> Espacio público más seguro y construido colectivamente | M61: =IF(ISERROR(VLOOKUP(K61,Proposito_programa!$C$2:$E$59,3,FALSE))," ",VLOOKUP(K61,Proposito_programa!$C$2:$E$59,3,FALSE)) -> Propósito 3: Inspirar confianza y legitimidad para vivir sin miedo y ser epicentro de cultura ciudadana, paz y reconciliación | N61: 133011603450000002038 | P61: 1018454325 | Q61: LILIANA MARITZA ROA BAQUERO | R61: Persona Natural | V61: 49970000 | Z61: 49970000 | AA61: 43140767 | AB61: 2021-03-11 | AC61: 2021-03-12 | AD61: 2021-12-31 | AE61: 300 | AF61: 1 | AG61: 11 | AN61: X | AP61: 0.86333334
A62: 49 | B62: 2021 | C62: FDLBU-CD-001-2069 | D62: https://community.secop.gov.co/Public/Tendering/ContractNoticePhases/View?PPI=CO1.PPI.12285330&isFromPublicArea=True&isModal=False | E62: Contratos de prestación de servicios profesionales y de apoyo a la gestión | F62: Contratación directa | G62: Prestación de servicios profesionales y de apoyo a la gestión, o para la ejecución de trabajos artísticos que sólo puedan encomendarse a determinadas personas naturales; | H62: PRESTAR SERVICIOS PROFESIONALES DE APOYO A LA LABOR DE PRESUPUESTO DEL FONDO DE DESARROLLO LOCAL EN EL REGISTRO, ANALISIS Y GESTIÓN DE OBLIGACIONES POR PAGAR Y OTROS ASUNTOS QUE EN MATERIA DE PRESUPUESTO LOCAL LE SEAN DESIGNADOS. | I62: Inversión | J62: Un Nuevo Contrato Social y Ambiental para la Bogotá del Siglo XXI | K62: 57 | L62: =IF(ISERROR(VLOOKUP(K62,Proposito_programa!$C$2:$E$59,2,FALSE))," ",VLOOKUP(K62,Proposito_programa!$C$2:$E$59,2,FALSE)) -> Gestión pública local | M62: =IF(ISERROR(VLOOKUP(K62,Proposito_programa!$C$2:$E$59,3,FALSE))," ",VLOOKUP(K62,Proposito_programa!$C$2:$E$59,3,FALSE)) -> Propósito 5: Construir Bogotá - Región con gobierno abierto, transparente y ciudadanía consciente | N62: 133011605570000002143 | P62: 7320162 | Q62: JOSE RAUL PINILLA CHILLON | R62: Persona Natural | V62: 47500000 | Z62: 47500000 | AA62: 41641667 | AB62: 2021-03-05 | AC62: 2021-03-08 | AD62: 2021-12-31 | AE62: 300 | AF62: 1 | AG62: 7 | AN62: X | AP62: 0.8766666737
A63: 50 | B63: 2021 | C63: FDLBU-CD-001-2070 | D63: https://community.secop.gov.co/Public/Tendering/ContractNoticePhases/View?PPI=CO1.PPI.12285424&isFromPublicArea=True&isModal=False | E63: Contratos de prestación de servicios profesionales y de apoyo a la gestión | F63: Contratación directa | G63: Prestación de servicios profesionales y de apoyo a la gestión, o para la ejecución de trabajos artísticos que sólo puedan encomendarse a determinadas personas naturales; | H63: PRESTAR LOS SERVICIOS PROFESIONALES PARA EL APOYO A LA GESTION DE LOS SISTEMAS EN EL SEGUIMIENTO Y SOPORTE A LA INFRAESTRUCTURA TECNOLOGICA DE LA ALCALDIA LOCAL DE BARRIOS UNIDOS | I63: Inversión | J63: Un Nuevo Contrato Social y Ambiental para la Bogotá del Siglo XXI | K63: 57 | L63: =IF(ISERROR(VLOOKUP(K63,Proposito_programa!$C$2:$E$59,2,FALSE))," ",VLOOKUP(K63,Proposito_programa!$C$2:$E$59,2,FALSE)) -> Gestión pública local | M63: =IF(ISERROR(VLOOKUP(K63,Proposito_programa!$C$2:$E$59,3,FALSE))," ",VLOOKUP(K63,Proposito_programa!$C$2:$E$59,3,FALSE)) -> Propósito 5: Construir Bogotá - Región con gobierno abierto, transparente y ciudadanía consciente | N63: 133011605570000002143 | P63: 1030557277 | Q63: DANNY JOEL CUBILLOS VELASQUEZ | R63: Persona Natural | V63: 43700000 | Z63: 43700000 | AA63: 38310333 | AB63: 2021-03-05 | AC63: 2021-03-08 | AD63: 2021-12-31 | AE63: 300 | AF63: 1 | AG63: 7 | AN63: X | AP63: 0.876666659
A64: 51 | B64: 2021 | C64: FDLBU-CD-001-2071 | D64: https://community.secop.gov.co/Public/Tendering/ContractNoticePhases/View?PPI=CO1.PPI.12085587&isFromPublicArea=True&isModal=False | E64: Contratos de prestación de servicios profesionales y de apoyo a la gestión | F64: Contratación directa | G64: Prestación de servicios profesionales y de apoyo a la gestión, o para la ejecución de trabajos artísticos que sólo puedan encomendarse a determinadas personas naturales; | H64: PRESTAR SERVICIOS DE APOYO ADMINISTRATIVA Y ASISTENCIALMENTE A LAS INSPECCIONES DE POLICÍA DE LA LOCALIDAD | I64: Inversión | J64: Un Nuevo Contrato Social y Ambiental para la Bogotá del Siglo XXI | K64: 57 | L64: =IF(ISERROR(VLOOKUP(K64,Proposito_programa!$C$2:$E$59,2,FALSE))," ",VLOOKUP(K64,Proposito_programa!$C$2:$E$59,2,FALSE)) -> Gestión pública local | M64: =IF(ISERROR(VLOOKUP(K64,Proposito_programa!$C$2:$E$59,3,FALSE))," ",VLOOKUP(K64,Proposito_programa!$C$2:$E$59,3,FALSE)) -> Propósito 5: Construir Bogotá - Región con gobierno abierto, transparente y ciudadanía consciente | N64: 133011605570000002143 | P64: 1110453482 | Q64: ADRIANA FENID CASTIBLANCO | R64: Persona Natural | V64: 15897000 | Z64: 15897000 | AA64: 15897000 | AB64: 2021-03-09 | AC64: 2021-03-11 | AD64: 2021-10-10 | AE64: 210 | AN64: X | AP64: 1
A65: 52 | B65: 2021 | C65: FDLBU-CD-001-2072 | D65: https://community.secop.gov.co/Public/Tendering/ContractNoticePhases/View?PPI=CO1.PPI.12085621&isFromPublicArea=True&isModal=False | E65: Contratos de prestación de servicios profesionales y de apoyo a la gestión | F65: Contratación directa | G65: Prestación de servicios profesionales y de apoyo a la gestión, o para la ejecución de trabajos artísticos que sólo puedan encomendarse a determinadas personas naturales; | H65: PRESTAR SERVICIOS DE APOYO ADMINISTRATIVA Y ASISTENCIALMENTE A LAS INSPECCIONES DE POLICÍA DE LA LOCALIDAD | I65: Inversión | J65: Un Nuevo Contrato Social y Ambiental para la Bogotá del Siglo XXI | K65: 57 | L65: =IF(ISERROR(VLOOKUP(K65,Proposito_programa!$C$2:$E$59,2,FALSE))," ",VLOOKUP(K65,Proposito_programa!$C$2:$E$59,2,FALSE)) -> Gestión pública local | M65: =IF(ISERROR(VLOOKUP(K65,Proposito_programa!$C$2:$E$59,3,FALSE))," ",VLOOKUP(K65,Proposito_programa!$C$2:$E$59,3,FALSE)) -> Propósito 5: Construir Bogotá - Región con gobierno abierto, transparente y ciudadanía consciente | N65: 133011605570000002143 | P65: 30204485 | Q65: CARMEN HOLANDA SOTOMONTE | R65: Persona Natural | V65: 15897000 | Z65: 15897000 | AA65: 15897000 | AB65: 2021-03-09 | AC65: 2021-03-11 | AD65: 2021-10-10 | AE65: 210 | AN65: X | AP65: 1
A66: 53 | B66: 2021 | C66: FDLBU-CD-001-2073 | D66: https://community.secop.gov.co/Public/Tendering/ContractNoticePhases/View?PPI=CO1.PPI.12351435&isFromPublicArea=True&isModal=False | E66: Contratos de prestación de servicios profesionales y de apoyo a la gestión | F66: Contratación directa | G66: Prestación de servicios profesionales y de apoyo a la gestión, o para la ejecución de trabajos artísticos que sólo puedan encomendarse a determinadas personas naturales; | H66: PRESTAR SUS SERVICIOS PROFESIONALES PARA APOYAR JURÍDICAMENTE LA EJECUCIÓN DE LAS ACCIONES REQUERIDAS PARA LA DEPURACIÓN DE LAS ACTUACIONES ADMINISTRATIVAS QUE CURSAN EN LA ALCALDÍA LOCAL | I66: Inversión | J66: Un Nuevo Contrato Social y Ambiental para la Bogotá del Siglo XXI | K66: 57 | L66: =IF(ISERROR(VLOOKUP(K66,Proposito_programa!$C$2:$E$59,2,FALSE))," ",VLOOKUP(K66,Proposito_programa!$C$2:$E$59,2,FALSE)) -> Gestión pública local | M66: =IF(ISERROR(VLOOKUP(K66,Proposito_programa!$C$2:$E$59,3,FALSE))," ",VLOOKUP(K66,Proposito_programa!$C$2:$E$59,3,FALSE)) -> Propósito 5: Construir Bogotá - Región con gobierno abierto, transparente y ciudadanía consciente | N66: 133011605570000002143 | P66: 1094247295 | Q66: JOHN EMMANUEL GOMEZ PORTILLA | R66: Persona Natural | V66: 33257000 | Z66: 33257000 | AA66: 31673333 | AB66: 2021-03-09 | AC66: 2021-03-11 | AD66: 2021-10-10 | AE66: 210 | AN66: X | AP66: 0.9523809424
A67: 54 | B67: 2021 | C67: FDLBU-CD-001-2074 | D67: https://community.secop.gov.co/Public/Tendering/ContractNoticePhases/View?PPI=CO1.PPI.12131916&isFromPublicArea=True&isModal=False | E67: Contratos de prestación de servicios profesionales y de apoyo a la gestión | F67: Contratación directa | G67: Prestación de servicios profesionales y de apoyo a la gestión, o para la ejecución de trabajos artísticos que sólo puedan encomendarse a determinadas personas naturales; | H67: PRESTAR SUS SERVICIOS PROFESIONALES PARA APOYAR JURÍDICAMENTE LA EJECUCIÓN DE LAS ACCIONES REQUERIDAS PARA EL TRÁMITE E IMPULSO PROCESAL DE LAS ACTUACIONES CONTRAVENCIONALES Y/O QUERELLAS QUE CURSEN EN LAS INSPECCIONES DE LA POLICÍA DE LA LOCALIDAD | I67: Inversión | J67: Un Nuevo Contrato Social y Ambiental para la Bogotá del Siglo XXI | K67: 57 | L67: =IF(ISERROR(VLOOKUP(K67,Proposito_programa!$C$2:$E$59,2,FALSE))," ",VLOOKUP(K67,Proposito_programa!$C$2:$E$59,2,FALSE)) -> Gestión pública local | M67: =IF(ISERROR(VLOOKUP(K67,Proposito_programa!$C$2:$E$59,3,FALSE))," ",VLOOKUP(K67,Proposito_programa!$C$2:$E$59,3,FALSE)) -> Propósito 5: Construir Bogotá - Región con gobierno abierto, transparente y ciudadanía consciente | N67: 133011605570000002143 | P67: 1014217624 | Q67: JUAN DAVID ARIZA HERRERA | R67: Persona Natural | V67: 33257000 | Z67: 33257000 | AA67: 33257000 | AB67: 2021-03-09 | AC67: 2021-03-10 | AD67: 2021-10-09 | AE67: 210 | AN67: X | AP67: 1
A68: 55 | B68: 2021 | C68: FDLBU-CD-001-2075 | D68: https://community.secop.gov.co/Public/Tendering/ContractNoticePhases/View?PPI=CO1.PPI.12353710&isFromPublicArea=True&isModal=False | E68: Contratos de prestación de servicios profesionales y de apoyo a la gestión | F68: Contratación directa | G68: Prestación de servicios profesionales y de apoyo a la gestión, o para la ejecución de trabajos artísticos que sólo puedan encomendarse a determinadas personas naturales; | H68: PRESTAR SERVICIOS PROFESIONALES PARA APOYAR AL ÁREA GESTIÓN DEL DESARROLLO ADMINISTRATIVO Y FINANCIERO EN LOS ASUNTOS RELATIVOS A LA PLANEACIÓN LOCAL: GARANTIZAR LA IMPLEMENTACIÓN Y SEGUIMIENTO DE LOS PROCESOS, PROYECTOS Y PROCEDIMIENTOS DE CONTRATOS SUSCRITOS POR LA ALCALDÍA LOCAL DE BARRIOS UNIDOS DIRIGIDOS AL CUMPLIMIENTO DE LAS METAS DE LA LÍNEA DE INVERSIONES AMBIENTALES SOSTENIBLES | I68: Inversión | J68: Un Nuevo Contrato Social y Ambiental para la Bogotá del Siglo XXI | K68: 34 | L68: =IF(ISERROR(VLOOKUP(K68,Proposito_programa!$C$2:$E$59,2,FALSE))," ",VLOOKUP(K68,Proposito_programa!$C$2:$E$59,2,FALSE)) -> Bogotá protectora de los animales | M68: =IF(ISERROR(VLOOKUP(K68,Proposito_programa!$C$2:$E$59,3,FALSE))," ",VLOOKUP(K68,Proposito_programa!$C$2:$E$59,3,FALSE)) -> Propósito 2 : Cambiar Nuestros Hábitos de Vida para Reverdecer a Bogotá y Adaptarnos y Mitigar la Crisis Climática | N68: 133011602340000002008 | P68: 23495250 | Q68: MYRIAM OBANDO MARIN | R68: Persona Natural | V68: 43700000 | X68: 1 | Y68: 1311000 | Z68: 45011000 | AA68: 37727667 | AB68: 2021-03-10 | AC68: 2021-03-12 | AD68: 2021-12-31 | AE68: 300 | AF68: 1 | AG68: 20 | AN68: X | AP68: 0.8381877097
A69: 56 | B69: 2021 | C69: FDLBU-CD-001-2076 | D69: https://community.secop.gov.co/Public/Tendering/ContractNoticePhases/View?PPI=CO1.PPI.12131350&isFromPublicArea=True&isModal=False | E69: Contratos de prestación de servicios profesionales y de apoyo a la gestión | F69: Contratación directa | G69: Prestación de servicios profesionales y de apoyo a la gestión, o para la ejecución de trabajos artísticos que sólo puedan encomendarse a determinadas personas naturales; | H69: PRESTAR SUS SERVICIOS PROFESIONALES PARA APOYAR JURÍDICAMENTE LA EJECUCIÓN DE LAS ACCIONES REQUERIDAS PARA EL TRÁMITE E IMPULSO PROCESAL DE LAS ACTUACIONES CONTRAVENCIONALES Y/O QUERELLAS QUE CURSEN EN LAS INSPECCIONES DE LA POLICÍA DE LA LOCALIDAD | I69: Inversión | J69: Un Nuevo Contrato Social y Ambiental para la Bogotá del Siglo XXI | K69: 57 | L69: =IF(ISERROR(VLOOKUP(K69,Proposito_programa!$C$2:$E$59,2,FALSE))," ",VLOOKUP(K69,Proposito_programa!$C$2:$E$59,2,FALSE)) -> Gestión pública local | M69: =IF(ISERROR(VLOOKUP(K69,Proposito_programa!$C$2:$E$59,3,FALSE))," ",VLOOKUP(K69,Proposito_programa!$C$2:$E$59,3,FALSE)) -> Propósito 5: Construir Bogotá - Región con gobierno abierto, transparente y ciudadanía consciente | N69: 133011605570000002143 | P69: 51994040 | Q69: CONSUELO CHAVARRO PULIDO | R69: Persona Natural | V69: 33257000 | Z69: 33257000 | AA69: 33257000 | AB69: 2021-03-15 | AC69: 2021-03-15 | AD69: 2021-10-14 | AE69: 210 | AN69: X | AP69: 1
A70: 57 | B70: 2021 | C70: FDLBU-CD-001-2077 | D70: https://community.secop.gov.co/Public/Tendering/ContractNoticePhases/View?PPI=CO1.PPI.12269784&isFromPublicArea=True&isModal=False | E70: Contratos de prestación de servicios profesionales y de apoyo a la gestión | F70: Contratación directa | G70: Prestación de servicios profesionales y de apoyo a la gestión, o para la ejecución de trabajos artísticos que sólo puedan encomendarse a determinadas personas naturales; | H70: PRESTAR SUS SERVICIOS PROFESIONALES PARA APOYAR TÉCNICAMENTE LAS DISTINTAS ETAPAS DE LOS PROCESOS DE COMPETENCIA DE LA ALCALDÍA LOCAL PARA LA DEPURACIÓN DE ACTUACIONES ADMINISTRATIVAS | I70: Inversión | J70: Un Nuevo Contrato Social y Ambiental para la Bogotá del Siglo XXI | K70: 57 | L70: =IF(ISERROR(VLOOKUP(K70,Proposito_programa!$C$2:$E$59,2,FALSE))," ",VLOOKUP(K70,Proposito_programa!$C$2:$E$59,2,FALSE)) -> Gestión pública local | M70: =IF(ISERROR(VLOOKUP(K70,Proposito_programa!$C$2:$E$59,3,FALSE))," ",VLOOKUP(K70,Proposito_programa!$C$2:$E$59,3,FALSE)) -> Propósito 5: Construir Bogotá - Región con gobierno abierto, transparente y ciudadanía consciente | N70: 133011605570000002143 | P70: 1015447044 | Q70: PAULA CAMILA GUTIERREZ BEJARANO | R70: Persona Natural | V70: 39976000 | X70: 1 | Y70: 7328933 | Z70: 47304933 | AA70: 42307933 | AB70: 2021-03-16 | AC70: 2021-03-17 | AD70: 2021-11-16 | AE70: 240 | AF70: 1 | AG70: 44 | AN70: X | AP70: 0.8943661964
A71: 58 | B71: 2021 | C71: FDLBU-CD-001-2078 | D71: https://community.secop.gov.co/Public/Tendering/ContractNoticePhases/View?PPI=CO1.PPI.12385892&isFromPublicArea=True&isModal=False | E71: Contratos de prestación de servicios profesionales y de apoyo a la gestión | F71: Contratación directa | G71: Prestación de servicios profesionales y de apoyo a la gestión, o para la ejecución de trabajos artísticos que sólo puedan encomendarse a determinadas personas naturales; | H71: PRESTAR SERVICIOS PROFESIONALES EN EL ÁREA DE GESTIÓN DEL DESARROLLO, PARA LA EJECUCIÓN Y SEGUIMIENTO DE LOS DIFERENTES PROYECTOS DE INVERSIÓN Y CONTRATOS DE INFRAESTRUCTURA, DE LA LOCALIDAD DE BARRIOS UNIDOS | I71: Inversión | J71: Un Nuevo Contrato Social y Ambiental para la Bogotá del Siglo XXI | K71: 49 | L71: =IF(ISERROR(VLOOKUP(K71,Proposito_programa!$C$2:$E$59,2,FALSE))," ",VLOOKUP(K71,Proposito_programa!$C$2:$E$59,2,FALSE)) -> Movilidad segura, sostenible y accesible | M71: =IF(ISERROR(VLOOKUP(K71,Proposito_programa!$C$2:$E$59,3,FALSE))," ",VLOOKUP(K71,Proposito_programa!$C$2:$E$59,3,FALSE)) -> Propósito 4: Hacer de Bogotá Región un modelo de movilidad multimodal, incluyente y sostenible | N71: 133011604490000002022 | P71: 1015424383 | Q71: NATHALIA DEL PILAR CAMARGO CASALLAS | R71: Persona Natural | V71: 43700000 | Z71: 43700000 | AA71: 37873333 | AB71: 2021-03-11 | AC71: 2021-03-11 | AD71: 2021-12-31 | AE71: 300 | AF71: 1 | AG71: 10 | AN71: X | AP71: 0.866666659
A72: 59 | B72: 2021 | C72: FDLBU-CD-001-2079 | D72: https://community.secop.gov.co/Public/Tendering/ContractNoticePhases/View?PPI=CO1.PPI.12397452&isFromPublicArea=True&isModal=False | E72: Contratos de prestación de servicios profesionales y de apoyo a la gestión | F72: Contratación directa | G72: Prestación de servicios profesionales y de apoyo a la gestión, o para la ejecución de trabajos artísticos que sólo puedan encomendarse a determinadas personas naturales; | H72: PRESTAR SUS SERVICIOS PROFESIONALES PARA APOYAR TÉCNICAMENTE LAS DISTINTAS ETAPAS DE LOS PROCESOS DE COMPETENCIA DE LAS INSPECCIONES DE POLICÍA DE LA LOCALIDAD, SEGÚN REPARTO | I72: Inversión | J72: Un Nuevo Contrato Social y Ambiental para la Bogotá del Siglo XXI | K72: 57 | L72: =IF(ISERROR(VLOOKUP(K72,Proposito_programa!$C$2:$E$59,2,FALSE))," ",VLOOKUP(K72,Proposito_programa!$C$2:$E$59,2,FALSE)) -> Gestión pública local | M72: =IF(ISERROR(VLOOKUP(K72,Proposito_programa!$C$2:$E$59,3,FALSE))," ",VLOOKUP(K72,Proposito_programa!$C$2:$E$59,3,FALSE)) -> Propósito 5: Construir Bogotá - Región con gobierno abierto, transparente y ciudadanía consciente | N72: 133011605570000002143 | P72: 79041777 | Q72: GUILLERMO FORERO APONTE | R72: Persona Natural | V72: 34979000 | Z72: 34979000 | AA72: 34979000 | AB72: 2021-03-29 | AC72: 2021-04-12 | AD72: 2021-11-11 | AE72: 210 | AN72: X | AP72: 1
A73: 60 | B73: 2021 | C73: FDLBU-CD-001-2080 | D73: https://community.secop.gov.co/Public/Tendering/ContractNoticePhases/View?PPI=CO1.PPI.12316255&isFromPublicArea=True&isModal=False | E73: Contratos de prestación de servicios profesionales y de apoyo a la gestión | F73: Contratación directa | G73: Prestación de servicios profesionales y de apoyo a la gestión, o para la ejecución de trabajos artísticos que sólo puedan encomendarse a determinadas personas naturales; | H73: PRESTAR SUS SERVICIOS PROFESIONALES PARA APOYAR JURÍDICAMENTE LA EJECUCIÓN DE LAS ACCIONES REQUERIDAS PARA LA DEPURACIÓN DE LAS ACTUACIONES ADMINISTRATIVAS QUE CURSAN EN LA ALCALDÍA LOCAL | I73: Inversión | J73: Un Nuevo Contrato Social y Ambiental para la Bogotá del Siglo XXI | K73: 57 | L73: =IF(ISERROR(VLOOKUP(K73,Proposito_programa!$C$2:$E$59,2,FALSE))," ",VLOOKUP(K73,Proposito_programa!$C$2:$E$59,2,FALSE)) -> Gestión pública local | M73: =IF(ISERROR(VLOOKUP(K73,Proposito_programa!$C$2:$E$59,3,FALSE))," ",VLOOKUP(K73,Proposito_programa!$C$2:$E$59,3,FALSE)) -> Propósito 5: Construir Bogotá - Región con gobierno abierto, transparente y ciudadanía consciente | N73: 133011605570000002143 | P73: 1000269976 | Q73: KAREN LORENA MARIN CALDERON | R73: Persona Natural | V73: 37200000 | Z73: 37200000 | AA73: 37200000 | AB73: 2021-03-15 | AC73: 2021-03-15 | AD73: 2021-09-14 | AE73: 180 | AN73: X | AP73: 1
A74: 61 | B74: 2021 | C74: FDLBU-CD-001-2081 | D74: https://community.secop.gov.co/Public/Tendering/ContractNoticePhases/View?PPI=CO1.PPI.12097753&isFromPublicArea=True&isModal=False | E74: Contratos de prestación de servicios profesionales y de apoyo a la gestión | F74: Contratación directa | G74: Prestación de servicios profesionales y de apoyo a la gestión, o para la ejecución de trabajos artísticos que sólo puedan encomendarse a determinadas personas naturales; | H74: PRESTAR SERVICIOS DE APOYO ADMINISTRATIVA Y ASISTENCIALMENTE A LAS INSPECCIONES DE POLICÍA DE LA LOCALIDAD | I74: Inversión | J74: Un Nuevo Contrato Social y Ambiental para la Bogotá del Siglo XXI | K74: 57 | L74: =IF(ISERROR(VLOOKUP(K74,Proposito_programa!$C$2:$E$59,2,FALSE))," ",VLOOKUP(K74,Proposito_programa!$C$2:$E$59,2,FALSE)) -> Gestión pública local | M74: =IF(ISERROR(VLOOKUP(K74,Proposito_programa!$C$2:$E$59,3,FALSE))," ",VLOOKUP(K74,Proposito_programa!$C$2:$E$59,3,FALSE)) -> Propósito 5: Construir Bogotá - Región con gobierno abierto, transparente y ciudadanía consciente | N74: 133011605570000002143 | P74: 1033782585 | Q74: NATALY ALEXANDRA RAMIREZ RODRIGUEZ | R74: Persona Natural | V74: 15897000 | Z74: 15897000 | AA74: 15897000 | AB74: 2021-03-24 | AC74: 2021-03-25 | AD74: 2021-10-24 | AE74: 210 | AN74: X | AP74: 1
A75: 62 | B75: 2021 | C75: FDLBU-CD-001-2082 | D75: https://community.secop.gov.co/Public/Tendering/ContractNoticePhases/View?PPI=CO1.PPI.12086932&isFromPublicArea=True&isModal=False | E75: Contratos de prestación de servicios profesionales y de apoyo a la gestión | F75: Contratación directa | G75: Prestación de servicios profesionales y de apoyo a la gestión, o para la ejecución de trabajos artísticos que sólo puedan encomendarse a determinadas personas naturales; | H75: PRESTAR SERVICIOS DE APOYO ADMINISTRATIVA Y ASISTENCIALMENTE A LAS INSPECCIONES DE POLICÍA DE LA LOCALIDAD | I75: Inversión | J75: Un Nuevo Contrato Social y Ambiental para la Bogotá del Siglo XXI | K75: 57 | L75: =IF(ISERROR(VLOOKUP(K75,Proposito_programa!$C$2:$E$59,2,FALSE))," ",VLOOKUP(K75,Proposito_programa!$C$2:$E$59,2,FALSE)) -> Gestión pública local | M75: =IF(ISERROR(VLOOKUP(K75,Proposito_programa!$C$2:$E$59,3,FALSE))," ",VLOOKUP(K75,Proposito_programa!$C$2:$E$59,3,FALSE)) -> Propósito 5: Construir Bogotá - Región con gobierno abierto, transparente y ciudadanía consciente | N75: 133011605570000002143 | P75: 79826818 | Q75: GIOVANNI SANCHEZ SABOGAL | R75: Persona Natural | V75: 15897000 | Z75: 15897000 | AA75: 15897000 | AB75: 2021-03-24 | AC75: 2021-03-24 | AD75: 2021-10-23 | AE75: 210 | AN75: X | AP75: 1
A76: 63 | B76: 2021 | C76: FDLBU-CD-001-2083 | D76: https://community.secop.gov.co/Public/Tendering/ContractNoticePhases/View?PPI=CO1.PPI.12408901&isFromPublicArea=True&isModal=False | E76: Contratos de prestación de servicios profesionales y de apoyo a la gestión | F76: Contratación directa | G76: Prestación de servicios profesionales y de apoyo a la gestión, o para la ejecución de trabajos artísticos que sólo puedan encomendarse a determinadas personas naturales; | H76: PRESTAR SERVICIOS PROFESIONALES EN EL ÁREA DE GESTIÓN DEL DESARROLLO, PARA LA EJECUCIÓN Y SEGUIMIENTO DE LOS DIFERENTES PROYECTOS DE INVERSIÓN Y CONTRATOS DE INFRAESTRUCTURA, DE LA LOCALIDAD DE BARRIOS UNIDOS | I76: Inversión | J76: Un Nuevo Contrato Social y Ambiental para la Bogotá del Siglo XXI | K76: 49 | L76: =IF(ISERROR(VLOOKUP(K76,Proposito_programa!$C$2:$E$59,2,FALSE))," ",VLOOKUP(K76,Proposito_programa!$C$2:$E$59,2,FALSE)) -> Movilidad segura, sostenible y accesible | M76: =IF(ISERROR(VLOOKUP(K76,Proposito_programa!$C$2:$E$59,3,FALSE))," ",VLOOKUP(K76,Proposito_programa!$C$2:$E$59,3,FALSE)) -> Propósito 4: Hacer de Bogotá Región un modelo de movilidad multimodal, incluyente y sostenible | N76: 133011604490000002022 | P76: 1018472177 | Q76: PAOLA ANDREA LEON TORRES | R76: Persona Natural | V76: 47500000 | Z76: 47500000 | AA76: 40533333 | AB76: 2021-03-12 | AC76: 2021-03-15 | AD76: 2021-12-31 | AE76: 300 | AF76: 1 | AG76: 14 | AN76: X | AP76: 0.8533333263
A77: 64 | B77: 2021 | C77: FDLBU-CD-001-2084 | D77: https://community.secop.gov.co/Public/Tendering/ContractNoticePhases/View?PPI=CO1.PPI.12131377&isFromPublicArea=True&isModal=False | E77: Contratos de prestación de servicios profesionales y de apoyo a la gestión | F77: Contratación directa | G77: Prestación de servicios profesionales y de apoyo a la gestión, o para la ejecución de trabajos artísticos que sólo puedan encomendarse a determinadas personas naturales; | H77: PRESTAR SERVICIOS DE APOYO ADMINISTRATIVA Y ASISTENCIALMENTE A LAS INSPECCIONES DE POLICÍA DE LA LOCALIDAD | I77: Inversión | J77: Un Nuevo Contrato Social y Ambiental para la Bogotá del Siglo XXI | K77: 57 | L77: =IF(ISERROR(VLOOKUP(K77,Proposito_programa!$C$2:$E$59,2,FALSE))," ",VLOOKUP(K77,Proposito_programa!$C$2:$E$59,2,FALSE)) -> Gestión pública local | M77: =IF(ISERROR(VLOOKUP(K77,Proposito_programa!$C$2:$E$59,3,FALSE))," ",VLOOKUP(K77,Proposito_programa!$C$2:$E$59,3,FALSE)) -> Propósito 5: Construir Bogotá - Región con gobierno abierto, transparente y ciudadanía consciente | N77: 133011605570000002143 | P77: 1015427264 | Q77: PAULA LORENA LEGUIZAMON | R77: Persona Natural | V77: 15897000 | Z77: 15897000 | AA77: 15897000 | AB77: 2021-03-16 | AC77: 2021-03-18 | AD77: 2021-10-17 | AE77: 210 | AN77: X | AP77: 1
A78: 65 | B78: 2021 | C78: FDLBU-CD-001-2085 | D78: https://community.secop.gov.co/Public/Tendering/ContractNoticePhases/View?PPI=CO1.PPI.12369357&isFromPublicArea=True&isModal=False | E78: Contratos de prestación de servicios profesionales y de apoyo a la gestión | F78: Contratación directa | G78: Prestación de servicios profesionales y de apoyo a la gestión, o para la ejecución de trabajos artísticos que sólo puedan encomendarse a determinadas personas naturales; | H78: PRESTAR SERVICIOS DE APOYO EN LAS ACTIVIDADES DEL PROYECTO DE INVERSIÓN YULIANA SAMBONI Y EN LAS ACTIVIDADES DE ARTICULACIÓN, ASISTENCIA Y ACOMPAÑAMIENTO DE LOS DEMÁS PROCESOS DE PLANEACIÓN LOCAL EN LA PROMOCIÓN DE LA PARTICIPACIÓN DE LAS MUJERES Y DE LA EQUIDAD DE GÉNERO PARA MATERIALIZAR EN LA LOCALIDAD LAS ESTRATEGIAS DE TERRITORIALIZACIÓN Y TRANSVERSALIZACIÓN DE LA POLÍTICA PUBLICA DE MUJERES Y EQUIDAD DE GÉNERO, PPMYEG. | I78: Inversión | J78: Un Nuevo Contrato Social y Ambiental para la Bogotá del Siglo XXI | K78: 40 | L78: =IF(ISERROR(VLOOKUP(K78,Proposito_programa!$C$2:$E$59,2,FALSE))," ",VLOOKUP(K78,Proposito_programa!$C$2:$E$59,2,FALSE)) -> Más mujeres viven una vida libre de violencias, se sienten seguras y acceden con confianza al sistema de justicia | M78: =IF(ISERROR(VLOOKUP(K78,Proposito_programa!$C$2:$E$59,3,FALSE))," ",VLOOKUP(K78,Proposito_programa!$C$2:$E$59,3,FALSE)) -> Propósito 3: Inspirar confianza y legitimidad para vivir sin miedo y ser epicentro de cultura ciudadana, paz y reconciliación | N78: 133011603400000002057 | P78: 1018445475 | Q78: KAREN RODRIGUEZ SOSA | R78: Persona Natural | V78: 18168000 | X78: 1 | Y78: 2649500 | Z78: 20817500 | AA78: 19303500 | AB78: 2021-03-15 | AC78: 2021-03-16 | AD78: 2021-11-15 | AE78: 240 | AF78: 1 | AG78: 35 | AN78: X | AP78: 0.9272727273
A79: 66 | B79: 2021 | C79: FDLBU-CD-001-2086 | D79: https://community.secop.gov.co/Public/Tendering/ContractNoticePhases/View?PPI=CO1.PPI.12389588&isFromPublicArea=True&isModal=False | E79: Contratos de prestación de servicios profesionales y de apoyo a la gestión | F79: Contratación directa | G79: Prestación de servicios profesionales y de apoyo a la gestión, o para la ejecución de trabajos artísticos que sólo puedan encomendarse a determinadas personas naturales; | H79: PRESTAR SERVICIOS DE APOYO EN LAS ACTIVIDADES DEL PROYECTO DE INVERSIÓN YULIANA SAMBONI Y EN LAS ACTIVIDADES DE ARTICULACIÓN, ASISTENCIA Y ACOMPAÑAMIENTO DE LOS DEMÁS PROCESOS DE PLANEACIÓN LOCAL EN LA PROMOCIÓN DE LA PARTICIPACIÓN DE LAS MUJERES Y DE LA EQUIDAD DE GÉNERO PARA MATERIALIZAR EN LA LOCALIDAD LAS ESTRATEGIAS DE TERRITORIALIZACIÓN Y TRANSVERSALIZACIÓN DE LA POLÍTICA PUBLICA DE MUJERES Y EQUIDAD DE GÉNERO, PPMYEG. | I79: Inversión | J79: Un Nuevo Contrato Social y Ambiental para la Bogotá del Siglo XXI | K79: 40 | L79: =IF(ISERROR(VLOOKUP(K79,Proposito_programa!$C$2:$E$59,2,FALSE))," ",VLOOKUP(K79,Proposito_programa!$C$2:$E$59,2,FALSE)) -> Más mujeres viven una vida libre de violencias, se sienten seguras y acceden con confianza al sistema de justicia | M79: =IF(ISERROR(VLOOKUP(K79,Proposito_programa!$C$2:$E$59,3,FALSE))," ",VLOOKUP(K79,Proposito_programa!$C$2:$E$59,3,FALSE)) -> Propósito 3: Inspirar confianza y legitimidad para vivir sin miedo y ser epicentro de cultura ciudadana, paz y reconciliación | N79: 133011603400000002057 | P79: 1094910132 | Q79: LUZ ADRIANA HERNANDEZ MARIN | R79: Persona Natural | V79: 18168000 | X79: 1 | Y79: 2725200 | Z79: 20893200 | AA79: 19379200 | AB79: 2021-03-15 | AC79: 2021-03-15 | AD79: 2021-11-14 | AE79: 240 | AF79: 1 | AG79: 36 | AN79: X | AP79: 0.9275362319
A80: 67 | B80: 2021 | C80: FDLBU-CD-001-2087 | D80: https://community.secop.gov.co/Public/Tendering/ContractNoticePhases/View?PPI=CO1.PPI.12411749&isFromPublicArea=True&isModal=False | E80: Contratos de prestación de servicios profesionales y de apoyo a la gestión | F80: Contratación directa | G80: Prestación de servicios profesionales y de apoyo a la gestión, o para la ejecución de trabajos artísticos que sólo puedan encomendarse a determinadas personas naturales; | H80: PRESTAR SERVICIOS DE APOYO EN LAS ACTIVIDADES DE SEGURIDAD, PROMOCIÓN DE LA CONVIVENCIA Y DE ATENCIÓN DE MOVILIZACIONES Y AGLOMERACIONES EN EL TERRITORIO. | I80: Inversión | J80: Un Nuevo Contrato Social y Ambiental para la Bogotá del Siglo XXI | K80: 43 | L80: =IF(ISERROR(VLOOKUP(K80,Proposito_programa!$C$2:$E$59,2,FALSE))," ",VLOOKUP(K80,Proposito_programa!$C$2:$E$59,2,FALSE)) -> Cultura ciudadana para la confianza, la convivencia y la participación desde la vida cotidiana | M80: =IF(ISERROR(VLOOKUP(K80,Proposito_programa!$C$2:$E$59,3,FALSE))," ",VLOOKUP(K80,Proposito_programa!$C$2:$E$59,3,FALSE)) -> Propósito 3: Inspirar confianza y legitimidad para vivir sin miedo y ser epicentro de cultura ciudadana, paz y reconciliación | N80: 133011603430000002149 | P80: 79577831 | Q80: JOSE ENRIQUE MENDOZA GALINDO | R80: Persona Natural | V80: 11355000 | Z80: 11355000 | AA80: 11355000 | AB80: 2021-03-15 | AC80: 2021-03-16 | AD80: 2021-08-15 | AE80: 150 | AN80: X | AP80: 1
A81: 68 | B81: 2021 | C81: FDLBU-CD-001-2088 | D81: https://community.secop.gov.co/Public/Tendering/ContractNoticePhases/View?PPI=CO1.PPI.12448272&isFromPublicArea=True&isModal=False | E81: Contratos de prestación de servicios profesionales y de apoyo a la gestión | F81: Contratación directa | G81: Prestación de servicios profesionales y de apoyo a la gestión, o para la ejecución de trabajos artísticos que sólo puedan encomendarse a determinadas personas naturales; | H81: PRESTAR SERVICIOS DE APOYO A LA GESTIÓN DEL DESARROLLO EN LAS LABORES DE PLANEACIÓN EN LAS ACTIVIDADES CONCERNIENTES AL PROYECTO IMPULSEMOS ECONOMÍA LOCAL. | I81: Inversión | J81: Un Nuevo Contrato Social y Ambiental para la Bogotá del Siglo XXI | K81: 6 | L81: =IF(ISERROR(VLOOKUP(K81,Proposito_programa!$C$2:$E$59,2,FALSE))," ",VLOOKUP(K81,Proposito_programa!$C$2:$E$59,2,FALSE)) -> Sistema Distrital de Cuidado | M81: =IF(ISERROR(VLOOKUP(K81,Proposito_programa!$C$2:$E$59,3,FALSE))," ",VLOOKUP(K81,Proposito_programa!$C$2:$E$59,3,FALSE)) -> Propósito 1: Hacer un nuevo contrato social para incrementar la inclusión social, productiva y política | N81: 133011601060000002135 | P81: 1020737893 | Q81: JENNY ANDREA HERNANDEZ MURCIA | R81: Persona Natural | V81: 18168000 | X81: 1 | Y81: 2649500 | Z81: 20817500 | AA81: 19152100 | AB81: 2021-03-18 | AC81: 2021-03-18 | AD81: 2021-11-17 | AE81: 240 | AF81: 1 | AG81: 35 | AN81: X | AP81: 0.92
A82: 69 | B82: 2021 | C82: FDLBU-CD-001-2089 | D82: https://community.secop.gov.co/Public/Tendering/ContractNoticePhases/View?PPI=CO1.PPI.12390157&isFromPublicArea=True&isModal=False | E82: Contratos de prestación de servicios profesionales y de apoyo a la gestión | F82: Contratación directa | G82: Prestación de servicios profesionales y de apoyo a la gestión, o para la ejecución de trabajos artísticos que sólo puedan encomendarse a determinadas personas naturales; | H82: PRESTAR SERVICIOS DE APOYO EN LAS ACTIVIDADES DEL PROYECTO DE INVERSIÓN YULIANA SAMBONI Y EN LAS ACTIVIDADES DE ARTICULACIÓN, ASISTENCIA Y ACOMPAÑAMIENTO DE LOS DEMÁS PROCESOS DE PLANEACIÓN LOCAL EN LA PROMOCIÓN DE LA PARTICIPACIÓN DE LAS MUJERES Y DE LA EQUIDAD DE GÉNERO PARA MATERIALIZAR EN LA LOCALIDAD LAS ESTRATEGIAS DE TERRITORIALIZACIÓN Y TRANSVERSALIZACIÓN DE LA POLÍTICA PUBLICA DE MUJERES Y EQUIDAD DE GÉNERO | I82: Inversión | J82: Un Nuevo Contrato Social y Ambiental para la Bogotá del Siglo XXI | K82: 40 | L82: =IF(ISERROR(VLOOKUP(K82,Proposito_programa!$C$2:$E$59,2,FALSE))," ",VLOOKUP(K82,Proposito_programa!$C$2:$E$59,2,FALSE)) -> Más mujeres viven una vida libre de violencias, se sienten seguras y acceden con confianza al sistema de justicia | M82: =IF(ISERROR(VLOOKUP(K82,Proposito_programa!$C$2:$E$59,3,FALSE))," ",VLOOKUP(K82,Proposito_programa!$C$2:$E$59,3,FALSE)) -> Propósito 3: Inspirar confianza y legitimidad para vivir sin miedo y ser epicentro de cultura ciudadana, paz y reconciliación | N82: 133011603400000002057 | P82: 1032459423 | Q82: MARÍA PAULA PARDO VARGAS | R82: Persona Natural | V82: 18168000 | X82: 1 | Y82: 2573800 | Z82: 20741800 | AA82: 19303500 | AB82: 2021-03-15 | AC82: 2021-03-16 | AD82: 2021-11-15 | AE82: 240 | AF82: 1 | AG82: 34 | AN82: X | AP82: 0.9306569343
A83: 70 | B83: 2021 | C83: FDLBU-CD-001-2090 | D83: https://community.secop.gov.co/Public/Tendering/ContractNoticePhases/View?PPI=CO1.PPI.12406806&isFromPublicArea=True&isModal=False | E83: Contratos de prestación de servicios profesionales y de apoyo a la gestión | F83: Contratación directa | G83: Prestación de servicios profesionales y de apoyo a la gestión, o para la ejecución de trabajos artísticos que sólo puedan encomendarse a determinadas personas naturales; | H83: PRESTAR SUS SERVICIOS PROFESIONALES PARA APOYAR JURÍDICAMENTE LA EJECUCIÓN DE LAS ACCIONES REQUERIDAS PARA LA DEPURACIÓN DE LAS ACTUACIONES ADMINISTRATIVAS QUE CURSAN EN LA ALCALDÍA LOCAL | I83: Inversión | J83: Un Nuevo Contrato Social y Ambiental para la Bogotá del Siglo XXI | K83: 57 | L83: =IF(ISERROR(VLOOKUP(K83,Proposito_programa!$C$2:$E$59,2,FALSE))," ",VLOOKUP(K83,Proposito_programa!$C$2:$E$59,2,FALSE)) -> Gestión pública local | M83: =IF(ISERROR(VLOOKUP(K83,Proposito_programa!$C$2:$E$59,3,FALSE))," ",VLOOKUP(K83,Proposito_programa!$C$2:$E$59,3,FALSE)) -> Propósito 5: Construir Bogotá - Región con gobierno abierto, transparente y ciudadanía consciente | N83: 133011605570000002143 | P83: 80126559 | Q83: HERNAN DAVID OVALLE BRICEÑO | R83: Persona Natural | V83: 33257000 | Z83: =+V83+W83+Y83 -> 33257000 | AA83: 33257000 | AB83: 2021-03-15 | AC83: 2021-03-17 | AD83: 2021-10-17 | AE83: 210 | AN83: X | AP83: =IF(ISERROR(AA83/Z83),"-",(AA83/Z83)) -> 1
A84: 71 | B84: 2021 | C84: FDLBU-CD-001-2091 | D84: https://community.secop.gov.co/Public/Tendering/ContractNoticePhases/View?PPI=CO1.PPI.12357864&isFromPublicArea=True&isModal=False | E84: Contratos de prestación de servicios profesionales y de apoyo a la gestión | F84: Contratación directa | G84: Prestación de servicios profesionales y de apoyo a la gestión, o para la ejecución de trabajos artísticos que sólo puedan encomendarse a determinadas personas naturales; | H84: PRESTAR LOS SERVICIOS PROFESIONALES PARA APOYAR AL ÁREA GESTIÓN DEL DESARROLLO ADMINISTRATIVO Y FINANCIERO EN LOS ASUNTOS RELATIVOS A LA PLANEACIÓN LOCAL, ASÍ COMO EL APOYO A LA SUPERVISIÓN DE CONTRATOS SUSCRITOS POR LA ALCALDÍA LOCAL DE BARRIOS UNIDOS | I84: Inversión | J84: Un Nuevo Contrato Social y Ambiental para la Bogotá del Siglo XXI | K84: 57 | L84: =IF(ISERROR(VLOOKUP(K84,Proposito_programa!$C$2:$E$59,2,FALSE))," ",VLOOKUP(K84,Proposito_programa!$C$2:$E$59,2,FALSE)) -> Gestión pública local | M84: =IF(ISERROR(VLOOKUP(K84,Proposito_programa!$C$2:$E$59,3,FALSE))," ",VLOOKUP(K84,Proposito_programa!$C$2:$E$59,3,FALSE)) -> Propósito 5: Construir Bogotá - Región con gobierno abierto, transparente y ciudadanía consciente | N84: 133011605570000002143 | P84: 74380410 | Q84: OSMAR FABIAN MORALES NOVOA | R84: Persona Natural | V84: 51780000 | Z84: 51780000 | AA84: 41769200 | AB84: 2021-03-24 | AC84: 2021-03-29 | AD84: 2021-12-31 | AE84: 300 | AF84: 1 | AG84: 20 | AN84: X | AP84: 0.8066666667
A85: 72 | B85: 2021 | C85: FDLBU-CD-001-2092 | D85: https://community.secop.gov.co/Public/Tendering/ContractNoticePhases/View?PPI=CO1.PPI.11990700&isFromPublicArea=True&isModal=False | E85: Contratos de prestación de servicios profesionales y de apoyo a la gestión | F85: Contratación directa | G85: Prestación de servicios profesionales y de apoyo a la gestión, o para la ejecución de trabajos artísticos que sólo puedan encomendarse a determinadas personas naturales; | H85: PRESTAR LOS SERVICIOS DE APOYO A LA GESTIÓN EN LA CONDUCCIÓN DE LOS VEHÍCULOS A CARGO DE EL FONDO DE DESARROLLO LOCAL DE BARRIOS UNIDOS, ASÍ COMO APOYAR LA GESTIÓN ADMINISTRATIVA QUE DESIGNE EL SUPERVISOR. | I85: Inversión | J85: Un Nuevo Contrato Social y Ambiental para la Bogotá del Siglo XXI | K85: 57 | L85: =IF(ISERROR(VLOOKUP(K85,Proposito_programa!$C$2:$E$59,2,FALSE))," ",VLOOKUP(K85,Proposito_programa!$C$2:$E$59,2,FALSE)) -> Gestión pública local | M85: =IF(ISERROR(VLOOKUP(K85,Proposito_programa!$C$2:$E$59,3,FALSE))," ",VLOOKUP(K85,Proposito_programa!$C$2:$E$59,3,FALSE)) -> Propósito 5: Construir Bogotá - Región con gobierno abierto, transparente y ciudadanía consciente | N85: 133011605570000002143 | P85: 19484273 | Q85: HUMBERTO VILLAMIL ACEVEDO | R85: Persona Natural | V85: 24070000 | Z85: 24070000 | AA85: 18935067 | AB85: 2021-03-25 | AC85: 2021-04-05 | AD85: 2021-12-31 | AE85: 300 | AN85: X | AP85: 0.7866666805
A86: 73 | B86: 2021 | C86: FDLBU-CD-001-2093 | D86: https://community.secop.gov.co/Public/Tendering/ContractNoticePhases/View?PPI=CO1.PPI.12402242&isFromPublicArea=True&isModal=False | E86: Contratos de prestación de servicios profesionales y de apoyo a la gestión | F86: Contratación directa | G86: Prestación de servicios profesionales y de apoyo a la gestión, o para la ejecución de trabajos artísticos que sólo puedan encomendarse a determinadas personas naturales; | H86: PRESTAR SUS SERVICIOS PROFESIONALES PARA APOYAR JURÍDICAMENTE LA EJECUCIÓN DE LAS ACCIONES REQUERIDAS PARA LA DEPURACIÓN DE LAS ACTUACIONES ADMINISTRATIVAS QUE CURSAN EN LA ALCALDÍA LOCAL | I86: Inversión | J86: Un Nuevo Contrato Social y Ambiental para la Bogotá del Siglo XXI | K86: 57 | L86: =IF(ISERROR(VLOOKUP(K86,Proposito_programa!$C$2:$E$59,2,FALSE))," ",VLOOKUP(K86,Proposito_programa!$C$2:$E$59,2,FALSE)) -> Gestión pública local | M86: =IF(ISERROR(VLOOKUP(K86,Proposito_programa!$C$2:$E$59,3,FALSE))," ",VLOOKUP(K86,Proposito_programa!$C$2:$E$59,3,FALSE)) -> Propósito 5: Construir Bogotá - Región con gobierno abierto, transparente y ciudadanía consciente | N86: 133011605570000002143 | P86: 52731958 | Q86: MERLY JOHANNA GARCIA LOPEZ | R86: Persona Natural | V86: 33257000 | Z86: 33257000 | AA86: 33257000 | AB86: 2021-03-19 | AC86: 2021-03-19 | AD86: 2021-10-18 | AE86: 210 | AN86: X | AP86: 1
A87: 74 | B87: 2021 | C87: FDLBU-CD-001-2094 | D87: https://community.secop.gov.co/Public/Tendering/ContractNoticePhases/View?PPI=CO1.PPI.12412164&isFromPublicArea=True&isModal=False | E87: Contratos de prestación de servicios profesionales y de apoyo a la gestión | F87: Contratación directa | G87: Prestación de servicios profesionales y de apoyo a la gestión, o para la ejecución de trabajos artísticos que sólo puedan encomendarse a determinadas personas naturales; | H87: PRESTAR SERVICIOS DE APOYO EN LAS ACTIVIDADES DE EGURIDAD, PROMOCIÓN DE LA CONVIVENCIA Y DE ATENCIÓN DE MOVILIZACIONES Y AGLOMERACIONES EN EL TERRITORIO | I87: Inversión | J87: Un Nuevo Contrato Social y Ambiental para la Bogotá del Siglo XXI | K87: 43 | L87: =IF(ISERROR(VLOOKUP(K87,Proposito_programa!$C$2:$E$59,2,FALSE))," ",VLOOKUP(K87,Proposito_programa!$C$2:$E$59,2,FALSE)) -> Cultura ciudadana para la confianza, la convivencia y la participación desde la vida cotidiana | M87: =IF(ISERROR(VLOOKUP(K87,Proposito_programa!$C$2:$E$59,3,FALSE))," ",VLOOKUP(K87,Proposito_programa!$C$2:$E$59,3,FALSE)) -> Propósito 3: Inspirar confianza y legitimidad para vivir sin miedo y ser epicentro de cultura ciudadana, paz y reconciliación | N87: 133011603430000002149 | P87: 1015413136 | Q87: RAUL ALEJANDRO PARDO MORALES | R87: Persona Natural | V87: 13626000 | Z87: 13626000 | AA87: 13626000 | AB87: 2021-03-16 | AC87: 2021-03-16 | AD87: 2021-09-15 | AE87: 180 | AN87: X | AP87: 1
A88: 75 | B88: 2021 | C88: FDLBU-CD-001-2095 | D88: https://community.secop.gov.co/Public/Tendering/ContractNoticePhases/View?PPI=CO1.PPI.12411795&isFromPublicArea=True&isModal=False | E88: Contratos de prestación de servicios profesionales y de apoyo a la gestión | F88: Contratación directa | G88: Prestación de servicios profesionales y de apoyo a la gestión, o para la ejecución de trabajos artísticos que sólo puedan encomendarse a determinadas personas naturales; | H88: PRESTAR SERVICIOS DE APOYO EN LAS ACTIVIDADES DE EGURIDAD, PROMOCIÓN DE LA CONVIVENCIA Y DE ATENCIÓN DE MOVILIZACIONES Y AGLOMERACIONES EN EL TERRITORIO | I88: Inversión | J88: Un Nuevo Contrato Social y Ambiental para la Bogotá del Siglo XXI | K88: 43 | L88: =IF(ISERROR(VLOOKUP(K88,Proposito_programa!$C$2:$E$59,2,FALSE))," ",VLOOKUP(K88,Proposito_programa!$C$2:$E$59,2,FALSE)) -> Cultura ciudadana para la confianza, la convivencia y la participación desde la vida cotidiana | M88: =IF(ISERROR(VLOOKUP(K88,Proposito_programa!$C$2:$E$59,3,FALSE))," ",VLOOKUP(K88,Proposito_programa!$C$2:$E$59,3,FALSE)) -> Propósito 3: Inspirar confianza y legitimidad para vivir sin miedo y ser epicentro de cultura ciudadana, paz y reconciliación | N88: 133011603430000002149 | P88: 79523967 | Q88: JORGE OSWALDO SOLER RINCON | R88: Persona Natural | V88: 11355000 | Z88: 11355000 | AA88: 11355000 | AB88: 2021-03-18 | AC88: 2021-03-23 | AD88: 2021-08-22 | AE88: 150 | AN88: X | AP88: 1
A89: 76 | B89: 2021 | C89: FDLBU-CD-001-2096 | D89: https://community.secop.gov.co/Public/Tendering/ContractNoticePhases/View?PPI=CO1.PPI.12421314&isFromPublicArea=True&isModal=False | E89: Contratos de prestación de servicios profesionales y de apoyo a la gestión | F89: Contratación directa | G89: Prestación de servicios profesionales y de apoyo a la gestión, o para la ejecución de trabajos artísticos que sólo puedan encomendarse a determinadas personas naturales; | H89: PRESTAR SERVICIOS PROFESIONALES EN EL ÁREA DE GESTIÓN DEL DESARROLLO, PARA LA EJECUCIÓN Y SEGUIMIENTO DE LOS DIFERENTES PROYECTOS DE INVERSIÓN Y CONTRATOS DE INFRAESTRUCTURA, DE LA LOCALIDAD DE BARRIOS UNIDOS | I89: Inversión | J89: Un Nuevo Contrato Social y Ambiental para la Bogotá del Siglo XXI | K89: 49 | L89: =IF(ISERROR(VLOOKUP(K89,Proposito_programa!$C$2:$E$59,2,FALSE))," ",VLOOKUP(K89,Proposito_programa!$C$2:$E$59,2,FALSE)) -> Movilidad segura, sostenible y accesible | M89: =IF(ISERROR(VLOOKUP(K89,Proposito_programa!$C$2:$E$59,3,FALSE))," ",VLOOKUP(K89,Proposito_programa!$C$2:$E$59,3,FALSE)) -> Propósito 4: Hacer de Bogotá Región un modelo de movilidad multimodal, incluyente y sostenible | N89: 133011604490000002022 | P89: 1094576712 | Q89: NEIL ANDRES LLAIN TORRADO | R89: Persona Natural | V89: 43700000 | Z89: 43700000 | AA89: 36708000 | AB89: 2021-03-18 | AC89: 2021-03-19 | AD89: 2021-12-31 | AE89: 300 | AF89: 1 | AG89: 18 | AI89: JUAN CARLOS CRUZ HERNANDEZ | AJ89: 2021-07-23 | AN89: X | AP89: 0.84
A90: 77 | B90: 2021 | C90: FDLBU-CD-001-2097 | D90: https://community.secop.gov.co/Public/Tendering/ContractNoticePhases/View?PPI=CO1.PPI.12402422&isFromPublicArea=True&isModal=False | E90: Contratos de prestación de servicios profesionales y de apoyo a la gestión | F90: Contratación directa | G90: Prestación de servicios profesionales y de apoyo a la gestión, o para la ejecución de trabajos artísticos que sólo puedan encomendarse a determinadas personas naturales; | H90: PRESTAR LOS SERVICIOS PROFESIONALES PARA LIDERAR LA FORMULACIÓN, GESTIÓN, SEGUIMIENTO Y SUPERVISIÓN DEL PROYECTO DE INVERSIÓN YULIANA SAMBONI Y COORDINAR LA ARTICULACIÓN, ASISTENCIA Y ACOMPAÑAMIENTO DE LOS PROCESOS DE PLANEACIÓN LOCAL EN LA PROMOCIÓN DE LA PARTICIPACIÓN DE LAS MUJERES Y DE LA EQUIDAD DE GÉNERO PARA MATERIALIZAR EN LA LOCALIDAD LAS ESTRATEGIAS DE TERRITORIALIZACIÓN Y TRANSVERSALIZACIÓN DE LA POLÍTICA PUBLICA DE MUJERES Y EQUIDAD DE GÉNERO, PPMYEG. | I90: Inversión | J90: Un Nuevo Contrato Social y Ambiental para la Bogotá del Siglo XXI | K90: 40 | L90: =IF(ISERROR(VLOOKUP(K90,Proposito_programa!$C$2:$E$59,2,FALSE))," ",VLOOKUP(K90,Proposito_programa!$C$2:$E$59,2,FALSE)) -> Más mujeres viven una vida libre de violencias, se sienten seguras y acceden con confianza al sistema de justicia | M90: =IF(ISERROR(VLOOKUP(K90,Proposito_programa!$C$2:$E$59,3,FALSE))," ",VLOOKUP(K90,Proposito_programa!$C$2:$E$59,3,FALSE)) -> Propósito 3: Inspirar confianza y legitimidad para vivir sin miedo y ser epicentro de cultura ciudadana, paz y reconciliación | N90: 133011603400000002057 | P90: 1085336829 | Q90: MARIA PAULA VALLEJO ARTEAGA | R90: Persona Natural | V90: 43700000 | Z90: 43700000 | AA90: 36125333 | AB90: 2021-03-19 | AC90: 2021-03-23 | AD90: 2021-12-31 | AE90: 300 | AF90: 1 | AG90: 22 | AN90: X | AP90: 0.826666659
A91: 78 | B91: 2021 | C91: FDLBU-CD-001-2098 | D91: https://community.secop.gov.co/Public/Tendering/ContractNoticePhases/View?PPI=CO1.PPI.12463094&isFromPublicArea=True&isModal=False | E91: Contratos de prestación de servicios profesionales y de apoyo a la gestión | F91: Contratación directa | G91: Prestación de servicios profesionales y de apoyo a la gestión, o para la ejecución de trabajos artísticos que sólo puedan encomendarse a determinadas personas naturales; | H91: PRESTAR SERVICIOS DE APOYO A LA GESTIÓN DEL DESARROLLO EN LAS LABORES DE PLANEACIÓN REFERENTES A LA REACTIVACIÓN DE LA ECONOMÍA LOCAL | I91: Inversión | J91: Un Nuevo Contrato Social y Ambiental para la Bogotá del Siglo XXI | K91: 6 | L91: =IF(ISERROR(VLOOKUP(K91,Proposito_programa!$C$2:$E$59,2,FALSE))," ",VLOOKUP(K91,Proposito_programa!$C$2:$E$59,2,FALSE)) -> Sistema Distrital de Cuidado | M91: =IF(ISERROR(VLOOKUP(K91,Proposito_programa!$C$2:$E$59,3,FALSE))," ",VLOOKUP(K91,Proposito_programa!$C$2:$E$59,3,FALSE)) -> Propósito 1: Hacer un nuevo contrato social para incrementar la inclusión social, productiva y política | N91: 133011601060000002135 | P91: 80100885 | Q91: LUIS ENRIQUE CASTAÑEDA LOZANO | R91: Persona Natural | V91: 12719000 | Z91: 12719000 | AA91: 5996100 | AB91: 2021-03-18 | AC91: 2021-03-23 | AD91: 2021-10-22 | AE91: 210 | AI91: BRIGIT PAOLA CARDENAS SOTO | AJ91: 2021-07-14 | AN91: X | AP91: 0.4714285714
A92: 79 | B92: 2021 | C92: FDLBU-CD-001-2099 | D92: https://community.secop.gov.co/Public/Tendering/ContractNoticePhases/View?PPI=CO1.PPI.12377765&isFromPublicArea=True&isModal=False | E92: Contratos de prestación de servicios profesionales y de apoyo a la gestión | F92: Contratación directa | G92: Prestación de servicios profesionales y de apoyo a la gestión, o para la ejecución de trabajos artísticos que sólo puedan encomendarse a determinadas personas naturales; | H92: PRESTAR SUS SERVICIOSDE APOYO PARA APOYAR LA GESTIÓN DOCUMENTAL DE LA ALCALDÍA LOCAL EN LA IMPLEMENTACIÓN DE LOS PROCESOS DE CLASIFICACIÓN, ORDENACIÓN, SELECCIÓN NATURAL, FOLIACIÓN, IDENTIFICACIÓN, LEVANTAMIENTO DE INVENTARIOS, ALMACENAMIENTO Y APLICACIÓN DE PROTOCOLOS DE ELIMINACIÓN Y TRANSFERENCIAS | I92: Inversión | J92: Un Nuevo Contrato Social y Ambiental para la Bogotá del Siglo XXI | K92: 57 | L92: =IF(ISERROR(VLOOKUP(K92,Proposito_programa!$C$2:$E$59,2,FALSE))," ",VLOOKUP(K92,Proposito_programa!$C$2:$E$59,2,FALSE)) -> Gestión pública local | M92: =IF(ISERROR(VLOOKUP(K92,Proposito_programa!$C$2:$E$59,3,FALSE))," ",VLOOKUP(K92,Proposito_programa!$C$2:$E$59,3,FALSE)) -> Propósito 5: Construir Bogotá - Región con gobierno abierto, transparente y ciudadanía consciente | N92: 133011605570000002143 | P92: 80246449 | Q92: DIEGO ANDRES SORA CORTES | R92: Persona Natural | V92: 22710000 | Z92: 22710000 | AA92: 19076400 | AB92: 2021-03-17 | AC92: 2021-03-19 | AD92: 2021-12-31 | AE92: 300 | AF92: 1 | AG92: 18 | AN92: X | AP92: 0.84
A93: 80 | B93: 2021 | C93: FDLBU-CD-001-2100 | D93: https://community.secop.gov.co/Public/Tendering/ContractNoticePhases/View?PPI=CO1.PPI.12412147&isFromPublicArea=True&isModal=False | E93: Contratos de prestación de servicios profesionales y de apoyo a la gestión | F93: Contratación directa | G93: Prestación de servicios profesionales y de apoyo a la gestión, o para la ejecución de trabajos artísticos que sólo puedan encomendarse a determinadas personas naturales; | H93: PRESTAR SERVICIOS DE APOYO EN LAS ACTIVIDADES DE EGURIDAD, PROMOCIÓN DE LA CONVIVENCIA Y DE ATENCIÓN DE MOVILIZACIONES Y AGLOMERACIONES EN EL TERRITORIO | I93: Inversión | J93: Un Nuevo Contrato Social y Ambiental para la Bogotá del Siglo XXI | K93: 43 | L93: =IF(ISERROR(VLOOKUP(K93,Proposito_programa!$C$2:$E$59,2,FALSE))," ",VLOOKUP(K93,Proposito_programa!$C$2:$E$59,2,FALSE)) -> Cultura ciudadana para la confianza, la convivencia y la participación desde la vida cotidiana | M93: =IF(ISERROR(VLOOKUP(K93,Proposito_programa!$C$2:$E$59,3,FALSE))," ",VLOOKUP(K93,Proposito_programa!$C$2:$E$59,3,FALSE)) -> Propósito 3: Inspirar confianza y legitimidad para vivir sin miedo y ser epicentro de cultura ciudadana, paz y reconciliación | N93: 133011603430000002149 | P93: 79331423 | Q93: ELIAS CUBILLOS PARDO | R93: Persona Natural | V93: 13626000 | Z93: 13626000 | AA93: 13626000 | AB93: 2021-03-17 | AC93: 2021-03-19 | AD93: 2021-09-18 | AE93: 180 | AN93: X | AP93: 1
A94: 81 | B94: 2021 | C94: FDLBU-CD-001-2101 | D94: https://community.secop.gov.co/Public/Tendering/ContractNoticePhases/View?PPI=CO1.PPI.12494874&isFromPublicArea=True&isModal=False | E94: Contratos de prestación de servicios profesionales y de apoyo a la gestión | F94: Contratación directa | G94: Prestación de servicios profesionales y de apoyo a la gestión, o para la ejecución de trabajos artísticos que sólo puedan encomendarse a determinadas personas naturales; | H94: APOYAR AL ALCALDE LOCAL EN LA GESTIÓN DE LOS ASUNTOS RELACIONADOS CON SEGURIDAD CIUDADANA, CONVIVENCIA Y PREVENCIÓN DE CONFLICTIVIDADES, VIOLENCIAS Y DELITOS EN LA LOCALIDAD, DE CONFORMIDAD CON EL MARCO NORMATIVO APLICABLE EN LA MATERIA | I94: Inversión | J94: Un Nuevo Contrato Social y Ambiental para la Bogotá del Siglo XXI | K94: 43 | L94: =IF(ISERROR(VLOOKUP(K94,Proposito_programa!$C$2:$E$59,2,FALSE))," ",VLOOKUP(K94,Proposito_programa!$C$2:$E$59,2,FALSE)) -> Cultura ciudadana para la confianza, la convivencia y la participación desde la vida cotidiana | M94: =IF(ISERROR(VLOOKUP(K94,Proposito_programa!$C$2:$E$59,3,FALSE))," ",VLOOKUP(K94,Proposito_programa!$C$2:$E$59,3,FALSE)) -> Propósito 3: Inspirar confianza y legitimidad para vivir sin miedo y ser epicentro de cultura ciudadana, paz y reconciliación | N94: 133011603430000002149 | P94: 79556340 | Q94: LUIS BASILIO GUTIERREZ SAENZ | R94: Persona Natural | V94: 64638000 | Z94: 64638000 | AA94: 57153600 | AB94: 2021-03-18 | AC94: 2021-03-19 | AD94: 2021-12-31 | AE94: 285 | AF94: 1 | AG94: 3 | AN94: X | AP94: 0.8842105263
A95: 82 | B95: 2021 | C95: FDLBU-CD-001-2102 | D95: https://community.secop.gov.co/Public/Tendering/ContractNoticePhases/View?PPI=CO1.PPI.12491706&isFromPublicArea=True&isModal=False | E95: Contratos de prestación de servicios profesionales y de apoyo a la gestión | F95: Contratación directa | G95: Prestación de servicios profesionales y de apoyo a la gestión, o para la ejecución de trabajos artísticos que sólo puedan encomendarse a determinadas personas naturales; | H95: PRESTAR SUS SERVICIOS PROFESIONALES PARA APOYAR JURÍDICAMENTE LA EJECUCIÓN DE LAS ACCIONES REQUERIDAS PARA LA DEPURACIÓN DE LAS ACTUACIONES ADMINISTRATIVAS QUE CURSAN EN LA ALCALDÍA LOCAL | I95: Inversión | J95: Un Nuevo Contrato Social y Ambiental para la Bogotá del Siglo XXI | K95: 57 | L95: =IF(ISERROR(VLOOKUP(K95,Proposito_programa!$C$2:$E$59,2,FALSE))," ",VLOOKUP(K95,Proposito_programa!$C$2:$E$59,2,FALSE)) -> Gestión pública local | M95: =IF(ISERROR(VLOOKUP(K95,Proposito_programa!$C$2:$E$59,3,FALSE))," ",VLOOKUP(K95,Proposito_programa!$C$2:$E$59,3,FALSE)) -> Propósito 5: Construir Bogotá - Región con gobierno abierto, transparente y ciudadanía consciente | N95: 133011605570000002143 | P95: 35195802 | Q95: ADRIANA LILIANA CARDENAS VILLALOBOS | R95: Persona Natural | V95: 33257000 | Z95: 33257000 | AA95: 33257000 | AB95: 2021-03-18 | AC95: 2021-03-19 | AD95: 2021-10-18 | AE95: 210 | AN95: X | AP95: 1
A96: 83 | B96: 2021 | C96: FDLBU-CD-001-2103 | D96: https://community.secop.gov.co/Public/Tendering/ContractNoticePhases/View?PPI=CO1.PPI.12464985&isFromPublicArea=True&isModal=False | E96: Contratos de prestación de servicios profesionales y de apoyo a la gestión | F96: Contratación directa | G96: Prestación de servicios profesionales y de apoyo a la gestión, o para la ejecución de trabajos artísticos que sólo puedan encomendarse a determinadas personas naturales; | H96: PRESTAR SERVICIOS PROFESIONALES ESPECIALIZADOS DE ASESORÍA JURÍDICA Y ADMINISTRATIVA A LA ALCALDÍA LOCAL DE BARRIOS UNIDOS, EN LA REVISIÓN Y SEGUIMIENTO DE LOS DOCUMENTOS EMITIDOS POR LAS ÁREAS DE GESTIÓN DEL DESARROLLO LOCAL Y POLICIVO, BRINDANDO ADICIONALMENTE LOS ANÁLISIS Y RECOMENDACIONES A QUE HAYA LUGAR | I96: Inversión | J96: Un Nuevo Contrato Social y Ambiental para la Bogotá del Siglo XXI | K96: 57 | L96: =IF(ISERROR(VLOOKUP(K96,Proposito_programa!$C$2:$E$59,2,FALSE))," ",VLOOKUP(K96,Proposito_programa!$C$2:$E$59,2,FALSE)) -> Gestión pública local | M96: =IF(ISERROR(VLOOKUP(K96,Proposito_programa!$C$2:$E$59,3,FALSE))," ",VLOOKUP(K96,Proposito_programa!$C$2:$E$59,3,FALSE)) -> Propósito 5: Construir Bogotá - Región con gobierno abierto, transparente y ciudadanía consciente | N96: 133011605570000002143 | P96: 52429376 | Q96: ANGELICA MARIA RICO SANCHEZ | R96: Persona Natural | V96: 74100000 | Z96: 74100000 | AA96: 65520000 | AB96: 2021-03-18 | AC96: 2021-03-19 | AD96: 2021-12-31 | AE96: 285 | AF96: 1 | AG96: 3 | AN96: X | AP96: 0.8842105263
A97: 84 | B97: 2021 | C97: FDLBU-CD-001-2104 | D97: https://community.secop.gov.co/Public/Tendering/ContractNoticePhases/View?PPI=CO1.PPI.12396834&isFromPublicArea=True&isModal=False | E97: Contratos de prestación de servicios profesionales y de apoyo a la gestión | F97: Contratación directa | G97: Prestación de servicios profesionales y de apoyo a la gestión, o para la ejecución de trabajos artísticos que sólo puedan encomendarse a determinadas personas naturales; | H97: PRESTAR SERVICIOS PROFESIONALES PARA APOYAR AL ÁREA GESTIÓN DEL DESARROLLO ADMINISTRATIVO Y FINANCIERO EN LOS ASUNTOS RELATIVOS A LA PLANEACIÓN LOCAL: COORDINAR Y GARANTIZAR LA IMPLEMENTACIÓN Y SEGUIMIENTO DE LOS PROCESOS, PROYECTOS Y PROCEDIMIENTOS DE CONTRATOS SUSCRITOS POR LA ALCALDÍA LOCAL DE BARRIOS UNIDOS DIRIGIDOS AL CUMPLIMIENTO DE LAS META DE PREVENCIÓN DEL EMBARAZO ADOLESCENTE NO DESEADO | I97: Inversión | J97: Un Nuevo Contrato Social y Ambiental para la Bogotá del Siglo XXI | K97: 8 | L97: =IF(ISERROR(VLOOKUP(K97,Proposito_programa!$C$2:$E$59,2,FALSE))," ",VLOOKUP(K97,Proposito_programa!$C$2:$E$59,2,FALSE)) -> Prevención y atención de maternidad temprana | M97: =IF(ISERROR(VLOOKUP(K97,Proposito_programa!$C$2:$E$59,3,FALSE))," ",VLOOKUP(K97,Proposito_programa!$C$2:$E$59,3,FALSE)) -> Propósito 1: Hacer un nuevo contrato social para incrementar la inclusión social, productiva y política | N97: 133011601080000002151 | P97: 52271959 | Q97: PAOLA COLINA DIAZ | R97: Persona Natural | V97: 39330000 | X97: 1 | Y97: 3350333 | Z97: 42680333 | AA97: 36125333 | AB97: 2021-03-18 | AC97: 2021-03-23 | AD97: 2021-12-22 | AE97: 270 | AF97: 1 | AG97: 23 | AN97: X | AP97: 0.8464163811
A98: 86 | B98: 2021 | C98: FDLBU-CD-001-2105 | D98: https://community.secop.gov.co/Public/Tendering/ContractNoticePhases/View?PPI=CO1.PPI.12378330&isFromPublicArea=True&isModal=False | E98: Contratos de prestación de servicios profesionales y de apoyo a la gestión | F98: Contratación directa | G98: Prestación de servicios profesionales y de apoyo a la gestión, o para la ejecución de trabajos artísticos que sólo puedan encomendarse a determinadas personas naturales; | H98: PRESTAR SUS SERVICIOS PROFESIONALES PARA APOYAR TÉCNICAMENTE LAS DISTINTAS ETAPAS DE LOS PROCESOS DE COMPETENCIA DE LAS INSPECCIONES DE POLICÍA DE LA LOCALIDAD, SEGÚN REPARTO | I98: Inversión | J98: Un Nuevo Contrato Social y Ambiental para la Bogotá del Siglo XXI | K98: 57 | L98: =IF(ISERROR(VLOOKUP(K98,Proposito_programa!$C$2:$E$59,2,FALSE))," ",VLOOKUP(K98,Proposito_programa!$C$2:$E$59,2,FALSE)) -> Gestión pública local | M98: =IF(ISERROR(VLOOKUP(K98,Proposito_programa!$C$2:$E$59,3,FALSE))," ",VLOOKUP(K98,Proposito_programa!$C$2:$E$59,3,FALSE)) -> Propósito 5: Construir Bogotá - Región con gobierno abierto, transparente y ciudadanía consciente | N98: 133011605570000002143 | P98: 8694817 | Q98: JAIRO ENRIQUE GOMEZ BALLESTAS | R98: Persona Natural | V98: 29982000 | X98: 1 | Y98: 14991000 | Z98: 44973000 | AA98: 41141967 | AB98: 2021-03-23 | AC98: 2021-03-24 | AD98: 2021-09-23 | AE98: 180 | AF98: 1 | AG98: 90 | AN98: X | AP98: 0.9148148222
A99: 87 | B99: 2021 | C99: FDLBU-CD-001-2106 | D99: https://community.secop.gov.co/Public/Tendering/ContractNoticePhases/View?PPI=CO1.PPI.12373206&isFromPublicArea=True&isModal=False | E99: Contratos de prestación de servicios profesionales y de apoyo a la gestión | F99: Contratación directa | G99: Prestación de servicios profesionales y de apoyo a la gestión, o para la ejecución de trabajos artísticos que sólo puedan encomendarse a determinadas personas naturales; | H99: PRESTAR SUS SERVICIOS PROFESIONALES PARA APOYAR TÉCNICAMENTE LAS DISTINTAS ETAPAS DE LOS PROCESOS DE COMPETENCIA DE LAS INSPECCIONES DE POLICÍA DE LA LOCALIDAD, SEGÚN REPARTO | I99: Inversión | J99: Un Nuevo Contrato Social y Ambiental para la Bogotá del Siglo XXI | K99: 57 | L99: =IF(ISERROR(VLOOKUP(K99,Proposito_programa!$C$2:$E$59,2,FALSE))," ",VLOOKUP(K99,Proposito_programa!$C$2:$E$59,2,FALSE)) -> Gestión pública local | M99: =IF(ISERROR(VLOOKUP(K99,Proposito_programa!$C$2:$E$59,3,FALSE))," ",VLOOKUP(K99,Proposito_programa!$C$2:$E$59,3,FALSE)) -> Propósito 5: Construir Bogotá - Región con gobierno abierto, transparente y ciudadanía consciente | N99: 133011605570000002143 | P99: 19274869 | Q99: HIPOLITO ACOSTA FORERO | R99: Persona Natural | V99: 34979000 | Z99: 34979000 | AA99: 34979000 | AB99: 2021-03-19 | AC99: 2021-03-23 | AD99: 2021-10-22 | AE99: 210 | AN99: X | AP99: 1
A100: 88 | B100: 2021 | C100: FDLBU-CD-001-2107 | D100: https://community.secop.gov.co/Public/Tendering/ContractNoticePhases/View?PPI=CO1.PPI.12090078&isFromPublicArea=True&isModal=False | E100: Contratos de prestación de servicios profesionales y de apoyo a la gestión | F100: Contratación directa | G100: Prestación de servicios profesionales y de apoyo a la gestión, o para la ejecución de trabajos artísticos que sólo puedan encomendarse a determinadas personas naturales; | H100: PRESTAR SERVICIOS DE APOYO A LA GESTIÓN DOCUMENTAL DE LA ALCALDÍA LOCAL, ACOMPAÑANDO AL EQUIPO JURÍDICO DE DEPURACIÓN EN LAS LABORES OPERATIVAS QUE GENERA EL PROCESO DE IMPULSO DE LAS ACTUACIONES ADMINISTRATIVAS EXISTENTES EN LA ALCALDÍA LOCAL DE BARRIOS UNIDOS | I100: Inversión | J100: Un Nuevo Contrato Social y Ambiental para la Bogotá del Siglo XXI | K100: 57 | L100: =IF(ISERROR(VLOOKUP(K100,Proposito_programa!$C$2:$E$59,2,FALSE))," ",VLOOKUP(K100,Proposito_programa!$C$2:$E$59,2,FALSE)) -> Gestión pública local | M100: =IF(ISERROR(VLOOKUP(K100,Proposito_programa!$C$2:$E$59,3,FALSE))," ",VLOOKUP(K100,Proposito_programa!$C$2:$E$59,3,FALSE)) -> Propósito 5: Construir Bogotá - Región con gobierno abierto, transparente y ciudadanía consciente | N100: 133011605570000002143 | P100: 1022953015 | Q100: ELIANA GRISEL CADENA CANO | R100: Persona Natural | V100: 15897000 | Z100: 15897000 | AA100: 15897000 | AB100: 2021-03-26 | AC100: 2021-03-30 | AD100: 2021-10-29 | AE100: 210 | AN100: X | AP100: 1
A101: 89 | B101: 2021 | C101: FDLBU-CD-001-2108 | D101: https://community.secop.gov.co/Public/Tendering/ContractNoticePhases/View?PPI=CO1.PPI.12463356&isFromPublicArea=True&isModal=False | E101: Contratos de prestación de servicios profesionales y de apoyo a la gestión | F101: Contratación directa | G101: Prestación de servicios profesionales y de apoyo a la gestión, o para la ejecución de trabajos artísticos que sólo puedan encomendarse a determinadas personas naturales; | H101: PRESTAR SERVICIOS DE APOYO A LA GESTIÓN DEL DESARROLLO EN LA LABOR DE PLANEACIÓN, EN LAS ACTIVIDADES ENMARCADAS EN EL CUMPLIMIENTO DE LA META DE ACUERDOS EN COMUNIDAD PARA LA VIGENCIA 2021 | I101: Inversión | J101: Un Nuevo Contrato Social y Ambiental para la Bogotá del Siglo XXI | K101: 45 | L101: =IF(ISERROR(VLOOKUP(K101,Proposito_programa!$C$2:$E$59,2,FALSE))," ",VLOOKUP(K101,Proposito_programa!$C$2:$E$59,2,FALSE)) -> Espacio público más seguro y construido colectivamente | M101: =IF(ISERROR(VLOOKUP(K101,Proposito_programa!$C$2:$E$59,3,FALSE))," ",VLOOKUP(K101,Proposito_programa!$C$2:$E$59,3,FALSE)) -> Propósito 3: Inspirar confianza y legitimidad para vivir sin miedo y ser epicentro de cultura ciudadana, paz y reconciliación | N101: 133011603450000002038 | P101: 1000455167 | Q101: LAURA DANIELA BARRETO MOLINA | R101: Persona Natural | V101: 12719000 | X101: 1 | Y101: 3936833 | Z101: 16655833 | AA101: 15262800 | AB101: 2021-03-18 | AC101: 2021-03-19 | AD101: 2021-12-23 | AE101: 210 | AF101: 1 | AG101: 65 | AN101: X | AP101: 0.9163636547
A102: 90 | B102: 2021 | C102: FDLBU-CD-001-2109 | D102: https://community.secop.gov.co/Public/Tendering/ContractNoticePhases/View?PPI=CO1.PPI.12463394&isFromPublicArea=True&isModal=False | E102: Contratos de prestación de servicios profesionales y de apoyo a la gestión | F102: Contratación directa | G102: Prestación de servicios profesionales y de apoyo a la gestión, o para la ejecución de trabajos artísticos que sólo puedan encomendarse a determinadas personas naturales; | H102: PRESTAR SERVICIOS DE APOYO A LA GESTIÓN DEL DESARROLLO EN LA LABOR DE PLANEACIÓN, EN LAS ACTIVIDADES ENMARCADAS EN EL CUMPLIMIENTO DE LA META DE ACUERDOS EN COMUNIDAD PARA LA VIGENCIA 2021 | I102: Inversión | J102: Un Nuevo Contrato Social y Ambiental para la Bogotá del Siglo XXI | K102: 45 | L102: =IF(ISERROR(VLOOKUP(K102,Proposito_programa!$C$2:$E$59,2,FALSE))," ",VLOOKUP(K102,Proposito_programa!$C$2:$E$59,2,FALSE)) -> Espacio público más seguro y construido colectivamente | M102: =IF(ISERROR(VLOOKUP(K102,Proposito_programa!$C$2:$E$59,3,FALSE))," ",VLOOKUP(K102,Proposito_programa!$C$2:$E$59,3,FALSE)) -> Propósito 3: Inspirar confianza y legitimidad para vivir sin miedo y ser epicentro de cultura ciudadana, paz y reconciliación | N102: 133011603450000002038 | P102: 1030595694 | Q102: FABIAN AUGUSTO LEIVA CHAPARRO | R102: Persona Natural | V102: 12719000 | X102: 1 | Y102: 4360800 | Z102: 17079800 | AA102: 15262800 | AB102: 2021-03-19 | AC102: 2021-03-19 | AD102: 2021-12-30 | AE102: 210 | AF102: 1 | AG102: 72 | AN102: X | AP102: 0.8936170213
A103: 92 | B103: 2021 | C103: FDLBU-CD-001-2110 | D103: https://community.secop.gov.co/Public/Tendering/ContractNoticePhases/View?PPI=CO1.PPI.12463665&isFromPublicArea=True&isModal=False | E103: Contratos de prestación de servicios profesionales y de apoyo a la gestión | F103: Contratación directa | G103: Prestación de servicios profesionales y de apoyo a la gestión, o para la ejecución de trabajos artísticos que sólo puedan encomendarse a determinadas personas naturales; | H103: PRESTAR SERVICIOS DE APOYO EN LAS ACTIVIDADES DE SEGURIDAD, PROMOCIÓN DE LA CONVIVENCIA Y DE ATENCIÓN DE MOVILIZACIONES Y AGLOMERACIONES EN EL TERRITORIO | I103: Inversión | J103: Un Nuevo Contrato Social y Ambiental para la Bogotá del Siglo XXI | K103: 43 | L103: =IF(ISERROR(VLOOKUP(K103,Proposito_programa!$C$2:$E$59,2,FALSE))," ",VLOOKUP(K103,Proposito_programa!$C$2:$E$59,2,FALSE)) -> Cultura ciudadana para la confianza, la convivencia y la participación desde la vida cotidiana | M103: =IF(ISERROR(VLOOKUP(K103,Proposito_programa!$C$2:$E$59,3,FALSE))," ",VLOOKUP(K103,Proposito_programa!$C$2:$E$59,3,FALSE)) -> Propósito 3: Inspirar confianza y legitimidad para vivir sin miedo y ser epicentro de cultura ciudadana, paz y reconciliación | N103: 133011603430000002149 | P103: 1023865895 | Q103: KAREN DAYANA RAMIREZ ORTEGÓN | R103: Persona Natural | V103: 11355000 | Z103: 11355000 | AA103: 11355000 | AB103: 2021-03-23 | AC103: 2021-03-23 | AD103: 2021-08-22 | AE103: 150 | AN103: X | AP103: 1
A104: 93 | B104: 2021 | C104: FDLBU-CD-001-2111 | D104: https://community.secop.gov.co/Public/Tendering/ContractNoticePhases/View?PPI=CO1.PPI.12312562&isFromPublicArea=True&isModal=False | E104: Contratos de prestación de servicios profesionales y de apoyo a la gestión | F104: Contratación directa | G104: Prestación de servicios profesionales y de apoyo a la gestión, o para la ejecución de trabajos artísticos que sólo puedan encomendarse a determinadas personas naturales; | H104: PRESTAR SERVICIOS DE APOYO A LA DE GESTIÓN DEL DESARROLLO EN LAS LABORES DE PLANEACIÓN, CON EL FIN DE LOGRAR EL CUMPLIMIENTO DE LA META DE ACUERDOS EN COMUNIDAD PARA LA VIGENCIA 2021 | I104: Inversión | J104: Un Nuevo Contrato Social y Ambiental para la Bogotá del Siglo XXI | K104: 45 | L104: =IF(ISERROR(VLOOKUP(K104,Proposito_programa!$C$2:$E$59,2,FALSE))," ",VLOOKUP(K104,Proposito_programa!$C$2:$E$59,2,FALSE)) -> Espacio público más seguro y construido colectivamente | M104: =IF(ISERROR(VLOOKUP(K104,Proposito_programa!$C$2:$E$59,3,FALSE))," ",VLOOKUP(K104,Proposito_programa!$C$2:$E$59,3,FALSE)) -> Propósito 3: Inspirar confianza y legitimidad para vivir sin miedo y ser epicentro de cultura ciudadana, paz y reconciliación | N104: 133011603450000002038 | P104: 1014213720 | Q104: CAROLINA REALPE MARTINEZ | R104: Persona Natural | V104: 30880000 | Z104: 30880000 | AA104: 24909867 | AB104: 2021-03-26 | AC104: 2021-03-29 | AD104: 2021-12-31 | AE104: 300 | AF104: 1 | AG104: 13 | AN104: X | AP104: 0.8066666775
A105: 94 | B105: 2021 | C105: FDLBU-CD-001-2112 | D105: https://community.secop.gov.co/Public/Tendering/ContractNoticePhases/View?PPI=CO1.PPI.12462673&isFromPublicArea=True&isModal=False | E105: Contratos de prestación de servicios profesionales y de apoyo a la gestión | F105: Contratación directa | G105: Prestación de servicios profesionales y de apoyo a la gestión, o para la ejecución de trabajos artísticos que sólo puedan encomendarse a determinadas personas naturales; | H105: PRESTAR SERVICIOS PROFESIONALES PARA APOYAR AL ÁREA GESTIÓN DEL DESARROLLO ADMINISTRATIVO Y FINANCIERO EN LOS ASUNTOS RELATIVOS A LA PLANEACIÓN LOCAL: LIDERAR Y GARANTIZAR LA IMPLEMENTACIÓN Y SEGUIMIENTO DE LOS PROCESOS, PROYECTOS Y PROCEDIMIENTOS DE CONTRATOS SUSCRITOS POR LA ALCALDÍA LOCAL DE BARRIOS UNIDOS DIRIGIDOS AL CUMPLIMIENTO DE LAS METAS DE IMPULSEMOS ECONOMÍA LOCAL | I105: Inversión | J105: Un Nuevo Contrato Social y Ambiental para la Bogotá del Siglo XXI | K105: 6 | L105: =IF(ISERROR(VLOOKUP(K105,Proposito_programa!$C$2:$E$59,2,FALSE))," ",VLOOKUP(K105,Proposito_programa!$C$2:$E$59,2,FALSE)) -> Sistema Distrital de Cuidado | M105: =IF(ISERROR(VLOOKUP(K105,Proposito_programa!$C$2:$E$59,3,FALSE))," ",VLOOKUP(K105,Proposito_programa!$C$2:$E$59,3,FALSE)) -> Propósito 1: Hacer un nuevo contrato social para incrementar la inclusión social, productiva y política | N105: 133011601060000002135 | P105: 7183376 | Q105: DIEGO ANDRES REYES RAMIREZ | R105: Persona Natural | V105: 49970000 | Z105: 49970000 | AA105: 41141967 | AB105: 2021-03-24 | AC105: 2021-03-25 | AD105: 2021-12-31 | AE105: 300 | AF105: 1 | AG105: 15 | AN105: X | AP105: 0.82333334
A106: 95 | B106: 2021 | C106: FDLBU-CD-001-2113 | D106: https://community.secop.gov.co/Public/Tendering/ContractNoticePhases/View?PPI=CO1.PPI.12531960&isFromPublicArea=True&isModal=False | E106: Contratos de prestación de servicios profesionales y de apoyo a la gestión | F106: Contratación directa | G106: Prestación de servicios profesionales y de apoyo a la gestión, o para la ejecución de trabajos artísticos que sólo puedan encomendarse a determinadas personas naturales; | H106: PRESTAR SERVICIOS DE APOYO A LA GESTIÓN DEL DESARROLLO EN LABORES DE PLANEACIÓN EN LAS ACTIVIDADES RELATIVAS A LOS PROYECTOS AMBIENTALES DE LA VIGENCIA 2021 DE LA LÍNEA DE INVERSIONES AMBIENTALES SOSTENIBLES. | I106: Inversión | J106: Un Nuevo Contrato Social y Ambiental para la Bogotá del Siglo XXI | K106: 38 | L106: =IF(ISERROR(VLOOKUP(K106,Proposito_programa!$C$2:$E$59,2,FALSE))," ",VLOOKUP(K106,Proposito_programa!$C$2:$E$59,2,FALSE)) -> Ecoeficiencia, reciclaje, manejo de residuos e inclusión de la población recicladora | M106: =IF(ISERROR(VLOOKUP(K106,Proposito_programa!$C$2:$E$59,3,FALSE))," ",VLOOKUP(K106,Proposito_programa!$C$2:$E$59,3,FALSE)) -> Propósito 2 : Cambiar Nuestros Hábitos de Vida para Reverdecer a Bogotá y Adaptarnos y Mitigar la Crisis Climática | N106: 133011602380000002082 | P106: 1014270393 | Q106: KAREN LIZETH TORRES ECHEVERRY | R106: Persona Natural | V106: 14536000 | X106: 1 | Y106: 2119833 | Z106: 16655833 | AA106: 14838833 | AB106: 2021-03-23 | AC106: 2021-03-26 | AD106: 2021-11-25 | AE106: 240 | AF106: 1 | AG106: 35 | AN106: X | AP106: 0.8909090887
A107: 96 | B107: 2021 | C107: FDLBU-CD-001-2114 | D107: https://community.secop.gov.co/Public/Tendering/ContractNoticePhases/View?PPI=CO1.PPI.12562934&isFromPublicArea=True&isModal=False | E107: Contratos de prestación de servicios profesionales y de apoyo a la gestión | F107: Contratación directa | G107: Prestación de servicios profesionales y de apoyo a la gestión, o para la ejecución de trabajos artísticos que sólo puedan encomendarse a determinadas personas naturales; | H107: PRESTAR SERVICIOS DE APOYO A LA GESTIÓN DEL DESARROLLO EN LAS LABORES DE PLANEACIÓN REFERENTES A LA REACTIVACIÓN DE LA ECONOMÍA LOCAL | I107: Inversión | J107: Un Nuevo Contrato Social y Ambiental para la Bogotá del Siglo XXI | K107: 6 | L107: =IF(ISERROR(VLOOKUP(K107,Proposito_programa!$C$2:$E$59,2,FALSE))," ",VLOOKUP(K107,Proposito_programa!$C$2:$E$59,2,FALSE)) -> Sistema Distrital de Cuidado | M107: =IF(ISERROR(VLOOKUP(K107,Proposito_programa!$C$2:$E$59,3,FALSE))," ",VLOOKUP(K107,Proposito_programa!$C$2:$E$59,3,FALSE)) -> Propósito 1: Hacer un nuevo contrato social para incrementar la inclusión social, productiva y política | N107: 133011601060000002135 | P107: 1049624831 | Q107: JULIAN HERNANDO CAMACHO LOPEZ | R107: Persona Natural | V107: 12719000 | X107: 1 | Y107: 3331167 | Z107: 16050167 | AA107: 14959967 | AB107: 2021-03-24 | AC107: 2021-03-24 | AD107: 2021-10-23 | AE107: 210 | AF107: 1 | AG107: 55 | AN107: X | AP107: 0.9320754731
A108: 97 | B108: 2021 | C108: FDLBU-CD-001-2115 | D108: https://community.secop.gov.co/Public/Tendering/ContractNoticePhases/View?PPI=CO1.PPI.12496876&isFromPublicArea=True&isModal=False | E108: Contratos de prestación de servicios profesionales y de apoyo a la gestión | F108: Contratación directa | G108: Prestación de servicios profesionales y de apoyo a la gestión, o para la ejecución de trabajos artísticos que sólo puedan encomendarse a determinadas personas naturales; | H108: PRESTAR SERVICIOS PROFESIONALES PARA APOYAR AL ÁREA GESTIÓN DEL DESARROLLO ADMINISTRATIVO Y FINANCIERO EN LOS ASUNTOS RELATIVOS A LA PLANEACIÓN LOCAL: COORDINAR Y GARANTIZAR LA IMPLEMENTACIÓN Y SEGUIMIENTO DE LOS PROCESOS, PROYECTOS Y PROCEDIMIENTOS DE CONTRATOS SUSCRITOS POR LA ALCALDÍA LOCAL DE BARRIOS UNIDOS DIRIGIDOS AL CUMPLIMIENTO DE LAS META DE ACUERDOS EN COMUNIDAD PARA LA VIGENCIA 2021 | I108: Inversión | J108: Un Nuevo Contrato Social y Ambiental para la Bogotá del Siglo XXI | K108: 45 | L108: =IF(ISERROR(VLOOKUP(K108,Proposito_programa!$C$2:$E$59,2,FALSE))," ",VLOOKUP(K108,Proposito_programa!$C$2:$E$59,2,FALSE)) -> Espacio público más seguro y construido colectivamente | M108: =IF(ISERROR(VLOOKUP(K108,Proposito_programa!$C$2:$E$59,3,FALSE))," ",VLOOKUP(K108,Proposito_programa!$C$2:$E$59,3,FALSE)) -> Propósito 3: Inspirar confianza y legitimidad para vivir sin miedo y ser epicentro de cultura ciudadana, paz y reconciliación | N108: 133011603450000002038 | P108: 53081665 | Q108: LUZ ADRIANA MUÑOZ MUÑOZ | R108: Persona Natural | V108: 55593000 | X108: 1 | Y108: 4529800 | Z108: 60122800 | AA108: 50857300 | AB108: 2021-03-23 | AC108: 2021-03-24 | AD108: 2021-12-23 | AE108: 270 | AF108: 1 | AG108: 22 | AN108: X | AP108: 0.845890411
A109: 98 | B109: 2021 | C109: FDLBU-CD-001-2116 | D109: https://community.secop.gov.co/Public/Tendering/ContractNoticePhases/View?PPI=CO1.PPI.12519096&isFromPublicArea=True&isModal=False | E109: Contratos de prestación de servicios profesionales y de apoyo a la gestión | F109: Contratación directa | G109: Prestación de servicios profesionales y de apoyo a la gestión, o para la ejecución de trabajos artísticos que sólo puedan encomendarse a determinadas personas naturales; | H109: PRESTAR SERVICIOS DE APOYO A LA GESTIÓN DEL DESARROLLO EN LAS LABORES DE PLANEACIÓN EN LAS ACTIVIDADES CONCERNIENTES AL PROYECTO IMPULSEMOS ECONOMÍA LOCAL | I109: Inversión | J109: Un Nuevo Contrato Social y Ambiental para la Bogotá del Siglo XXI | K109: 6 | L109: =IF(ISERROR(VLOOKUP(K109,Proposito_programa!$C$2:$E$59,2,FALSE))," ",VLOOKUP(K109,Proposito_programa!$C$2:$E$59,2,FALSE)) -> Sistema Distrital de Cuidado | M109: =IF(ISERROR(VLOOKUP(K109,Proposito_programa!$C$2:$E$59,3,FALSE))," ",VLOOKUP(K109,Proposito_programa!$C$2:$E$59,3,FALSE)) -> Propósito 1: Hacer un nuevo contrato social para incrementar la inclusión social, productiva y política | N109: 133011601060000002135 | P109: 79884107 | Q109: ANDRES CAMILO CARDENAS BRAVO | R109: Persona Natural | V109: 18168000 | X109: 1 | Y109: 2649500 | Z109: 20817500 | AA109: 18622200 | AB109: 2021-03-23 | AC109: 2021-03-25 | AD109: 2021-11-24 | AE109: 240 | AF109: 1 | AG109: 35 | AN109: X | AP109: 0.8945454545
A110: 99 | B110: 2021 | C110: FDLBU-CD-001-2117 | D110: https://community.secop.gov.co/Public/Tendering/ContractNoticePhases/View?PPI=CO1.PPI.12549740&isFromPublicArea=True&isModal=False | E110: Contratos de prestación de servicios profesionales y de apoyo a la gestión | F110: Contratación directa | G110: Prestación de servicios profesionales y de apoyo a la gestión, o para la ejecución de trabajos artísticos que sólo puedan encomendarse a determinadas personas naturales; | H110: PRESTAR SERVICIOS DE APOYO A LA GESTIÓN DEL DESARROLLO EN LAS LABORES DE PLANEACIÓN REFERENTES A LA REACTIVACIÓN DE LA ECONOMÍA LOCAL | I110: Inversión | J110: Un Nuevo Contrato Social y Ambiental para la Bogotá del Siglo XXI | K110: 6 | L110: =IF(ISERROR(VLOOKUP(K110,Proposito_programa!$C$2:$E$59,2,FALSE))," ",VLOOKUP(K110,Proposito_programa!$C$2:$E$59,2,FALSE)) -> Sistema Distrital de Cuidado | M110: =IF(ISERROR(VLOOKUP(K110,Proposito_programa!$C$2:$E$59,3,FALSE))," ",VLOOKUP(K110,Proposito_programa!$C$2:$E$59,3,FALSE)) -> Propósito 1: Hacer un nuevo contrato social para incrementar la inclusión social, productiva y política | N110: 133011601060000002135 | P110: 1030613887 | Q110: JOHN EDISON QUINTANA CASTRO | R110: Persona Natural | V110: 12719000 | Z110: 12719000 | AA110: 2362100 | AB110: 2021-04-17 | AC110: 2021-04-22 | AD110: 2021-11-21 | AE110: 210 | AI110: HARRY ANTONIO LIZARAZO | AJ110: 2021-10-08 | AN110: X | AP110: 0.1857142857
A111: 100 | B111: 2021 | C111: FDLBU-CD-001-2118 | D111: https://community.secop.gov.co/Public/Tendering/ContractNoticePhases/View?PPI=CO1.PPI.12589451&isFromPublicArea=True&isModal=False | E111: Contratos de prestación de servicios profesionales y de apoyo a la gestión | F111: Contratación directa | G111: Prestación de servicios profesionales y de apoyo a la gestión, o para la ejecución de trabajos artísticos que sólo puedan encomendarse a determinadas personas naturales; | H111: PRESTAR SERVICIOS DE APOYO A LA GESTIÓN DEL DESARROLLO EN LA LABOR DE PLANEACIÓN, EN LAS ACTIVIDADES ENMARCADAS EN EL CUMPLIMIENTO DE LA META DE ACUERDOS EN COMUNIDAD PARA LA VIGENCIA 2021 | I111: Inversión | J111: Un Nuevo Contrato Social y Ambiental para la Bogotá del Siglo XXI | K111: 45 | L111: =IF(ISERROR(VLOOKUP(K111,Proposito_programa!$C$2:$E$59,2,FALSE))," ",VLOOKUP(K111,Proposito_programa!$C$2:$E$59,2,FALSE)) -> Espacio público más seguro y construido colectivamente | M111: =IF(ISERROR(VLOOKUP(K111,Proposito_programa!$C$2:$E$59,3,FALSE))," ",VLOOKUP(K111,Proposito_programa!$C$2:$E$59,3,FALSE)) -> Propósito 3: Inspirar confianza y legitimidad para vivir sin miedo y ser epicentro de cultura ciudadana, paz y reconciliación | N111: 133011603450000002038 | P111: 53036424 | Q111: INGRID PAOLA PEDRAZA CARVAJAL | R111: Persona Natural | V111: 12719000 | Z111: 12719000 | AA111: 12719000 | AB111: 2021-03-26 | AC111: 2021-03-29 | AD111: 2021-10-28 | AE111: 210 | AI111: LUIS ALFONSO DIAZ MARTIN | AJ111: 2021-05-14 | AN111: X | AP111: 1
A112: 101 | B112: 2021 | C112: FDLBU-CD-001-2119 | D112: https://community.secop.gov.co/Public/Tendering/ContractNoticePhases/View?PPI=CO1.PPI.12570418&isFromPublicArea=True&isModal=False | E112: Contratos de prestación de servicios profesionales y de apoyo a la gestión | F112: Contratación directa | G112: Prestación de servicios profesionales y de apoyo a la gestión, o para la ejecución de trabajos artísticos que sólo puedan encomendarse a determinadas personas naturales; | H112: PRESTAR SERVICIOS DE APOYO A LA GESTIÓN DEL DESARROLLO EN LA LABOR DE PLANEACIÓN, EN LAS ACTIVIDADES ENMARCADAS EN EL CUMPLIMIENTO DE LA META DE ACUERDOS EN COMUNIDAD PARA LA VIGENCIA 2021 | I112: Inversión | J112: Un Nuevo Contrato Social y Ambiental para la Bogotá del Siglo XXI | K112: 45 | L112: =IF(ISERROR(VLOOKUP(K112,Proposito_programa!$C$2:$E$59,2,FALSE))," ",VLOOKUP(K112,Proposito_programa!$C$2:$E$59,2,FALSE)) -> Espacio público más seguro y construido colectivamente | M112: =IF(ISERROR(VLOOKUP(K112,Proposito_programa!$C$2:$E$59,3,FALSE))," ",VLOOKUP(K112,Proposito_programa!$C$2:$E$59,3,FALSE)) -> Propósito 3: Inspirar confianza y legitimidad para vivir sin miedo y ser epicentro de cultura ciudadana, paz y reconciliación | N112: 133011603450000002038 | P112: 79750452 | Q112: JORGE SAMUEL RAMOS RAMIREZ | R112: Persona Natural | V112: 12719000 | X112: 1 | Y112: 3512867 | Z112: 16231867 | AA112: 14596567 | AB112: 2021-03-26 | AC112: 2021-03-30 | AD112: 2021-12-26 | AE112: 210 | AF112: 1 | AG112: 58 | AN112: X | AP112: 0.8992537334
A113: 102 | B113: 2021 | C113: FDLBU-CD-001-2120 | D113: https://community.secop.gov.co/Public/Tendering/ContractNoticePhases/View?PPI=CO1.PPI.12518489&isFromPublicArea=True&isModal=False | E113: Contratos de prestación de servicios profesionales y de apoyo a la gestión | F113: Contratación directa | G113: Prestación de servicios profesionales y de apoyo a la gestión, o para la ejecución de trabajos artísticos que sólo puedan encomendarse a determinadas personas naturales; | H113: PRESTAR SERVICIOS DE APOYO A LA GESTIÓN DEL DESARROLLO EN LAS LABORES DE PLANEACIÓN RELATIVAS A LOS PROYECTOS AMBIENTALES DE LA VIGENCIA 2021 DE LA LÍNEA DE INVERSIONES AMBIENTALES SOSTENIBLES | I113: Inversión | J113: Un Nuevo Contrato Social y Ambiental para la Bogotá del Siglo XXI | K113: 38 | L113: =IF(ISERROR(VLOOKUP(K113,Proposito_programa!$C$2:$E$59,2,FALSE))," ",VLOOKUP(K113,Proposito_programa!$C$2:$E$59,2,FALSE)) -> Ecoeficiencia, reciclaje, manejo de residuos e inclusión de la población recicladora | M113: =IF(ISERROR(VLOOKUP(K113,Proposito_programa!$C$2:$E$59,3,FALSE))," ",VLOOKUP(K113,Proposito_programa!$C$2:$E$59,3,FALSE)) -> Propósito 2 : Cambiar Nuestros Hábitos de Vida para Reverdecer a Bogotá y Adaptarnos y Mitigar la Crisis Climática | N113: 133011602380000002082 | P113: 1012406051 | Q113: ANGIE MILENA FLOREZ MARTINEZ | R113: Persona Natural | V113: 18168000 | X113: 1 | Y113: 2422400 | Z113: 20590400 | AA113: 18319400 | AB113: 2021-03-26 | AC113: 2021-03-29 | AD113: 2021-11-28 | AE113: 240 | AF113: 1 | AG113: 32 | AN113: X | AP113: 0.8897058824
A114: 103 | B114: 2021 | C114: FDLBU-CD-001-2121 | D114: https://community.secop.gov.co/Public/Tendering/ContractNoticePhases/View?PPI=CO1.PPI.12569343&isFromPublicArea=True&isModal=False | E114: Contratos de prestación de servicios profesionales y de apoyo a la gestión | F114: Contratación directa | G114: Prestación de servicios profesionales y de apoyo a la gestión, o para la ejecución de trabajos artísticos que sólo puedan encomendarse a determinadas personas naturales; | H114: PRESTAR SERVICIOS DE APOYO A LA GESTIÓN DEL DESARROLLO EN EL ÁREA DE PLANEACIÓN EN LAS ACTIVIDADES ENMARCADAS EN EL CUMPLIMIENTO DE LA META DE ACUERDOS EN COMUNIDAD PARA LA VIGENCIA 2021 | I114: Inversión | J114: Un Nuevo Contrato Social y Ambiental para la Bogotá del Siglo XXI | K114: 45 | L114: =IF(ISERROR(VLOOKUP(K114,Proposito_programa!$C$2:$E$59,2,FALSE))," ",VLOOKUP(K114,Proposito_programa!$C$2:$E$59,2,FALSE)) -> Espacio público más seguro y construido colectivamente | M114: =IF(ISERROR(VLOOKUP(K114,Proposito_programa!$C$2:$E$59,3,FALSE))," ",VLOOKUP(K114,Proposito_programa!$C$2:$E$59,3,FALSE)) -> Propósito 3: Inspirar confianza y legitimidad para vivir sin miedo y ser epicentro de cultura ciudadana, paz y reconciliación | N114: 133011603450000002038 | P114: 53099827 | Q114: DIANA MARCELA LEMOS NAVARRO | R114: Persona Natural | V114: 18168000 | X114: 1 | Y114: 1968200 | Z114: 20136200 | AA114: 18319400 | AB114: 2021-03-26 | AC114: 2021-03-29 | AD114: 2021-11-28 | AE114: 240 | AF114: 1 | AG114: 26 | AN114: X | AP114: 0.9097744361
A115: 105 | B115: 2021 | C115: FDLBU-CD-001-2122 | D115: https://community.secop.gov.co/Public/Tendering/ContractNoticePhases/View?PPI=CO1.PPI.12600397&isFromPublicArea=True&isModal=False | E115: Contratos de prestación de servicios profesionales y de apoyo a la gestión | F115: Contratación directa | G115: Prestación de servicios profesionales y de apoyo a la gestión, o para la ejecución de trabajos artísticos que sólo puedan encomendarse a determinadas personas naturales; | H115: PRESTAR SERVICIOS DE APOYO A LA DE GESTIÓN DEL DESARROLLO EN LAS LABORES DE PLANEACIÓN, CON EL FIN DE LOGRAR EL CUMPLIMIENTO DE LA META DE IMPULSEMOS ECONOMÍA LOCAL PARA LA VIGENCIA 2021 | I115: Inversión | J115: Un Nuevo Contrato Social y Ambiental para la Bogotá del Siglo XXI | K115: 6 | L115: =IF(ISERROR(VLOOKUP(K115,Proposito_programa!$C$2:$E$59,2,FALSE))," ",VLOOKUP(K115,Proposito_programa!$C$2:$E$59,2,FALSE)) -> Sistema Distrital de Cuidado | M115: =IF(ISERROR(VLOOKUP(K115,Proposito_programa!$C$2:$E$59,3,FALSE))," ",VLOOKUP(K115,Proposito_programa!$C$2:$E$59,3,FALSE)) -> Propósito 1: Hacer un nuevo contrato social para incrementar la inclusión social, productiva y política | N115: 133011601060000002135 | P115: 1015416631 | Q115: MONICA LORENA FIERRO NAVARRETE | R115: Persona Natural | V115: 27792000 | Z115: 27792000 | AA115: 24909867 | AB115: 2021-03-26 | AC115: 2021-03-29 | AD115: 2021-12-28 | AE115: 270 | AN115: X | AP115: 0.8962963083
A116: 107 | B116: 2021 | C116: FDLBU-CD-001-2123 | D116: https://community.secop.gov.co/Public/Tendering/ContractNoticePhases/View?PPI=CO1.PPI.12518400&isFromPublicArea=True&isModal=False | E116: Contratos de prestación de servicios profesionales y de apoyo a la gestión | F116: Contratación directa | G116: Prestación de servicios profesionales y de apoyo a la gestión, o para la ejecución de trabajos artísticos que sólo puedan encomendarse a determinadas personas naturales; | H116: PRESTAR SERVICIOS PROFESIONALES PARA APOYAR AL ÁREA GESTIÓN DEL DESARROLLO ADMINISTRATIVO Y FINANCIERO EN LOS ASUNTOS RELATIVOS A LA PLANEACIÓN LOCAL: COORDINAR Y GARANTIZAR LA IMPLEMENTACIÓN Y SEGUIMIENTO DE LOS PROCESOS, PROYECTOS Y PROCEDIMIENTOS DE CONTRATOS SUSCRITOS POR LA ALCALDÍA LOCAL DE BARRIOS UNIDOS DIRIGIDOS AL CUMPLIMIENTO DE LAS METAS DE PROYECTOS INTEGRALES DE EDUCACIÓN Y DOTACIÓN DE CASA DE LA JUVENTUD | I116: Inversión | J116: Un Nuevo Contrato Social y Ambiental para la Bogotá del Siglo XXI | K116: 12 | L116: =IF(ISERROR(VLOOKUP(K116,Proposito_programa!$C$2:$E$59,2,FALSE))," ",VLOOKUP(K116,Proposito_programa!$C$2:$E$59,2,FALSE)) -> Educación inicial: Bases sólidas para la vida. | M116: =IF(ISERROR(VLOOKUP(K116,Proposito_programa!$C$2:$E$59,3,FALSE))," ",VLOOKUP(K116,Proposito_programa!$C$2:$E$59,3,FALSE)) -> Propósito 1: Hacer un nuevo contrato social para incrementar la inclusión social, productiva y política | N116: 133011601120000002026 | P116: 1030633303 | Q116: LAURA ALEJANDRA NARANJO MORENO | R116: Persona Natural | V116: 41515000 | Z116: 41515000 | AA116: 34960000 | AB116: 2021-03-30 | AC116: 2021-03-31 | AD116: 2021-12-31 | AE116: 285 | AF116: 1 | AG116: 15 | AN116: X | AP116: 0.8421052632
A117: 108 | B117: 2021 | C117: FDLBU-CD-001-2124 | D117: https://community.secop.gov.co/Public/Tendering/ContractNoticePhases/View?PPI=CO1.PPI.12644600&isFromPublicArea=True&isModal=False | E117: Contratos de prestación de servicios profesionales y de apoyo a la gestión | F117: Contratación directa | G117: Prestación de servicios profesionales y de apoyo a la gestión, o para la ejecución de trabajos artísticos que sólo puedan encomendarse a determinadas personas naturales; | H117: PRESTAR SERVICIOS DE APOYO A LA GESTIÓN DEL DESARROLLO EN EL ÁREA DE PLANEACIÓN EN LAS ACTIVIDADES ENMARCADAS EN EL CUMPLIMIENTO DE LA META DE ACUERDOS EN COMUNIDAD PARA LA VIGENCIA 2021 | I117: Inversión | J117: Un Nuevo Contrato Social y Ambiental para la Bogotá del Siglo XXI | K117: 45 | L117: =IF(ISERROR(VLOOKUP(K117,Proposito_programa!$C$2:$E$59,2,FALSE))," ",VLOOKUP(K117,Proposito_programa!$C$2:$E$59,2,FALSE)) -> Espacio público más seguro y construido colectivamente | M117: =IF(ISERROR(VLOOKUP(K117,Proposito_programa!$C$2:$E$59,3,FALSE))," ",VLOOKUP(K117,Proposito_programa!$C$2:$E$59,3,FALSE)) -> Propósito 3: Inspirar confianza y legitimidad para vivir sin miedo y ser epicentro de cultura ciudadana, paz y reconciliación | N117: 133011603450000002038 | P117: 1016070013 | Q117: INGRID MARITZA MORENO AGREDO | R117: Persona Natural | V117: 18168000 | Z117: 18168000 | AA117: 11052200 | AB117: 2021-03-30 | AC117: 2021-04-09 | AD117: 2021-12-08 | AE117: 240 | AF117: 1 | AG117: 45 | AI117: NILSON FARID GUTIEEREZ | AJ117: 2021-04-12 | AN117: X | AP117: 0.6083333333
A118: 109 | B118: 2021 | C118: FDLBU-CD-001-2125 | D118: https://community.secop.gov.co/Public/Tendering/ContractNoticePhases/View?PPI=CO1.PPI.12646986&isFromPublicArea=True&isModal=False | E118: Contratos de prestación de servicios profesionales y de apoyo a la gestión | F118: Contratación directa | G118: Prestación de servicios profesionales y de apoyo a la gestión, o para la ejecución de trabajos artísticos que sólo puedan encomendarse a determinadas personas naturales; | H118: PRESTAR SERVICIOS DE APOYO A LA GESTIÓN DEL DESARROLLO EN EL ÁREA DE PLANEACIÓN EN LAS ACTIVIDADES ENMARCADAS EN EL CUMPLIMIENTO DE LA META DE ACUERDOS EN COMUNIDAD PARA LA VIGENCIA 2021 | I118: Inversión | J118: Un Nuevo Contrato Social y Ambiental para la Bogotá del Siglo XXI | K118: 45 | L118: =IF(ISERROR(VLOOKUP(K118,Proposito_programa!$C$2:$E$59,2,FALSE))," ",VLOOKUP(K118,Proposito_programa!$C$2:$E$59,2,FALSE)) -> Espacio público más seguro y construido colectivamente | M118: =IF(ISERROR(VLOOKUP(K118,Proposito_programa!$C$2:$E$59,3,FALSE))," ",VLOOKUP(K118,Proposito_programa!$C$2:$E$59,3,FALSE)) -> Propósito 3: Inspirar confianza y legitimidad para vivir sin miedo y ser epicentro de cultura ciudadana, paz y reconciliación | N118: 133011603450000002038 | P118: 79983036 | Q118: JHON ALEXANDER SUAREZ SALGUERO | R118: Persona Natural | V118: 18168000 | X118: 1 | Y118: 1968200 | Z118: 20136200 | AA118: 17865200 | AB118: 2021-03-31 | AC118: 2021-04-05 | AD118: 2021-12-04 | AE118: 240 | AF118: 1 | AG118: 26 | AN118: X | AP118: 0.8872180451
A119: 110 | B119: 2021 | C119: FDLBU-CD-001-2126 | D119: https://community.secop.gov.co/Public/Tendering/ContractNoticePhases/View?PPI=CO1.PPI.12652874&isFromPublicArea=True&isModal=False | E119: Contratos de prestación de servicios profesionales y de apoyo a la gestión | F119: Contratación directa | G119: Prestación de servicios profesionales y de apoyo a la gestión, o para la ejecución de trabajos artísticos que sólo puedan encomendarse a determinadas personas naturales; | H119: PRESTAR SERVICIOS PROFESIONALES PARA APOYAR AL ÁREA GESTIÓN DEL DESARROLLO ADMINISTRATIVO Y FINANCIERO EN LOS ASUNTOS RELATIVOS A LA PLANEACIÓN LOCAL: COORDINAR Y GARANTIZAR LA IMPLEMENTACIÓN Y SEGUIMIENTO DE LOS PROCESOS, PROYECTOS Y PROCEDIMIENTOS DE CONTRATOS SUSCRITOS POR LA ALCALDÍA LOCAL DE BARRIOS UNIDOS DIRIGIDOS AL CUMPLIMIENTO DE LAS METAS DE DEPORTE, RECREACIÓN Y CULTURA PARA EL DESARROLLO SOCIAL | I119: Inversión | J119: Un Nuevo Contrato Social y Ambiental para la Bogotá del Siglo XXI | K119: 21 | L119: =IF(ISERROR(VLOOKUP(K119,Proposito_programa!$C$2:$E$59,2,FALSE))," ",VLOOKUP(K119,Proposito_programa!$C$2:$E$59,2,FALSE)) -> Creación y vida cotidiana: Apropiación ciudadana del arte, la cultura y el patrimonio, para la democracia cultural | M119: =IF(ISERROR(VLOOKUP(K119,Proposito_programa!$C$2:$E$59,3,FALSE))," ",VLOOKUP(K119,Proposito_programa!$C$2:$E$59,3,FALSE)) -> Propósito 1: Hacer un nuevo contrato social para incrementar la inclusión social, productiva y política | N119: 133011601210000002012 | P119: 79881374 | Q119: ELKIN ANDRES MARTINEZ SALGADO | R119: Persona Natural | V119: 45900000 | X119: 1 | Y119: 2550000 | Z119: 48450000 | AA119: 40800000 | AB119: 2021-03-30 | AC119: 2021-03-31 | AD119: 2021-12-30 | AE119: 270 | AF119: 1 | AG119: 15 | AN119: X | AP119: 0.8421052632
A120: 111 | B120: 2021 | C120: FDLBU-CD-001-2127 | D120: https://community.secop.gov.co/Public/Tendering/ContractNoticePhases/View?PPI=CO1.PPI.12580950&isFromPublicArea=True&isModal=False | E120: Contratos de prestación de servicios profesionales y de apoyo a la gestión | F120: Contratación directa | G120: Prestación de servicios profesionales y de apoyo a la gestión, o para la ejecución de trabajos artísticos que sólo puedan encomendarse a determinadas personas naturales; | H120: PRESTAR SERVICIOS DE APOYO A LA GESTIÓN DEL DESARROLLO EN LAS LABORES DE PLANEACIÓN REFERENTES A LA REACTIVACIÓN DE LA ECONOMÍA LOCAL | I120: Inversión | J120: Un Nuevo Contrato Social y Ambiental para la Bogotá del Siglo XXI | K120: 6 | L120: =IF(ISERROR(VLOOKUP(K120,Proposito_programa!$C$2:$E$59,2,FALSE))," ",VLOOKUP(K120,Proposito_programa!$C$2:$E$59,2,FALSE)) -> Sistema Distrital de Cuidado | M120: =IF(ISERROR(VLOOKUP(K120,Proposito_programa!$C$2:$E$59,3,FALSE))," ",VLOOKUP(K120,Proposito_programa!$C$2:$E$59,3,FALSE)) -> Propósito 1: Hacer un nuevo contrato social para incrementar la inclusión social, productiva y política | N120: 133011601060000002135 | P120: 1030648943 | Q120: KARLA ANDREA TARAZONA RAMIREZ | R120: Persona Natural | V120: 12719000 | X120: 1 | Y120: 2725500 | Z120: 15444500 | AA120: 13627500 | AB120: 2021-03-31 | AC120: 2021-04-16 | AD120: 2021-11-15 | AE120: 210 | AF120: 1 | AG120: 45 | AI120: CARLOS ANDRES VALLEJO | AJ120: 2021-04-16 | AN120: X | AP120: 0.8823529412
A121: 112 | B121: 2021 | C121: FDLBU-CD-001-2128 | D121: https://community.secop.gov.co/Public/Tendering/ContractNoticePhases/View?PPI=CO1.PPI.12658736&isFromPublicArea=True&isModal=False | E121: Contratos de prestación de servicios profesionales y de apoyo a la gestión | F121: Contratación directa | G121: Prestación de servicios profesionales y de apoyo a la gestión, o para la ejecución de trabajos artísticos que sólo puedan encomendarse a determinadas personas naturales; | H121: PRESTAR SERVICIOS PROFESIONALES EN EL ÁREA DE GESTIÓN DEL.DESARROLLO EN LA TERRITORIALIZACIÓN DE LA INVERSIÓN Y EL MANEJO DE LOS SISTEMAS DE INFORMACIÓN GEORREFERENCIALES | I121: Inversión | J121: Un Nuevo Contrato Social y Ambiental para la Bogotá del Siglo XXI | K121: 49 | L121: =IF(ISERROR(VLOOKUP(K121,Proposito_programa!$C$2:$E$59,2,FALSE))," ",VLOOKUP(K121,Proposito_programa!$C$2:$E$59,2,FALSE)) -> Movilidad segura, sostenible y accesible | M121: =IF(ISERROR(VLOOKUP(K121,Proposito_programa!$C$2:$E$59,3,FALSE))," ",VLOOKUP(K121,Proposito_programa!$C$2:$E$59,3,FALSE)) -> Propósito 4: Hacer de Bogotá Región un modelo de movilidad multimodal, incluyente y sostenible | N121: 133011604490000002022 | P121: 79535548 | Q121: PABLO GIOVANNY PARRA PINEDA | R121: Persona Natural | V121: 58140000 | Z121: 58140000 | AA121: 43798800 | AB121: 2021-04-14 | AC121: 2021-04-15 | AD121: 2021-12-31 | AE121: 300 | AF121: 1 | AG121: 14 | AN121: X | AP121: 0.7533333333
A122: 113 | B122: 2021 | C122: FDLBU-CD-001-2129 | D122: https://community.secop.gov.co/Public/Tendering/ContractNoticePhases/View?PPI=CO1.PPI.12549848&isFromPublicArea=True&isModal=False | E122: Contratos de prestación de servicios profesionales y de apoyo a la gestión | F122: Contratación directa | G122: Prestación de servicios profesionales y de apoyo a la gestión, o para la ejecución de trabajos artísticos que sólo puedan encomendarse a determinadas personas naturales; | H122: PRESTAR SERVICIOS DE APOYO A LA GESTIÓN DEL DESARROLLO EN LAS LABORES DE PLANEACIÓN REFERENTES A LA REACTIVACIÓN DE LA ECONOMÍA LOCAL | I122: Inversión | J122: Un Nuevo Contrato Social y Ambiental para la Bogotá del Siglo XXI | K122: 6 | L122: =IF(ISERROR(VLOOKUP(K122,Proposito_programa!$C$2:$E$59,2,FALSE))," ",VLOOKUP(K122,Proposito_programa!$C$2:$E$59,2,FALSE)) -> Sistema Distrital de Cuidado | M122: =IF(ISERROR(VLOOKUP(K122,Proposito_programa!$C$2:$E$59,3,FALSE))," ",VLOOKUP(K122,Proposito_programa!$C$2:$E$59,3,FALSE)) -> Propósito 1: Hacer un nuevo contrato social para incrementar la inclusión social, productiva y política | N122: 133011601060000002135 | P122: 1101687331 | Q122: PABLO LEONARDO TORRES SARMIENTO | R122: Persona Natural | V122: 12719000 | Z122: 12719000 | AA122: 12355600 | AB122: 2021-03-31 | AC122: 2021-05-07 | AD122: 2021-12-06 | AE122: 210 | AN122: X | AP122: 0.9714285714
A123: 114 | B123: 2021 | C123: FDLBU-CD-001-2130 | D123: https://community.secop.gov.co/Public/Tendering/ContractNoticePhases/View?PPI=CO1.PPI.12838922&isFromPublicArea=True&isModal=False | E123: Contratos de prestación de servicios profesionales y de apoyo a la gestión | F123: Contratación directa | G123: Prestación de servicios profesionales y de apoyo a la gestión, o para la ejecución de trabajos artísticos que sólo puedan encomendarse a determinadas personas naturales; | H123: PRESTAR SERVICIOS DE APOYO A LA GESTIÓN DEL DESARROLLO EN EL ÁREA DE PLANEACIÓN EN LAS ACTIVIDADES ENMARCADAS EN EL CUMPLIMIENTO DE LA META DE ACUERDOS EN COMUNIDAD PARA LA VIGENCIA 2021 | I123: Inversión | J123: Un Nuevo Contrato Social y Ambiental para la Bogotá del Siglo XXI | K123: 45 | L123: =IF(ISERROR(VLOOKUP(K123,Proposito_programa!$C$2:$E$59,2,FALSE))," ",VLOOKUP(K123,Proposito_programa!$C$2:$E$59,2,FALSE)) -> Espacio público más seguro y construido colectivamente | M123: =IF(ISERROR(VLOOKUP(K123,Proposito_programa!$C$2:$E$59,3,FALSE))," ",VLOOKUP(K123,Proposito_programa!$C$2:$E$59,3,FALSE)) -> Propósito 3: Inspirar confianza y legitimidad para vivir sin miedo y ser epicentro de cultura ciudadana, paz y reconciliación | N123: 133011603450000002038 | P123: 1015439630 | Q123: OSCAR EDUARDO NIVIA SEGURA | R123: Persona Natural | V123: 18168000 | X123: 1 | Y123: 529900 | Z123: 18697900 | AA123: 16729700 | AB123: 2021-04-15 | AC123: 2021-04-20 | AD123: 2021-12-19 | AE123: 240 | AF123: 1 | AG123: 7 | AN123: X | AP123: 0.8947368421
A124: 115 | B124: 2021 | C124: FDLBU-CD-001-2131 | D124: https://community.secop.gov.co/Public/Tendering/ContractNoticePhases/View?PPI=CO1.PPI.12562831&isFromPublicArea=True&isModal=False | E124: Contratos de prestación de servicios profesionales y de apoyo a la gestión | F124: Contratación directa | G124: Prestación de servicios profesionales y de apoyo a la gestión, o para la ejecución de trabajos artísticos que sólo puedan encomendarse a determinadas personas naturales; | H124: PRESTAR SERVICIOS PROFESIONALES PARA APOYAR AL ÁREA GESTIÓN DEL DESARROLLO ADMINISTRATIVO Y FINANCIERO EN LOS ASUNTOS RELATIVOS A LA PLANEACIÓN LOCAL: COORDINAR Y GARANTIZAR LA IMPLEMENTACIÓN Y SEGUIMIENTO DE LOS PROCESOS, PROYECTOS Y PROCEDIMIENTOS DE CONTRATOS SUSCRITOS POR LA ALCALDÍA LOCAL DE BARRIOS UNIDOS DIRIGIDOS AL CUMPLIMIENTO DE LAS META DE PARTICIPACIÓN DÍALOGOS PARA CRECER Y PARTICIPAR | I124: Inversión | J124: Un Nuevo Contrato Social y Ambiental para la Bogotá del Siglo XXI | K124: 55 | L124: =IF(ISERROR(VLOOKUP(K124,Proposito_programa!$C$2:$E$59,2,FALSE))," ",VLOOKUP(K124,Proposito_programa!$C$2:$E$59,2,FALSE)) -> Fortalecimiento de cultura ciudadana y su institucionalidad | M124: =IF(ISERROR(VLOOKUP(K124,Proposito_programa!$C$2:$E$59,3,FALSE))," ",VLOOKUP(K124,Proposito_programa!$C$2:$E$59,3,FALSE)) -> Propósito 5: Construir Bogotá - Región con gobierno abierto, transparente y ciudadanía consciente | N124: 133011605550000002141 | P124: 1030602538 | Q124: ANGIE PAOLA TORRES SERRATO | R124: Persona Natural | V124: 51347500 | Z124: 51347500 | AA124: 41978833 | AB124: 2021-04-08 | AC124: 2021-04-08 | AD124: 2021-12-31 | AE124: 285 | AF124: 1 | AG124: 20 | AN124: X | AP124: 0.8175438532
A125: 116 | B125: 2021 | C125: FDLBU-CD-001-2132 | D125: https://community.secop.gov.co/Public/Tendering/ContractNoticePhases/View?PPI=CO1.PPI.12653922&isFromPublicArea=True&isModal=False | E125: Contratos de prestación de servicios profesionales y de apoyo a la gestión | F125: Contratación directa | G125: Prestación de servicios profesionales y de apoyo a la gestión, o para la ejecución de trabajos artísticos que sólo puedan encomendarse a determinadas personas naturales; | H125: PRESTAR SERVICIOS DE APOYO A LA DE GESTIÓN DEL DESARROLLO EN LAS LABORES DE PLANEACIÓN, CON EL FIN DE LOGRAR EL CUMPLIMIENTO DE LA META DE ACUERDOS EN COMUNIDAD PARA LA VIGENCIA 2021 | I125: Inversión | J125: Un Nuevo Contrato Social y Ambiental para la Bogotá del Siglo XXI | K125: 45 | L125: =IF(ISERROR(VLOOKUP(K125,Proposito_programa!$C$2:$E$59,2,FALSE))," ",VLOOKUP(K125,Proposito_programa!$C$2:$E$59,2,FALSE)) -> Espacio público más seguro y construido colectivamente | M125: =IF(ISERROR(VLOOKUP(K125,Proposito_programa!$C$2:$E$59,3,FALSE))," ",VLOOKUP(K125,Proposito_programa!$C$2:$E$59,3,FALSE)) -> Propósito 3: Inspirar confianza y legitimidad para vivir sin miedo y ser epicentro de cultura ciudadana, paz y reconciliación | N125: 133011603450000002038 | P125: 1214719426 | Q125: LUISA FERNANDA ARBOLEDA GOMEZ | R125: Persona Natural | V125: 27792000 | Z125: 27792000 | AA125: 23880533 | AB125: 2021-04-08 | AC125: 2021-04-09 | AD125: 2021-12-31 | AE125: 270 | AF125: 1 | AG125: 8 | AN125: X | AP125: 0.8592592473
A126: 117 | B126: 2021 | C126: FDLBU-CD-001-2133 | D126: https://community.secop.gov.co/Public/Tendering/ContractNoticePhases/View?PPI=CO1.PPI.12663931&isFromPublicArea=True&isModal=False | E126: Contratos de prestación de servicios profesionales y de apoyo a la gestión | F126: Contratación directa | G126: Prestación de servicios profesionales y de apoyo a la gestión, o para la ejecución de trabajos artísticos que sólo puedan encomendarse a determinadas personas naturales; | H126: PRESTAR SERVICIOS DE APOYO A LA GESTIÓN DEL DESARROLLO EN LAS LABORES DE PLANEACIÓN EN LAS ACTIVIDADES RELATIVAS A LA PREVENCIÓN DEL EMBARAZO ADOLESCENTE NO DESEADO | I126: Inversión | J126: Un Nuevo Contrato Social y Ambiental para la Bogotá del Siglo XXI | K126: 8 | L126: =IF(ISERROR(VLOOKUP(K126,Proposito_programa!$C$2:$E$59,2,FALSE))," ",VLOOKUP(K126,Proposito_programa!$C$2:$E$59,2,FALSE)) -> Prevención y atención de maternidad temprana | M126: =IF(ISERROR(VLOOKUP(K126,Proposito_programa!$C$2:$E$59,3,FALSE))," ",VLOOKUP(K126,Proposito_programa!$C$2:$E$59,3,FALSE)) -> Propósito 1: Hacer un nuevo contrato social para incrementar la inclusión social, productiva y política | N126: 133011601080000002151 | P126: 79872459 | Q126: LEONARDO GARCIA VANEGAS | R126: Persona Natural | V126: 12719000 | X126: 1 | Y126: 2967767 | Z126: 15686767 | AA126: 13869767 | AB126: 2021-04-08 | AC126: 2021-04-12 | AD126: 2021-11-11 | AE126: 210 | AF126: 1 | AG126: 49 | AN126: X | AP126: 0.8841698866
A127: 118 | B127: 2021 | C127: FDLBU-CD-001-2134 | D127: https://community.secop.gov.co/Public/Tendering/ContractNoticePhases/View?PPI=CO1.PPI.12645945&isFromPublicArea=True&isModal=False | E127: Contratos de prestación de servicios profesionales y de apoyo a la gestión | F127: Contratación directa | G127: Prestación de servicios profesionales y de apoyo a la gestión, o para la ejecución de trabajos artísticos que sólo puedan encomendarse a determinadas personas naturales; | H127: PRESTAR SERVICIOS DE APOYO A LA GESTIÓN DEL DESARROLLO EN EL ÁREA DE PLANEACIÓN EN LAS ACTIVIDADES ENMARCADAS EN EL CUMPLIMIENTO DE LA META DE ACUERDOS EN COMUNIDAD PARA LA VIGENCIA 2021 | I127: Inversión | J127: Un Nuevo Contrato Social y Ambiental para la Bogotá del Siglo XXI | K127: 45 | L127: =IF(ISERROR(VLOOKUP(K127,Proposito_programa!$C$2:$E$59,2,FALSE))," ",VLOOKUP(K127,Proposito_programa!$C$2:$E$59,2,FALSE)) -> Espacio público más seguro y construido colectivamente | M127: =IF(ISERROR(VLOOKUP(K127,Proposito_programa!$C$2:$E$59,3,FALSE))," ",VLOOKUP(K127,Proposito_programa!$C$2:$E$59,3,FALSE)) -> Propósito 3: Inspirar confianza y legitimidad para vivir sin miedo y ser epicentro de cultura ciudadana, paz y reconciliación | N127: 133011603450000002038 | P127: 1114089564 | Q127: ALEXANDER ANGEL BOCANEGRA | R127: Persona Natural | V127: 18168000 | X127: 1 | Y127: 1211200 | Z127: 19379200 | AA127: 17108200 | AB127: 2021-04-13 | AC127: 2021-04-15 | AD127: 2021-12-14 | AE127: 240 | AF127: 1 | AG127: 30 | AN127: X | AP127: 0.8828125
A128: 119 | B128: 2021 | C128: FDLBU-CD-001-2135 | D128: https://community.secop.gov.co/Public/Tendering/ContractNoticePhases/View?PPI=CO1.PPI.12604922&isFromPublicArea=True&isModal=False | E128: Contratos de prestación de servicios profesionales y de apoyo a la gestión | F128: Contratación directa | G128: Prestación de servicios profesionales y de apoyo a la gestión, o para la ejecución de trabajos artísticos que sólo puedan encomendarse a determinadas personas naturales; | H128: PRESTAR SERVICIOS PROFESIONALES PARA APOYAR AL ÁREA GESTIÓN DEL DESARROLLO ADMINISTRATIVO Y FINANCIERO EN LOS ASUNTOS RELATIVOS A LA PLANEACIÓN LOCAL: COORDINAR Y GARANTIZAR LA IMPLEMENTACIÓN Y SEGUIMIENTO DE LOS PROCESOS, PROYECTOS Y PROCEDIMIENTOS DE CONTRATOS SUSCRITOS POR LA ALCALDÍA LOCAL DE BARRIOS UNIDOS DIRIGIDOS AL CUMPLIMIENTO DE LAS METAS DEL SISTEMA LOCAL DE CUIDADO | I128: Inversión | J128: Un Nuevo Contrato Social y Ambiental para la Bogotá del Siglo XXI | K128: 6 | L128: =IF(ISERROR(VLOOKUP(K128,Proposito_programa!$C$2:$E$59,2,FALSE))," ",VLOOKUP(K128,Proposito_programa!$C$2:$E$59,2,FALSE)) -> Sistema Distrital de Cuidado | M128: =IF(ISERROR(VLOOKUP(K128,Proposito_programa!$C$2:$E$59,3,FALSE))," ",VLOOKUP(K128,Proposito_programa!$C$2:$E$59,3,FALSE)) -> Propósito 1: Hacer un nuevo contrato social para incrementar la inclusión social, productiva y política | N128: 133011601060000002062 | P128: 1030537421 | Q128: MARITZA MILENA PEREZ CESPEDES | R128: Persona Natural | V128: 48450000 | Z128: 48450000 | AA128: 39440000 | AB128: 2021-04-08 | AC128: 2021-04-09 | AD128: 2021-12-31 | AE128: 285 | AF128: 1 | AG128: 20 | AN128: X | AP128: 0.8140350877
A129: 120 | B129: 2021 | C129: FDLBU-CD-001-2136 | D129: https://community.secop.gov.co/Public/Tendering/ContractNoticePhases/View?PPI=CO1.PPI.12306352&isFromPublicArea=True&isModal=False | E129: Contratos de prestación de servicios profesionales y de apoyo a la gestión | F129: Contratación directa | G129: Prestación de servicios profesionales y de apoyo a la gestión, o para la ejecución de trabajos artísticos que sólo puedan encomendarse a determinadas personas naturales; | H129: PRESTAR SUS SERVICIOS PROFESIONALES PARA APOYAR JURÍDICAMENTE LA EJECUCIÓN DE LAS ACCIONES REQUERIDAS PARA LA DEPURACIÓN DE LAS ACTUACIONES ADMINISTRATIVAS QUE CURSAN EN LA ALCALDÍA LOCAL | I129: Inversión | J129: Un Nuevo Contrato Social y Ambiental para la Bogotá del Siglo XXI | K129: 57 | L129: =IF(ISERROR(VLOOKUP(K129,Proposito_programa!$C$2:$E$59,2,FALSE))," ",VLOOKUP(K129,Proposito_programa!$C$2:$E$59,2,FALSE)) -> Gestión pública local | M129: =IF(ISERROR(VLOOKUP(K129,Proposito_programa!$C$2:$E$59,3,FALSE))," ",VLOOKUP(K129,Proposito_programa!$C$2:$E$59,3,FALSE)) -> Propósito 5: Construir Bogotá - Región con gobierno abierto, transparente y ciudadanía consciente | N129: 133011605570000002143 | P129: 1073515262 | Q129: DANIEL FERNANDO ESLAVA RIOS | R129: Persona Natural | V129: 33257000 | X129: 1 | Y129: 7918333 | Z129: 41175333 | AA129: 36265967 | AB129: 2021-04-12 | AC129: 2021-04-12 | AD129: 2021-11-11 | AE129: 210 | AF129: 1 | AG129: 50 | AN129: X | AP129: 0.880769246
A130: 121 | B130: 2021 | C130: FDLBU-CD-001-2137 | D130: https://community.secop.gov.co/Public/Tendering/ContractNoticePhases/View?PPI=CO1.PPI.12726082&isFromPublicArea=True&isModal=False | E130: Contratos de prestación de servicios profesionales y de apoyo a la gestión | F130: Contratación directa | G130: Prestación de servicios profesionales y de apoyo a la gestión, o para la ejecución de trabajos artísticos que sólo puedan encomendarse a determinadas personas naturales; | H130: PRESTAR SERVICIOS PROFESIONALES PARA APOYAR AL ÁREA GESTIÓN DEL DESARROLLO ADMINISTRATIVO Y FINANCIERO EN LOS ASUNTOS RELATIVOS A LA PLANEACIÓN LOCAL: COORDINAR Y GARANTIZAR LA IMPLEMENTACIÓN Y SEGUIMIENTO DE LOS PROCESOS, PROYECTOS Y PROCEDIMIENTOS DE CONTRATOS SUSCRITOS POR LA ALCALDÍA LOCAL DE BARRIOS UNIDOS DIRIGIDOS AL CUMPLIMIENTO DE LAS META DE BARRIOS UNIDOS TERRITORIO DE PAZ | I130: Inversión | J130: Un Nuevo Contrato Social y Ambiental para la Bogotá del Siglo XXI | K130: 39 | L130: =IF(ISERROR(VLOOKUP(K130,Proposito_programa!$C$2:$E$59,2,FALSE))," ",VLOOKUP(K130,Proposito_programa!$C$2:$E$59,2,FALSE)) -> Bogotá territorio de paz y atención integral a las víctimas del conflicto armado | M130: =IF(ISERROR(VLOOKUP(K130,Proposito_programa!$C$2:$E$59,3,FALSE))," ",VLOOKUP(K130,Proposito_programa!$C$2:$E$59,3,FALSE)) -> Propósito 3: Inspirar confianza y legitimidad para vivir sin miedo y ser epicentro de cultura ciudadana, paz y reconciliación | N130: 133011603390000002030 | P130: 19297125 | Q130: JULIO CESAR GALAN GONZALEZ | R130: Persona Natural | V130: 44973000 | Z130: 44973000 | AA130: 38143767 | AB130: 2021-04-08 | AC130: 2021-04-12 | AD130: 2021-12-31 | AE130: 270 | AF130: 1 | AG130: 11 | AN130: X | AP130: 0.8481481556
A131: 122 | B131: 2021 | C131: FDLBU-CD-001-2138 | D131: https://community.secop.gov.co/Public/Tendering/ContractNoticePhases/View?PPI=CO1.PPI.12848010&isFromPublicArea=True&isModal=False | E131: Contratos de prestación de servicios profesionales y de apoyo a la gestión | F131: Contratación directa | G131: Prestación de servicios profesionales y de apoyo a la gestión, o para la ejecución de trabajos artísticos que sólo puedan encomendarse a determinadas personas naturales; | H131: PRESTAR LOS SERVICIOS DE APOYO AL AREA GESTION DEL DESARROLLO ADMINISTRATIVO Y FINANCIERO EN LOS ASUNTOS RELACIONADOS CON EL DESARROLLO DE LA GESTION CONTRACTUAL PARA LA ADQUISICION DE RECURSOS Y SERVICIOS | I131: Inversión | J131: Un Nuevo Contrato Social y Ambiental para la Bogotá del Siglo XXI | K131: 57 | L131: =IF(ISERROR(VLOOKUP(K131,Proposito_programa!$C$2:$E$59,2,FALSE))," ",VLOOKUP(K131,Proposito_programa!$C$2:$E$59,2,FALSE)) -> Gestión pública local | M131: =IF(ISERROR(VLOOKUP(K131,Proposito_programa!$C$2:$E$59,3,FALSE))," ",VLOOKUP(K131,Proposito_programa!$C$2:$E$59,3,FALSE)) -> Propósito 5: Construir Bogotá - Región con gobierno abierto, transparente y ciudadanía consciente | N131: 133011605570000002143 | P131: 1030653986 | Q131: LUIS MIGUEL GALINDO NIÑO | R131: Persona Natural | V131: 26888000 | X131: 1 | Y131: 3809133 | Z131: 30697133 | AA131: 25095467 | AB131: 2021-04-16 | AC131: 2021-04-17 | AD131: 2021-12-16 | AE131: 240 | AF131: 1 | AG131: 34 | AN131: X | AP131: 0.8175182679
A132: 123 | B132: 2021 | C132: FDLBU-CD-001-2139 | D132: https://community.secop.gov.co/Public/Tendering/ContractNoticePhases/View?PPI=CO1.PPI.12601429&isFromPublicArea=True&isModal=False | E132: Contratos de prestación de servicios profesionales y de apoyo a la gestión | F132: Contratación directa | G132: Prestación de servicios profesionales y de apoyo a la gestión, o para la ejecución de trabajos artísticos que sólo puedan encomendarse a determinadas personas naturales; | H132: PRESTAR SERVICIOS DE APOYO A LA GESTIÓN DEL DESARROLLO EN LAS LABORES DE PLANEACIÓN EN LAS ACTIVIDADES RELATIVAS A LA PREVENCIÓN DEL EMBARAZO ADOLESCENTE NO DESEADO | I132: Inversión | J132: Un Nuevo Contrato Social y Ambiental para la Bogotá del Siglo XXI | K132: 8 | L132: =IF(ISERROR(VLOOKUP(K132,Proposito_programa!$C$2:$E$59,2,FALSE))," ",VLOOKUP(K132,Proposito_programa!$C$2:$E$59,2,FALSE)) -> Prevención y atención de maternidad temprana | M132: =IF(ISERROR(VLOOKUP(K132,Proposito_programa!$C$2:$E$59,3,FALSE))," ",VLOOKUP(K132,Proposito_programa!$C$2:$E$59,3,FALSE)) -> Propósito 1: Hacer un nuevo contrato social para incrementar la inclusión social, productiva y política | N132: 133011601080000002151 | P132: 80763598 | Q132: JOSE LUIS BLANCO AVENDAÑO | R132: Persona Natural | V132: 12719000 | X132: 1 | Y132: 2301533 | Z132: 15020533 | AA132: 13203533 | AB132: 2021-04-14 | AC132: 2021-04-23 | AD132: 2021-11-22 | AE132: 210 | AF132: 1 | AG132: 38 | AI132: TATIANA NIYIRID MORENO QUINTERO | AJ132: 2021-07-16 | AN132: X | AP132: 0.8790322554
A133: 124 | B133: 2021 | C133: FDLBU-CD-001-2140 | D133: https://community.secop.gov.co/Public/Tendering/ContractNoticePhases/View?PPI=CO1.PPI.12606666&isFromPublicArea=True&isModal=False | E133: Contratos de prestación de servicios profesionales y de apoyo a la gestión | F133: Contratación directa | G133: Prestación de servicios profesionales y de apoyo a la gestión, o para la ejecución de trabajos artísticos que sólo puedan encomendarse a determinadas personas naturales; | H133: PRESTAR SERVICIOS DE APOYO A LA GESTIÓN DEL DESARROLLO EN LAS LABORES DE PLANEACIÓN EN LAS ACTIVIDADES RELATIVAS A LA PREVENCIÓN DEL EMBARAZO ADOLESCENTE NO DESEADO | I133: Inversión | J133: Un Nuevo Contrato Social y Ambiental para la Bogotá del Siglo XXI | K133: 8 | L133: =IF(ISERROR(VLOOKUP(K133,Proposito_programa!$C$2:$E$59,2,FALSE))," ",VLOOKUP(K133,Proposito_programa!$C$2:$E$59,2,FALSE)) -> Prevención y atención de maternidad temprana | M133: =IF(ISERROR(VLOOKUP(K133,Proposito_programa!$C$2:$E$59,3,FALSE))," ",VLOOKUP(K133,Proposito_programa!$C$2:$E$59,3,FALSE)) -> Propósito 1: Hacer un nuevo contrato social para incrementar la inclusión social, productiva y política | N133: 133011601080000002151 | P133: 1010026196 | Q133: BRCHELL BRILLAOC CARRILLO REMON | R133: Persona Natural | V133: 12719000 | X133: 1 | Y133: 2301533 | Z133: 15020533 | AA133: 13203533 | AB133: 2021-04-12 | AC133: 2021-04-23 | AD133: 2021-11-22 | AE133: 210 | AF133: 1 | AG133: 38 | AN133: X | AP133: 0.8790322554
A134: 125 | B134: 2021 | C134: FDLBU-CD-001-2141 | D134: https://community.secop.gov.co/Public/Tendering/ContractNoticePhases/View?PPI=CO1.PPI.12615610&isFromPublicArea=True&isModal=False | E134: Contratos de prestación de servicios profesionales y de apoyo a la gestión | F134: Contratación directa | G134: Prestación de servicios profesionales y de apoyo a la gestión, o para la ejecución de trabajos artísticos que sólo puedan encomendarse a determinadas personas naturales; | H134: PRESTAR SERVICIOS DE APOYO A LA GESTIÓN DEL DESARROLLO EN LAS LABORES DE PLANEACIÓN EN LAS ACTIVIDADES RELATIVAS A LA PREVENCIÓN DEL EMBARAZO ADOLESCENTE NO DESEADO | I134: Inversión | J134: Un Nuevo Contrato Social y Ambiental para la Bogotá del Siglo XXI | K134: 8 | L134: =IF(ISERROR(VLOOKUP(K134,Proposito_programa!$C$2:$E$59,2,FALSE))," ",VLOOKUP(K134,Proposito_programa!$C$2:$E$59,2,FALSE)) -> Prevención y atención de maternidad temprana | M134: =IF(ISERROR(VLOOKUP(K134,Proposito_programa!$C$2:$E$59,3,FALSE))," ",VLOOKUP(K134,Proposito_programa!$C$2:$E$59,3,FALSE)) -> Propósito 1: Hacer un nuevo contrato social para incrementar la inclusión social, productiva y política | N134: 133011601080000002151 | P134: 1007699107 | Q134: ANDRÉS EDUARDO CRUZ GONZALEZ | R134: Persona Natural | V134: 12719000 | X134: 1 | Y134: 2483233 | Z134: 15202233 | AA134: 13445800 | AB134: 2021-04-13 | AC134: 2021-04-19 | AD134: 2021-11-18 | AE134: 210 | AF134: 1 | AG134: 41 | AN134: X | AP134: 0.8844621708
A135: 127 | B135: 2021 | C135: FDLBU-CD-001-2142 | D135: ttps://community.secop.gov.co/Public/Tendering/ContractNoticePhases/View?PPI=CO1.PPI.12720518&isFromPublicArea=True&isModal=False | E135: Contratos de prestación de servicios profesionales y de apoyo a la gestión | F135: Contratación directa | G135: Prestación de servicios profesionales y de apoyo a la gestión, o para la ejecución de trabajos artísticos que sólo puedan encomendarse a determinadas personas naturales; | H135: PRESTAR SERVICIOS DE APOYO A LA GESTIÓN DEL DESARROLLO EN EL ÁREA DE PLANEACIÓN EN LAS ACTIVIDADES ENMARCADAS EN EL CUMPLIMIENTO DE LA META DE ACUERDOS EN COMUNIDAD PARA LA VIGENCIA 2021 | I135: Inversión | J135: Un Nuevo Contrato Social y Ambiental para la Bogotá del Siglo XXI | K135: 45 | L135: =IF(ISERROR(VLOOKUP(K135,Proposito_programa!$C$2:$E$59,2,FALSE))," ",VLOOKUP(K135,Proposito_programa!$C$2:$E$59,2,FALSE)) -> Espacio público más seguro y construido colectivamente | M135: =IF(ISERROR(VLOOKUP(K135,Proposito_programa!$C$2:$E$59,3,FALSE))," ",VLOOKUP(K135,Proposito_programa!$C$2:$E$59,3,FALSE)) -> Propósito 3: Inspirar confianza y legitimidad para vivir sin miedo y ser epicentro de cultura ciudadana, paz y reconciliación | N135: 133011603450000002038 | P135: 52813945 | Q135: DIANA MARIA GARZON GALINDO | R135: Persona Natural | V135: 18168000 | Z135: 18168000 | AA135: 16729700 | AB135: 2021-04-13 | AC135: 2021-04-20 | AD135: 2021-12-19 | AE135: 240 | AN135: X | AP135: 0.9208333333
A136: 128 | B136: 2021 | C136: FDLBU-CD-001-2143 | D136: https://community.secop.gov.co/Public/Tendering/ContractNoticePhases/View?PPI=CO1.PPI.12720519&isFromPublicArea=True&isModal=False | E136: Contratos de prestación de servicios profesionales y de apoyo a la gestión | F136: Contratación directa | G136: Prestación de servicios profesionales y de apoyo a la gestión, o para la ejecución de trabajos artísticos que sólo puedan encomendarse a determinadas personas naturales; | H136: PRESTAR SERVICIOS DE APOYO A LA GESTIÓN DEL DESARROLLO EN EL ÁREA DE PLANEACIÓN EN LAS ACTIVIDADES ENMARCADAS EN EL CUMPLIMIENTO DE LA META DE ACUERDOS EN COMUNIDAD PARA LA VIGENCIA 2021 | I136: Inversión | J136: Un Nuevo Contrato Social y Ambiental para la Bogotá del Siglo XXI | K136: 45 | L136: =IF(ISERROR(VLOOKUP(K136,Proposito_programa!$C$2:$E$59,2,FALSE))," ",VLOOKUP(K136,Proposito_programa!$C$2:$E$59,2,FALSE)) -> Espacio público más seguro y construido colectivamente | M136: =IF(ISERROR(VLOOKUP(K136,Proposito_programa!$C$2:$E$59,3,FALSE))," ",VLOOKUP(K136,Proposito_programa!$C$2:$E$59,3,FALSE)) -> Propósito 3: Inspirar confianza y legitimidad para vivir sin miedo y ser epicentro de cultura ciudadana, paz y reconciliación | N136: 133011603450000002038 | P136: 1024581788 | Q136: YULITZA KATHERINE VELASQUEZ JARAMILLO | R136: Persona Natural | V136: 18168000 | X136: 1 | Y136: 605600 | Z136: 18773600 | AA136: 16805400 | AB136: 2021-04-13 | AC136: 2021-04-19 | AD136: 2021-12-18 | AE136: 240 | AF136: 1 | AG136: 8 | AN136: X | AP136: 0.8951612903
A137: 129 | B137: 2021 | C137: FDLBU-CD-001-2144 | D137: https://community.secop.gov.co/Public/Tendering/ContractNoticePhases/View?PPI=CO1.PPI.12679005&isFromPublicArea=True&isModal=False | E137: Contratos de prestación de servicios profesionales y de apoyo a la gestión | F137: Contratación directa | G137: Prestación de servicios profesionales y de apoyo a la gestión, o para la ejecución de trabajos artísticos que sólo puedan encomendarse a determinadas personas naturales; | H137: PRESTAR SERVICIOS PROFESIONALES PARA APOYAR AL ÁREA GESTIÓN DEL DESARROLLO ADMINISTRATIVO Y FINANCIERO EN LOS ASUNTOS RELATIVOS A LA PLANEACIÓN LOCAL: GARANTIZAR LA IMPLEMENTACIÓN OPERATIVA DE LAS METAS DEL PLAN DE DESARROLLO LOCAL VIGENTE EN LO RELATIVO A DEPORTE, RECREACIÓN Y CULTURA | I137: Inversión | J137: Un Nuevo Contrato Social y Ambiental para la Bogotá del Siglo XXI | K137: 21 | L137: =IF(ISERROR(VLOOKUP(K137,Proposito_programa!$C$2:$E$59,2,FALSE))," ",VLOOKUP(K137,Proposito_programa!$C$2:$E$59,2,FALSE)) -> Creación y vida cotidiana: Apropiación ciudadana del arte, la cultura y el patrimonio, para la democracia cultural | M137: =IF(ISERROR(VLOOKUP(K137,Proposito_programa!$C$2:$E$59,3,FALSE))," ",VLOOKUP(K137,Proposito_programa!$C$2:$E$59,3,FALSE)) -> Propósito 1: Hacer un nuevo contrato social para incrementar la inclusión social, productiva y política | N137: 133011601210000002012 | P137: 79659577 | Q137: RICHARD PEREZ MORENO | R137: Persona Natural | V137: 39330000 | Z137: 39330000 | AA137: 33066333 | AB137: 2021-04-12 | AC137: 2021-04-14 | AD137: 2021-12-31 | AE137: 270 | AF137: 1 | AG137: 13 | AN137: X | AP137: 0.8407407323
A138: 130 | B138: 2021 | C138: FDLBU-CD-001-2145 | D138: https://community.secop.gov.co/Public/Tendering/ContractNoticePhases/View?PPI=CO1.PPI.12756109&isFromPublicArea=True&isModal=False | E138: Contratos de prestación de servicios profesionales y de apoyo a la gestión | F138: Contratación directa | G138: Prestación de servicios profesionales y de apoyo a la gestión, o para la ejecución de trabajos artísticos que sólo puedan encomendarse a determinadas personas naturales; | H138: PRESTAR SERVICIOS PROFESIONALES PARA APOYAR AL ÁREA GESTIÓN DEL DESARROLLO ADMINISTRATIVO Y FINANCIERO EN LOS ASUNTOS RELATIVOS A LA PLANEACIÓN LOCAL: COORDINAR Y GARANTIZAR LA IMPLEMENTACIÓN Y SEGUIMIENTO DE LOS PROCESOS, PROYECTOS Y PROCEDIMIENTOS DE CONTRATOS SUSCRITOS POR LA ALCALDÍA LOCAL DE BARRIOS UNIDOS DIRIGIDOS AL CUMPLIMIENTO DE LA META DE EMPRENDIMIENTO CULTURAL | I138: Inversión | J138: Un Nuevo Contrato Social y Ambiental para la Bogotá del Siglo XXI | K138: 24 | L138: =IF(ISERROR(VLOOKUP(K138,Proposito_programa!$C$2:$E$59,2,FALSE))," ",VLOOKUP(K138,Proposito_programa!$C$2:$E$59,2,FALSE)) -> Bogotá región emprendedora e innovadora | M138: =IF(ISERROR(VLOOKUP(K138,Proposito_programa!$C$2:$E$59,3,FALSE))," ",VLOOKUP(K138,Proposito_programa!$C$2:$E$59,3,FALSE)) -> Propósito 1: Hacer un nuevo contrato social para incrementar la inclusión social, productiva y política | N138: 133011601240000002017 | P138: 45444369 | Q138: ROSMERY TORRES SAENZ | R138: Persona Natural | V138: 39330000 | Z138: 39330000 | AA138: 33357667 | AB138: 2021-04-08 | AC138: 2021-04-12 | AD138: 2021-12-31 | AE138: 270 | AN138: X | AP138: 0.8481481566
A139: 131 | B139: 2021 | C139: FDLBU-CD-001-2146 | D139: https://community.secop.gov.co/Public/Tendering/ContractNoticePhases/View?PPI=CO1.PPI.12756003&isFromPublicArea=True&isModal=False | E139: Contratos de prestación de servicios profesionales y de apoyo a la gestión | F139: Contratación directa | G139: Prestación de servicios profesionales y de apoyo a la gestión, o para la ejecución de trabajos artísticos que sólo puedan encomendarse a determinadas personas naturales; | H139: PRESTAR SERVICIOS PROFESIONALES PARA APOYAR AL ÁREA GESTIÓN DEL DESARROLLO ADMINISTRATIVO Y FINANCIERO EN LOS ASUNTOS RELATIVOS A LA PLANEACIÓN LOCAL: GARANTIZAR LA IMPLEMENTACIÓN Y SEGUIMIENTO DE LOS PROCESOS, PROYECTOS Y PROCEDIMIENTOS DE CONTRATOS SUSCRITOS POR LA ALCALDÍA LOCAL DE BARRIOS UNIDOS DIRIGIDOS AL CUMPLIMIENTO DE LA META DE CICLOINFRAESTRUCTURA Y LOS PROCESOS EN CURSO RELATIVOS A OBRAS PÚBLICAS DE MALLA VIAL Y ESPACIO PÚBLICO | I139: Inversión | J139: Un Nuevo Contrato Social y Ambiental para la Bogotá del Siglo XXI | K139: 49 | L139: =IF(ISERROR(VLOOKUP(K139,Proposito_programa!$C$2:$E$59,2,FALSE))," ",VLOOKUP(K139,Proposito_programa!$C$2:$E$59,2,FALSE)) -> Movilidad segura, sostenible y accesible | M139: =IF(ISERROR(VLOOKUP(K139,Proposito_programa!$C$2:$E$59,3,FALSE))," ",VLOOKUP(K139,Proposito_programa!$C$2:$E$59,3,FALSE)) -> Propósito 4: Hacer de Bogotá Región un modelo de movilidad multimodal, incluyente y sostenible | N139: 133011604490000002022 | P139: 19438435 | Q139: JOSELIN AGUILERA ARDILA | R139: Persona Natural | V139: 54900000 | Z139: 54900000 | AA139: 33753333 | AB139: 2021-04-13 | AC139: 2021-04-15 | AD139: 2021-12-31 | AE139: 270 | AN139: X | AP139: 0.6148148087
A140: 132 | B140: 2021 | C140: FDLBU-CD-001-2147 | D140: https://community.secop.gov.co/Public/Tendering/ContractNoticePhases/View?PPI=CO1.PPI.12088823&isFromPublicArea=True&isModal=False | E140: Contratos de prestación de servicios profesionales y de apoyo a la gestión | F140: Contratación directa | G140: Prestación de servicios profesionales y de apoyo a la gestión, o para la ejecución de trabajos artísticos que sólo puedan encomendarse a determinadas personas naturales; | H140: PRESTAR SERVICIOS DE APOYO ADMINISTRATIVA Y ASISTENCIALMENTE A LAS INSPECCIONES DE POLICÍA DE LA LOCALIDAD | I140: Inversión | J140: Un Nuevo Contrato Social y Ambiental para la Bogotá del Siglo XXI | K140: 57 | L140: =IF(ISERROR(VLOOKUP(K140,Proposito_programa!$C$2:$E$59,2,FALSE))," ",VLOOKUP(K140,Proposito_programa!$C$2:$E$59,2,FALSE)) -> Gestión pública local | M140: =IF(ISERROR(VLOOKUP(K140,Proposito_programa!$C$2:$E$59,3,FALSE))," ",VLOOKUP(K140,Proposito_programa!$C$2:$E$59,3,FALSE)) -> Propósito 5: Construir Bogotá - Región con gobierno abierto, transparente y ciudadanía consciente | N140: 133011605570000002143 | P140: 52347772 | Q140: JOHANNA PATRICIA GUEVARA MACIAS | R140: Persona Natural | V140: 15897000 | X140: 1 | Y140: 3709300 | Z140: 19606300 | AA140: 17335300 | AB140: 2021-04-12 | AC140: 2021-04-12 | AD140: 2021-11-11 | AE140: 210 | AF140: 1 | AG140: 49 | AN140: X | AP140: 0.8841698842
A141: 133 | B141: 2021 | C141: FDLBU-CD-001-2148 | D141: https://community.secop.gov.co/Public/Tendering/ContractNoticePhases/View?PPI=CO1.PPI.12682962&isFromPublicArea=True&isModal=False | E141: Contratos de prestación de servicios profesionales y de apoyo a la gestión | F141: Contratación directa | G141: Prestación de servicios profesionales y de apoyo a la gestión, o para la ejecución de trabajos artísticos que sólo puedan encomendarse a determinadas personas naturales; | H141: PRESTAR SUS SERVICIOS PROFESIONALES PARA APOYAR JURÍDICAMENTE LA EJECUCIÓN DE LAS ACCIONES REQUERIDAS PARA EL TRÁMITE E IMPULSO PROCESAL DE LAS ACTUACIONES CONTRAVENCIONALES Y/O QUERELLAS QUE CURSEN EN LAS INSPECCIONES DE LA POLICÍA DE LA LOCALIDAD | I141: Inversión | J141: Un Nuevo Contrato Social y Ambiental para la Bogotá del Siglo XXI | K141: 57 | L141: =IF(ISERROR(VLOOKUP(K141,Proposito_programa!$C$2:$E$59,2,FALSE))," ",VLOOKUP(K141,Proposito_programa!$C$2:$E$59,2,FALSE)) -> Gestión pública local | M141: =IF(ISERROR(VLOOKUP(K141,Proposito_programa!$C$2:$E$59,3,FALSE))," ",VLOOKUP(K141,Proposito_programa!$C$2:$E$59,3,FALSE)) -> Propósito 5: Construir Bogotá - Región con gobierno abierto, transparente y ciudadanía consciente | N141: 133011605570000002143 | P141: 93121368 | Q141: JOSE VICENTE BRIÑEZ | R141: Persona Natural | V141: 33257000 | Z141: 33257000 | AA141: 33257000 | AB141: 2021-04-08 | AC141: 2021-04-09 | AD141: 2021-11-08 | AE141: 210 | AN141: X | AP141: 1
A142: 134 | B142: 2021 | C142: FDLBU-CD-001-2149 | D142: https://community.secop.gov.co/Public/Tendering/ContractNoticePhases/View?PPI=CO1.PPI.12757239&isFromPublicArea=True&isModal=False | E142: Contratos de prestación de servicios profesionales y de apoyo a la gestión | F142: Contratación directa | G142: Prestación de servicios profesionales y de apoyo a la gestión, o para la ejecución de trabajos artísticos que sólo puedan encomendarse a determinadas personas naturales; | H142: PRESTAR SERVICIOS DE APOYO A LA GESTIÓN DEL DESARROLLO EN LAS LABORES DE PLANEACIÓN PARA LAS ACTIVIDADES DEL PROCESO DE PARTICIPACIÓN | I142: Inversión | J142: Un Nuevo Contrato Social y Ambiental para la Bogotá del Siglo XXI | K142: 55 | L142: =IF(ISERROR(VLOOKUP(K142,Proposito_programa!$C$2:$E$59,2,FALSE))," ",VLOOKUP(K142,Proposito_programa!$C$2:$E$59,2,FALSE)) -> Fortalecimiento de cultura ciudadana y su institucionalidad | M142: =IF(ISERROR(VLOOKUP(K142,Proposito_programa!$C$2:$E$59,3,FALSE))," ",VLOOKUP(K142,Proposito_programa!$C$2:$E$59,3,FALSE)) -> Propósito 5: Construir Bogotá - Región con gobierno abierto, transparente y ciudadanía consciente | N142: 133011605550000002141 | P142: 1015456276 | Q142: TATIANA BRIÑEZ TORO | R142: Persona Natural | V142: 14536000 | X142: 1 | Y142: 1817000 | Z142: 16353000 | AA142: 13748633 | AB142: 2021-04-12 | AC142: 2021-04-14 | AD142: 2021-12-13 | AE142: 240 | AF142: 1 | AG142: 30 | AN142: X | AP142: 0.8407407204
A143: 135 | B143: 2021 | C143: FDLBU-CD-001-2150 | D143: https://community.secop.gov.co/Public/Tendering/ContractNoticePhases/View?PPI=CO1.PPI.12756062&isFromPublicArea=True&isModal=False | E143: Contratos de prestación de servicios profesionales y de apoyo a la gestión | F143: Contratación directa | G143: Prestación de servicios profesionales y de apoyo a la gestión, o para la ejecución de trabajos artísticos que sólo puedan encomendarse a determinadas personas naturales; | H143: PRESTAR SERVICIOS DE APOYO A LA GESTIÓN DEL DESARROLLO EN LAS LABORES DE PLANEACIÓN RELATIVAS A LOS PROYECTOS AMBIENTALES DE LA VIGENCIA 2021 DE LA LÍNEA DE INVERSIONES AMBIENTALES SOSTENIBLES | I143: Inversión | J143: Un Nuevo Contrato Social y Ambiental para la Bogotá del Siglo XXI | K143: 24 | L143: =IF(ISERROR(VLOOKUP(K143,Proposito_programa!$C$2:$E$59,2,FALSE))," ",VLOOKUP(K143,Proposito_programa!$C$2:$E$59,2,FALSE)) -> Bogotá región emprendedora e innovadora | M143: =IF(ISERROR(VLOOKUP(K143,Proposito_programa!$C$2:$E$59,3,FALSE))," ",VLOOKUP(K143,Proposito_programa!$C$2:$E$59,3,FALSE)) -> Propósito 1: Hacer un nuevo contrato social para incrementar la inclusión social, productiva y política | N143: 133011601240000002073 | P143: 80811218 | Q143: FABIAN ARTURO ORTIZ WILCHEZ | R143: Persona Natural | V143: 15897000 | X143: 1 | Y143: 3633600 | Z143: 19530600 | AA143: 17259600 | AB143: 2021-04-09 | AC143: 2021-04-13 | AD143: 2021-11-12 | AE143: 210 | AF143: 1 | AG143: 48 | AN143: X | AP143: 0.8837209302
A144: 136 | B144: 2021 | C144: FDLBU-CD-001-2151 | D144: https://community.secop.gov.co/Public/Tendering/ContractNoticePhases/View?PPI=CO1.PPI.12776736&isFromPublicArea=True&isModal=False | E144: Contratos de prestación de servicios profesionales y de apoyo a la gestión | F144: Contratación directa | G144: Prestación de servicios profesionales y de apoyo a la gestión, o para la ejecución de trabajos artísticos que sólo puedan encomendarse a determinadas personas naturales; | H144: PRESTAR SERVICIOS DE APOYO TÉCNICO A LA DE GESTIÓN DEL DESARROLLO EN LABORES DE PLANEACIÓN, CON EL FIN DE LOGRAR EL CUMPLIMIENTO DE LAS METAS DEL PLAN DE DESARROLLO LOCAL DE LA VIGENCIA RELATIVAS AL SISTEMA LOCAL DE CUIDADO | I144: Inversión | J144: Un Nuevo Contrato Social y Ambiental para la Bogotá del Siglo XXI | K144: 6 | L144: =IF(ISERROR(VLOOKUP(K144,Proposito_programa!$C$2:$E$59,2,FALSE))," ",VLOOKUP(K144,Proposito_programa!$C$2:$E$59,2,FALSE)) -> Sistema Distrital de Cuidado | M144: =IF(ISERROR(VLOOKUP(K144,Proposito_programa!$C$2:$E$59,3,FALSE))," ",VLOOKUP(K144,Proposito_programa!$C$2:$E$59,3,FALSE)) -> Propósito 1: Hacer un nuevo contrato social para incrementar la inclusión social, productiva y política | N144: 133011601060000002062 | P144: 1012327165 | Q144: CRISTIAN EDUARDO CHAVEZ SUAREZ | R144: Persona Natural | V144: 27792000 | Z144: 27792000 | AA144: 23365867 | AB144: 2021-04-12 | AC144: 2021-04-14 | AD144: 2021-12-31 | AE144: 270 | AF144: 1 | AG144: 13 | AN144: X | AP144: 0.8407407527
A145: 137 | B145: 2021 | C145: FDLBU-CD-001-2152 | D145: https://community.secop.gov.co/Public/Tendering/ContractNoticePhases/View?PPI=CO1.PPI.12747194&isFromPublicArea=True&isModal=False | E145: Contratos de prestación de servicios profesionales y de apoyo a la gestión | F145: Contratación directa | G145: Prestación de servicios profesionales y de apoyo a la gestión, o para la ejecución de trabajos artísticos que sólo puedan encomendarse a determinadas personas naturales; | H145: PRESTAR SERVICIOS DE APOYO A LA GESTIÓN DEL DESARROLLO EN LABORES DE PLANEACIÓN EN LAS ACTIVIDADES RELATIVAS AL SISTEMA LOCAL DE CUIDADO | I145: Inversión | J145: Un Nuevo Contrato Social y Ambiental para la Bogotá del Siglo XXI | K145: 6 | L145: =IF(ISERROR(VLOOKUP(K145,Proposito_programa!$C$2:$E$59,2,FALSE))," ",VLOOKUP(K145,Proposito_programa!$C$2:$E$59,2,FALSE)) -> Sistema Distrital de Cuidado | M145: =IF(ISERROR(VLOOKUP(K145,Proposito_programa!$C$2:$E$59,3,FALSE))," ",VLOOKUP(K145,Proposito_programa!$C$2:$E$59,3,FALSE)) -> Propósito 1: Hacer un nuevo contrato social para incrementar la inclusión social, productiva y política | N145: 133011601060000002062 | P145: 1015446736 | Q145: SANDY JINETH ROJAS HUERTAS | R145: Persona Natural | V145: 18168000 | X145: 1 | Y145: 1135500 | Z145: 19303500 | AA145: 17032500 | AB145: 2021-04-12 | AC145: 2021-04-16 | AD145: 2021-12-15 | AE145: 240 | AF145: 1 | AG145: 15 | AN145: X | AP145: 0.8823529412
A146: 138 | B146: 2021 | C146: FDLBU-CD-001-2153 | D146: https://community.secop.gov.co/Public/Tendering/ContractNoticePhases/View?PPI=CO1.PPI.12819665&isFromPublicArea=True&isModal=False | E146: Contratos de prestación de servicios profesionales y de apoyo a la gestión | F146: Contratación directa | G146: Prestación de servicios profesionales y de apoyo a la gestión, o para la ejecución de trabajos artísticos que sólo puedan encomendarse a determinadas personas naturales; | H146: PRESTAR SERVICIOS DE APOYO A LA DE GESTIÓN DEL DESARROLLO EN LAS LABORES DE PLANEACIÓN, CON EL FIN DE LOGRAR EL CUMPLIMIENTO DE LA META DE ACUERDOS EN COMUNIDAD PARA LA VIGENCIA 2021 | I146: Inversión | J146: Un Nuevo Contrato Social y Ambiental para la Bogotá del Siglo XXI | K146: 45 | L146: =IF(ISERROR(VLOOKUP(K146,Proposito_programa!$C$2:$E$59,2,FALSE))," ",VLOOKUP(K146,Proposito_programa!$C$2:$E$59,2,FALSE)) -> Espacio público más seguro y construido colectivamente | M146: =IF(ISERROR(VLOOKUP(K146,Proposito_programa!$C$2:$E$59,3,FALSE))," ",VLOOKUP(K146,Proposito_programa!$C$2:$E$59,3,FALSE)) -> Propósito 3: Inspirar confianza y legitimidad para vivir sin miedo y ser epicentro de cultura ciudadana, paz y reconciliación | N146: 133011603450000002038 | P146: 1016070013 | Q146: INGRID MARITZA MORENO AGREDO | R146: Persona Natural | V146: 27792000 | Z146: 27792000 | AA146: 23365867 | AB146: 2021-04-14 | AC146: 2021-04-14 | AD146: 2021-12-31 | AE146: 270 | AF146: 1 | AG146: 13 | AN146: X | AP146: 0.8407407527
A147: 139 | B147: 2021 | C147: FDLBU-CD-001-2154 | D147: https://community.secop.gov.co/Public/Tendering/ContractNoticePhases/View?PPI=CO1.PPI.12753677&isFromPublicArea=True&isModal=False | E147: Contratos de prestación de servicios profesionales y de apoyo a la gestión | F147: Contratación directa | G147: Prestación de servicios profesionales y de apoyo a la gestión, o para la ejecución de trabajos artísticos que sólo puedan encomendarse a determinadas personas naturales; | H147: PRESTAR SERVICIOS DE APOYO A LA GESTIÓN DEL DESARROLLO EN LABORES DE PLANEACIÓN EN LAS ACTIVIDADES RELATIVAS A LOS PROYECTOS AMBIENTALES DE LA VIGENCIA 2021 DE LA LÍNEA DE INVERSIONES AMBIENTALES SOSTENIBLES | I147: Inversión | J147: Un Nuevo Contrato Social y Ambiental para la Bogotá del Siglo XXI | K147: 38 | L147: =IF(ISERROR(VLOOKUP(K147,Proposito_programa!$C$2:$E$59,2,FALSE))," ",VLOOKUP(K147,Proposito_programa!$C$2:$E$59,2,FALSE)) -> Ecoeficiencia, reciclaje, manejo de residuos e inclusión de la población recicladora | M147: =IF(ISERROR(VLOOKUP(K147,Proposito_programa!$C$2:$E$59,3,FALSE))," ",VLOOKUP(K147,Proposito_programa!$C$2:$E$59,3,FALSE)) -> Propósito 2 : Cambiar Nuestros Hábitos de Vida para Reverdecer a Bogotá y Adaptarnos y Mitigar la Crisis Climática | N147: 133011602380000002082 | P147: 1007375369 | Q147: SEBASTIAN FELIPE ALVARADO ESPAÑOL | R147: Persona Natural | V147: 14536000 | Z147: =+V147+W147+Y147 -> 14536000 | AA147: 13627500 | AB147: 2021-04-14 | AC147: 2021-04-16 | AD147: 2021-12-15 | AE147: 240 | AN147: X | AP147: =IF(ISERROR(AA147/Z147),"-",(AA147/Z147)) -> 0.9375
A148: 140 | B148: 2021 | C148: FDLBU-CD-001-2155 | D148: https://community.secop.gov.co/Public/Tendering/ContractNoticePhases/View?PPI=CO1.PPI.12776780&isFromPublicArea=True&isModal=False | E148: Contratos de prestación de servicios profesionales y de apoyo a la gestión | F148: Contratación directa | G148: Prestación de servicios profesionales y de apoyo a la gestión, o para la ejecución de trabajos artísticos que sólo puedan encomendarse a determinadas personas naturales; | H148: PRESTAR SERVICIOS PROFESIONALES PARA APOYAR EL CUBRIMIENTO DE LAS ACTIVIDADES, CRONOGRAMAS Y AGENDA DE LA ALCALDÍA LOCAL A NIVEL INTERNO Y EXTERNO, ASÍ COMO LA GENERACIÓN DE CONTENIDOS PERIODÍSTICOS | I148: Inversión | J148: Un Nuevo Contrato Social y Ambiental para la Bogotá del Siglo XXI | K148: 57 | L148: =IF(ISERROR(VLOOKUP(K148,Proposito_programa!$C$2:$E$59,2,FALSE))," ",VLOOKUP(K148,Proposito_programa!$C$2:$E$59,2,FALSE)) -> Gestión pública local | M148: =IF(ISERROR(VLOOKUP(K148,Proposito_programa!$C$2:$E$59,3,FALSE))," ",VLOOKUP(K148,Proposito_programa!$C$2:$E$59,3,FALSE)) -> Propósito 5: Construir Bogotá - Región con gobierno abierto, transparente y ciudadanía consciente | N148: 133011605570000002143 | P148: 1014206538 | Q148: ASTRID LORENA VERA VALERO | R148: Persona Natural | V148: 42474500 | Z148: 42474500 | AA148: 37644067 | AB148: 2021-04-14 | AC148: 2021-04-15 | AD148: 2021-12-31 | AE148: 255 | AN148: X | AP148: 0.8862745177
A149: 141 | B149: 2021 | C149: FDLBU-CD-001-2156 | D149: https://community.secop.gov.co/Public/Tendering/ContractNoticePhases/View?PPI=CO1.PPI.12358694&isFromPublicArea=True&isModal=False | E149: Contratos de prestación de servicios profesionales y de apoyo a la gestión | F149: Contratación directa | G149: Prestación de servicios profesionales y de apoyo a la gestión, o para la ejecución de trabajos artísticos que sólo puedan encomendarse a determinadas personas naturales; | H149: PRESTAR LOS SERVICIOS PROFESIONALES PARA APOYAR AL ÁREA DE GESTIÓN DEL DESARROLLO ADMINISTRATIVO Y FINANCIERO, EN LOS ASUNTOS RELACIONADOS CON EL DESARROLLO DE LA GESTIÓN CONTRACTUAL PARA LA ADQUISICIÓN DE RECURSOS Y SERVICIOS | I149: Inversión | J149: Un Nuevo Contrato Social y Ambiental para la Bogotá del Siglo XXI | K149: 57 | L149: =IF(ISERROR(VLOOKUP(K149,Proposito_programa!$C$2:$E$59,2,FALSE))," ",VLOOKUP(K149,Proposito_programa!$C$2:$E$59,2,FALSE)) -> Gestión pública local | M149: =IF(ISERROR(VLOOKUP(K149,Proposito_programa!$C$2:$E$59,3,FALSE))," ",VLOOKUP(K149,Proposito_programa!$C$2:$E$59,3,FALSE)) -> Propósito 5: Construir Bogotá - Región con gobierno abierto, transparente y ciudadanía consciente | N149: 133011605570000002143 | P149: 1020793103 | Q149: LAURA MAYERLY GOMEZ PARRA | R149: Persona Natural | V149: 39330000 | X149: 1 | Y149: 291333 | Z149: 39621333 | AA149: 32338000 | AB149: 2021-04-15 | AC149: 2021-04-19 | AD149: 2021-12-31 | AE149: 270 | AF149: 1 | AG149: 20 | AN149: X | AP149: 0.8161764775
A150: 142 | B150: 2021 | C150: FDLBU-CD-001-2157 | D150: https://community.secop.gov.co/Public/Tendering/ContractNoticePhases/View?PPI=CO1.PPI.12840418&isFromPublicArea=True&isModal=False | E150: Contratos de prestación de servicios profesionales y de apoyo a la gestión | F150: Contratación directa | G150: Prestación de servicios profesionales y de apoyo a la gestión, o para la ejecución de trabajos artísticos que sólo puedan encomendarse a determinadas personas naturales; | H150: PRESTAR SERVICIOS DE APOYO A LA GESTIÓN DEL DESARROLLO EN LABORES DE PLANEACIÓN, EN LAS ACTIVIDADES DE PEDAGOGÍA DEL CÓDIGO NACIONAL DE SEGURIDAD Y CONVIVENCIA, PROMOCIÓN DE LA CONVIVENCIA Y DE ATENCIÓN DE MOVILIZACIONES Y AGLOMERACIONES EN EL TERRITORIO | I150: Inversión | J150: Un Nuevo Contrato Social y Ambiental para la Bogotá del Siglo XXI | K150: 48 | L150: =IF(ISERROR(VLOOKUP(K150,Proposito_programa!$C$2:$E$59,2,FALSE))," ",VLOOKUP(K150,Proposito_programa!$C$2:$E$59,2,FALSE)) -> Plataforma institucional para la seguridad y justicia | M150: =IF(ISERROR(VLOOKUP(K150,Proposito_programa!$C$2:$E$59,3,FALSE))," ",VLOOKUP(K150,Proposito_programa!$C$2:$E$59,3,FALSE)) -> Propósito 3: Inspirar confianza y legitimidad para vivir sin miedo y ser epicentro de cultura ciudadana, paz y reconciliación | N150: 133011603480000002153 | P150: 79843350 | Q150: OCTAVIO TARAZONA HERNÁNDEZ | R150: Persona Natural | V150: 27795000 | Z150: 27795000 | AA150: 24525000 | AB150: 2021-04-14 | AC150: 2021-04-16 | AD150: 2021-12-31 | AE150: 255 | AN150: X | AP150: 0.8823529412
A151: 143 | B151: 2021 | C151: FDLBU-CD-001-2158 | D151: https://community.secop.gov.co/Public/Tendering/ContractNoticePhases/View?PPI=CO1.PPI.12802738&isFromPublicArea=True&isModal=False | E151: Contratos de prestación de servicios profesionales y de apoyo a la gestión | F151: Contratación directa | G151: Prestación de servicios profesionales y de apoyo a la gestión, o para la ejecución de trabajos artísticos que sólo puedan encomendarse a determinadas personas naturales; | H151: PRESTAR SERVICIOS DE APOYO A LA GESTIÓN DEL DESARROLLO EN LAS LABORES DE PLANEACIÓN EN LAS ACTIVIDADES RELATIVAS A LA PREVENCIÓN DEL EMBARAZO ADOLESCENTE NO DESEADO | I151: Inversión | J151: Un Nuevo Contrato Social y Ambiental para la Bogotá del Siglo XXI | K151: 38 | L151: =IF(ISERROR(VLOOKUP(K151,Proposito_programa!$C$2:$E$59,2,FALSE))," ",VLOOKUP(K151,Proposito_programa!$C$2:$E$59,2,FALSE)) -> Ecoeficiencia, reciclaje, manejo de residuos e inclusión de la población recicladora | M151: =IF(ISERROR(VLOOKUP(K151,Proposito_programa!$C$2:$E$59,3,FALSE))," ",VLOOKUP(K151,Proposito_programa!$C$2:$E$59,3,FALSE)) -> Propósito 2 : Cambiar Nuestros Hábitos de Vida para Reverdecer a Bogotá y Adaptarnos y Mitigar la Crisis Climática | N151: 133011602380000002082 | P151: 80035265 | Q151: BERNARDO HERNANDEZ BELTRAN | R151: Persona Natural | V151: 18168000 | Z151: 18168000 | AA151: 16578300 | AB151: 2021-04-15 | AC151: 2021-04-22 | AD151: 2021-12-21 | AE151: 240 | AN151: X | AP151: 0.9125
A152: 144 | B152: 2021 | C152: FDLBU-CD-001-2159 | D152: https://community.secop.gov.co/Public/Tendering/ContractNoticePhases/View?PPI=CO1.PPI.12581748&isFromPublicArea=True&isModal=False | E152: Contratos de prestación de servicios profesionales y de apoyo a la gestión | F152: Contratación directa | G152: Prestación de servicios profesionales y de apoyo a la gestión, o para la ejecución de trabajos artísticos que sólo puedan encomendarse a determinadas personas naturales; | H152: PRESTAR SERVICIOS DE APOYO A LA GESTIÓN DEL DESARROLLO EN LAS LABORES DE PLANEACIÓN, CON EL FIN DE LOGRAR EL CUMPLIMIENTO DE LAS METAS DEL PROYECTO DIÁLOGOS PARA CRECER Y PARTICIPAR | I152: Inversión | J152: Un Nuevo Contrato Social y Ambiental para la Bogotá del Siglo XXI | K152: 57 | L152: =IF(ISERROR(VLOOKUP(K152,Proposito_programa!$C$2:$E$59,2,FALSE))," ",VLOOKUP(K152,Proposito_programa!$C$2:$E$59,2,FALSE)) -> Gestión pública local | M152: =IF(ISERROR(VLOOKUP(K152,Proposito_programa!$C$2:$E$59,3,FALSE))," ",VLOOKUP(K152,Proposito_programa!$C$2:$E$59,3,FALSE)) -> Propósito 5: Construir Bogotá - Región con gobierno abierto, transparente y ciudadanía consciente | N152: 133011605570000002143 | P152: 79374388 | Q152: MANUEL RICARDO MORENO PEÑUELA | R152: Persona Natural | V152: 33898000 | Z152: 33898000 | AA152: 29245333 | AB152: 2021-04-15 | AC152: 2021-04-21 | AD152: 2021-12-31 | AE152: 255 | AF152: 1 | AG152: 5 | AN152: X | AP152: 0.8627450882
A153: 145 | B153: 2021 | C153: FDLBU-CD-001-2160 | D153: https://community.secop.gov.co/Public/Tendering/ContractNoticePhases/View?PPI=CO1.PPI.12669365&isFromPublicArea=True&isModal=False | E153: Contratos de prestación de servicios profesionales y de apoyo a la gestión | F153: Contratación directa | G153: Prestación de servicios profesionales y de apoyo a la gestión, o para la ejecución de trabajos artísticos que sólo puedan encomendarse a determinadas personas naturales; | H153: PRESTAR LOS SERVICIOS PROFESIONALES PARA LA OPERACIÓN, PRESTACIÓN, SEGUIMIENTO Y CUMPLIMIENTO DE LOS PROCEDIMIENTOS ADMINISTRATIVOS, OPERATIVOS Y PROGRAMÁTICOS DEL SERVICIO APOYO ECONÓMICO TIPO C, QUE CONTRIBUYAN A LA GARANTÍA DE LOS DERECHOS DE LA POBLACIÓN MAYOR EN EL MARCO DE LA POLÍTICA PÚBLICA SOCIAL PARA EL ENVEJECIMIENTO Y LA VEJEZ EN EL DISTRITO CAPITAL A CARGO DE LA ALCALDÍA LOCAL | I153: Inversión | J153: Un Nuevo Contrato Social y Ambiental para la Bogotá del Siglo XXI | K153: 1 | L153: =IF(ISERROR(VLOOKUP(K153,Proposito_programa!$C$2:$E$59,2,FALSE))," ",VLOOKUP(K153,Proposito_programa!$C$2:$E$59,2,FALSE)) -> Subsidios y transferencias para la equidad | M153: =IF(ISERROR(VLOOKUP(K153,Proposito_programa!$C$2:$E$59,3,FALSE))," ",VLOOKUP(K153,Proposito_programa!$C$2:$E$59,3,FALSE)) -> Propósito 1: Hacer un nuevo contrato social para incrementar la inclusión social, productiva y política | N153: 133011601010000002144 | P153: 1015457130 | Q153: DANIELA PEÑA GOMEZ | R153: Persona Natural | V153: 43700000 | Z153: 43700000 | AA153: 31027000 | AB153: 2021-04-15 | AC153: 2021-04-28 | AD153: 2021-12-31 | AE153: 300 | AF153: 1 | AG153: 20 | AN153: X | AP153: 0.71
A154: 146 | B154: 2021 | C154: FDLBU-CD-001-2161 | D154: https://community.secop.gov.co/Public/Tendering/ContractNoticePhases/View?PPI=CO1.PPI.12747339&isFromPublicArea=True&isModal=False | E154: Contratos de prestación de servicios profesionales y de apoyo a la gestión | F154: Contratación directa | G154: Prestación de servicios profesionales y de apoyo a la gestión, o para la ejecución de trabajos artísticos que sólo puedan encomendarse a determinadas personas naturales; | H154: PRESTAR SERVICIOS PROFESIONALES PARA APOYAR AL ÁREA GESTIÓN DEL DESARROLLO ADMINISTRATIVO Y FINANCIERO EN LOS ASUNTOS RELATIVOS A LA PLANEACIÓN LOCAL: GARANTIZAR LA IMPLEMENTACIÓN Y SEGUIMIENTO DE LOS PROCESOS, PROYECTOS Y PROCEDIMIENTOS DE CONTRATOS SUSCRITOS POR LA ALCALDÍA LOCAL DE BARRIOS UNIDOS DIRIGIDOS AL CUMPLIMIENTO DE LA META DE BUEN TRATO | I154: Inversión | J154: Un Nuevo Contrato Social y Ambiental para la Bogotá del Siglo XXI | K154: 6 | L154: =IF(ISERROR(VLOOKUP(K154,Proposito_programa!$C$2:$E$59,2,FALSE))," ",VLOOKUP(K154,Proposito_programa!$C$2:$E$59,2,FALSE)) -> Sistema Distrital de Cuidado | M154: =IF(ISERROR(VLOOKUP(K154,Proposito_programa!$C$2:$E$59,3,FALSE))," ",VLOOKUP(K154,Proposito_programa!$C$2:$E$59,3,FALSE)) -> Propósito 1: Hacer un nuevo contrato social para incrementar la inclusión social, productiva y política | N154: 133011601060000002053 | P154: 30507754 | Q154: CAROLINA CALDERON HENAO | R154: Persona Natural | V154: 39330000 | Z154: 39330000 | AA154: 32338000 | AB154: 2021-04-19 | AC154: 2021-04-19 | AD154: 2021-12-31 | AE154: 270 | AF154: 1 | AG154: 18 | AN154: X | AP154: 0.8222222222
A155: 147 | B155: 2021 | C155: FDLBU-CD-001-2162 | D155: https://community.secop.gov.co/Public/Tendering/ContractNoticePhases/View?PPI=CO1.PPI.12747143&isFromPublicArea=True&isModal=False | E155: Contratos de prestación de servicios profesionales y de apoyo a la gestión | F155: Contratación directa | G155: Prestación de servicios profesionales y de apoyo a la gestión, o para la ejecución de trabajos artísticos que sólo puedan encomendarse a determinadas personas naturales; | H155: PRESTAR SERVICIOS PROFESIONALES PARA APOYAR AL ÁREA GESTIÓN DEL DESARROLLO ADMINISTRATIVO Y FINANCIERO EN LOS ASUNTOS RELATIVOS A LA PLANEACIÓN LOCAL: GARANTIZAR EL CUMPLIMIENTO DE LA META INTERVENIR UNA SEDE CULTURAL CON DOTACIÓN Y/O ADECUACIÓN DEL PROYECTO CULTURA PARA EL DESARROLLO SOCIAL EN EL MARCO DE LA INICIATIVA PRIORIZADA DE PRESUPUESTOS PARTICIPATIVOS. | I155: Inversión | J155: Un Nuevo Contrato Social y Ambiental para la Bogotá del Siglo XXI | K155: 21 | L155: =IF(ISERROR(VLOOKUP(K155,Proposito_programa!$C$2:$E$59,2,FALSE))," ",VLOOKUP(K155,Proposito_programa!$C$2:$E$59,2,FALSE)) -> Creación y vida cotidiana: Apropiación ciudadana del arte, la cultura y el patrimonio, para la democracia cultural | M155: =IF(ISERROR(VLOOKUP(K155,Proposito_programa!$C$2:$E$59,3,FALSE))," ",VLOOKUP(K155,Proposito_programa!$C$2:$E$59,3,FALSE)) -> Propósito 1: Hacer un nuevo contrato social para incrementar la inclusión social, productiva y política | N155: 133011601210000002012 | P155: 1018457722 | Q155: JHOJAN GONZALO PAREDES | R155: Persona Natural | V155: 39330000 | Z155: 39330000 | AA155: 32338000 | AB155: 2021-04-16 | AC155: 2021-04-19 | AD155: 2021-12-31 | AE155: 270 | AF155: 1 | AG155: 18 | AN155: X | AP155: 0.8222222222
A156: 148 | B156: 2021 | C156: FDLBU-CD-001-2163 | D156: https://community.secop.gov.co/Public/Tendering/ContractNoticePhases/View?PPI=CO1.PPI.12756091&isFromPublicArea=True&isModal=False | E156: Contratos de prestación de servicios profesionales y de apoyo a la gestión | F156: Contratación directa | G156: Prestación de servicios profesionales y de apoyo a la gestión, o para la ejecución de trabajos artísticos que sólo puedan encomendarse a determinadas personas naturales; | H156: PRESTAR SERVICIOS PROFESIONALES PARA APOYAR AL ÁREA GESTIÓN DEL DESARROLLO ADMINISTRATIVO Y FINANCIERO EN LOS ASUNTOS RELATIVOS A LA PLANEACIÓN LOCAL: GARANTIZAR LA IMPLEMENTACIÓN Y SEGUIMIENTO DE LOS PROCESOS, PROYECTOS Y PROCEDIMIENTOS DE CONTRATOS SUSCRITOS POR LA ALCALDÍA LOCAL DE BARRIOS UNIDOS DIRIGIDOS AL CUMPLIMIENTO DE LAS METAS DE DE BARRIOS UNIDOS TERRITORIO DE PAZ | I156: Inversión | J156: Un Nuevo Contrato Social y Ambiental para la Bogotá del Siglo XXI | K156: 39 | L156: =IF(ISERROR(VLOOKUP(K156,Proposito_programa!$C$2:$E$59,2,FALSE))," ",VLOOKUP(K156,Proposito_programa!$C$2:$E$59,2,FALSE)) -> Bogotá territorio de paz y atención integral a las víctimas del conflicto armado | M156: =IF(ISERROR(VLOOKUP(K156,Proposito_programa!$C$2:$E$59,3,FALSE))," ",VLOOKUP(K156,Proposito_programa!$C$2:$E$59,3,FALSE)) -> Propósito 3: Inspirar confianza y legitimidad para vivir sin miedo y ser epicentro de cultura ciudadana, paz y reconciliación | N156: 133011603390000002030 | P156: 79955443 | Q156: ALEXANDER AGUSTIN MOJICA CANCELADO | R156: Persona Natural | V156: 39330000 | Z156: 39330000 | AA156: 32192333 | AB156: 2021-04-16 | AC156: 2021-04-20 | AD156: 2021-12-31 | AE156: 270 | AF156: 1 | AG156: 19 | AN156: X | AP156: 0.81851851
A157: 149 | B157: 2021 | C157: FDLBU-CD-001-2164 | D157: https://community.secop.gov.co/Public/Tendering/ContractNoticePhases/View?PPI=CO1.PPI.12877489&isFromPublicArea=True&isModal=False | E157: Contratos de prestación de servicios profesionales y de apoyo a la gestión | F157: Contratación directa | G157: Prestación de servicios profesionales y de apoyo a la gestión, o para la ejecución de trabajos artísticos que sólo puedan encomendarse a determinadas personas naturales; | H157: PRESTAR SERVICIOS DE APOYO A LA GESTIÓN DEL DESARROLLO EN LAS LABORES DE PLANEACIÓN REFERENTES A LA REACTIVACIÓN DE LA ECONOMÍA LOCAL | I157: Inversión | J157: Un Nuevo Contrato Social y Ambiental para la Bogotá del Siglo XXI | K157: 6 | L157: =IF(ISERROR(VLOOKUP(K157,Proposito_programa!$C$2:$E$59,2,FALSE))," ",VLOOKUP(K157,Proposito_programa!$C$2:$E$59,2,FALSE)) -> Sistema Distrital de Cuidado | M157: =IF(ISERROR(VLOOKUP(K157,Proposito_programa!$C$2:$E$59,3,FALSE))," ",VLOOKUP(K157,Proposito_programa!$C$2:$E$59,3,FALSE)) -> Propósito 1: Hacer un nuevo contrato social para incrementar la inclusión social, productiva y política | N157: 133011601060000002135 | P157: 64574720 | Q157: MARTHA BEATRIZ BUELVAS PADILLA | R157: Persona Natural | V157: 12719000 | X157: 1 | Y157: 1453600 | Z157: 14172600 | AA157: 12416167 | AB157: 2021-04-16 | AC157: 2021-05-06 | AD157: 2021-12-05 | AE157: 210 | AF157: 1 | AG157: 24 | AN157: X | AP157: 0.8760683996
A158: 150 | B158: 2021 | C158: FDLBU-CD-001-2165 | D158: https://community.secop.gov.co/Public/Tendering/ContractNoticePhases/View?PPI=CO1.PPI.12797261&isFromPublicArea=True&isModal=False | E158: Contratos de prestación de servicios profesionales y de apoyo a la gestión | F158: Contratación directa | G158: Prestación de servicios profesionales y de apoyo a la gestión, o para la ejecución de trabajos artísticos que sólo puedan encomendarse a determinadas personas naturales; | H158: PRESTAR SERVICIOS DE APOYO A LA GESTIÓN DEL DESARROLLO EN LAS LABORES DE PLANEACIÓN EN LAS ACTIVIDADES RELATIVAS A LA PREVENCIÓN DEL EMBARAZO ADOLESCENTE NO DESEADO | I158: Inversión | J158: Un Nuevo Contrato Social y Ambiental para la Bogotá del Siglo XXI | K158: 39 | L158: =IF(ISERROR(VLOOKUP(K158,Proposito_programa!$C$2:$E$59,2,FALSE))," ",VLOOKUP(K158,Proposito_programa!$C$2:$E$59,2,FALSE)) -> Bogotá territorio de paz y atención integral a las víctimas del conflicto armado | M158: =IF(ISERROR(VLOOKUP(K158,Proposito_programa!$C$2:$E$59,3,FALSE))," ",VLOOKUP(K158,Proposito_programa!$C$2:$E$59,3,FALSE)) -> Propósito 3: Inspirar confianza y legitimidad para vivir sin miedo y ser epicentro de cultura ciudadana, paz y reconciliación | N158: 133011603390000002030 | P158: 1033744923 | Q158: LEIDY LORENA CUERVO GONZALEZ | R158: Persona Natural | V158: 14536000 | X158: 1 | Y158: 1453600 | Z158: 15989600 | AA158: 13264100 | AB158: 2021-04-20 | AC158: 2021-04-22 | AD158: 2021-12-23 | AE158: 240 | AF158: 1 | AG158: 24 | AN158: X | AP158: 0.8295454545
A159: 151 | B159: 2021 | C159: FDLBU-CD-001-2166 | D159: https://community.secop.gov.co/Public/Tendering/ContractNoticePhases/View?PPI=CO1.PPI.12885876&isFromPublicArea=True&isModal=False | E159: Contratos de prestación de servicios profesionales y de apoyo a la gestión | F159: Contratación directa | G159: Prestación de servicios profesionales y de apoyo a la gestión, o para la ejecución de trabajos artísticos que sólo puedan encomendarse a determinadas personas naturales; | H159: PRESTAR SERVICIOS DE APOYO A LA GESTIÓN DEL DESARROLLO EN LAS LABORES DE PLANEACIÓN REFERENTES A LA REACTIVACIÓN DE LA ECONOMÍA LOCAL | I159: Inversión | J159: Un Nuevo Contrato Social y Ambiental para la Bogotá del Siglo XXI | K159: 6 | L159: =IF(ISERROR(VLOOKUP(K159,Proposito_programa!$C$2:$E$59,2,FALSE))," ",VLOOKUP(K159,Proposito_programa!$C$2:$E$59,2,FALSE)) -> Sistema Distrital de Cuidado | M159: =IF(ISERROR(VLOOKUP(K159,Proposito_programa!$C$2:$E$59,3,FALSE))," ",VLOOKUP(K159,Proposito_programa!$C$2:$E$59,3,FALSE)) -> Propósito 1: Hacer un nuevo contrato social para incrementar la inclusión social, productiva y política | N159: 133011601060000002135 | P159: 1018515376 | Q159: JUAN CAMILO RAMOS CALDERON | R159: Persona Natural | V159: 12719000 | Z159: 12719000 | AA159: 11386533 | AB159: 2021-04-16 | AC159: 2021-04-23 | AD159: 2021-11-22 | AE159: 210 | AN159: X | AP159: 0.895238069
A160: 152 | B160: 2021 | C160: FDLBU-CD-001-2167 | D160: https://community.secop.gov.co/Public/Tendering/ContractNoticePhases/View?PPI=CO1.PPI.12890736&isFromPublicArea=True&isModal=False | E160: Contratos de prestación de servicios profesionales y de apoyo a la gestión | F160: Contratación directa | G160: Prestación de servicios profesionales y de apoyo a la gestión, o para la ejecución de trabajos artísticos que sólo puedan encomendarse a determinadas personas naturales; | H160: PRESTAR SERVICIOS DE APOYO A LA GESTIÓN DEL DESARROLLO EN LAS LABORES DE PLANEACIÓN REFERENTES A LA REACTIVACIÓN DE LA ECONOMÍA LOCAL | I160: Inversión | J160: Un Nuevo Contrato Social y Ambiental para la Bogotá del Siglo XXI | K160: 6 | L160: =IF(ISERROR(VLOOKUP(K160,Proposito_programa!$C$2:$E$59,2,FALSE))," ",VLOOKUP(K160,Proposito_programa!$C$2:$E$59,2,FALSE)) -> Sistema Distrital de Cuidado | M160: =IF(ISERROR(VLOOKUP(K160,Proposito_programa!$C$2:$E$59,3,FALSE))," ",VLOOKUP(K160,Proposito_programa!$C$2:$E$59,3,FALSE)) -> Propósito 1: Hacer un nuevo contrato social para incrementar la inclusión social, productiva y política | N160: 133011601060000002135 | P160: 1030546475 | Q160: JONATHAN ALEJANDRO RODRIGUEZ NIÑO | R160: Persona Natural | V160: 12719000 | Z160: 12719000 | AA160: 11507667 | AB160: 2021-04-17 | AC160: 2021-04-21 | AD160: 2021-11-20 | AE160: 210 | AN160: X | AP160: 0.904761931
A161: 153 | B161: 2021 | C161: FDLBU-CD-001-2168 | D161: https://community.secop.gov.co/Public/Tendering/ContractNoticePhases/View?PPI=CO1.PPI.12840318&isFromPublicArea=True&isModal=False | E161: Contratos de prestación de servicios profesionales y de apoyo a la gestión | F161: Contratación directa | G161: Prestación de servicios profesionales y de apoyo a la gestión, o para la ejecución de trabajos artísticos que sólo puedan encomendarse a determinadas personas naturales; | H161: PRESTAR SERVICIOS DE APOYO A LA GESTIÓN DEL DESARROLLO EN EL ÁREA DE PLANEACIÓN EN LAS ACTIVIDADES ENMARCADAS EN EL CUMPLIMIENTO DE LA META DE ACUERDOS EN COMUNIDAD PARA LA VIGENCIA 2021 | I161: Inversión | J161: Un Nuevo Contrato Social y Ambiental para la Bogotá del Siglo XXI | K161: 45 | L161: =IF(ISERROR(VLOOKUP(K161,Proposito_programa!$C$2:$E$59,2,FALSE))," ",VLOOKUP(K161,Proposito_programa!$C$2:$E$59,2,FALSE)) -> Espacio público más seguro y construido colectivamente | M161: =IF(ISERROR(VLOOKUP(K161,Proposito_programa!$C$2:$E$59,3,FALSE))," ",VLOOKUP(K161,Proposito_programa!$C$2:$E$59,3,FALSE)) -> Propósito 3: Inspirar confianza y legitimidad para vivir sin miedo y ser epicentro de cultura ciudadana, paz y reconciliación | N161: 133011603450000002038 | P161: 52019196 | Q161: GLADYS ROCIO GUERRA FORERO | R161: Persona Natural | V161: 18168000 | Z161: 18168000 | AA161: 16654000 | AB161: 2021-04-20 | AC161: 2021-04-21 | AD161: 2021-12-20 | AE161: 240 | AN161: X | AP161: 0.9166666667
A162: 154 | B162: 2021 | C162: FDLBU-CD-001-2169 | D162: https://community.secop.gov.co/Public/Tendering/ContractNoticePhases/View?PPI=CO1.PPI.12654342&isFromPublicArea=True&isModal=False | E162: Contratos de prestación de servicios profesionales y de apoyo a la gestión | F162: Contratación directa | G162: Prestación de servicios profesionales y de apoyo a la gestión, o para la ejecución de trabajos artísticos que sólo puedan encomendarse a determinadas personas naturales; | H162: PRESTAR SERVICIOS DE APOYO A LA GESTIÓN DEL DESARROLLO EN LAS LABORES DE PLANEACIÓN EN LAS ACTIVIDADES CONCERNIENTES AL PROYECTO IMPULSEMOS ECONOMÍA LOCAL | I162: Inversión | J162: Un Nuevo Contrato Social y Ambiental para la Bogotá del Siglo XXI | K162: 6 | L162: =IF(ISERROR(VLOOKUP(K162,Proposito_programa!$C$2:$E$59,2,FALSE))," ",VLOOKUP(K162,Proposito_programa!$C$2:$E$59,2,FALSE)) -> Sistema Distrital de Cuidado | M162: =IF(ISERROR(VLOOKUP(K162,Proposito_programa!$C$2:$E$59,3,FALSE))," ",VLOOKUP(K162,Proposito_programa!$C$2:$E$59,3,FALSE)) -> Propósito 1: Hacer un nuevo contrato social para incrementar la inclusión social, productiva y política | N162: 133011601060000002135 | P162: 1133839106 | Q162: VIUNYS PAOLA VERGARA SOTO | R162: Persona Natural | V162: 18168000 | X162: 1 | Y162: 529900 | Z162: 18697900 | AA162: 16578300 | AB162: 2021-04-20 | AC162: 2021-04-22 | AD162: 2021-12-21 | AE162: 240 | AF162: 1 | AG162: 7 | AN162: X | AP162: 0.8866396761
A163: 155 | B163: 2021 | C163: FDLBU-CD-001-2170 | D163: https://community.secop.gov.co/Public/Tendering/ContractNoticePhases/View?PPI=CO1.PPI.12880908&isFromPublicArea=True&isModal=False | E163: Contratos de prestación de servicios profesionales y de apoyo a la gestión | F163: Contratación directa | G163: Prestación de servicios profesionales y de apoyo a la gestión, o para la ejecución de trabajos artísticos que sólo puedan encomendarse a determinadas personas naturales; | H163: PRESTAR SERVICIOS DE APOYO A LA DE GESTIÓN DEL DESARROLLO EN LAS LABORES DE PLANEACIÓN CON EL FIN DE LOGRAR EL CUMPLIMIENTO DE LAS METAS DEL PLAN DE DESARROLLO LOCAL DE LA VIGENCIA RELATIVAS AL PROYECTO IMPULSEMOS ECONOMÍA LOCA | I163: Inversión | J163: Un Nuevo Contrato Social y Ambiental para la Bogotá del Siglo XXI | K163: 6 | L163: =IF(ISERROR(VLOOKUP(K163,Proposito_programa!$C$2:$E$59,2,FALSE))," ",VLOOKUP(K163,Proposito_programa!$C$2:$E$59,2,FALSE)) -> Sistema Distrital de Cuidado | M163: =IF(ISERROR(VLOOKUP(K163,Proposito_programa!$C$2:$E$59,3,FALSE))," ",VLOOKUP(K163,Proposito_programa!$C$2:$E$59,3,FALSE)) -> Propósito 1: Hacer un nuevo contrato social para incrementar la inclusión social, productiva y política | N163: 133011601060000002135 | P163: 1030648943 | Q163: KARLA ANDREA TARAZONA RAMIREZ | R163: Persona Natural | V163: 26350000 | Z163: 26350000 | AA163: 22630000 | AB163: 2021-04-19 | AC163: 2021-04-22 | AD163: 2021-12-31 | AE163: 255 | AF163: 1 | AG163: 5 | AN163: X | AP163: 0.8588235294
A164: 156 | B164: 2021 | C164: FDLBU-CD-001-2171 | D164: https://community.secop.gov.co/Public/Tendering/ContractNoticePhases/View?PPI=CO1.PPI.12870252&isFromPublicArea=True&isModal=False | E164: Contratos de prestación de servicios profesionales y de apoyo a la gestión | F164: Contratación directa | G164: Prestación de servicios profesionales y de apoyo a la gestión, o para la ejecución de trabajos artísticos que sólo puedan encomendarse a determinadas personas naturales; | H164: PRESTAR SERVICIOS DE APOYO A LA GESTIÓN DEL DESARROLLO EN LABORES DE PLANEACIÓN EN LAS ACTIVIDADES RELATIVAS A LA MEMORIA, LA PAZ Y LA RECONCILIACIÓN EN EL MARCO DEL PROYECTO DE INVERSIÓN BARRIOS UNIDOS TERRITORIO DE PAZ | I164: Inversión | J164: Un Nuevo Contrato Social y Ambiental para la Bogotá del Siglo XXI | K164: 39 | L164: =IF(ISERROR(VLOOKUP(K164,Proposito_programa!$C$2:$E$59,2,FALSE))," ",VLOOKUP(K164,Proposito_programa!$C$2:$E$59,2,FALSE)) -> Bogotá territorio de paz y atención integral a las víctimas del conflicto armado | M164: =IF(ISERROR(VLOOKUP(K164,Proposito_programa!$C$2:$E$59,3,FALSE))," ",VLOOKUP(K164,Proposito_programa!$C$2:$E$59,3,FALSE)) -> Propósito 3: Inspirar confianza y legitimidad para vivir sin miedo y ser epicentro de cultura ciudadana, paz y reconciliación | N164: 133011603390000002030 | P164: 1014234728 | Q164: JINNA PAOLA GERENA ROJAS | R164: Persona Natural | V164: 14536000 | X164: 1 | Y164: 908500 | Z164: 15444500 | AA164: 12900700 | AB164: 2021-04-21 | AC164: 2021-04-28 | AD164: 2021-12-27 | AE164: 240 | AF164: 1 | AG164: 18 | AN164: X | AP164: 0.8352941176
A165: OC 66323 | B165: 2021 | C165: FDLBU-CD-001-2172 | D165: https://www.colombiacompra.gov.co/tienda-virtual-del-estado-colombiano/ordenes-compra/66323 | E165: Otros | F165: Selección abreviada | G165: Acuerdo marco de precios | H165: CONTRATAR EL SERVICIO INTEGRAL Y SUMINISTRO DE PRODUCTOS DE ASEO Y CAFETERÍA, INCLUIDA LA MAQUINARIA Y LOS EQUIPOS NECESARIOS PARA EL DESARROLLO DEL MISMO PARA LAS DEPENDENCIAS DE LA ALCALDÍA LOCAL DE BARRIOS UNIDOS | I165: Funcionamiento | J165: Un Nuevo Contrato Social y Ambiental para la Bogotá del Siglo XXI | L165: =IF(ISERROR(VLOOKUP(K165,Proposito_programa!$C$2:$E$59,2,FALSE))," ",VLOOKUP(K165,Proposito_programa!$C$2:$E$59,2,FALSE)) ->  | M165: =IF(ISERROR(VLOOKUP(K165,Proposito_programa!$C$2:$E$59,3,FALSE))," ",VLOOKUP(K165,Proposito_programa!$C$2:$E$59,3,FALSE)) ->  | N165: 0 | O165: 17 | P165: 901351386 | Q165: UT EMINSER -SOLOASEO 2020 | R165: Unión Temporal | V165: 140991837 | X165: 1 | Y165: 3350000 | Z165: 144341837 | AA165: 109457468 | AB165: 2021-03-26 | AC165: 2021-04-05 | AD165: 2022-02-04 | AE165: 300 | AN165: X | AP165: 0.7583211512
A166: 157 | B166: 2021 | C166: FDLBU-CD-001-2173 | D166: https://community.secop.gov.co/Public/Tendering/ContractNoticePhases/View?PPI=CO1.PPI.12842500&isFromPublicArea=True&isModal=False | E166: Contratos de prestación de servicios profesionales y de apoyo a la gestión | F166: Contratación directa | G166: Prestación de servicios profesionales y de apoyo a la gestión, o para la ejecución de trabajos artísticos que sólo puedan encomendarse a determinadas personas naturales; | H166: PRESTAR SERVICIOS PROFESIONALES PARA APOYAR AL ÁREA GESTIÓN DEL DESARROLLO ADMINISTRATIVO Y FINANCIERO EN LOS ASUNTOS RELATIVOS A LA PLANEACIÓN LOCAL: GARANTIZAR LA IMPLEMENTACIÓN Y SEGUIMIENTO DE LOS PROCESOS, PROYECTOS Y PROCEDIMIENTOS DE CONTRATOS SUSCRITOS POR LA ALCALDÍA LOCAL DE BARRIOS UNIDOS DIRIGIDOS AL CUMPLIMIENTO DE LAS META DE PEDAGOGÍA DEL CÓDIGO NACIONAL DE SEGURIDAD Y CONVIVENCIA | I166: Inversión | J166: Un Nuevo Contrato Social y Ambiental para la Bogotá del Siglo XXI | K166: 48 | L166: =IF(ISERROR(VLOOKUP(K166,Proposito_programa!$C$2:$E$59,2,FALSE))," ",VLOOKUP(K166,Proposito_programa!$C$2:$E$59,2,FALSE)) -> Plataforma institucional para la seguridad y justicia | M166: =IF(ISERROR(VLOOKUP(K166,Proposito_programa!$C$2:$E$59,3,FALSE))," ",VLOOKUP(K166,Proposito_programa!$C$2:$E$59,3,FALSE)) -> Propósito 3: Inspirar confianza y legitimidad para vivir sin miedo y ser epicentro de cultura ciudadana, paz y reconciliación | N166: 133011603480000002153 | P166: 1032456062 | Q166: LAURA KATHERIN LAMPREA MARTINEZ | R166: Persona Natural | V166: 37145000 | Z166: 37145000 | AA166: 31755333 | AB166: 2021-04-21 | AC166: 2021-04-23 | AD166: 2021-12-31 | AE166: 255 | AF166: 1 | AG166: 7 | AN166: X | AP166: 0.8549019518
A167: 158 | B167: 2021 | C167: FDLBU-CD-001-2174 | D167: https://community.secop.gov.co/Public/Tendering/ContractNoticePhases/View?PPI=CO1.PPI.12910108&isFromPublicArea=True&isModal=False | E167: Contratos de prestación de servicios profesionales y de apoyo a la gestión | F167: Contratación directa | G167: Prestación de servicios profesionales y de apoyo a la gestión, o para la ejecución de trabajos artísticos que sólo puedan encomendarse a determinadas personas naturales; | H167: PRESTAR SERVICIOS DE APOYO A LA GESTIÓN DEL DESARROLLO EN LABORES DE PLANEACIÓN EN LAS ACTIVIDADES RELATIVAS A DEPORTE, RECREACIÓN Y CULTURA | I167: Inversión | J167: Un Nuevo Contrato Social y Ambiental para la Bogotá del Siglo XXI | K167: 21 | L167: =IF(ISERROR(VLOOKUP(K167,Proposito_programa!$C$2:$E$59,2,FALSE))," ",VLOOKUP(K167,Proposito_programa!$C$2:$E$59,2,FALSE)) -> Creación y vida cotidiana: Apropiación ciudadana del arte, la cultura y el patrimonio, para la democracia cultural | M167: =IF(ISERROR(VLOOKUP(K167,Proposito_programa!$C$2:$E$59,3,FALSE))," ",VLOOKUP(K167,Proposito_programa!$C$2:$E$59,3,FALSE)) -> Propósito 1: Hacer un nuevo contrato social para incrementar la inclusión social, productiva y política | N167: 133011601210000002012 | P167: 80110196 | Q167: EDGAR MAURICIO VARGAS LESMES | R167: Persona Natural | V167: 18168000 | X167: 1 | Y167: 1514000 | Z167: 19682000 | AA167: 16275500 | AB167: 2021-04-22 | AC167: 2021-04-26 | AD167: 2021-12-25 | AE167: 240 | AF167: 1 | AG167: 20 | AN167: X | AP167: 0.8269230769
A168: 159 | B168: 2021 | C168: FDLBU-CD-001-2175 | D168: https://community.secop.gov.co/Public/Tendering/ContractNoticePhases/View?PPI=CO1.PPI.12794825&isFromPublicArea=True&isModal=False | E168: Contratos de prestación de servicios profesionales y de apoyo a la gestión | F168: Contratación directa | G168: Prestación de servicios profesionales y de apoyo a la gestión, o para la ejecución de trabajos artísticos que sólo puedan encomendarse a determinadas personas naturales; | H168: PRESTAR SERVICIOS PROFESIONALES PARA APOYAR AL ÁREA GESTIÓN DEL DESARROLLO ADMINISTRATIVO Y FINANCIERO EN LOS ASUNTOS RELATIVOS A LA PLANEACIÓN LOCAL: COORDINAR Y GARANTIZAR LA IMPLEMENTACIÓN Y SEGUIMIENTO DE LOS PROCESOS, PROYECTOS Y PROCEDIMIENTOS DE CONTRATOS SUSCRITOS POR LA ALCALDÍA LOCAL DE BARRIOS UNIDOS DIRIGIDOS AL CUMPLIMIENTO DE LAS METAS DE LA LÍNEA DE INVERSIONES AMBIENTALES SOSTENIBLES | I168: Inversión | J168: Un Nuevo Contrato Social y Ambiental para la Bogotá del Siglo XXI | K168: 27 | L168: =IF(ISERROR(VLOOKUP(K168,Proposito_programa!$C$2:$E$59,2,FALSE))," ",VLOOKUP(K168,Proposito_programa!$C$2:$E$59,2,FALSE)) -> Cambio cultural para la gestión de la crisis climática | M168: =IF(ISERROR(VLOOKUP(K168,Proposito_programa!$C$2:$E$59,3,FALSE))," ",VLOOKUP(K168,Proposito_programa!$C$2:$E$59,3,FALSE)) -> Propósito 2 : Cambiar Nuestros Hábitos de Vida para Reverdecer a Bogotá y Adaptarnos y Mitigar la Crisis Climática | N168: 133011602270000002011 | P168: 1014260138 | Q168: DIANA PAOLA LOPEZ DUARTE | R168: Persona Natural | V168: 42750000 | Z168: 42750000 | AA168: 34516667 | AB168: 2021-04-22 | AC168: 2021-04-23 | AD168: 2021-12-31 | AE168: 270 | AF168: 1 | AG168: 22 | AN168: X | AP168: 0.8074074152
A169: 160 | B169: 2021 | C169: FDLBU-CD-001-2176 | D169: https://community.secop.gov.co/Public/Tendering/ContractNoticePhases/View?PPI=CO1.PPI.12922331&isFromPublicArea=True&isModal=False | E169: Contratos de prestación de servicios profesionales y de apoyo a la gestión | F169: Contratación directa | G169: Prestación de servicios profesionales y de apoyo a la gestión, o para la ejecución de trabajos artísticos que sólo puedan encomendarse a determinadas personas naturales; | H169: PRESTAR SERVICIOS PROFESIONALES PARA APOYAR AL ÁREA GESTIÓN DEL DESARROLLO ADMINISTRATIVO Y FINANCIERO EN LOS ASUNTOS RELATIVOS A LA PLANEACIÓN LOCAL: GARANTIZAR LA IMPLEMENTACIÓN Y SEGUIMIENTO DE LOS PROCESOS, PROYECTOS Y PROCEDIMIENTOS DE CONTRATOS SUSCRITOS POR LA ALCALDÍA LOCAL DE BARRIOS UNIDOS DIRIGIDOS AL CUMPLIMIENTO DE LAS METAS DE LA LÍNEA DE ENVERSIONES AMBIENTALES SOSTENIBLES | I169: Inversión | J169: Un Nuevo Contrato Social y Ambiental para la Bogotá del Siglo XXI | K169: 24 | L169: =IF(ISERROR(VLOOKUP(K169,Proposito_programa!$C$2:$E$59,2,FALSE))," ",VLOOKUP(K169,Proposito_programa!$C$2:$E$59,2,FALSE)) -> Bogotá región emprendedora e innovadora | M169: =IF(ISERROR(VLOOKUP(K169,Proposito_programa!$C$2:$E$59,3,FALSE))," ",VLOOKUP(K169,Proposito_programa!$C$2:$E$59,3,FALSE)) -> Propósito 1: Hacer un nuevo contrato social para incrementar la inclusión social, productiva y política | N169: 133011601240000002073 | P169: 53130506 | Q169: ANGELICA MARIA ESPINO | R169: Persona Natural | V169: 41515000 | Z169: 41515000 | AA169: 31318333 | AB169: 2021-04-23 | AC169: 2021-04-26 | AD169: 2021-12-31 | AE169: 285 | AF169: 1 | AG169: 22 | AN169: X | AP169: 0.7543859569
A170: 161 | B170: 2021 | C170: FDLBU-CD-001-2177 | D170: https://community.secop.gov.co/Public/Tendering/ContractNoticePhases/View?PPI=CO1.PPI.12985948&isFromPublicArea=True&isModal=False | E170: Contratos de prestación de servicios profesionales y de apoyo a la gestión | F170: Contratación directa | G170: Prestación de servicios profesionales y de apoyo a la gestión, o para la ejecución de trabajos artísticos que sólo puedan encomendarse a determinadas personas naturales; | H170: PRESTAR SERVICIOS DE APOYO ADMINISTRATIVA Y ASISTENCIALMENTE A LAS INSPECCIONES DE POLICÍA DE LA LOCALIDAD | I170: Inversión | J170: Un Nuevo Contrato Social y Ambiental para la Bogotá del Siglo XXI | K170: 57 | L170: =IF(ISERROR(VLOOKUP(K170,Proposito_programa!$C$2:$E$59,2,FALSE))," ",VLOOKUP(K170,Proposito_programa!$C$2:$E$59,2,FALSE)) -> Gestión pública local | M170: =IF(ISERROR(VLOOKUP(K170,Proposito_programa!$C$2:$E$59,3,FALSE))," ",VLOOKUP(K170,Proposito_programa!$C$2:$E$59,3,FALSE)) -> Propósito 5: Construir Bogotá - Región con gobierno abierto, transparente y ciudadanía consciente | N170: 133011605570000002143 | P170: 79796296 | Q170: EDGAR ANDRÉS CORTES TORRES | R170: Persona Natural | V170: 15897000 | X170: 1 | Y170: 2498100 | Z170: 18395100 | AA170: 16124100 | AB170: 2021-04-26 | AC170: 2021-04-28 | AD170: 2021-11-27 | AE170: 210 | AF170: 1 | AG170: 33 | AN170: X | AP170: 0.8765432099
A171: 162 | B171: 2021 | C171: FDLBU-CD-001-2178 | D171: https://community.secop.gov.co/Public/Tendering/ContractNoticePhases/View?PPI=CO1.PPI.12949315&isFromPublicArea=True&isModal=False | E171: Contratos de prestación de servicios profesionales y de apoyo a la gestión | F171: Contratación directa | G171: Prestación de servicios profesionales y de apoyo a la gestión, o para la ejecución de trabajos artísticos que sólo puedan encomendarse a determinadas personas naturales; | H171: PRESTAR LOS SERVICIOS PROFESIONALES PARA APOYAR AL ÁREA DE GESTIÓN POLICIVA Y DESPACHO DE LA ALCALDÍA LOCAL, CON EL FIN DE QUE CON SUJECIÓN AL ORDEN DE LLEGADA SE ADELANTEN LOS PROCESOS O PROCEDIMIENTOS CORRESPONDIENTES PARA EL TRÁMITE, AUXILIO Y DEVOLUCIÓN DE LAS COMISIONES QUE EN VIRTUD DEL ARTÍCULO Y SIGUIENTES DEL CÓDIGO GENERAL DEL PROCESO, SEAN DESIGNADAS POR LOS JUECES DE LA REPÚBLICA Y QUE CORRESPONDAN AL ÁMBITO TERRITORIAL DE ESTA ALCALDÍA. | I171: Inversión | J171: Un Nuevo Contrato Social y Ambiental para la Bogotá del Siglo XXI | K171: 57 | L171: =IF(ISERROR(VLOOKUP(K171,Proposito_programa!$C$2:$E$59,2,FALSE))," ",VLOOKUP(K171,Proposito_programa!$C$2:$E$59,2,FALSE)) -> Gestión pública local | M171: =IF(ISERROR(VLOOKUP(K171,Proposito_programa!$C$2:$E$59,3,FALSE))," ",VLOOKUP(K171,Proposito_programa!$C$2:$E$59,3,FALSE)) -> Propósito 5: Construir Bogotá - Región con gobierno abierto, transparente y ciudadanía consciente | N171: 133011605570000002143 | P171: 1015396314 | Q171: FERNADO AUGUSTO GARCIA BEJARANO | R171: Persona Natural | V171: 46400000 | X171: 1 | Y171: 3480000 | Z171: 49880000 | AA171: 41180000 | AB171: 2021-04-27 | AC171: 2021-04-28 | AD171: 2021-12-27 | AE171: 240 | AF171: 1 | AG171: 18 | AN171: X | AP171: 0.8255813953
A172: 163 | B172: 2021 | C172: FDLBU-CD-001-2179 | D172: https://community.secop.gov.co/Public/Tendering/ContractNoticePhases/View?PPI=CO1.PPI.12948292&isFromPublicArea=True&isModal=False | E172: Contratos de prestación de servicios profesionales y de apoyo a la gestión | F172: Contratación directa | G172: Prestación de servicios profesionales y de apoyo a la gestión, o para la ejecución de trabajos artísticos que sólo puedan encomendarse a determinadas personas naturales; | H172: PRESTAR SERVICIOS DE APOYO A LA GESTIÓN DEL DESARROLLO EN LAS ACTIVIDADES DE PEDAGOGÍA DEL CÓDIGO NACIONAL DE SEGURIDAD Y CONVIVENCIA | I172: Inversión | J172: Un Nuevo Contrato Social y Ambiental para la Bogotá del Siglo XXI | K172: 48 | L172: =IF(ISERROR(VLOOKUP(K172,Proposito_programa!$C$2:$E$59,2,FALSE))," ",VLOOKUP(K172,Proposito_programa!$C$2:$E$59,2,FALSE)) -> Plataforma institucional para la seguridad y justicia | M172: =IF(ISERROR(VLOOKUP(K172,Proposito_programa!$C$2:$E$59,3,FALSE))," ",VLOOKUP(K172,Proposito_programa!$C$2:$E$59,3,FALSE)) -> Propósito 3: Inspirar confianza y legitimidad para vivir sin miedo y ser epicentro de cultura ciudadana, paz y reconciliación | N172: 133011603480000002153 | P172: 79470484 | Q172: WALTER YAIR GUARIN GONZALEZ | R172: Persona Natural | V172: 14536000 | Z172: 14536000 | AA172: 12476733 | AB172: 2021-04-30 | AC172: 2021-05-05 | AD172: 2021-12-31 | AE172: 240 | AF172: 1 | AG172: 4 | AN172: X | AP172: 0.8583333104
A173: 164 | B173: 2021 | C173: FDLBU-CD-001-2180 | D173: https://community.secop.gov.co/Public/Tendering/ContractNoticePhases/View?PPI=CO1.PPI.12955244&isFromPublicArea=True&isModal=False | E173: Contratos de prestación de servicios profesionales y de apoyo a la gestión | F173: Contratación directa | G173: Prestación de servicios profesionales y de apoyo a la gestión, o para la ejecución de trabajos artísticos que sólo puedan encomendarse a determinadas personas naturales; | H173: PRESTAR SERVICIOS PROFESIONALES PARA GESTIÓN DE LOS TRÁMITES DEL PROCESO DE COBRO PERSUASIVO DE ACREENCIAS A FAVOR DE LA ADMINISTRACIÓN DISTRITAL PARA LOGRAR EL PAGO VOLUNTARIO DE LAS MISMAS, Y SEGUIMIENTO AL COBRO COACTIVO | I173: Inversión | J173: Un Nuevo Contrato Social y Ambiental para la Bogotá del Siglo XXI | K173: 57 | L173: =IF(ISERROR(VLOOKUP(K173,Proposito_programa!$C$2:$E$59,2,FALSE))," ",VLOOKUP(K173,Proposito_programa!$C$2:$E$59,2,FALSE)) -> Gestión pública local | M173: =IF(ISERROR(VLOOKUP(K173,Proposito_programa!$C$2:$E$59,3,FALSE))," ",VLOOKUP(K173,Proposito_programa!$C$2:$E$59,3,FALSE)) -> Propósito 5: Construir Bogotá - Región con gobierno abierto, transparente y ciudadanía consciente | N173: 133011605570000002143 | P173: 1016016305 | Q173: JHONATAN DUCUARA CAITA | R173: Persona Natural | V173: 38000000 | Z173: 38000000 | AA173: 20741667 | AB173: 2021-04-29 | AC173: 2021-05-03 | AD173: 2022-01-14 | AE173: 240 | AF173: 1 | AG173: 2 | AI173: ANA MELISSA ALMARIO PATARROYO | AJ173: 2021-07-01 | AN173: X | AP173: 0.5458333421
A174: 166 | B174: 2021 | C174: FDLBU-CD-001-2181 | D174: https://community.secop.gov.co/Public/Tendering/ContractNoticePhases/View?PPI=CO1.PPI.12606749&isFromPublicArea=True&isModal=False | E174: Contratos de prestación de servicios profesionales y de apoyo a la gestión | F174: Contratación directa | G174: Prestación de servicios profesionales y de apoyo a la gestión, o para la ejecución de trabajos artísticos que sólo puedan encomendarse a determinadas personas naturales; | H174: PRESTAR SERVICIOS DE APOYO A LA GESTIÓN DEL DESARROLLO EN LAS LABORES DE PLANEACIÓN EN LAS ACTIVIDADES RELATIVAS A LA PREVENCIÓN DEL EMBARAZO ADOLESCENTE NO DESEADO | I174: Inversión | J174: Un Nuevo Contrato Social y Ambiental para la Bogotá del Siglo XXI | K174: 8 | L174: =IF(ISERROR(VLOOKUP(K174,Proposito_programa!$C$2:$E$59,2,FALSE))," ",VLOOKUP(K174,Proposito_programa!$C$2:$E$59,2,FALSE)) -> Prevención y atención de maternidad temprana | M174: =IF(ISERROR(VLOOKUP(K174,Proposito_programa!$C$2:$E$59,3,FALSE))," ",VLOOKUP(K174,Proposito_programa!$C$2:$E$59,3,FALSE)) -> Propósito 1: Hacer un nuevo contrato social para incrementar la inclusión social, productiva y política | N174: 133011601080000002151 | P174: 79453631 | Q174: CESAR AUGUSTO BARRERA CUBILLOS | R174: Persona Natural | V174: 12719000 | X174: 1 | Y174: 1514167 | Z174: 14233167 | AA174: 12416167 | AB174: 2021-04-30 | AC174: 2021-05-06 | AD174: 2021-12-05 | AE174: 210 | AF174: 1 | AG174: 25 | AN174: X | AP174: 0.8723404285
A175: 167 | B175: 2021 | C175: FDLBU-CD-001-2182 | D175: https://community.secop.gov.co/Public/Tendering/ContractNoticePhases/View?PPI=CO1.PPI.13053257&isFromPublicArea=True&isModal=False | E175: Contratos de prestación de servicios profesionales y de apoyo a la gestión | F175: Contratación directa | G175: Prestación de servicios profesionales y de apoyo a la gestión, o para la ejecución de trabajos artísticos que sólo puedan encomendarse a determinadas personas naturales; | H175: PRESTAR SERVICIOS PROFESIONALES PARA APOYAR LA GESTIÓN DEL RIESGO QUE PROMUEVA LAS ACCIONES REQUERIDAS PARA LA PREVENCIÓN Y ATENCIÓN DE EMERGENCIAS O EVENTOS GENERADOS POR LA MATERIALIZACIÓN DE LOS RIESGOS Y RESPONDA DE MANERA OPERATIVA E INMEDIATA ANTE LA OCURRENCIA DE SITUACIONES ADVERSAS EN TEMAS DE EMERGENCIAS EN LA LOCALIDAD PARA EL LOGRO DE LAS METAS DE PLAN DE DESARROLLO LOCAL VIGENTE | I175: Inversión | J175: Un Nuevo Contrato Social y Ambiental para la Bogotá del Siglo XXI | K175: 30 | L175: =IF(ISERROR(VLOOKUP(K175,Proposito_programa!$C$2:$E$59,2,FALSE))," ",VLOOKUP(K175,Proposito_programa!$C$2:$E$59,2,FALSE)) -> Eficiencia en la atención de emergencias | M175: =IF(ISERROR(VLOOKUP(K175,Proposito_programa!$C$2:$E$59,3,FALSE))," ",VLOOKUP(K175,Proposito_programa!$C$2:$E$59,3,FALSE)) -> Propósito 2 : Cambiar Nuestros Hábitos de Vida para Reverdecer a Bogotá y Adaptarnos y Mitigar la Crisis Climática | N175: 133011602300000002103 | P175: 1010239208 | Q175: DIANA SOFIA CATALINA MORENO ESPITIA | R175: Persona Natural | V175: 34960000 | Z175: 34960000 | AA175: 28696333 | AB175: 2021-05-06 | AC175: 2021-05-14 | AD175: 2021-12-31 | AE175: 240 | AF175: 1 | AG175: 13 | AN175: X | AP175: 0.8208333238
A176: 168 | B176: 2021 | C176: FDLBU-CD-001-2183 | D176: https://community.secop.gov.co/Public/Tendering/ContractNoticePhases/View?PPI=CO1.PPI.13141221&isFromPublicArea=True&isModal=False | E176: Contratos de prestación de servicios profesionales y de apoyo a la gestión | F176: Contratación directa | G176: Prestación de servicios profesionales y de apoyo a la gestión, o para la ejecución de trabajos artísticos que sólo puedan encomendarse a determinadas personas naturales; | H176: PRESTAR SERVICIOS DE APOYO A LA GESTIÓN DEL DESARROLLO EN LABORES DE PLANEACIÓN EN LAS ACTIVIDADES RELATIVAS A LOS PROYECTOS AMBIENTALES DE LA VIGENCIA 2021 DE LA LÍNEA DE INVERSIONES AMBIENTALES | I176: Inversión | J176: Un Nuevo Contrato Social y Ambiental para la Bogotá del Siglo XXI | K176: 38 | L176: =IF(ISERROR(VLOOKUP(K176,Proposito_programa!$C$2:$E$59,2,FALSE))," ",VLOOKUP(K176,Proposito_programa!$C$2:$E$59,2,FALSE)) -> Ecoeficiencia, reciclaje, manejo de residuos e inclusión de la población recicladora | M176: =IF(ISERROR(VLOOKUP(K176,Proposito_programa!$C$2:$E$59,3,FALSE))," ",VLOOKUP(K176,Proposito_programa!$C$2:$E$59,3,FALSE)) -> Propósito 2 : Cambiar Nuestros Hábitos de Vida para Reverdecer a Bogotá y Adaptarnos y Mitigar la Crisis Climática | N176: 133011602380000002082 | P176: 79501810 | Q176: CARLOS EDUARDO LÓPEZ BRICEÑO | R176: Persona Natural | V176: 14536000 | Z176: 14536000 | AA176: 12113333 | AB176: 2021-05-07 | AC176: 2021-05-11 | AD176: 2021-12-31 | AE176: 240 | AF176: 1 | AG176: 10 | AN176: X | AP176: 0.8333333104
A177: 169 | B177: 2021 | C177: FDLBU-CD-001-2184 | D177: https://community.secop.gov.co/Public/Tendering/ContractNoticePhases/View?PPI=CO1.PPI.13156644&isFromPublicArea=True&isModal=False | E177: Contratos de prestación de servicios profesionales y de apoyo a la gestión | F177: Contratación directa | G177: Prestación de servicios profesionales y de apoyo a la gestión, o para la ejecución de trabajos artísticos que sólo puedan encomendarse a determinadas personas naturales; | H177: PRESTAR SERVICIOS DE APOYO A LA GESTION DEL DESARROLLO EN LAS LABORES DE PLANEACION PARA LAS ACTIVIDADES DEL PROCESO DE PARTICIPACION | I177: Inversión | J177: Un Nuevo Contrato Social y Ambiental para la Bogotá del Siglo XXI | K177: 55 | L177: =IF(ISERROR(VLOOKUP(K177,Proposito_programa!$C$2:$E$59,2,FALSE))," ",VLOOKUP(K177,Proposito_programa!$C$2:$E$59,2,FALSE)) -> Fortalecimiento de cultura ciudadana y su institucionalidad | M177: =IF(ISERROR(VLOOKUP(K177,Proposito_programa!$C$2:$E$59,3,FALSE))," ",VLOOKUP(K177,Proposito_programa!$C$2:$E$59,3,FALSE)) -> Propósito 5: Construir Bogotá - Región con gobierno abierto, transparente y ciudadanía consciente | N177: 133011605550000002141 | P177: 52451825 | Q177: ÁNGELA INÉS BUENAVENTURA BURBANO | R177: Persona Natural | V177: 14536000 | Z177: 14536000 | AA177: 11689367 | AB177: 2021-05-07 | AC177: 2021-05-18 | AD177: 2021-12-31 | AE177: 240 | AN177: X | AP177: 0.8041666896
A178: 170 | B178: 2021 | C178: FDLBU-CD-001-2185 | D178: https://community.secop.gov.co/Public/Tendering/ContractNoticePhases/View?PPI=CO1.PPI.13031818&isFromPublicArea=True&isModal=False | E178: Contratos de prestación de servicios profesionales y de apoyo a la gestión | F178: Contratación directa | G178: Prestación de servicios profesionales y de apoyo a la gestión, o para la ejecución de trabajos artísticos que sólo puedan encomendarse a determinadas personas naturales; | H178: PRESTAR SERVICIOS DE APOYO A LA GESTIÓN DEL RIESGO QUE PROMUEVA LAS ACCIONES REQUERIDAS PARA LA PREVENCIÓN Y ATENCIÓN DE EMERGENCIAS O EVENTOS GENERADOS POR LA MATERIALIZACIÓN DE LOS RIESGOS Y RESPONDA DE MANERA OPERATIVA E INMEDIATA ANTE LA OCURRENCIA DE SITUACIONES ADVERSAS EN TEMAS DE EMERGENCIAS EN LA LOCALIDAD. | I178: Inversión | J178: Un Nuevo Contrato Social y Ambiental para la Bogotá del Siglo XXI | K178: 30 | L178: =IF(ISERROR(VLOOKUP(K178,Proposito_programa!$C$2:$E$59,2,FALSE))," ",VLOOKUP(K178,Proposito_programa!$C$2:$E$59,2,FALSE)) -> Eficiencia en la atención de emergencias | M178: =IF(ISERROR(VLOOKUP(K178,Proposito_programa!$C$2:$E$59,3,FALSE))," ",VLOOKUP(K178,Proposito_programa!$C$2:$E$59,3,FALSE)) -> Propósito 2 : Cambiar Nuestros Hábitos de Vida para Reverdecer a Bogotá y Adaptarnos y Mitigar la Crisis Climática | N178: 133011602300000002103 | P178: 1014240273 | Q178: CARLOS MAURICIO MONTOYA TORO | R178: Persona Natural | V178: 10902000 | X178: 1 | Y178: 2907200 | Z178: 13809200 | AA178: 11992200 | AB178: 2021-05-11 | AC178: 2021-05-13 | AD178: 2021-11-12 | AE178: 180 | AF178: 1 | AG178: 48 | AN178: X | AP178: 0.8684210526
A179: 171 | B179: 2021 | C179: FDLBU-CD-001-2186 | D179: https://community.secop.gov.co/Public/Tendering/ContractNoticePhases/View?PPI=CO1.PPI.13311224&isFromPublicArea=True&isModal=False | E179: Contratos de prestación de servicios profesionales y de apoyo a la gestión | F179: Contratación directa | G179: Prestación de servicios profesionales y de apoyo a la gestión, o para la ejecución de trabajos artísticos que sólo puedan encomendarse a determinadas personas naturales; | H179: PRESTAR SERVICIOS PROFESIONALES PARA APOYAR AL ÁREA GESTIÓN DEL DESARROLLO ADMINISTRATIVO Y FINANCIERO EN LOS ASUNTOS RELATIVOS A LA PLANEACIÓN LOCAL: COORDINAR Y GARANTIZAR LA IMPLEMENTACIÓN Y SEGUIMIENTO DE LOS PROCESOS, PROYECTOS Y PROCEDIMIENTOS DE CONTRATOS SUSCRITOS POR LA ALCALDÍA LOCAL DE BARRIOS UNIDOS DIRIGIDOS AL CUMPLIMIENTO DE LAS METAS DE LA LÍNEA DE INVERSIONES AMBIENTALES SOSTENIBLES | I179: Inversión | J179: Un Nuevo Contrato Social y Ambiental para la Bogotá del Siglo XXI | K179: 28 | L179: =IF(ISERROR(VLOOKUP(K179,Proposito_programa!$C$2:$E$59,2,FALSE))," ",VLOOKUP(K179,Proposito_programa!$C$2:$E$59,2,FALSE)) -> Bogotá protectora de sus recursos naturales | M179: =IF(ISERROR(VLOOKUP(K179,Proposito_programa!$C$2:$E$59,3,FALSE))," ",VLOOKUP(K179,Proposito_programa!$C$2:$E$59,3,FALSE)) -> Propósito 2 : Cambiar Nuestros Hábitos de Vida para Reverdecer a Bogotá y Adaptarnos y Mitigar la Crisis Climática | N179: 133011602280000002009 | P179: 80109199 | Q179: JONATHAN ANDRES VILLAFRADEZ LOPEZ | R179: Persona Natural | V179: 42750000 | Z179: =+V179+W179+Y179 -> 42750000 | AA179: 24858333 | AB179: 2021-05-18 | AC179: 2021-05-24 | AD179: 2021-12-31 | AE179: 300 | AN179: X | AP179: 0.5814814737
A180: 172 | B180: 2021 | C180: FDLBU-CD-001-2187 | D180: https://community.secop.gov.co/Public/Tendering/ContractNoticePhases/View?PPI=CO1.PPI.13410113&isFromPublicArea=True&isModal=False | E180: Contratos de prestación de servicios profesionales y de apoyo a la gestión | F180: Contratación directa | G180: Prestación de servicios profesionales y de apoyo a la gestión, o para la ejecución de trabajos artísticos que sólo puedan encomendarse a determinadas personas naturales; | H180: PRESTAR SERVICIOS DE APOYO A LA DE GESTIÓN DEL DESARROLLO EN LABORES DE PLANEACIÓN, CON EL FIN DE LOGRAR EL CUMPLIMIENTO DE LAS METAS DEL PLAN DE DESARROLLO LOCAL DE LA VIGENCIA RELATIVAS A LA LÍNEA DE INVERSIONES AMBIENTALES SOSTENIBLES | I180: Inversión | J180: Un Nuevo Contrato Social y Ambiental para la Bogotá del Siglo XXI | K180: 27 | L180: =IF(ISERROR(VLOOKUP(K180,Proposito_programa!$C$2:$E$59,2,FALSE))," ",VLOOKUP(K180,Proposito_programa!$C$2:$E$59,2,FALSE)) -> Cambio cultural para la gestión de la crisis climática | M180: =IF(ISERROR(VLOOKUP(K180,Proposito_programa!$C$2:$E$59,3,FALSE))," ",VLOOKUP(K180,Proposito_programa!$C$2:$E$59,3,FALSE)) -> Propósito 2 : Cambiar Nuestros Hábitos de Vida para Reverdecer a Bogotá y Adaptarnos y Mitigar la Crisis Climática | N180: 133011602270000002011 | P180: 80224646 | Q180: PEDRO MIGUEL LOPEZ VELA | R180: Persona Natural | V180: 25600000 | Z180: 25600000 | AA180: 15786667 | AB180: 2021-05-27 | AC180: 2021-06-03 | AD180: 2021-12-31 | AE180: 240 | AF180: 1 | AG180: 23 | AN180: X | AP180: 0.6166666797
A181: 173 | B181: 2021 | C181: FDLBU-CD-001-2188 | D181: https://community.secop.gov.co/Public/Tendering/ContractNoticePhases/View?PPI=CO1.PPI.12838922&isFromPublicArea=True&isModal=False | E181: Contratos de prestación de servicios | F181: Selección abreviada | G181: Selección abreviada por menor cuantía | H181: PRESTACIÓN DEL SERVICIO DE VIGILANCIA Y SEGURIDAD PRIVADA CON ARMAS Y MEDIOS TECNOLÓGICOS PARA LAS INSTALACIONES DEL FONDO DE DESARROLLO LOCAL DE BARRIOS UNIDOS" | I181: Funcionamiento | J181: Un Nuevo Contrato Social y Ambiental para la Bogotá del Siglo XXI | L181: =IF(ISERROR(VLOOKUP(K181,Proposito_programa!$C$2:$E$59,2,FALSE))," ",VLOOKUP(K181,Proposito_programa!$C$2:$E$59,2,FALSE)) ->  | M181: =IF(ISERROR(VLOOKUP(K181,Proposito_programa!$C$2:$E$59,3,FALSE))," ",VLOOKUP(K181,Proposito_programa!$C$2:$E$59,3,FALSE)) ->  | N181: 0 | O181: 4 | P181: 800248541 | Q181: SEGURIDAD DIGITAL LTDA | R181: Persona Jurídica | V181: 261897006 | X181: 1 | Y181: 60087944 | Z181: 321984950 | AA181: 218032477 | AB181: 2021-06-01 | AC181: 2021-06-12 | AD181: 2022-01-03 | AE181: 203 | AF181: 1 | AG181: 45 | AM181: X | AP181: 0.6771511432
A182: OC 69872 | B182: 2021 | C182: FDLBU-CD-001-2189 | D182: https://colombiacompra.gov.co/tienda-virtual-del-estado-colombiano/ordenes-compra/69872 | E182: Otros | F182: Selección abreviada | G182: Acuerdo marco de precios | H182: ADQUIRIR LICENCIAS MICROSOFT OFFICE 365 E1, LICENCIAS MICROSOFT OFFICE 365 PARA LA ALCALDIA LOCAL DE BARRIOS UNIDOS | I182: Funcionamiento | J182: Un Nuevo Contrato Social y Ambiental para la Bogotá del Siglo XXI | L182: =IF(ISERROR(VLOOKUP(K182,Proposito_programa!$C$2:$E$59,2,FALSE))," ",VLOOKUP(K182,Proposito_programa!$C$2:$E$59,2,FALSE)) ->  | M182: =IF(ISERROR(VLOOKUP(K182,Proposito_programa!$C$2:$E$59,3,FALSE))," ",VLOOKUP(K182,Proposito_programa!$C$2:$E$59,3,FALSE)) ->  | N182: 0 | O182: 8 | P182: 800015853 | Q182: COLOMBIANA DE SOFTWARE Y HARDWARECOLSOF -S.A. | R182: Persona Jurídica | V182: 38095265 | Z182: 38095265 | AA182: 38095265 | AB182: 2021-05-27 | AC182: 2021-06-02 | AD182: 2021-08-02 | AE182: 60 | AN182: X | AP182: 1
A183: 174 | B183: 2021 | C183: FDLBU-CD-001-2190 | D183: https://community.secop.gov.co/Public/Tendering/ContractNoticePhases/View?PPI=CO1.PPI.13481059&isFromPublicArea=True&isModal=False | E183: Contratos de prestación de servicios profesionales y de apoyo a la gestión | F183: Contratación directa | G183: Prestación de servicios profesionales y de apoyo a la gestión, o para la ejecución de trabajos artísticos que sólo puedan encomendarse a determinadas personas naturales; | H183: PRESTAR SERVICIOS DE APOYO A LA GESTIÓN DEL DESARROLLO EN LAS ACTIVIDADES DE PEDAGOGÍA DEL CÓDIGO NACIONAL DE SEGURIDAD Y CONVIVENCIA | I183: Inversión | J183: Un Nuevo Contrato Social y Ambiental para la Bogotá del Siglo XXI | K183: 48 | L183: =IF(ISERROR(VLOOKUP(K183,Proposito_programa!$C$2:$E$59,2,FALSE))," ",VLOOKUP(K183,Proposito_programa!$C$2:$E$59,2,FALSE)) -> Plataforma institucional para la seguridad y justicia | M183: =IF(ISERROR(VLOOKUP(K183,Proposito_programa!$C$2:$E$59,3,FALSE))," ",VLOOKUP(K183,Proposito_programa!$C$2:$E$59,3,FALSE)) -> Propósito 3: Inspirar confianza y legitimidad para vivir sin miedo y ser epicentro de cultura ciudadana, paz y reconciliación | N183: 133011603480000002153 | P183: 79593197 | Q183: CESAR AUGUSTO BERNAL GAMEZ | R183: Persona Natural | V183: 14536000 | Z183: 14536000 | AA183: 10780867 | AB183: 2021-05-28 | AC183: 2021-06-03 | AD183: 2021-12-31 | AE183: 240 | AF183: 1 | AG183: 15 | AN183: X | AP183: 0.7416666896
A184: 175 | B184: 2021 | C184: FDLBU-CD-001-2191 | D184: https://community.secop.gov.co/Public/Tendering/ContractNoticePhases/View?PPI=CO1.PPI.13554977&isFromPublicArea=True&isModal=False | E184: Contratos de prestación de servicios profesionales y de apoyo a la gestión | G184: Prestación de servicios profesionales y de apoyo a la gestión, o para la ejecución de trabajos artísticos que sólo puedan encomendarse a determinadas personas naturales; | H184: PRESTAR LOS SERVICIOS TÉCNICOS PARA LA OPERACIÓN, SEGUIMIENTO Y CUMPLIMIENTO DE LOS PROCESOS Y PROCEDIMIENTOS DEL SERVICIO, APOYOS PARA LA SEGURIDAD ECONÓMICA TIPO C, REQUERIDOS PARA EL OPORTUNO Y ADECUADO REGISTRO, CRUCE Y REPORTE DE LOS DATOS EN EL SISTEMA MISIONAL SIRBE, QUE CONTRIBUYAN A LA GARANTÍA DE LOS DERECHOS DE LA POBLACIÓN MAYOR EN EL MARCO DE LA POLÍTICA PÚBLICA SOCIAL PARA EL ENVEJECIMIENTO Y LA VEJEZ EN EL DISTRITO CAPITAL A CARGO DE LA ALCALDÍA LOCAL Y EL LOGRO DE LAS METAS DEL PLAN | I184: Inversión | J184: Un Nuevo Contrato Social y Ambiental para la Bogotá del Siglo XXI | K184: 1 | L184: =IF(ISERROR(VLOOKUP(K184,Proposito_programa!$C$2:$E$59,2,FALSE))," ",VLOOKUP(K184,Proposito_programa!$C$2:$E$59,2,FALSE)) -> Subsidios y transferencias para la equidad | M184: =IF(ISERROR(VLOOKUP(K184,Proposito_programa!$C$2:$E$59,3,FALSE))," ",VLOOKUP(K184,Proposito_programa!$C$2:$E$59,3,FALSE)) -> Propósito 1: Hacer un nuevo contrato social para incrementar la inclusión social, productiva y política | N184: 133011601010000002144 | P184: 79502886 | Q184: CESAR ALBERTO LEON MARTIN | R184: Persona Natural | V184: 21616000 | Z184: 21616000 | AA184: 16984000 | AB184: 2021-06-11 | AC184: 2021-06-16 | AD184: 2021-12-31 | AE184: 210 | AF184: 1 | AG184: 15 | AN184: X | AP184: 0.7857142857
A185: 176 | B185: 2021 | C185: FDLBU-CD-001-2192 | D185: https://community.secop.gov.co/Public/Tendering/ContractNoticePhases/View?PPI=CO1.PPI.13553306&isFromPublicArea=True&isModal=False | E185: Contratos de prestación de servicios profesionales y de apoyo a la gestión | F185: Contratación directa | G185: Prestación de servicios profesionales y de apoyo a la gestión, o para la ejecución de trabajos artísticos que sólo puedan encomendarse a determinadas personas naturales; | H185: PRESTAR SERVICIOS DE APOYO A LA GESTIÓN DEL DESARROLLO EN LABORES DE PLANEACIÓN EN LAS ACTIVIDADES RELATIVAS A LOS PROYECTOS AMBIENTALES DE LA VIGENCIA 2021 DE LA LÍNEA DE INVERSIONES AMBIENTALES SOSTENIBLES | I185: Inversión | J185: Un Nuevo Contrato Social y Ambiental para la Bogotá del Siglo XXI | K185: 33 | L185: =IF(ISERROR(VLOOKUP(K185,Proposito_programa!$C$2:$E$59,2,FALSE))," ",VLOOKUP(K185,Proposito_programa!$C$2:$E$59,2,FALSE)) -> Más árboles y más y mejor espacio público | M185: =IF(ISERROR(VLOOKUP(K185,Proposito_programa!$C$2:$E$59,3,FALSE))," ",VLOOKUP(K185,Proposito_programa!$C$2:$E$59,3,FALSE)) -> Propósito 2 : Cambiar Nuestros Hábitos de Vida para Reverdecer a Bogotá y Adaptarnos y Mitigar la Crisis Climática | N185: 133011602330000002146 | P185: 79881803 | Q185: HERNAN DARIO BENAVIDES DEVIA | R185: Persona Natural | V185: 11810500 | Z185: 11810500 | AA185: 9085000 | AB185: 2021-06-21 | AC185: 2021-07-01 | AD185: 2021-12-31 | AE185: 195 | AF185: 1 | AG185: 20 | AN185: X | AP185: 0.7692307692
A186: 177 | B186: 2021 | C186: FDLBU-CD-001-2193 | D186: https://community.secop.gov.co/Public/Tendering/ContractNoticePhases/View?PPI=CO1.PPI.13556199&isFromPublicArea=True&isModal=False | E186: Suministro | F186: Contratación mínima cuantia | G186: No aplica | H186: SUMINISTRAR A MONTO AGOTABLE LOS ELEMENTOS DE FERRETERÍA NECESARIOS PARA EL MANTENIMIENTO DE LA PLANTA FÍSICA Y DEMÁS BIENES INMUEBLES DE RESPONSABILIDAD DEL FONDO DE DESARROLLO LOCAL DE BARRIOS UNIDOS | I186: Funcionamiento | J186: Un Nuevo Contrato Social y Ambiental para la Bogotá del Siglo XXI | N186: 0 | P186: 900960810 | Q186: DIEGO CASTRO INDUSTRIA Y CONSTRUCCIÓN S A S | R186: Persona Jurídica | V186: 25438000 | Z186: 25438000 | AA186: 14559358 | AB186: 2021-07-01 | AC186: 2021-07-07 | AD186: 2022-07-06 | AE186: 360 | AM186: X | AP186: 0.572346804
A187: 179 | B187: 2021 | C187: FDLBU-CD-001-2194 | D187: https://www.contratos.gov.co/consultas/detalleProceso.do?numConstancia=21-22-27238&g-recaptcha-response=03AGdBq24CT7EfSqcZi57h-fb6HLapCm2dFIE5W4cs1ZMHwKCkk-kVlob_rGomyhjHnevsRbSb4GBCnkVl07Eacz-R6fexf4DvP-R-utlH8nbVsVoEOtPIMPoopUN0xxvJzaHYMYYBP3HifKU8oCC-us-eVmDcB5Gv1-vcyVPj3tFpaSxFNENeZIlG3P0COZ0jBYeLYobqz7D66hZiOR3CiWzJYXGC0HehZeU8A5xoXybi7qZj4SARov-N0uGFaYlUAtHOBoEADbS6ML1HOToOkpP4X0_fvGgmwb51aZt1BoDcJ_SUM6vakXtWm2ahND4Vi81tXG7tqZr6obktIpPQd9w_AGTsHRJxG5a8Ftv1nKvczINsa3Tt7qa-29IYuB5zSBoUjSx_laIzjDyo4PT_iaUyzlGruyXY6CW69lQYPErVI2d_niUo0VG6K5qH8ZlXDLg7d8s7gW8K-gMjezdfOeBR5LcPdNrHZA | E187: Contratos interadministrativos | F187: Contratación directa | G187: Contratos interadministrativos | H187: AUNAR ESFUERZOS TÉCNICOS, ADMINISTRATIVOS Y FINANCIEROS CON EL FIN DE DESARROLLAR ACCIONES ARTICULADAS ENTRE LAS PARTES ORIENTADAS A FOMENTAR LA GENERACIÓN Y CIRCULACIÓN DE BIENES Y SERVICIOS CULTURALES, ARTÍSTICOS Y PATRIMONIALES, ASÍ COMO AL FORTALECIMIENTO DE LOS AGENTES DE ESTOS SECTORES EN LAS LOCALIDADES DEL DISTRITO CAPITAL DE ACUERDO CON LOS PROYECTOS PRESENTADOS A LOS FONDOS DE DESARROLLO LOCAL QUE FORMAN PARTE DEL CONVENIO EN EL MARCO DEL PROGRAMA “ES CULTURA LOCAL 2021 | I187: Inversión | J187: Un Nuevo Contrato Social y Ambiental para la Bogotá del Siglo XXI | K187: 21 | L187: Creación y vida cotidiana: Apropiación ciudadana del arte, la cultura y el patrimonio, para la democracia cultural | M187: Propósito 1: Hacer un nuevo contrato social para incrementar la inclusión social, productiva y política | N187: 133011601210000002012 | P187: 900413030 | Q187: SECRETARÍA DISTRITAL DE CULTURA, RECREACIÓN Y DEPORTE Y EL INSTITUTO DISTRITAL DE LAS ARTES -IDARTES | R187: Persona Jurídica | V187: 449006551 | Z187: 449006551 | AA187: 449006551 | AB187: 2021-06-30 | AC187: 2021-07-07 | AD187: 2021-12-31 | AE187: 180 | AN187: X | AP187: 0.07034949223
A188: 179 | B188: 2021 | C188: FDLBU-CD-001-2195 | D188: https://www.contratos.gov.co/consultas/detalleProceso.do?numConstancia=21-22-27238&g-recaptcha-response=03AGdBq24CT7EfSqcZi57h-fb6HLapCm2dFIE5W4cs1ZMHwKCkk-kVlob_rGomyhjHnevsRbSb4GBCnkVl07Eacz-R6fexf4DvP-R-utlH8nbVsVoEOtPIMPoopUN0xxvJzaHYMYYBP3HifKU8oCC-us-eVmDcB5Gv1-vcyVPj3tFpaSxFNENeZIlG3P0COZ0jBYeLYobqz7D66hZiOR3CiWzJYXGC0HehZeU8A5xoXybi7qZj4SARov-N0uGFaYlUAtHOBoEADbS6ML1HOToOkpP4X0_fvGgmwb51aZt1BoDcJ_SUM6vakXtWm2ahND4Vi81tXG7tqZr6obktIpPQd9w_AGTsHRJxG5a8Ftv1nKvczINsa3Tt7qa-29IYuB5zSBoUjSx_laIzjDyo4PT_iaUyzlGruyXY6CW69lQYPErVI2d_niUo0VG6K5qH8ZlXDLg7d8s7gW8K-gMjezdfOeBR5LcPdNrHZA | E188: Contratos interadministrativos | F188: Contratación directa | G188: Contratos interadministrativos | H188: AUNAR ESFUERZOS TÉCNICOS, ADMINISTRATIVOS Y FINANCIEROS CON EL FIN DE DESARROLLAR ACCIONES ARTICULADAS ENTRE LAS PARTES ORIENTADAS A FOMENTAR LA GENERACIÓN Y CIRCULACIÓN DE BIENES Y SERVICIOS CULTURALES, ARTÍSTICOS Y PATRIMONIALES, ASÍ COMO AL FORTALECIMIENTO DE LOS AGENTES DE ESTOS SECTORES EN LAS LOCALIDADES DEL DISTRITO CAPITAL DE ACUERDO CON LOS PROYECTOS PRESENTADOS A LOS FONDOS DE DESARROLLO LOCAL QUE FORMAN PARTE DEL CONVENIO EN EL MARCO DEL PROGRAMA “ES CULTURA LOCAL 2021 | I188: Inversión | J188: Un Nuevo Contrato Social y Ambiental para la Bogotá del Siglo XXI | K188: 6 | L188: Creación y vida cotidiana: Apropiación ciudadana del arte, la cultura y el patrimonio, para la democracia cultural | M188: Propósito 1: Hacer un nuevo contrato social para incrementar la inclusión social, productiva y política | N188: 133011601060000002135 | P188: 900413030 | Q188: SECRETARÍA DISTRITAL DE CULTURA, RECREACIÓN Y DEPORTE Y EL INSTITUTO DISTRITAL DE LAS ARTES -IDARTES | R188: Persona Jurídica | V188: 413854000 | Z188: 413854000 | AA188: 413854000 | AB188: 2021-06-30 | AC188: 2021-07-07 | AD188: 2021-12-31 | AE188: 180 | AN188: X | AP188: 0.07034949223
A189: 179 | B189: 2021 | C189: FDLBU-CD-001-2196 | D189: https://www.contratos.gov.co/consultas/detalleProceso.do?numConstancia=21-22-27238&g-recaptcha-response=03AGdBq24CT7EfSqcZi57h-fb6HLapCm2dFIE5W4cs1ZMHwKCkk-kVlob_rGomyhjHnevsRbSb4GBCnkVl07Eacz-R6fexf4DvP-R-utlH8nbVsVoEOtPIMPoopUN0xxvJzaHYMYYBP3HifKU8oCC-us-eVmDcB5Gv1-vcyVPj3tFpaSxFNENeZIlG3P0COZ0jBYeLYobqz7D66hZiOR3CiWzJYXGC0HehZeU8A5xoXybi7qZj4SARov-N0uGFaYlUAtHOBoEADbS6ML1HOToOkpP4X0_fvGgmwb51aZt1BoDcJ_SUM6vakXtWm2ahND4Vi81tXG7tqZr6obktIpPQd9w_AGTsHRJxG5a8Ftv1nKvczINsa3Tt7qa-29IYuB5zSBoUjSx_laIzjDyo4PT_iaUyzlGruyXY6CW69lQYPErVI2d_niUo0VG6K5qH8ZlXDLg7d8s7gW8K-gMjezdfOeBR5LcPdNrHZA | E189: Contratos interadministrativos | F189: Contratación directa | G189: Contratos interadministrativos | H189: AUNAR ESFUERZOS TÉCNICOS, ADMINISTRATIVOS Y FINANCIEROS CON EL FIN DE DESARROLLAR ACCIONES ARTICULADAS ENTRE LAS PARTES ORIENTADAS A FOMENTAR LA GENERACIÓN Y CIRCULACIÓN DE BIENES Y SERVICIOS CULTURALES, ARTÍSTICOS Y PATRIMONIALES, ASÍ COMO AL FORTALECIMIENTO DE LOS AGENTES DE ESTOS SECTORES EN LAS LOCALIDADES DEL DISTRITO CAPITAL DE ACUERDO CON LOS PROYECTOS PRESENTADOS A LOS FONDOS DE DESARROLLO LOCAL QUE FORMAN PARTE DEL CONVENIO EN EL MARCO DEL PROGRAMA “ES CULTURA LOCAL 2021 | I189: Inversión | J189: Un Nuevo Contrato Social y Ambiental para la Bogotá del Siglo XXI | K189: 24 | L189: =IF(ISERROR(VLOOKUP(K189,Proposito_programa!$C$2:$E$59,2,FALSE))," ",VLOOKUP(K189,Proposito_programa!$C$2:$E$59,2,FALSE)) -> Bogotá región emprendedora e innovadora | M189: =IF(ISERROR(VLOOKUP(K189,Proposito_programa!$C$2:$E$59,3,FALSE))," ",VLOOKUP(K189,Proposito_programa!$C$2:$E$59,3,FALSE)) -> Propósito 1: Hacer un nuevo contrato social para incrementar la inclusión social, productiva y política | N189: 133011601240000002017 | P189: 900413030 | Q189: SECRETARÍA DISTRITAL DE CULTURA, RECREACIÓN Y DEPORTE Y EL INSTITUTO DISTRITAL DE LAS ARTES -IDARTES | R189: Persona Jurídica | V189: 214393000 | Z189: 214393000 | AA189: 214393000 | AB189: 2021-06-30 | AC189: 2021-07-07 | AD189: 2021-12-31 | AE189: 180 | AN189: X | AP189: =IF(ISERROR(AA189/Z189),"-",(AA189/Z189)) -> 1
A190: 180 | B190: 2021 | C190: FDLBU-CD-001-2197 | D190: https://www.contratos.gov.co/consultas/detalleProceso.do?numConstancia=21-22-27153&g-recaptcha-response=03AGdBq271XHuseqymZIWtf-csJDfOh3E-qrKsunvwp7TcNShpxRgknO_Hksy61mRTKOrGLyke_XH2E4Ss5vKS6dHBNEsRBCbopxfHIuqoi2nN9ifBaSsXZA3yEzO4rWwd96c2UmmN1zJcQPkDOdP6TWaWYkmddLXx2O0KwXuBIng2a9sQ8IsRzNtaolvLHt0R2jOzG1G2-i2xGCVa5eC6hIgpSM6svpi-v_P_pg6a60wXbJ13IMTxbn0QRmv6NEB7CJ_xwxGSDJ4NIJkoXVvUEN8yYEXaIXsnzWSmVktHi7vU3X-iHybxaBlMYWLc5xE9wOumHspXwgGnD3MsilOPQgbM2Ud7RNbeMI8ie3SsMa6fAQZRW8mjU3fIxeulRRvQPgAUGETk-JfHkDAmbu1hD4eigbXqMQnexcH8tDHtUIBNR4kRkhPOcLtqfUtHr8gFqS6d9elxWaQb80qhYiWg26knKAj3K32Tuw | E190: Contratos interadministrativos | F190: Contratación directa | G190: Contratos interadministrativos | H190: AUNAR ESFUERZOS TÉCNICOS, ADMINISTRATIVOS, JURÍDICOS Y FINANCIEROS ENTRE LA SECRETARÍA DE EDUCACIÓN DEL DISTRITO Y LOS FONDOS DE DESARROLLO LOCAL QUE HACEN PARTE DEL DISTRITO CAPITAL, PARA LA IMPLEMENTACIÓN DE UN NUEVO MODELO INCLUSIVO, EFICIENTE Y FLEXIBLE PARA EL ACCESO Y LA PERMANENCIA DE LAS Y LOS JÓVENES EGRESADOS DE INSTITUCIONES DE EDUCACIÓN MEDIA A PROGRAMAS DE EDUCACIÓN SUPERIOR. | I190: Inversión | J190: Un Nuevo Contrato Social y Ambiental para la Bogotá del Siglo XXI | K190: 17 | L190: =IF(ISERROR(VLOOKUP(K190,Proposito_programa!$C$2:$E$59,2,FALSE))," ",VLOOKUP(K190,Proposito_programa!$C$2:$E$59,2,FALSE)) -> Jóvenes con capacidades: Proyecto de vida para la ciudadanía, la innovación y el trabajo del siglo XXI | M190: =IF(ISERROR(VLOOKUP(K190,Proposito_programa!$C$2:$E$59,3,FALSE))," ",VLOOKUP(K190,Proposito_programa!$C$2:$E$59,3,FALSE)) -> Propósito 1: Hacer un nuevo contrato social para incrementar la inclusión social, productiva y política | N190: 133011601170000002027 | P190: 899999061 | Q190: SECRETARIA DISTRITAL DE EDUCACION | R190: Persona Jurídica | V190: 1746068000 | Z190: 1746068000 | AA190: 1746068000 | AB190: 2021-06-29 | AC190: 2021-06-30 | AD190: 2027-06-30 | AE190: 2160 | AM190: X | AP190: 1
A191: 181 | B191: 2021 | C191: FDLBU-CD-001-2198 | D191: https://community.secop.gov.co/Public/Tendering/ContractNoticePhases/View?PPI=CO1.PPI.14135820&isFromPublicArea=True&isModal=False | E191: Convenios de cooperacion | F191: Régimen especial | G191: Decreto 92 de 2017 | H191: AUNAR ESFUERZOS PARA LA COOPERACIÓN ADMINISTRATIVA, TÉCNICA Y ECONÓMICA, ENTRE EL PROGRAMA PARA LAS NACIONES UNIDAS PARA EL DESARROLLO (PNUD) Y EL FONDO DE DESARROLLO LOCAL DE BARRIOS UNIDOS, CON EL FIN DE IMPLEMENTAR ESTRATEGIAS QUE PROMUEVAN EL FORTALECIMIENTO A LOS EMPRENDIMIENTOS DE LA ECONOMÍA POPULAR DE LA LOCALIDAD DE BARRIOS UNIDOS Y LAS UNIDADES PRODUCTIVAS FAMILIARES Y/O POBLACIONES DEDICADAS A ACTIVIDADES TRADICIONALES QUE PERMITEN GENERAR INGRESOS (AUTOEMPLEO), Y EL FORTALECIMIENTO DE MIPYMES LOCALES, A TRAVÉS DE UN PROCESO DE ACOMPAÑAMIENTO ESPECIALIZADO QUE PERMITA EL MEJORAMIENTO DE LAS COMPETENCIAS DE LOS EMPRESARIOS Y LAS CONDICIONES DE SUS NEGOCIOS Y DE ESTA FORMA APORTAR DE FORMA SIGNIFICATIVA AL CUMPLIMIENTO DE LA AGENDA DE REACTIVACIÓN ECONÓMICA EN LA LOCALIDAD, PARA EL DESARROLLO DE LA RUTA DE EMPRENDIMIENTO LOCAL | I191: Inversión | J191: Un Nuevo Contrato Social y Ambiental para la Bogotá del Siglo XXI | K191: 6 | L191: =IF(ISERROR(VLOOKUP(K191,Proposito_programa!$C$2:$E$59,2,FALSE))," ",VLOOKUP(K191,Proposito_programa!$C$2:$E$59,2,FALSE)) -> Sistema Distrital de Cuidado | M191: =IF(ISERROR(VLOOKUP(K191,Proposito_programa!$C$2:$E$59,3,FALSE))," ",VLOOKUP(K191,Proposito_programa!$C$2:$E$59,3,FALSE)) -> Propósito 1: Hacer un nuevo contrato social para incrementar la inclusión social, productiva y política | N191: 133011601060000002135 | P191: 800091076 | Q191: PROGRAMA DE LAS NACIONES UNIDAS PARA EL DESARROLLO - PNUD | R191: Persona Jurídica | V191: 1114009430 | Z191: 1114009430 | AA191: 891207544 | AB191: 2021-07-08 | AC191: 2021-07-08 | AD191: 2022-06-30 | AE191: 360 | AM191: X | AP191: 0.8
A192: 182 | B192: 2021 | C192: FDLBU-CD-001-2199 | D192: https://community.secop.gov.co/Public/Tendering/ContractNoticePhases/View?PPI=CO1.PPI.14256737&isFromPublicArea=True&isModal=False | E192: Contratos de prestación de servicios profesionales y de apoyo a la gestión | F192: Contratación directa | G192: Prestación de servicios profesionales y de apoyo a la gestión, o para la ejecución de trabajos artísticos que sólo puedan encomendarse a determinadas personas naturales; | H192: PRESTAR LOS SERVICIOS PROFESIONALES PARA DESARROLLAR LA INICIATIVA DE PRESUPUESTOS PARTICIPATIVOS "ESCRIBIENDO NUESTRAS HUELLAS" A TÍTULO DE PROMOTOR DE LA MISMA EN LA LOCALIDAD DE BARRIOS UNIDOS | I192: Inversión | J192: Un Nuevo Contrato Social y Ambiental para la Bogotá del Siglo XXI | K192: 39 | L192: =IF(ISERROR(VLOOKUP(K192,Proposito_programa!$C$2:$E$59,2,FALSE))," ",VLOOKUP(K192,Proposito_programa!$C$2:$E$59,2,FALSE)) -> Bogotá territorio de paz y atención integral a las víctimas del conflicto armado | M192: =IF(ISERROR(VLOOKUP(K192,Proposito_programa!$C$2:$E$59,3,FALSE))," ",VLOOKUP(K192,Proposito_programa!$C$2:$E$59,3,FALSE)) -> Propósito 3: Inspirar confianza y legitimidad para vivir sin miedo y ser epicentro de cultura ciudadana, paz y reconciliación | N192: 133011603390000002030 | P192: 1093772772 | Q192: MANUEL CAMILO QUINTERO DELGADO | R192: Persona Natural | V192: 21850000 | Z192: 21850000 | AA192: 16897333 | AB192: 2021-07-29 | AC192: 2021-08-05 | AD192: 2021-12-31 | AE192: 150 | AN192: X | AP192: 0.7733333181
A193: 183 | B193: 2021 | C193: FDLBU-CD-001-2200 | D193: https://community.secop.gov.co/Public/Tendering/ContractNoticePhases/View?PPI=CO1.PPI.14315845&isFromPublicArea=True&isModal=False | E193: Contratos de prestación de servicios profesionales y de apoyo a la gestión | F193: Contratación directa | G193: Prestación de servicios profesionales y de apoyo a la gestión, o para la ejecución de trabajos artísticos que sólo puedan encomendarse a determinadas personas naturales; | H193: PRESTAR SERVICIOS PROFESIONALES PARA APOYAR AL ÁREA GESTIÓN DEL DESARROLLO ADMINISTRATIVO Y FINANCIERO EN LOS ASUNTOS RELATIVOS A LA PLANEACIÓN LOCAL: GARANTIZAR LA IMPLEMENTACIÓN Y SEGUIMIENTO DE LOS PROCESOS, PROYECTOS Y PROCEDIMIENTOS DE CONTRATOS SUSCRITOS POR LA ALCALDÍA LOCAL DE BARRIOS UNIDOS DIRIGIDOS AL CUMPLIMIENTO DE LA META DE CICLOINFRAESTRUCTURA Y LOS PROCESOS EN CURSO, RELATIVOS A PRIMEROS AUXILIOS DE LA SEDE | I193: Inversión | J193: Un Nuevo Contrato Social y Ambiental para la Bogotá del Siglo XXI | K193: 49 | L193: =IF(ISERROR(VLOOKUP(K193,Proposito_programa!$C$2:$E$59,2,FALSE))," ",VLOOKUP(K193,Proposito_programa!$C$2:$E$59,2,FALSE)) -> Movilidad segura, sostenible y accesible | M193: =IF(ISERROR(VLOOKUP(K193,Proposito_programa!$C$2:$E$59,3,FALSE))," ",VLOOKUP(K193,Proposito_programa!$C$2:$E$59,3,FALSE)) -> Propósito 4: Hacer de Bogotá Región un modelo de movilidad multimodal, incluyente y sostenible | N193: 133011604490000002022 | P193: 51647398 | Q193: SONIA MURCIA NOSSA | R193: Persona Natural | V193: 21850000 | Z193: 21850000 | AA193: 17188667 | AB193: 2021-07-30 | AC193: 2021-08-03 | AD193: 2021-12-31 | AE193: 150 | AF193: 1 | AG193: 2 | AN193: X | AP193: 0.7866666819
A194: 184 | B194: 2021 | C194: FDLBU-CD-001-2201 | D194: https://community.secop.gov.co/Public/Tendering/OpportunityDetail/Index?noticeUID=CO1.NTC.2113019&isFromPublicArea=True&isModal=False | E194: Contratos de prestación de servicios | F194: Contratación mínima cuantia | G194: No aplica | H194: CONTRATAR A MONTO AGOTABLE EL SERVICIO DE IMPRESOS, PUBLICACIONES, MATERIAL LITOGRAFICO Y ELEMENTOS DE PUBLICIDAD Y SEÑALIZACIÓN INSTITUCIONAL DE LA ALCALDÍA LOCAL DE BARRIOS UNIDOS | I194: Funcionamiento | J194: Un Nuevo Contrato Social y Ambiental para la Bogotá del Siglo XXI | L194: =IF(ISERROR(VLOOKUP(K194,Proposito_programa!$C$2:$E$59,2,FALSE))," ",VLOOKUP(K194,Proposito_programa!$C$2:$E$59,2,FALSE)) ->  | M194: =IF(ISERROR(VLOOKUP(K194,Proposito_programa!$C$2:$E$59,3,FALSE))," ",VLOOKUP(K194,Proposito_programa!$C$2:$E$59,3,FALSE)) ->  | N194: 0 | P194: 900684554 | Q194: GRUPO ARKS PREMIER SAS | R194: Persona Natural | V194: 15525000 | Z194: 15525000 | AA194: 10575406 | AB194: 2021-08-06 | AC194: 2021-08-25 | AD194: 2022-08-24 | AE194: 360 | AM194: X | AP194: 0.6811855717
A195: 186 | B195: 2021 | C195: FDLBU-CD-001-2202 | D195: https://community.secop.gov.co/Public/Tendering/ContractNoticePhases/View?PPI=CO1.PPI.14537919&isFromPublicArea=True&isModal=False | E195: Contratos de prestación de servicios profesionales y de apoyo a la gestión | F195: Contratación directa | G195: Prestación de servicios profesionales y de apoyo a la gestión, o para la ejecución de trabajos artísticos que sólo puedan encomendarse a determinadas personas naturales; | H195: PRESTAR SERVICIOS DE APOYO AL ÁREA GESTIÓN DEL DESARROLLO EN LOS ASUNTOS RELATIVOS A LA PLANEACIÓN LOCAL: APOYAR EL SEGUIMIENTO AL ACCESO Y PERMANENCIA EN EDUCACIÓN SUPERIOR EN EL MARCO DE LAS OBLIGACIONES DEL FDLBU OBTENIDAS EN CONVENIO SUSCRITO, ASÍ COMO EL SEGUIMIENTO A LA DOTACIÓN A LA CASA DE LA JUVENTUD NASQUA | I195: Inversión | J195: Un Nuevo Contrato Social y Ambiental para la Bogotá del Siglo XXI | K195: 17 | L195: =IF(ISERROR(VLOOKUP(K195,Proposito_programa!$C$2:$E$59,2,FALSE))," ",VLOOKUP(K195,Proposito_programa!$C$2:$E$59,2,FALSE)) -> Jóvenes con capacidades: Proyecto de vida para la ciudadanía, la innovación y el trabajo del siglo XXI | M195: =IF(ISERROR(VLOOKUP(K195,Proposito_programa!$C$2:$E$59,3,FALSE))," ",VLOOKUP(K195,Proposito_programa!$C$2:$E$59,3,FALSE)) -> Propósito 1: Hacer un nuevo contrato social para incrementar la inclusión social, productiva y política | N195: 133011601170000002027 | P195: 1018486866 | Q195: KEVIN GIOVANI OSPINA MARTINEZ | R195: Persona Natural | V195: 9085000 | Z195: 9085000 | AA195: 6117233 | AB195: 2021-08-11 | AC195: 2021-08-20 | AD195: 2021-12-31 | AE195: 150 | AF195: 1 | AG195: 19 | AN195: X | AP195: 0.6733332966
A196: OC 74168 | B196: 2021 | C196: FDLBU-CD-001-2203 | D196: https://colombiacompra.gov.co/tienda-virtual-del-estado-colombiano/ordenes-compra/74168 | E196: Otros | F196: Selección abreviada | G196: Acuerdo marco de precios | H196: ADQUISICIÓN DE UNA LICENCIA AR-CGIS PARA LA REACTIVACIÓN Y ACTUALIZACIÓN DEL SISTEMA DE GEOREFERENCIA-CION EXISTENTE PARA EL FONDO DE DESARROLLO LOCAL DE BARRIOS UNIDOS | I196: Funcionamiento | J196: Un Nuevo Contrato Social y Ambiental para la Bogotá del Siglo XXI | L196: =IF(ISERROR(VLOOKUP(K196,Proposito_programa!$C$2:$E$59,2,FALSE))," ",VLOOKUP(K196,Proposito_programa!$C$2:$E$59,2,FALSE)) ->  | M196: =IF(ISERROR(VLOOKUP(K196,Proposito_programa!$C$2:$E$59,3,FALSE))," ",VLOOKUP(K196,Proposito_programa!$C$2:$E$59,3,FALSE)) ->  | N196: 0 | O196: 1 | P196: 830122983 | Q196: ESRI COLOMBIA SAS | R196: Persona Jurídica | V196: 8663296 | Z196: 8663296 | AA196: 8663296 | AB196: 2021-08-11 | AC196: 2021-08-23 | AD196: 2021-10-22 | AE196: 60 | AN196: X | AP196: 1
A197: 187 | B197: 2021 | C197: FDLBU-CD-001-2204 | D197: https://community.secop.gov.co/Public/Tendering/ContractNoticePhases/View?PPI=CO1.PPI.14688672&isFromPublicArea=True&isModal=False | E197: Contratos de prestación de servicios profesionales y de apoyo a la gestión | F197: Contratación directa | G197: Prestación de servicios profesionales y de apoyo a la gestión, o para la ejecución de trabajos artísticos que sólo puedan encomendarse a determinadas personas naturales; | H197: PRESTAR SERVICIOS ASISTENCIALES PARA APOYAR AL AREA GESTION DEL DESARROLLO LOCAL EN LOS ASUNTOS RELACIONADOS CON EL DESARROLLO DE LA GESTION CONTRACTUAL DE LOS PROYECTOS DE INVERSIÓN 2021 | I197: Inversión | J197: Un Nuevo Contrato Social y Ambiental para la Bogotá del Siglo XXI | K197: 57 | L197: =IF(ISERROR(VLOOKUP(K197,Proposito_programa!$C$2:$E$59,2,FALSE))," ",VLOOKUP(K197,Proposito_programa!$C$2:$E$59,2,FALSE)) -> Gestión pública local | M197: =IF(ISERROR(VLOOKUP(K197,Proposito_programa!$C$2:$E$59,3,FALSE))," ",VLOOKUP(K197,Proposito_programa!$C$2:$E$59,3,FALSE)) -> Propósito 5: Construir Bogotá - Región con gobierno abierto, transparente y ciudadanía consciente | N197: 133011605570000002143 | P197: 52181144 | Q197: CLAUDIA PATRICIA MORALES | R197: Persona Natural | V197: 6800000 | Z197: 6800000 | AA197: 3626667 | AB197: 2021-08-24 | AC197: 2021-08-26 | AD197: 2021-12-25 | AE197: 120 | AN197: X | AP197: 0.5333333824
A198: 188 | B198: 2021 | C198: FDLBU-CD-001-2205 | D198: https://community.secop.gov.co/Public/Tendering/ContractNoticePhases/View?PPI=CO1.PPI.14684318&isFromPublicArea=True&isModal=False | E198: Contratos de prestación de servicios profesionales y de apoyo a la gestión | F198: Contratación directa | G198: Prestación de servicios profesionales y de apoyo a la gestión, o para la ejecución de trabajos artísticos que sólo puedan encomendarse a determinadas personas naturales; | H198: PRESTAR LOS SERVICIOS PROFESIONALES PARA APOYAR AL ÁREA DE GESTIÓN DEL DESARROLLO EN LOS ASUNTOS RELACIONADOS CON LA FORMULACIÓN, SEGUIMIENTO Y EVALUACIÓN DE POLÍTICAS, PLANES, PROGRAMAS Y PROYECTOS DE DESARROLLO LOCAL, PARA EL CUMPLIMIENTO DE LAS METAS DEL PLAN DE DESARROLLO LOCAL DE BARRIOS UNIDOS. | I198: Inversión | J198: Un Nuevo Contrato Social y Ambiental para la Bogotá del Siglo XXI | K198: 57 | L198: =IF(ISERROR(VLOOKUP(K198,Proposito_programa!$C$2:$E$59,2,FALSE))," ",VLOOKUP(K198,Proposito_programa!$C$2:$E$59,2,FALSE)) -> Gestión pública local | M198: =IF(ISERROR(VLOOKUP(K198,Proposito_programa!$C$2:$E$59,3,FALSE))," ",VLOOKUP(K198,Proposito_programa!$C$2:$E$59,3,FALSE)) -> Propósito 5: Construir Bogotá - Región con gobierno abierto, transparente y ciudadanía consciente | N198: 133011605570000002143 | P198: 52718955 | Q198: ÁNGELA MARIA PEREZ MAHECHA | R198: Persona Natural | V198: 13110000 | Z198: =+V198+W198+Y198 -> 13110000 | AA198: 9322667 | AB198: 2021-08-23 | AC198: 2021-08-27 | AD198: 2021-11-26 | AE198: 90 | AN198: X | AP198: 0.7111111365
A199: 189 | B199: 2021 | C199: FDLBU-CD-001-2206 | D199: https://community.secop.gov.co/Public/Tendering/ContractNoticePhases/View?PPI=CO1.PPI.14690234&isFromPublicArea=True&isModal=False | E199: Contratos de prestación de servicios profesionales y de apoyo a la gestión | F199: Contratación directa | G199: Prestación de servicios profesionales y de apoyo a la gestión, o para la ejecución de trabajos artísticos que sólo puedan encomendarse a determinadas personas naturales; | H199: PRESTAR SERVICIOS DE APOYO EN LAS ACTIVIDADES DE SEGURIDAD, PROMOCIÓN DE LA CONVIVENCIA Y DE ATENCIÓN DE MOVILIZACIONES Y AGLOMERACIONES EN EL TERRITORIO. | I199: Inversión | J199: Un Nuevo Contrato Social y Ambiental para la Bogotá del Siglo XXI | K199: 43 | L199: =IF(ISERROR(VLOOKUP(K199,Proposito_programa!$C$2:$E$59,2,FALSE))," ",VLOOKUP(K199,Proposito_programa!$C$2:$E$59,2,FALSE)) -> Cultura ciudadana para la confianza, la convivencia y la participación desde la vida cotidiana | M199: =IF(ISERROR(VLOOKUP(K199,Proposito_programa!$C$2:$E$59,3,FALSE))," ",VLOOKUP(K199,Proposito_programa!$C$2:$E$59,3,FALSE)) -> Propósito 3: Inspirar confianza y legitimidad para vivir sin miedo y ser epicentro de cultura ciudadana, paz y reconciliación | N199: 133011603430000002149 | P199: 79577831 | Q199: JOSE ENRIQUE MENDOZA GALINDO | R199: Persona Natural | V199: 9084000 | Z199: =+V199+W199+Y199 -> 9084000 | AA199: 6888700 | AB199: 2021-08-23 | AC199: 2021-08-31 | AD199: 2021-12-30 | AE199: 120 | AN199: X | AP199: 0.7583333333
A200: 190 | B200: 2021 | C200: FDLBU-CD-001-2207 | D200: https://community.secop.gov.co/Public/Tendering/ContractNoticePhases/View?PPI=CO1.PPI.14731016&isFromPublicArea=True&isModal=False | E200: Contratos de prestación de servicios profesionales y de apoyo a la gestión | F200: Contratación directa | G200: Prestación de servicios profesionales y de apoyo a la gestión, o para la ejecución de trabajos artísticos que sólo puedan encomendarse a determinadas personas naturales; | H200: PRESTAR SERVICIOS DE APOYO EN LAS ACTIVIDADES DE SEGURIDAD, PROMOCIÓN DE LA CONVIVENCIA Y DE ATENCIÓN DE MOVILIZACIONES Y AGLOMERACIONES EN EL TERRITORIO. | I200: Inversión | J200: Un Nuevo Contrato Social y Ambiental para la Bogotá del Siglo XXI | K200: 43 | L200: =IF(ISERROR(VLOOKUP(K200,Proposito_programa!$C$2:$E$59,2,FALSE))," ",VLOOKUP(K200,Proposito_programa!$C$2:$E$59,2,FALSE)) -> Cultura ciudadana para la confianza, la convivencia y la participación desde la vida cotidiana | M200: =IF(ISERROR(VLOOKUP(K200,Proposito_programa!$C$2:$E$59,3,FALSE))," ",VLOOKUP(K200,Proposito_programa!$C$2:$E$59,3,FALSE)) -> Propósito 3: Inspirar confianza y legitimidad para vivir sin miedo y ser epicentro de cultura ciudadana, paz y reconciliación | N200: 133011603430000002149 | P200: 79523967 | Q200: JORGE OSWALDO SOLER RINCON | R200: Persona Natural | V200: 9084000 | Z200: =+V200+W200+Y200 -> 9084000 | AA200: 6813000 | AB200: 2021-08-27 | AC200: 2021-09-01 | AD200: 2021-12-31 | AE200: 120 | AN200: X | AP200: 0.75
A201: 191 | B201: 2021 | C201: FDLBU-CD-001-2208 | D201: https://community.secop.gov.co/Public/Tendering/ContractNoticePhases/View?PPI=CO1.PPI.14731228&isFromPublicArea=True&isModal=False | E201: Contratos de prestación de servicios profesionales y de apoyo a la gestión | F201: Contratación directa | G201: Prestación de servicios profesionales y de apoyo a la gestión, o para la ejecución de trabajos artísticos que sólo puedan encomendarse a determinadas personas naturales; | H201: PRESTAR SERVICIOS DE APOYO EN LAS ACTIVIDADES DE SEGURIDAD, PROMOCIÓN DE LA CONVIVENCIA Y DE ATENCIÓN DE MOVILIZACIONES Y AGLOMERACIONES EN EL TERRITORIO. | I201: Inversión | J201: Un Nuevo Contrato Social y Ambiental para la Bogotá del Siglo XXI | K201: 48 | L201: =IF(ISERROR(VLOOKUP(K201,Proposito_programa!$C$2:$E$59,2,FALSE))," ",VLOOKUP(K201,Proposito_programa!$C$2:$E$59,2,FALSE)) -> Plataforma institucional para la seguridad y justicia | M201: =IF(ISERROR(VLOOKUP(K201,Proposito_programa!$C$2:$E$59,3,FALSE))," ",VLOOKUP(K201,Proposito_programa!$C$2:$E$59,3,FALSE)) -> Propósito 3: Inspirar confianza y legitimidad para vivir sin miedo y ser epicentro de cultura ciudadana, paz y reconciliación | N201: 133011603480000002153 | P201: 1023865895 | Q201: KAREN DAYANA RAMIREZ ORTEGON | R201: Persona Natural | V201: 9084000 | Z201: =+V201+W201+Y201 -> 9084000 | AA201: 6888700 | AB201: 2021-08-27 | AC201: 2021-08-31 | AD201: 2021-12-30 | AE201: 120 | AN201: X | AP201: 0.7583333333
A202: 192 | B202: 2021 | C202: FDLBU-CD-001-2209 | D202: https://community.secop.gov.co/Public/Tendering/ContractNoticePhases/View?PPI=CO1.PPI.14843790&isFromPublicArea=True&isModal=False | E202: Contratos interadministrativos | F202: Contratación directa | G202: Contratos interadministrativos | H202: PRESTAR LOS SERVICIOS DE INTERNET PARA LA SEDE PRINCIPAL DE LA ALCALDIA LOCAL DE BARRIOS UNIDOS | I202: Funcionamiento | J202: Un Nuevo Contrato Social y Ambiental para la Bogotá del Siglo XXI | L202: =IF(ISERROR(VLOOKUP(K202,Proposito_programa!$C$2:$E$59,2,FALSE))," ",VLOOKUP(K202,Proposito_programa!$C$2:$E$59,2,FALSE)) ->  | M202: =IF(ISERROR(VLOOKUP(K202,Proposito_programa!$C$2:$E$59,3,FALSE))," ",VLOOKUP(K202,Proposito_programa!$C$2:$E$59,3,FALSE)) ->  | N202: 0 | P202: 899999115 | Q202: EMPRESA DE TELECOMUNICACIONES DE BOGOTA SA ESP - ETB | R202: Persona Jurídica | V202: 19259436 | Z202: =+V202+W202+Y202 -> 19259436 | AA202: 4386850 | AB202: 2021-08-26 | AC202: 2021-09-08 | AD202: 2022-09-07 | AE202: 360 | AM202: X | AP202: 0.2277766597
... 114 more rows

Sheet Observaciones y revisión BOGDAT
A1: OBSERVACIONES
A2: 1 | B2: Contratos con valor final en "cero" deben ser eliminados.
A3: 2 | B3: la columna de "afectación" no debe tener celdas vacias
A4: 3 | B4: Numeros de proyectos deben ir con los 7ultimos digitos
A5: 4 | B5: se debe diligenciar numero de proponentes
C9: BOGDATA | F9: SUMATORIA FORMATO
C10: DISPONIBLE | D10: COMPROMETIDO | E10: GIROS ACUMULADOS | F10: COMPROMETIDO | G10: DIFERENCIA | H10: GIROS ACUMULADOS | I10: DIFERENCIA
A11: 131 | B11: GASTOS DE FUNCIONAMIENTO | C11: 2610512668 | D11: 2386596019 | E11: 2057237557 | F11: 781910089 | G11: =+D11-F11 -> 1604685930 | H11: 747201751 | I11: =+E11-H11 -> 1310035806
A12: 13301 | B12: DIRECTA | C12: 22394138000 | D12: 20847240668 | E12: 13703234346 | F12: 17723230020 | G12: =+D12-F12 -> 3124010648 | H12: 8671208939 | I12: =+E12-H12 -> 5032025407
A13: 1330116 | B13: Un Nuevo Contrato Social y Ambiental para la Bogotá del Siglo XXI | C13: 22394138000 | D13: 20847240668 | E13: 13703234346 | G13: 20847240668 | I13: =+E13-H13 -> 13703234346
A14: 133011601 | B14: Hacer un nuevo contrato social con igualdad de oportunidades para la inclusión social, productiva y política | C14: 12579866076 | D14: 11635208027 | E14: 8731355791 | F14: 7486529919 | G14: 4148678108 | H14: 3694596749 | I14: =+E14-H14 -> 5036759042
A15: 13301160101 | B15: Subsidios y transferencias para la equidad | C15: 4159602076 | D15: 4159602076 | E15: 4134778779 | G15: 4159602076 | I15: =+E15-H15 -> 4134778779
A16: 133011601010000002144 | B16: Gobierno solidario | C16: 4159602076 | D16: 4159602076 | E16: 4134778779 | G16: 4159602076 | I16: 4134778779
A17: 13301160106 | B17: Sistema Distrital del Cuidado | C17: 3238231000 | D17: 3077486034 | E17: 1644883979 | G17: 3077486034 | I17: 1644883979
A18: 133011601060000002053 | B18: Buen trato | C18: 315226000 | D18: 219956797 | E18: 32338000 | G18: 219956797 | I18: 32338000
A19: 133011601060000002062 | B19: Sistema Local de Cuidado | C19: 1089918000 | D19: 1055958640 | E19: 79838367 | G19: 1055958640 | I19: 79838367
A20: 133011601060000002135 | B20: Impulsemos Economía Local | C20: 1833087000 | D20: 1801570597 | E20: 1532707612 | G20: 1801570597 | I20: 1532707612
A21: 13301160108 | B21: Prevención y atención de maternidad temprana | C21: 214927000 | D21: 130953566 | E21: 112460800 | G21: 130953566 | I21: 112460800
A22: 133011601080000002151 | B22: Educación para decidir | C22: 214927000 | D22: 130953566 | E22: 112460800 | G22: 130953566 | I22: 112460800
A23: 13301160112 | B23: Educación inicial: Bases sólidas para la vida | C23: 429854000 | D23: 281515000 | E23: 34960000 | G23: 281515000 | I23: 34960000
A24: 133011601120000002026 | B24: Primeros pasos | C24: 429854000 | D24: 281515000 | E24: 34960000 | G24: 281515000 | I24: 34960000
A25: 13301160117 | B25: Jóvenes con capacidades: Proyecto de vida para la ciudadanía, la innovación y el trabajo del siglo XXI | C25: 2181653000 | D25: 2125301356 | E25: 1756061500 | G25: 2125301356 | I25: 1756061500
A26: 133011601170000002027 | B26: Nasqua | C26: 2181653000 | D26: 2125301356 | E26: 1756061500 | G26: 2125301356 | I26: 1756061500
A27: 13301160120 | B27: Bogotá, referente en cultura, deporte, recreación y actividad física, con parques para el desarrollo y la salud | C27: 279883000 | D27: 265492520 | E27: 180395749 | G27: 265492520 | I27: 180395749
A28: 133011601200000002044 | B28: Deporte y recreación para el desarrollo social | C28: 279883000 | D28: 265492520 | E28: 180395749 | G28: 265492520 | I28: 180395749
A29: 13301160121 | B29: Creación y vida cotidiana: Apropiación ciudadana del arte, la cultura y el patrimonio, para la democracia cultural | C29: 1495891000 | D29: 1165468875 | E29: 571486384 | G29: 1165468875 | I29: 571486384
A30: 133011601210000002012 | B30: Cultura para el desarrollo social | C30: 1495891000 | D30: 1165468875 | E30: 571486384 | G30: 1165468875 | I30: 571486384
A31: 13301160124 | B31: Bogotá región emprendedora e innovadora | C31: 579825000 | D31: 429388600 | E31: 296328600 | G31: 429388600 | I31: 296328600
A32: 133011601240000002017 | B32: Emprendimiento cultural para el desarrollo social | C32: 257912000 | D32: 253723000 | E32: 247750667 | G32: 253723000 | I32: 247750667
A33: 133011601240000002073 | B33: Reverdecer el urbanismo | C33: 321913000 | D33: 175665600 | E33: 48577933 | G33: 175665600 | I33: 48577933
A34: 133011602 | B34: Cambiar nuestros hábitos de vida para reverdecer a Bogotá y adaptarnos y mitigar la crisis climática | C34: 1827462000 | D34: 1578891144 | E34: 334262933 | F34: 1549821144 | G34: 29070000 | H34: 326103267 | I34: 8159666
A35: 13301160227 | B35: Cambio cultural para la gestión de la crisis climática | C35: 453735000 | D35: 436067072 | E35: 50303334 | G35: 436067072 | I35: 50303334
A36: 133011602270000002011 | B36: Aprendamos para cuidar la naturaleza | C36: 453735000 | D36: 436067072 | E36: 50303334 | G36: 436067072 | I36: 50303334
A37: 13301160228 | B37: Bogotá protectora de sus recursos naturales | C37: 272241000 | D37: 272241000 | E37: 24858333 | G37: 272241000 | I37: 24858333
A38: 133011602280000002009 | B38: Respeta y conéctate con la naturaleza | C38: 272241000 | D38: 272241000 | E38: 24858333 | G38: 272241000 | I38: 24858333
A39: 13301160230 | B39: Eficiencia en la atención de emergencias | C39: 101254000 | D39: 96149200 | E39: 82698800 | G39: 96149200 | I39: 82698800
A40: 133011602300000002103 | B40: Acciones efectivas para prevenir | C40: 101254000 | D40: 96149200 | E40: 82698800 | G40: 96149200 | I40: 82698800
A41: 13301160233 | B41: Más árboles y más y mejor espacio público | C41: 342928000 | D41: 295276305 | E41: 9085000 | G41: 295276305 | I41: 9085000
A42: 133011602330000002146 | B42: Verde para Barrios Unidos | C42: 342928000 | D42: 295276305 | E42: 9085000 | G42: 295276305 | I42: 9085000
A43: 13301160234 | B43: Bogotá protectora de los animales | C43: 323913000 | D43: 289155334 | E43: 61136999 | G43: 289155334 | I43: 61136999
A44: 133011602340000002008 | B44: Nirvana | C44: 323913000 | D44: 289155334 | E44: 61136999 | G44: 289155334 | I44: 61136999
A45: 13301160238 | B45: Ecoeficiencia, reciclaje, manejo de residuos e inclusión de la población recicladora | C45: 333391000 | D45: 190002233 | E45: 106180467 | G45: 190002233 | I45: 106180467
A46: 133011602380000002082 | B46: Barrios Unidos contra el cabio climático | C46: 333391000 | D46: 190002233 | E46: 106180467 | G46: 190002233 | I46: 106180467
A47: 133011603 | B47: Inspirar confianza y legitimidad para vivir sin miedo y ser epicentro de cultura ciudadana, paz y reconciliación | C47: 1843596000 | D47: 1636374985 | E47: 1129102152 | F47: 2067887339 | G47: -431512354 | H47: 1175188067 | I47: -46085915
A48: 13301160339 | B48: Bogotá territorio de paz y atención integral a las víctimas del conflicto armado | C48: 467108000 | D48: 273670006 | E48: 113398233 | G48: 273670006 | I48: 113398233
A49: 133011603390000002030 | B49: Barrios Unidos territorio de paz | C49: 467108000 | D49: 273670006 | E49: 113398233 | G49: 273670006 | I49: 113398233
A50: 13301160340 | B50: Más mujeres viven una vida libre de violencias, se sienten seguras y acceden con confianza al sistema de justicia | C50: 554989000 | D50: 554989000 | E50: 363413433 | G50: 554989000 | I50: 363413433
A51: 133011603400000002057 | B51: Yuliana Samboni | C51: 554989000 | D51: 554989000 | E51: 363413433 | G51: 554989000 | I51: 363413433
A52: 13301160343 | B52: Cultura ciudadana para la confianza, la convivencia y la participación desde la vida cotidiana | C52: 160479000 | D52: 159806858 | E52: 143379648 | G52: 159806858 | I52: 143379648
A53: 133011603430000002149 | B53: Por una localidad segura y resiliente | C53: 160479000 | D53: 159806858 | E53: 143379648 | G53: 159806858 | I53: 143379648
A54: 13301160345 | B54: Espacio público más seguro y construido colectivamente | C54: 541616000 | D54: 541578333 | E54: 420692619 | G54: 541578333 | I54: 420692619
A55: 133011603450000002038 | B55: Acuerdos en comunidad | C55: 541616000 | D55: 541578333 | E55: 420692619 | G55: 541578333 | I55: 420692619
A56: 13301160348 | B56: Plataforma institucional para la seguridad y justicia | C56: 119404000 | D56: 106330788 | E56: 88218219 | G56: 106330788 | I56: 88218219
A57: 133011603480000002153 | B57: Instituciones fuertes y efectivas | C57: 119404000 | D57: 106330788 | E57: 88218219 | G57: 106330788 | I57: 88218219
A58: 133011604 | B58: Hacer de Bogotá Región un modelo de movilidad multimodal, incluyente y sostenible | C58: 1196892000 | D58: 1145502292 | E58: 211913219 | F58: 1117507206 | G58: 27995086 | H58: 191210133 | I58: 20703086
A59: 13301160449 | B59: Movilidad segura, sostenible y accesible | C59: 1196892000 | D59: 1145502292 | E59: 211913219 | G59: 1145502292 | I59: 211913219
A60: 133011604490000002022 | B60: Mejores vías para una mejor calidad de vida | C60: 1196892000 | D60: 1145502292 | E60: 211913219 | G60: 1145502292 | I60: 211913219
A61: 133011605 | B61: Construir Bogotá Región con gobierno abierto, transparente y ciudadanía consciente | C61: 4946321924 | D61: 4851264220 | E61: 3296600251 | G61: 4851264220 | I61: 3296600251
A62: 13301160555 | B62: Fortalecimiento de Cultura Ciudadana y su institucionalidad | C62: 682035000 | D62: 657198000 | E62: 408703333 | G62: 657198000 | I62: 408703333
A63: 133011605550000002141 | B63: Diálogos para crecer y participar | C63: 682035000 | D63: 657198000 | E63: 408703333 | G63: 657198000 | I63: 408703333
A64: 13301160557 | B64: Gestión Pública Local | C64: 4264286924 | D64: 4194066220 | E64: 2887896918 | G64: 4194066220 | I64: 2887896918
A65: 133011605570000002143 | B65: Gobierno abierto y transparente | C65: 4264286924 | D65: 4194066220 | E65: 2887896918 | G65: 4194066220 | I65: 2887896918
A66: 13306 | B66: OBLIGACIONES POR PAGAR | C66: 13674536211 | D66: 13376226555 | E66: 9892065274 | G66: 13376226555 | I66: 9892065274
A67: 1330615 | B67: Bogotá Mejor para todos | C67: 10618923594 | D67: 10387214619 | E67: 6903053338 | G67: 10387214619 | I67: 6903053338
A68: 133061501 | B68: Pilar Igualdad de calidad de vida | C68: 1827715709 | D68: 1719199881 | E68: 1666818674 | G68: 1719199881 | I68: 1666818674
A69: 13306150102 | B69: Desarrollo Integral desde la gestación hasta la adolescencia | C69: 470439810 | D69: 468041251 | E69: 468041251 | G69: 468041251 | I69: 468041251
A70: 133061501020000001533 | B70: 1533 - Protección y promoción de la primera infancia | C70: 470439810 | D70: 468041251 | E70: 468041251 | G70: 468041251 | I70: 468041251
A71: 13306150103 | B71: Igualdad y autonomía para una Bogotá incluyente | C71: 315844722 | D71: 296349263 | E71: 296349263 | G71: 296349263 | I71: 296349263
A72: 133061501030000001556 | B72: 1556 - Apoyo dirigido a la población vulnerable adulto mayor y con condición de discapacidad de la localidad | C72: 315844722 | D72: 296349263 | E72: 296349263 | G72: 296349263 | I72: 296349263
